Workbook

Sheet PI vs x
A1: Measurement | B1: Hall
A2: Type | B2: Off-axis
A4: Project | B4: ='10 y=-0.2'!B5 -> 504314
A5: PS serial no | B5: ='10 y=-0.2'!B7 -> 2410108
A7: Measurement date | B7: =LEFT('10 y=-0.2'!B4,10) -> 01-10-2024
C11: Nominal gap [mm] | D11: Encoder [counts] | E11: Encoder [mm] | F11: PI [T^2mm^3] | G11: y [mm] | H11: Encoder value at 10 mm gap:
B12: ='PI vs x'!$C$12 & "mm gap" -> 10mm gap | C12: ='10 y=-0.2'!B48 -> 10 | D12: ='10 y=-0.2'!$B$50 -> 19.7529 | E12: =D12-$H$12+10 -> 10.00035 | F12: ='10 y=-0.2'!$K$3 -> 10534.43722 | G12: -0.2 | H12: 19.75255
C13: =C12 -> 10 | D13: ='10 y=-0.1'!$B$50 -> 19.7529 | E13: =D13-$H$12+10 -> 10.00035 | F13: ='10 y=-0.1'!$K$3 -> 10528.32972 | G13: -0.1
C14: =C13 -> 10 | D14: ='10 y=0'!$B$50 -> 19.7529 | E14: 10.00035 | F14: ='10 y=0'!$K$3 -> 10526.60708 | G14: 0
C15: 10 | D15: ='10 y=0.1'!$B$50 -> 19.7529 | E15: 10.00035 | F15: ='10 y=0.1'!$K$3 -> 10529.16159 | G15: 0.1
C16: 10 | D16: ='10 y=0.2'!$B$50 -> 19.7529 | E16: 10.00035 | F16: ='10 y=0.2'!$K$3 -> 10530.1743 | G16: 0.2
B17: ='PI vs x'!$C$17 & "mm gap" -> mm gap

Sheet 10 y=-0.2
A1: =IF('DF raw data'!A1="","",'DF raw data'!A1) -> Number of header lines | B1: =IF('DF raw data'!B1="","",'DF raw data'!B1) -> 54 | C1: =IF('DF raw data'!C1="","",'DF raw data'!C1) ->  | D1: =IF('DF raw data'!D1="","",'DF raw data'!D1) ->  | F1: T_coeff | G1: -0.001 | H1: /degC | J1: IBy total | K1: =J1262*1000 -> -10.99455199 | L1: muTm | M1: =L1262*1000 -> 51.90454546 | R1: DF ref | S1: 1
A2: =IF('DF raw data'!A2="","",'DF raw data'!A2) -> Measured by | B2: =IF('DF raw data'!B2="","",'DF raw data'!B2) -> Danfysik | C2: =IF('DF raw data'!C2="","",'DF raw data'!C2) ->  | D2: =IF('DF raw data'!D2="","",'DF raw data'!D2) ->  | F2: Tcorr | G2: 20 | H2: degC | J2: JBy total | K2: =K1262 -> -12.01817998 | L2: muTm^2 | M2: =M1262 -> 17.60460836
A3: =IF('DF raw data'!A3="","",'DF raw data'!A3) -> Operator | B3: =IF('DF raw data'!B3="","",'DF raw data'!B3) -> PMHA | C3: =IF('DF raw data'!C3="","",'DF raw data'!C3) ->  | D3: =IF('DF raw data'!D3="","",'DF raw data'!D3) ->  | F3: Step | G3: =A63-A62 -> 0.5 | H3: mm | J3: PI total | K3: =N1262 -> 10534.43722 | L3: T^2mm^3
A4: =IF('DF raw data'!A4="","",'DF raw data'!A4) -> Data-time | B4: =IF('DF raw data'!B4="","",'DF raw data'!B4) -> 01-10-2024, 21:34:05 | C4: =IF('DF raw data'!C4="","",'DF raw data'!C4) ->  | D4: =IF('DF raw data'!D4="","",'DF raw data'!D4) -> 
A5: =IF('DF raw data'!A5="","",'DF raw data'!A5) -> Project | B5: =IF('DF raw data'!B5="","",'DF raw data'!B5) -> 504314 | C5: =IF('DF raw data'!C5="","",'DF raw data'!C5) ->  | D5: =IF('DF raw data'!D5="","",'DF raw data'!D5) -> 
A6: =IF('DF raw data'!A6="","",'DF raw data'!A6) -> Magnet type | B6: =IF('DF raw data'!B6="","",'DF raw data'!B6) -> Dipole | C6: =IF('DF raw data'!C6="","",'DF raw data'!C6) ->  | D6: =IF('DF raw data'!D6="","",'DF raw data'!D6) -> 
A7: =IF('DF raw data'!A7="","",'DF raw data'!A7) -> Magnet nr. | B7: =IF('DF raw data'!B7="","",'DF raw data'!B7) -> 2410108 | C7: =IF('DF raw data'!C7="","",'DF raw data'!C7) ->  | D7: =IF('DF raw data'!D7="","",'DF raw data'!D7) -> 
A8: =IF('DF raw data'!A8="","",'DF raw data'!A8) -> Meas. number | B8: =IF('DF raw data'!B8="","",'DF raw data'!B8) -> 911 | C8: =IF('DF raw data'!C8="","",'DF raw data'!C8) ->  | D8: =IF('DF raw data'!D8="","",'DF raw data'!D8) -> 
A9: =IF('DF raw data'!A9="","",'DF raw data'!A9) -> Add. info | B9: =IF('DF raw data'!B9="","",'DF raw data'!B9) -> Y-alignment scan 1) | C9: =IF('DF raw data'!C9="","",'DF raw data'!C9) ->  | D9: =IF('DF raw data'!D9="","",'DF raw data'!D9) -> 
A10: =IF('DF raw data'!A10="","",'DF raw data'!A10) -> Device | B10: =IF('DF raw data'!B10="","",'DF raw data'!B10) -> (HAL) HALL-PROBE | C10: =IF('DF raw data'!C10="","",'DF raw data'!C10) ->  | D10: =IF('DF raw data'!D10="","",'DF raw data'!D10) -> 
A11: =IF('DF raw data'!A11="","",'DF raw data'!A11) -> Goal | B11: =IF('DF raw data'!B11="","",'DF raw data'!B11) -> (AXI) AXis Integral (Line, EFB) | C11: =IF('DF raw data'!C11="","",'DF raw data'!C11) ->  | D11: =IF('DF raw data'!D11="","",'DF raw data'!D11) -> 
A12: =IF('DF raw data'!A12="","",'DF raw data'!A12) -> Power supply mode | B12: =IF('DF raw data'!B12="","",'DF raw data'!B12) -> (PM) Permanent Magnet (no MPS in use) | C12: =IF('DF raw data'!C12="","",'DF raw data'!C12) ->  | D12: =IF('DF raw data'!D12="","",'DF raw data'!D12) -> 
A13: =IF('DF raw data'!A13="","",'DF raw data'!A13) -> Data format | B13: =IF('DF raw data'!B13="","",'DF raw data'!B13) -> Raw data text file | C13: =IF('DF raw data'!C13="","",'DF raw data'!C13) ->  | D13: =IF('DF raw data'!D13="","",'DF raw data'!D13) -> 
A14: =IF('DF raw data'!A14="","",'DF raw data'!A14) -> Direction of the pos. x-axis | B14: =IF('DF raw data'!B14="","",'DF raw data'!B14) -> See test program | C14: =IF('DF raw data'!C14="","",'DF raw data'!C14) ->  | D14: =IF('DF raw data'!D14="","",'DF raw data'!D14) -> 
A15: =IF('DF raw data'!A15="","",'DF raw data'!A15) -> Direction of the pos. y-axis | B15: =IF('DF raw data'!B15="","",'DF raw data'!B15) -> Vertical up | C15: =IF('DF raw data'!C15="","",'DF raw data'!C15) ->  | D15: =IF('DF raw data'!D15="","",'DF raw data'!D15) -> 
A16: =IF('DF raw data'!A16="","",'DF raw data'!A16) -> Direction of the pos. z-axis | B16: =IF('DF raw data'!B16="","",'DF raw data'!B16) -> See test program | C16: =IF('DF raw data'!C16="","",'DF raw data'!C16) ->  | D16: =IF('DF raw data'!D16="","",'DF raw data'!D16) -> 
A17: =IF('DF raw data'!A17="","",'DF raw data'!A17) -> Mapper type | B17: =IF('DF raw data'!B17="","",'DF raw data'!B17) -> Precision Hall Mapper | C17: =IF('DF raw data'!C17="","",'DF raw data'!C17) ->  | D17: =IF('DF raw data'!D17="","",'DF raw data'!D17) -> 
A18: =IF('DF raw data'!A18="","",'DF raw data'!A18) -> Mapper Danfysik Reg. Number | B18: =IF('DF raw data'!B18="","",'DF raw data'!B18) -> 2033-D (mapper 1) | C18: =IF('DF raw data'!C18="","",'DF raw data'!C18) ->  | D18: =IF('DF raw data'!D18="","",'DF raw data'!D18) -> 
A19: =IF('DF raw data'!A19="","",'DF raw data'!A19) -> Measurement consept | B19: =IF('DF raw data'!B19="","",'DF raw data'!B19) -> Square line grid | C19: =IF('DF raw data'!C19="","",'DF raw data'!C19) ->  | D19: =IF('DF raw data'!D19="","",'DF raw data'!D19) -> 
A20: =IF('DF raw data'!A20="","",'DF raw data'!A20) -> Mode | B20: =IF('DF raw data'!B20="","",'DF raw data'!B20) -> On-the-fly measurement | C20: =IF('DF raw data'!C20="","",'DF raw data'!C20) ->  | D20: =IF('DF raw data'!D20="","",'DF raw data'!D20) -> 
A21: =IF('DF raw data'!A21="","",'DF raw data'!A21) ->  | B21: =IF('DF raw data'!B21="","",'DF raw data'!B21) ->  | C21: =IF('DF raw data'!C21="","",'DF raw data'!C21) ->  | D21: =IF('DF raw data'!D21="","",'DF raw data'!D21) -> 
A22: =IF('DF raw data'!A22="","",'DF raw data'!A22) -> Probe Name | B22: =IF('DF raw data'!B22="","",'DF raw data'!B22) -> ID12_By | C22: =IF('DF raw data'!C22="","",'DF raw data'!C22) ->  | D22: =IF('DF raw data'!D22="","",'DF raw data'!D22) -> 
A23: =IF('DF raw data'!A23="","",'DF raw data'!A23) -> Probe Type | B23: =IF('DF raw data'!B23="","",'DF raw data'!B23) -> DF_ID_3D_Bxyz | C23: =IF('DF raw data'!C23="","",'DF raw data'!C23) ->  | D23: =IF('DF raw data'!D23="","",'DF raw data'!D23) -> 
A24: =IF('DF raw data'!A24="","",'DF raw data'!A24) -> Probe Danfysik Reg. Number | B24: =IF('DF raw data'!B24="","",'DF raw data'!B24) -> 2277 | C24: =IF('DF raw data'!C24="","",'DF raw data'!C24) ->  | D24: =IF('DF raw data'!D24="","",'DF raw data'!D24) -> 
A25: =IF('DF raw data'!A25="","",'DF raw data'!A25) -> Probe Axis | B25: =IF('DF raw data'!B25="","",'DF raw data'!B25) -> By | C25: =IF('DF raw data'!C25="","",'DF raw data'!C25) ->  | D25: =IF('DF raw data'!D25="","",'DF raw data'!D25) -> 
A26: =IF('DF raw data'!A26="","",'DF raw data'!A26) -> Probe Current Supply | B26: =IF('DF raw data'!B26="","",'DF raw data'!B26) -> 1825-D | C26: =IF('DF raw data'!C26="","",'DF raw data'!C26) ->  | D26: =IF('DF raw data'!D26="","",'DF raw data'!D26) -> 
A27: =IF('DF raw data'!A27="","",'DF raw data'!A27) -> Probe Gain Correction | B27: =IF('DF raw data'!B27="","",'DF raw data'!B27) -> 0.99614 | C27: =IF('DF raw data'!C27="","",'DF raw data'!C27) ->  | D27: =IF('DF raw data'!D27="","",'DF raw data'!D27) -> 
A28: =IF('DF raw data'!A28="","",'DF raw data'!A28) -> Probe Offset Correction | B28: =IF('DF raw data'!B28="","",'DF raw data'!B28) -> 0.0027502 | C28: =IF('DF raw data'!C28="","",'DF raw data'!C28) ->  | D28: =IF('DF raw data'!D28="","",'DF raw data'!D28) -> 
A29: =IF('DF raw data'!A29="","",'DF raw data'!A29) -> DVM Number | B29: =IF('DF raw data'!B29="","",'DF raw data'!B29) -> 2 | C29: =IF('DF raw data'!C29="","",'DF raw data'!C29) ->  | D29: =IF('DF raw data'!D29="","",'DF raw data'!D29) -> 
A30: =IF('DF raw data'!A30="","",'DF raw data'!A30) -> DVM Type | B30: =IF('DF raw data'!B30="","",'DF raw data'!B30) -> K2701 | C30: =IF('DF raw data'!C30="","",'DF raw data'!C30) ->  | D30: =IF('DF raw data'!D30="","",'DF raw data'!D30) -> 
A31: =IF('DF raw data'!A31="","",'DF raw data'!A31) -> DVM Danfysik Reg. Number | B31: =IF('DF raw data'!B31="","",'DF raw data'!B31) -> 1743-D | C31: =IF('DF raw data'!C31="","",'DF raw data'!C31) ->  | D31: =IF('DF raw data'!D31="","",'DF raw data'!D31) -> 
A32: =IF('DF raw data'!A32="","",'DF raw data'!A32) -> Probe Name | B32: =IF('DF raw data'!B32="","",'DF raw data'!B32) -> ID12_Bx | C32: =IF('DF raw data'!C32="","",'DF raw data'!C32) ->  | D32: =IF('DF raw data'!D32="","",'DF raw data'!D32) -> 
A33: =IF('DF raw data'!A33="","",'DF raw data'!A33) -> Probe Type | B33: =IF('DF raw data'!B33="","",'DF raw data'!B33) -> DF_ID_3D_Bxyz | C33: =IF('DF raw data'!C33="","",'DF raw data'!C33) ->  | D33: =IF('DF raw data'!D33="","",'DF raw data'!D33) -> 
A34: =IF('DF raw data'!A34="","",'DF raw data'!A34) -> Probe Danfysik Reg. Number | B34: =IF('DF raw data'!B34="","",'DF raw data'!B34) -> 2277 | C34: =IF('DF raw data'!C34="","",'DF raw data'!C34) ->  | D34: =IF('DF raw data'!D34="","",'DF raw data'!D34) -> 
A35: =IF('DF raw data'!A35="","",'DF raw data'!A35) -> Probe Axis | B35: =IF('DF raw data'!B35="","",'DF raw data'!B35) -> Bx | C35: =IF('DF raw data'!C35="","",'DF raw data'!C35) ->  | D35: =IF('DF raw data'!D35="","",'DF raw data'!D35) -> 
A36: =IF('DF raw data'!A36="","",'DF raw data'!A36) -> Probe Current Supply | B36: =IF('DF raw data'!B36="","",'DF raw data'!B36) -> 1825-D | C36: =IF('DF raw data'!C36="","",'DF raw data'!C36) ->  | D36: =IF('DF raw data'!D36="","",'DF raw data'!D36) -> 
A37: =IF('DF raw data'!A37="","",'DF raw data'!A37) -> Probe Gain Correction | B37: =IF('DF raw data'!B37="","",'DF raw data'!B37) -> 1 | C37: =IF('DF raw data'!C37="","",'DF raw data'!C37) ->  | D37: =IF('DF raw data'!D37="","",'DF raw data'!D37) -> 
A38: =IF('DF raw data'!A38="","",'DF raw data'!A38) -> Probe Offset Correction | B38: =IF('DF raw data'!B38="","",'DF raw data'!B38) -> -0.1755 | C38: =IF('DF raw data'!C38="","",'DF raw data'!C38) ->  | D38: =IF('DF raw data'!D38="","",'DF raw data'!D38) -> 
A39: =IF('DF raw data'!A39="","",'DF raw data'!A39) -> DVM Number | B39: =IF('DF raw data'!B39="","",'DF raw data'!B39) -> 3 | C39: =IF('DF raw data'!C39="","",'DF raw data'!C39) ->  | D39: =IF('DF raw data'!D39="","",'DF raw data'!D39) -> 
A40: =IF('DF raw data'!A40="","",'DF raw data'!A40) -> DVM Type | B40: =IF('DF raw data'!B40="","",'DF raw data'!B40) -> K2701 | C40: =IF('DF raw data'!C40="","",'DF raw data'!C40) ->  | D40: =IF('DF raw data'!D40="","",'DF raw data'!D40) -> 
A41: =IF('DF raw data'!A41="","",'DF raw data'!A41) -> DVM Danfysik Reg. Number | B41: =IF('DF raw data'!B41="","",'DF raw data'!B41) -> 1744-D | C41: =IF('DF raw data'!C41="","",'DF raw data'!C41) ->  | D41: =IF('DF raw data'!D41="","",'DF raw data'!D41) -> 
A42: =IF('DF raw data'!A42="","",'DF raw data'!A42) -> Probe Name | B42: =IF('DF raw data'!B42="","",'DF raw data'!B42) -> ID12_Bz | C42: =IF('DF raw data'!C42="","",'DF raw data'!C42) ->  | D42: =IF('DF raw data'!D42="","",'DF raw data'!D42) -> 
A43: =IF('DF raw data'!A43="","",'DF raw data'!A43) -> Probe Type | B43: =IF('DF raw data'!B43="","",'DF raw data'!B43) -> DF_ID_3D_Bxyz | C43: =IF('DF raw data'!C43="","",'DF raw data'!C43) ->  | D43: =IF('DF raw data'!D43="","",'DF raw data'!D43) -> 
A44: =IF('DF raw data'!A44="","",'DF raw data'!A44) -> Probe Danfysik Reg. Number | B44: =IF('DF raw data'!B44="","",'DF raw data'!B44) -> 2277 | C44: =IF('DF raw data'!C44="","",'DF raw data'!C44) ->  | D44: =IF('DF raw data'!D44="","",'DF raw data'!D44) -> 
A45: =IF('DF raw data'!A45="","",'DF raw data'!A45) -> Probe Axis | B45: =IF('DF raw data'!B45="","",'DF raw data'!B45) -> Bz | C45: =IF('DF raw data'!C45="","",'DF raw data'!C45) ->  | D45: =IF('DF raw data'!D45="","",'DF raw data'!D45) -> 
A46: =IF('DF raw data'!A46="","",'DF raw data'!A46) -> Probe Current Supply | B46: =IF('DF raw data'!B46="","",'DF raw data'!B46) -> 1825-D | C46: =IF('DF raw data'!C46="","",'DF raw data'!C46) ->  | D46: =IF('DF raw data'!D46="","",'DF raw data'!D46) -> 
A47: =IF('DF raw data'!A47="","",'DF raw data'!A47) -> Probe Gain Correction | B47: =IF('DF raw data'!B47="","",'DF raw data'!B47) -> 1 | C47: =IF('DF raw data'!C47="","",'DF raw data'!C47) ->  | D47: =IF('DF raw data'!D47="","",'DF raw data'!D47) -> 
A48: =IF('DF raw data'!A53="","",'DF raw data'!A53) -> PS-Gap: | B48: =IF('DF raw data'!B53="","",'DF raw data'!B53) -> 10 | C48: =IF('DF raw data'!C53="","",'DF raw data'!C53) ->  | D48: =IF('DF raw data'!D53="","",'DF raw data'!D53) -> 
A49: =IF('DF raw data'!A54="","",'DF raw data'!A54) -> PS-Temperature: | B49: =IF('DF raw data'!B54="","",'DF raw data'!B54) -> 24.2 | C49: =IF('DF raw data'!C54="","",'DF raw data'!C54) ->  | D49: =IF('DF raw data'!D54="","",'DF raw data'!D54) -> 
A50: =IF('DF raw data'!A55="","",'DF raw data'!A55) -> PS-Encoder: | B50: =IF('DF raw data'!B55="","",'DF raw data'!B55) -> 19.7529 | C50: =IF('DF raw data'!C55="","",'DF raw data'!C55) ->  | D50: =IF('DF raw data'!D55="","",'DF raw data'!D55) -> 
A51: =IF('DF raw data'!A56="","",'DF raw data'!A56) ->  | B51: =IF('DF raw data'!B56="","",'DF raw data'!B56) ->  | C51: =IF('DF raw data'!C56="","",'DF raw data'!C56) ->  | D51: =IF('DF raw data'!D56="","",'DF raw data'!D56) -> 
A52: =IF('DF raw data'!A57="","",'DF raw data'!A57) -> Monitor-Index | B52: =IF('DF raw data'!B57="","",'DF raw data'!B57) -> [1,1,4] | C52: =IF('DF raw data'!C57="","",'DF raw data'!C57) ->  | D52: =IF('DF raw data'!D57="","",'DF raw data'!D57) -> 
A53: =IF('DF raw data'!A58="","",'DF raw data'!A58) ->  | B53: =IF('DF raw data'!B58="","",'DF raw data'!B58) ->  | C53: =IF('DF raw data'!C58="","",'DF raw data'!C58) ->  | D53: =IF('DF raw data'!D58="","",'DF raw data'!D58) -> 
A54: =IF('DF raw data'!A59="","",'DF raw data'!A59) -> Time [s] | B54: =IF('DF raw data'!B59="","",'DF raw data'!B59) -> Y [mm] | C54: =IF('DF raw data'!C59="","",'DF raw data'!C59) -> X [mm] | D54: =IF('DF raw data'!D59="","",'DF raw data'!D59) -> Nominal current [A]
A55: =IF('DF raw data'!A60="","",'DF raw data'!A60) ->  | B55: =IF('DF raw data'!B60="","",'DF raw data'!B60) ->  | C55: =IF('DF raw data'!C60="","",'DF raw data'!C60) ->  | D55: =IF('DF raw data'!D60="","",'DF raw data'!D60) -> 
A56: =IF('DF raw data'!A61="","",'DF raw data'!A61) -> 213.8 | B56: =IF('DF raw data'!B61="","",'DF raw data'!B61) -> 31.18 | C56: =IF('DF raw data'!C61="","",'DF raw data'!C61) -> 301.8 | D56: =IF('DF raw data'!D61="","",'DF raw data'!D61) -> 0
A57: =IF('DF raw data'!A62="","",'DF raw data'!A62) ->  | B57: =IF('DF raw data'!B62="","",'DF raw data'!B62) ->  | C57: =IF('DF raw data'!C62="","",'DF raw data'!C62) ->  | D57: =IF('DF raw data'!D62="","",'DF raw data'!D62) -> 
A58: =IF('DF raw data'!A63="","",'DF raw data'!A63) -> Measurement-Index | B58: =IF('DF raw data'!B63="","",'DF raw data'!B63) -> [1,1,1201,2] | C58: =IF('DF raw data'!C63="","",'DF raw data'!C63) ->  | D58: =IF('DF raw data'!D63="","",'DF raw data'!D63) -> 
A59: =IF('DF raw data'!A64="","",'DF raw data'!A64) ->  | B59: =IF('DF raw data'!B64="","",'DF raw data'!B64) ->  | C59: =IF('DF raw data'!C64="","",'DF raw data'!C64) ->  | D59: =IF('DF raw data'!D64="","",'DF raw data'!D64) -> 
A60: =IF('DF raw data'!A65="","",'DF raw data'!A65) -> Z [mm] | B60: =IF('DF raw data'!B65="","",'DF raw data'!B65) -> By [T] | C60: =IF('DF raw data'!C65="","",'DF raw data'!C65) -> Bx [T] | D60: =IF('DF raw data'!D65="","",'DF raw data'!D65) -> Bz [T] | F60: By_corr | G60: Bx_corr | H60: Bz_corr | J60: Iy | K60: Jy | L60: Ix | M60: Jx | N60: PI
A62: =IF('DF raw data'!A67="","",'DF raw data'!A67) -> -300 | B62: =IF('DF raw data'!B67="","",'DF raw data'!B67) -> -3.34209e-06 | C62: =IF('DF raw data'!C67="","",'DF raw data'!C67) -> 0.000154407 | D62: =IF('DF raw data'!D67="","",'DF raw data'!D67) -> -5.0543e-05 | F62: =(1-$G$1*($B$49))*B62 -> -3.422968578e-06 | G62: =(1-$G$1*($B$49-$G$2))*C62 -> 0.0001550555094 | H62: =(1-$G$1*($B$49-$G$2))*D62 -> -5.07552806e-05 | J62: =F62*$G$3 -> -1.711484289e-06 | K62: =J62*$G$3 -> -8.557421445e-07 | L62: =G62*$G$3 -> 7.75277547e-05 | M62: =L62*$G$3 -> 3.876387735e-05 | N62: =(J62^2+L62^2)*$G$3 -> 3.006740964e-09
A63: =IF('DF raw data'!A68="","",'DF raw data'!A68) -> -299.5 | B63: =IF('DF raw data'!B68="","",'DF raw data'!B68) -> -4.75133e-06 | C63: =IF('DF raw data'!C68="","",'DF raw data'!C68) -> 0.000154472 | D63: =IF('DF raw data'!D68="","",'DF raw data'!D68) -> -5.06192e-05 | F63: =(1-$G$1*($B$49-$G$2))*B63 -> -4.771285586e-06 | G63: =(1-$G$1*($B$49-$G$2))*C63 -> 0.0001551207824 | H63: -5.083180064e-05 | J63: =F63*$G$3+J62 -> -4.097127082e-06 | K63: =J63*$G$3+K62 -> -2.904305685e-06 | L63: =G63*$G$3+L62 -> 0.0001550881459 | M63: =L63*$G$3+M62 -> 0.0001163079503 | N63: =(J63^2+L63^2)*$G$3+N62 -> 1.504130069e-08
A64: =IF('DF raw data'!A69="","",'DF raw data'!A69) -> -299 | B64: =IF('DF raw data'!B69="","",'DF raw data'!B69) -> -1.03565e-06 | C64: =IF('DF raw data'!C69="","",'DF raw data'!C69) -> 0.000157564 | D64: =IF('DF raw data'!D69="","",'DF raw data'!D69) -> -5.10703e-05 | F64: =(1-$G$1*($B$49-$G$2))*B64 -> -1.03999973e-06 | G64: 0.0001582257688 | H64: -5.128479526e-05 | J64: =F64*$G$3+J63 -> -4.617126947e-06 | K64: =J64*$G$3+K63 -> -5.212869159e-06 | L64: =G64*$G$3+L63 -> 0.0002342010303 | M64: =L64*$G$3+M63 -> 0.0002334084654 | N64: =(J64^2+L64^2)*$G$3+N63 -> 4.247702092e-08
A65: =IF('DF raw data'!A70="","",'DF raw data'!A70) -> -298.5 | B65: =IF('DF raw data'!B70="","",'DF raw data'!B70) -> -4.94295e-06 | C65: =IF('DF raw data'!C70="","",'DF raw data'!C70) -> 0.000155158 | D65: =IF('DF raw data'!D70="","",'DF raw data'!D70) -> -5.16704e-05 | F65: -4.96371039e-06 | G65: 0.0001558096636 | H65: -5.188741568e-05 | J65: -7.098982142e-06 | K65: -8.76236023e-06 | L65: 0.0003121058621 | M65: 0.0003894613965 | N65: 9.120725327e-08
A66: =IF('DF raw data'!A71="","",'DF raw data'!A71) -> -298 | B66: =IF('DF raw data'!B71="","",'DF raw data'!B71) -> -1.19897e-05 | C66: =IF('DF raw data'!C71="","",'DF raw data'!C71) -> 0.000159525 | D66: =IF('DF raw data'!D71="","",'DF raw data'!D71) -> -5.15479e-05 | F66: -1.204005674e-05 | G66: 0.000160195005 | H66: -5.176440118e-05 | J66: -1.311901051e-05 | K66: -1.532186549e-05 | L66: 0.0003922033646 | M66: 0.0005855630788 | N66: 1.682050471e-07
A67: =IF('DF raw data'!A72="","",'DF raw data'!A72) -> -297.5 | B67: =IF('DF raw data'!B72="","",'DF raw data'!B72) -> -1.69232e-05 | C67: =IF('DF raw data'!C72="","",'DF raw data'!C72) -> 0.000154514 | D67: =IF('DF raw data'!D72="","",'DF raw data'!D72) -> -5.05464e-05 | F67: -1.699427744e-05 | G67: 0.0001551629588 | H67: -5.075869488e-05 | J67: -2.161614923e-05 | K67: -2.61299401e-05 | L67: 0.000469784844 | M67: 0.0008204555008 | N67: 2.787875759e-07
A68: =IF('DF raw data'!A73="","",'DF raw data'!A73) -> -297 | B68: =IF('DF raw data'!B73="","",'DF raw data'!B73) -> -1.12864e-05 | C68: =IF('DF raw data'!C73="","",'DF raw data'!C73) -> 0.000160449 | D68: =IF('DF raw data'!D73="","",'DF raw data'!D73) -> -4.97339e-05 | F68: -1.133380288e-05 | G68: 0.0001611228858 | H68: -4.994278238e-05 | J68: -2.728305067e-05 | K68: -3.977146544e-05 | L68: 0.0005503462869 | M68: 0.001095628644 | N68: 4.30600276e-07
A69: =IF('DF raw data'!A74="","",'DF raw data'!A74) -> -296.5 | B69: =IF('DF raw data'!B74="","",'DF raw data'!B74) -> -5.2644e-06 | C69: =IF('DF raw data'!C74="","",'DF raw data'!C74) -> 0.000166808 | D69: =IF('DF raw data'!D74="","",'DF raw data'!D74) -> -4.9685e-05 | F69: -5.28651048e-06 | G69: 0.0001675085936 | H69: -4.9893677e-05 | J69: -2.992630591e-05 | K69: -5.473461839e-05 | L69: 0.0006341005837 | M69: 0.001412678936 | N69: 6.320898431e-07
A70: =IF('DF raw data'!A75="","",'DF raw data'!A75) -> -296 | B70: =IF('DF raw data'!B75="","",'DF raw data'!B75) -> -6.67394e-06 | C70: =IF('DF raw data'!C75="","",'DF raw data'!C75) -> 0.000163394 | D70: =IF('DF raw data'!D75="","",'DF raw data'!D75) -> -4.96961e-05 | F70: -6.701970548e-06 | G70: 0.0001640802548 | H70: -4.990482362e-05 | J70: -3.327729119e-05 | K70: -7.137326399e-05 | L70: 0.0007161407111 | M70: 0.001770749292 | N70: 8.890722912e-07
A71: =IF('DF raw data'!A76="","",'DF raw data'!A76) -> -295.5 | B71: =IF('DF raw data'!B76="","",'DF raw data'!B76) -> -5.39291e-06 | C71: =IF('DF raw data'!C76="","",'DF raw data'!C76) -> 0.00016268 | D71: =IF('DF raw data'!D76="","",'DF raw data'!D76) -> -4.94926e-05 | F71: -5.415560222e-06 | G71: 0.000163363256 | H71: -4.970046892e-05 | J71: -3.59850713e-05 | K71: -8.936579964e-05 | L71: 0.0007978223391 | M71: 0.002169660461 | N71: 1.207979996e-06
A72: =IF('DF raw data'!A77="","",'DF raw data'!A77) -> -295 | B72: =IF('DF raw data'!B77="","",'DF raw data'!B77) -> 4.66522e-06 | C72: =IF('DF raw data'!C77="","",'DF raw data'!C77) -> 0.000158869 | D72: =IF('DF raw data'!D77="","",'DF raw data'!D77) -> -4.99551e-05 | F72: 4.684813924e-06 | G72: 0.0001595362498 | H72: -5.016491142e-05 | J72: -3.364266434e-05 | K72: -0.0001061871318 | L72: 0.000877590464 | M72: 0.002608455693 | N72: 1.593628422e-06
A73: =IF('DF raw data'!A78="","",'DF raw data'!A78) -> -294.5 | B73: =IF('DF raw data'!B78="","",'DF raw data'!B78) -> 4.2176e-06 | C73: =IF('DF raw data'!C78="","",'DF raw data'!C78) -> 0.000165375 | D73: =IF('DF raw data'!D78="","",'DF raw data'!D78) -> -5.1378e-05 | F73: 4.23531392e-06 | G73: 0.000166069575 | H73: -5.15937876e-05 | J73: -3.152500738e-05 | K73: -0.0001219496355 | L73: 0.0009606252515 | M73: 0.003088768319 | N73: 2.055525772e-06
A74: =IF('DF raw data'!A79="","",'DF raw data'!A79) -> -294 | B74: =IF('DF raw data'!B79="","",'DF raw data'!B79) -> -9.70425e-07 | C74: =IF('DF raw data'!C79="","",'DF raw data'!C79) -> 0.000171209 | D74: =IF('DF raw data'!D79="","",'DF raw data'!D79) -> -5.2665e-05 | F74: -9.74500785e-07 | G74: 0.0001719280778 | H74: -5.2886193e-05 | J74: -3.201225777e-05 | K74: -0.0001379557644 | L74: 0.00104658929 | M74: 0.003612062964 | N74: 2.603712736e-06
A75: =IF('DF raw data'!A80="","",'DF raw data'!A80) -> -293.5 | B75: =IF('DF raw data'!B80="","",'DF raw data'!B80) -> -1.40393e-05 | C75: =IF('DF raw data'!C80="","",'DF raw data'!C80) -> 0.000165367 | D75: =IF('DF raw data'!D80="","",'DF raw data'!D80) -> -5.23768e-05 | F75: -1.409826506e-05 | G75: 0.0001660615414 | H75: -5.259678256e-05 | J75: -3.90613903e-05 | K75: -0.0001574864595 | L75: 0.001129620061 | M75: 0.004176872995 | N75: 3.242496373e-06
A76: =IF('DF raw data'!A81="","",'DF raw data'!A81) -> -293 | B76: =IF('DF raw data'!B81="","",'DF raw data'!B81) -> -2.33935e-05 | C76: =IF('DF raw data'!C81="","",'DF raw data'!C81) -> 0.000162119 | D76: =IF('DF raw data'!D81="","",'DF raw data'!D81) -> -5.06023e-05 | F76: -2.34917527e-05 | G76: 0.0001627998998 | H76: -5.081482966e-05 | J76: -5.080726665e-05 | K76: -0.0001828900928 | L76: 0.001211020011 | M76: 0.004782383 | N76: 3.977071796e-06
A77: =IF('DF raw data'!A82="","",'DF raw data'!A82) -> -292.5 | B77: =IF('DF raw data'!B82="","",'DF raw data'!B82) -> -1.09024e-05 | C77: =IF('DF raw data'!C82="","",'DF raw data'!C82) -> 0.000164442 | D77: =IF('DF raw data'!D82="","",'DF raw data'!D82) -> -4.92343e-05 | F77: -1.094819008e-05 | G77: 0.0001651326564 | H77: -4.944108406e-05 | J77: -5.628136169e-05 | K77: -0.0002110307737 | L77: 0.001293586339 | M77: 0.00542917617 | N77: 4.8153384e-06
A78: =IF('DF raw data'!A83="","",'DF raw data'!A83) -> -292 | B78: =IF('DF raw data'!B83="","",'DF raw data'!B83) -> -7.18642e-06 | C78: =IF('DF raw data'!C83="","",'DF raw data'!C83) -> 0.00016268 | D78: =IF('DF raw data'!D83="","",'DF raw data'!D83) -> -4.96835e-05 | F78: -7.216602964e-06 | G78: 0.000163363256 | H78: -4.98921707e-05 | J78: -5.988966317e-05 | K78: -0.0002409756053 | L78: 0.001375267967 | M78: 0.006116810153 | N78: 5.762812777e-06
A79: =IF('DF raw data'!A84="","",'DF raw data'!A84) -> -291.5 | B79: =IF('DF raw data'!B84="","",'DF raw data'!B84) -> 2.41368e-06 | C79: =IF('DF raw data'!C84="","",'DF raw data'!C84) -> 0.000166226 | D79: =IF('DF raw data'!D84="","",'DF raw data'!D84) -> -3.55112e-05 | F79: 2.423817456e-06 | G79: 0.0001669241492 | H79: -3.566034704e-05 | J79: -5.867775444e-05 | K79: -0.0002703144825 | L79: 0.001458730042 | M79: 0.006846175174 | N79: 6.828480983e-06
A80: =IF('DF raw data'!A85="","",'DF raw data'!A85) -> -291 | B80: =IF('DF raw data'!B85="","",'DF raw data'!B85) -> -1.8982e-05 | C80: =IF('DF raw data'!C85="","",'DF raw data'!C85) -> 0.000163696 | D80: =IF('DF raw data'!D85="","",'DF raw data'!D85) -> -3.6918e-05 | F80: -1.90617244e-05 | G80: 0.0001643835232 | H80: -3.70730556e-05 | J80: -6.820861664e-05 | K80: -0.0003044187908 | L80: 0.001540921803 | M80: 0.007616636076 | N80: 8.018027193e-06
A81: =IF('DF raw data'!A86="","",'DF raw data'!A86) -> -290.5 | B81: =IF('DF raw data'!B86="","",'DF raw data'!B86) -> -1.29646e-05 | C81: =IF('DF raw data'!C86="","",'DF raw data'!C86) -> 0.000163189 | D81: =IF('DF raw data'!D86="","",'DF raw data'!D86) -> -3.00959e-05 | F81: -1.301905132e-05 | G81: 0.0001638743938 | H81: -3.022230278e-05 | J81: -7.47181423e-05 | K81: -0.000341777862 | L81: 0.001622859 | M81: 0.008428065576 | N81: 9.337654261e-06
A82: =IF('DF raw data'!A87="","",'DF raw data'!A87) -> -290 | B82: =IF('DF raw data'!B87="","",'DF raw data'!B87) -> -3.04063e-06 | C82: =IF('DF raw data'!C87="","",'DF raw data'!C87) -> 0.000169861 | D82: =IF('DF raw data'!D87="","",'DF raw data'!D87) -> -2.17188e-05 | F82: -3.053400646e-06 | G82: 0.0001705744162 | H82: -2.181001896e-05 | J82: -7.624484262e-05 | K82: -0.0003799002833 | L82: 0.001708146208 | M82: 0.00928213868 | N82: 1.079944263e-05
A83: =IF('DF raw data'!A88="","",'DF raw data'!A88) -> -289.5 | B83: =IF('DF raw data'!B88="","",'DF raw data'!B88) -> -5.7256e-06 | C83: =IF('DF raw data'!C88="","",'DF raw data'!C88) -> 0.000171302 | D83: =IF('DF raw data'!D88="","",'DF raw data'!D88) -> -3.01718e-05 | F83: -5.74964752e-06 | G83: 0.0001720214684 | H83: -3.029852156e-05 | J83: -7.911966638e-05 | K83: -0.0004194601165 | L83: 0.001794156943 | M83: 0.01017921715 | N83: 1.241207216e-05
A84: =IF('DF raw data'!A89="","",'DF raw data'!A89) -> -289 | B84: =IF('DF raw data'!B89="","",'DF raw data'!B89) -> -4.82848e-06 | C84: =IF('DF raw data'!C89="","",'DF raw data'!C89) -> 0.000165939 | D84: =IF('DF raw data'!D89="","",'DF raw data'!D89) -> -3.0645e-05 | F84: -4.848759616e-06 | G84: 0.0001666359438 | H84: -3.0773709e-05 | J84: -8.154404619e-05 | K84: -0.0004602321396 | L84: 0.001877474914 | M84: 0.01111795461 | N84: 1.41778529e-05
A85: =IF('DF raw data'!A90="","",'DF raw data'!A90) -> -288.5 | B85: =IF('DF raw data'!B90="","",'DF raw data'!B90) -> -1.16778e-05 | C85: =IF('DF raw data'!C90="","",'DF raw data'!C90) -> 0.000160856 | D85: =IF('DF raw data'!D90="","",'DF raw data'!D90) -> -3.89189e-05 | F85: -1.172684676e-05 | G85: 0.0001615315952 | H85: -3.908235938e-05 | J85: -8.740746957e-05 | K85: -0.0005039358744 | L85: 0.001958240712 | M85: 0.01209707496 | N85: 1.609902628e-05
A86: =IF('DF raw data'!A91="","",'DF raw data'!A91) -> -288 | B86: =IF('DF raw data'!B91="","",'DF raw data'!B91) -> 1.02203e-07 | C86: =IF('DF raw data'!C91="","",'DF raw data'!C91) -> 0.000164834 | D86: =IF('DF raw data'!D91="","",'DF raw data'!D91) -> -2.72305e-05 | F86: 1.026322526e-07 | G86: 0.0001655263028 | H86: -2.73448681e-05 | J86: -8.735615345e-05 | K86: -0.0005476139511 | L86: 0.002041003864 | M86: 0.0131175769 | N86: 1.818569022e-05
A87: =IF('DF raw data'!A92="","",'DF raw data'!A92) -> -287.5 | B87: =IF('DF raw data'!B92="","",'DF raw data'!B92) -> 4.87167e-07 | C87: =IF('DF raw data'!C92="","",'DF raw data'!C92) -> 0.000160964 | D87: =IF('DF raw data'!D92="","",'DF raw data'!D92) -> -2.81761e-05 | F87: 4.892131014e-07 | G87: 0.0001616400488 | H87: -2.829443962e-05 | J87: -8.71115469e-05 | K87: -0.0005911697245 | L87: 0.002121823888 | M87: 0.01417848884 | N87: 2.044055273e-05
A88: =IF('DF raw data'!A93="","",'DF raw data'!A93) -> -287 | B88: =IF('DF raw data'!B93="","",'DF raw data'!B93) -> -6.429e-06 | C88: =IF('DF raw data'!C93="","",'DF raw data'!C93) -> 0.000161818 | D88: =IF('DF raw data'!D93="","",'DF raw data'!D93) -> -3.2297e-05 | F88: -6.4560018e-06 | G88: 0.0001624976356 | H88: -3.24326474e-05 | J88: -9.03395478e-05 | K88: -0.0006363394984 | L88: 0.002203072706 | M88: 0.01528002519 | N88: 2.287139802e-05
A89: =IF('DF raw data'!A94="","",'DF raw data'!A94) -> -286.5 | B89: =IF('DF raw data'!B94="","",'DF raw data'!B94) -> -1.91118e-05 | C89: =IF('DF raw data'!C94="","",'DF raw data'!C94) -> 0.000166906 | D89: =IF('DF raw data'!D94="","",'DF raw data'!D94) -> -3.42349e-05 | F89: -1.919206956e-05 | G89: 0.0001676070052 | H89: -3.437868658e-05 | J89: -9.993558258e-05 | K89: -0.0006863072897 | L89: 0.002286876208 | M89: 0.0164234633 | N89: 2.549129298e-05
A90: =IF('DF raw data'!A95="","",'DF raw data'!A95) -> -286 | B90: =IF('DF raw data'!B95="","",'DF raw data'!B95) -> -3.93731e-06 | C90: =IF('DF raw data'!C95="","",'DF raw data'!C95) -> 0.000168844 | D90: =IF('DF raw data'!D95="","",'DF raw data'!D95) -> -2.19345e-05 | F90: -3.953846702e-06 | G90: 0.0001695531448 | H90: -2.20266249e-05 | J90: -0.0001019125059 | K90: -0.0007372635427 | L90: 0.002371652781 | M90: 0.01760928969 | N90: 2.830885451e-05
A91: =IF('DF raw data'!A96="","",'DF raw data'!A96) -> -285.5 | B91: =IF('DF raw data'!B96="","",'DF raw data'!B96) -> -1.15564e-05 | C91: =IF('DF raw data'!C96="","",'DF raw data'!C96) -> 0.00017282 | D91: =IF('DF raw data'!D96="","",'DF raw data'!D96) -> -2.85453e-05 | F91: -1.160493688e-05 | G91: 0.000173545844 | H91: -2.866519026e-05 | J91: -0.0001077149744 | K91: -0.0007911210299 | L91: 0.002458425703 | M91: 0.01883850254 | N91: 3.133658424e-05
A92: =IF('DF raw data'!A97="","",'DF raw data'!A97) -> -285 | B92: =IF('DF raw data'!B97="","",'DF raw data'!B97) -> -6.81222e-06 | C92: =IF('DF raw data'!C97="","",'DF raw data'!C97) -> 0.000173112 | D92: =IF('DF raw data'!D97="","",'DF raw data'!D97) -> -3.40289e-05 | F92: -6.840831324e-06 | G92: 0.0001738390704 | H92: -3.417182138e-05 | J92: -0.00011113539 | K92: -0.0008466887249 | L92: 0.002545345238 | M92: 0.02011117516 | N92: 3.458215097e-05
A93: =IF('DF raw data'!A98="","",'DF raw data'!A98) -> -284.5 | B93: =IF('DF raw data'!B98="","",'DF raw data'!B98) -> 4.78183e-06 | C93: =IF('DF raw data'!C98="","",'DF raw data'!C98) -> 0.000178191 | D93: =IF('DF raw data'!D98="","",'DF raw data'!D98) -> -3.22089e-05 | F93: 4.801913686e-06 | G93: 0.0001789394022 | H93: -3.234417738e-05 | J93: -0.0001087344332 | K93: -0.0009010559415 | L93: 0.002634814939 | M93: 0.02142858263 | N93: 3.805918744e-05
A94: =IF('DF raw data'!A99="","",'DF raw data'!A99) -> -284 | B94: =IF('DF raw data'!B99="","",'DF raw data'!B99) -> 3.5066e-06 | C94: =IF('DF raw data'!C99="","",'DF raw data'!C99) -> 0.000173844 | D94: =IF('DF raw data'!D99="","",'DF raw data'!D99) -> -4.13615e-05 | F94: 3.52132772e-06 | G94: 0.0001745741448 | H94: -4.15352183e-05 | J94: -0.0001069737693 | K94: -0.0009545428261 | L94: 0.002722102011 | M94: 0.02278963363 | N94: 4.176982881e-05
A95: =IF('DF raw data'!A100="","",'DF raw data'!A100) -> -283.5 | B95: =IF('DF raw data'!B100="","",'DF raw data'!B100) -> -6.67761e-06 | C95: =IF('DF raw data'!C100="","",'DF raw data'!C100) -> 0.000164513 | D95: =IF('DF raw data'!D100="","",'DF raw data'!D100) -> -4.40431e-05 | F95: -6.705655962e-06 | G95: 0.0001652039546 | H95: -4.422808102e-05 | J95: -0.0001103265973 | K95: -0.001009706125 | L95: 0.002804703989 | M95: 0.02419198563 | N95: 4.570909702e-05
A96: =IF('DF raw data'!A101="","",'DF raw data'!A101) -> -283 | B96: =IF('DF raw data'!B101="","",'DF raw data'!B101) -> 2.09359e-06 | C96: =IF('DF raw data'!C101="","",'DF raw data'!C101) -> 0.000166443 | D96: =IF('DF raw data'!D101="","",'DF raw data'!D101) -> -3.60288e-05 | F96: 2.102383078e-06 | G96: 0.0001671420606 | H96: -3.618012096e-05 | J96: -0.0001092754058 | K96: -0.001064343828 | L96: 0.002888275019 | M96: 0.02563612314 | N96: 4.988613387e-05
A97: =IF('DF raw data'!A102="","",'DF raw data'!A102) -> -282.5 | B97: =IF('DF raw data'!B102="","",'DF raw data'!B102) -> 4.211e-07 | C97: =IF('DF raw data'!C102="","",'DF raw data'!C102) -> 0.00016687 | D97: =IF('DF raw data'!D102="","",'DF raw data'!D102) -> -2.52821e-05 | F97: 4.2286862e-07 | G97: 0.000167570854 | H97: -2.538828482e-05 | J97: -0.0001090639715 | K97: -0.001118875813 | L97: 0.002972060446 | M97: 0.02712215336 | N97: 5.430865299e-05
A98: =IF('DF raw data'!A103="","",'DF raw data'!A103) -> -282 | B98: =IF('DF raw data'!B103="","",'DF raw data'!B103) -> 4.72221e-06 | C98: =IF('DF raw data'!C103="","",'DF raw data'!C103) -> 0.000158103 | D98: =IF('DF raw data'!D103="","",'DF raw data'!D103) -> -3.92592e-05 | F98: 4.742043282e-06 | G98: 0.0001587670326 | H98: -3.942408864e-05 | J98: -0.0001066929498 | K98: -0.001172222288 | L98: 0.003051443962 | M98: 0.02864787534 | N98: 5.896999981e-05
A99: =IF('DF raw data'!A104="","",'DF raw data'!A104) -> -281.5 | B99: =IF('DF raw data'!B104="","",'DF raw data'!B104) -> -6.9434e-06 | C99: =IF('DF raw data'!C104="","",'DF raw data'!C104) -> 0.000168261 | D99: =IF('DF raw data'!D104="","",'DF raw data'!D104) -> -2.93197e-05 | F99: -6.97256228e-06 | G99: 0.0001689676962 | H99: -2.944284274e-05 | J99: -0.000110179231 | K99: -0.001227311904 | L99: 0.00313592781 | M99: 0.03021583925 | N99: 6.389309116e-05
A100: =IF('DF raw data'!A105="","",'DF raw data'!A105) -> -281 | B100: =IF('DF raw data'!B105="","",'DF raw data'!B105) -> 1.9034e-06 | C100: =IF('DF raw data'!C105="","",'DF raw data'!C105) -> 0.000168687 | D100: =IF('DF raw data'!D105="","",'DF raw data'!D105) -> -3.88813e-05 | F100: 1.91139428e-06 | G100: 0.0001693954854 | H100: -3.904460146e-05 | J100: -0.0001092235338 | K100: -0.001281923671 | L100: 0.003220625553 | M100: 0.03182615202 | N100: 6.908527053e-05
A101: =IF('DF raw data'!A106="","",'DF raw data'!A106) -> -280.5 | B101: =IF('DF raw data'!B106="","",'DF raw data'!B106) -> -1.84033e-05 | C101: =IF('DF raw data'!C106="","",'DF raw data'!C106) -> 0.000158335 | D101: =IF('DF raw data'!D106="","",'DF raw data'!D106) -> -4.04496e-05 | F101: -1.848059386e-05 | G101: 0.000159000007 | H101: -4.061948832e-05 | J101: -0.0001184638307 | K101: -0.001341155586 | L101: 0.003300125557 | M101: 0.0334762148 | N101: 7.453770171e-05
A102: =IF('DF raw data'!A107="","",'DF raw data'!A107) -> -280 | B102: =IF('DF raw data'!B107="","",'DF raw data'!B107) -> -3.79814e-06 | C102: =IF('DF raw data'!C107="","",'DF raw data'!C107) -> 0.000167399 | D102: =IF('DF raw data'!D107="","",'DF raw data'!D107) -> -3.89721e-05 | F102: -3.814092188e-06 | G102: 0.0001681020758 | H102: -3.913578282e-05 | J102: -0.0001203708768 | K102: -0.001401341024 | L102: 0.003384176595 | M102: 0.0351683031 | N102: 8.02712719e-05
A103: =IF('DF raw data'!A108="","",'DF raw data'!A108) -> -279.5 | B103: =IF('DF raw data'!B108="","",'DF raw data'!B108) -> -1.24503e-05 | C103: =IF('DF raw data'!C108="","",'DF raw data'!C108) -> 0.000170855 | D103: =IF('DF raw data'!D108="","",'DF raw data'!D108) -> -3.30165e-05 | F103: -1.250259126e-05 | G103: 0.000171572591 | H103: -3.31551693e-05 | J103: -0.0001266221725 | K103: -0.001464652111 | L103: 0.00346996289 | M103: 0.03690328454 | N103: 8.629960971e-05
A104: =IF('DF raw data'!A109="","",'DF raw data'!A109) -> -279 | B104: =IF('DF raw data'!B109="","",'DF raw data'!B109) -> -1.40461e-05 | C104: =IF('DF raw data'!C109="","",'DF raw data'!C109) -> 0.000176991 | D104: =IF('DF raw data'!D109="","",'DF raw data'!D109) -> -4.20162e-05 | F104: -1.410509362e-05 | G104: 0.0001777343622 | H104: -4.219266804e-05 | J104: -0.0001336747193 | K104: -0.00153148947 | L104: 0.003558830071 | M104: 0.03868269958 | N104: 9.264117992e-05
A105: =IF('DF raw data'!A110="","",'DF raw data'!A110) -> -278.5 | B105: =IF('DF raw data'!B110="","",'DF raw data'!B110) -> -9.81844e-06 | C105: =IF('DF raw data'!C110="","",'DF raw data'!C110) -> 0.000169202 | D105: =IF('DF raw data'!D110="","",'DF raw data'!D110) -> -4.12202e-05 | F105: -9.859677448e-06 | G105: 0.0001699126484 | H105: -4.139332484e-05 | J105: -0.000138604558 | K105: -0.001600791749 | L105: 0.003643786395 | M105: 0.04050459278 | N105: 9.928937518e-05
A106: =IF('DF raw data'!A111="","",'DF raw data'!A111) -> -278 | B106: =IF('DF raw data'!B111="","",'DF raw data'!B111) -> -6.30081e-06 | C106: =IF('DF raw data'!C111="","",'DF raw data'!C111) -> 0.000169307 | D106: =IF('DF raw data'!D111="","",'DF raw data'!D111) -> -3.24195e-05 | F106: -6.327273402e-06 | G106: 0.0001700180894 | H106: -3.25556619e-05 | J106: -0.0001417681947 | K106: -0.001671675847 | L106: 0.00372879544 | M106: 0.0423689905 | N106: 0.000106251382
A107: =IF('DF raw data'!A112="","",'DF raw data'!A112) -> -277.5 | B107: =IF('DF raw data'!B112="","",'DF raw data'!B112) -> -5.53086e-06 | C107: =IF('DF raw data'!C112="","",'DF raw data'!C112) -> 0.00017591 | D107: =IF('DF raw data'!D112="","",'DF raw data'!D112) -> -3.4339e-05 | F107: -5.554089612e-06 | G107: 0.000176648822 | H107: -3.44832238e-05 | J107: -0.0001445452395 | K107: -0.001743948466 | L107: 0.003817119851 | M107: 0.04427755042 | N107: 0.0001135470306
A108: =IF('DF raw data'!A113="","",'DF raw data'!A113) -> -277 | B108: =IF('DF raw data'!B113="","",'DF raw data'!B113) -> 4.4366e-08 | C108: =IF('DF raw data'!C113="","",'DF raw data'!C113) -> 0.000167486 | D108: =IF('DF raw data'!D113="","",'DF raw data'!D113) -> -3.70266e-05 | F108: 4.45523372e-08 | G108: 0.0001681894412 | H108: -3.718211172e-05 | J108: -0.0001445229633 | K108: -0.001816209948 | L108: 0.003901214572 | M108: 0.04622815771 | N108: 0.0001211672117
A109: =IF('DF raw data'!A114="","",'DF raw data'!A114) -> -276.5 | B109: =IF('DF raw data'!B114="","",'DF raw data'!B114) -> -9.50403e-06 | C109: =IF('DF raw data'!C114="","",'DF raw data'!C114) -> 0.000161933 | D109: =IF('DF raw data'!D114="","",'DF raw data'!D114) -> -3.19528e-05 | F109: -9.543946926e-06 | G109: 0.0001626131186 | H109: -3.208700176e-05 | J109: -0.0001492949368 | K109: -0.001890857417 | L109: 0.003982521131 | M109: 0.04821941827 | N109: 0.0001291085934
A110: =IF('DF raw data'!A115="","",'DF raw data'!A115) -> -276 | B110: =IF('DF raw data'!B115="","",'DF raw data'!B115) -> -1.82217e-05 | C110: =IF('DF raw data'!C115="","",'DF raw data'!C115) -> 0.000164724 | D110: =IF('DF raw data'!D115="","",'DF raw data'!D115) -> -2.39703e-05 | F110: -1.829823114e-05 | G110: 0.0001654158408 | H110: -2.407097526e-05 | J110: -0.0001584440524 | K110: -0.001970079443 | L110: 0.004065229051 | M110: 0.0502520328 | N110: 0.0001373841893
A111: =IF('DF raw data'!A116="","",'DF raw data'!A116) -> -275.5 | B111: =IF('DF raw data'!B116="","",'DF raw data'!B116) -> -8.66986e-06 | C111: =IF('DF raw data'!C116="","",'DF raw data'!C116) -> 0.000164813 | D111: =IF('DF raw data'!D116="","",'DF raw data'!D116) -> -3.43345e-05 | F111: -8.706273412e-06 | G111: 0.0001655052146 | H111: -3.44787049e-05 | J111: -0.0001627971891 | K111: -0.002051478037 | L111: 0.004147981659 | M111: 0.05232602363 | N111: 0.0001460003167
A112: =IF('DF raw data'!A117="","",'DF raw data'!A117) -> -275 | B112: =IF('DF raw data'!B117="","",'DF raw data'!B117) -> -8.15397e-06 | C112: =IF('DF raw data'!C117="","",'DF raw data'!C117) -> 0.000165548 | D112: =IF('DF raw data'!D117="","",'DF raw data'!D117) -> -3.96078e-05 | F112: -8.188216674e-06 | G112: 0.0001662433016 | H112: -3.977415276e-05 | J112: -0.0001668912974 | K112: -0.002134923686 | L112: 0.004231103309 | M112: 0.05444157528 | N112: 0.0001549653606
A113: =IF('DF raw data'!A118="","",'DF raw data'!A118) -> -274.5 | B113: =IF('DF raw data'!B118="","",'DF raw data'!B118) -> -2.60312e-05 | C113: =IF('DF raw data'!C118="","",'DF raw data'!C118) -> 0.000161886 | D113: =IF('DF raw data'!D118="","",'DF raw data'!D118) -> -3.34792e-05 | F113: -2.614053104e-05 | G113: 0.0001625659212 | H113: -3.361981264e-05 | J113: -0.0001799615629 | K113: -0.002224904467 | L113: 0.00431238627 | M113: 0.05659776842 | N113: 0.0001642798914
A114: =IF('DF raw data'!A119="","",'DF raw data'!A119) -> -274 | B114: =IF('DF raw data'!B119="","",'DF raw data'!B119) -> -5.34161e-06 | C114: =IF('DF raw data'!C119="","",'DF raw data'!C119) -> 0.000158325 | D114: =IF('DF raw data'!D119="","",'DF raw data'!D119) -> -2.9627e-05 | F114: -5.364044762e-06 | G114: 0.000158989965 | H114: -2.97514334e-05 | J114: -0.0001826435853 | K114: -0.00231622626 | L114: 0.004391881253 | M114: 0.05879370904 | N114: 0.0001739408812
A115: =IF('DF raw data'!A120="","",'DF raw data'!A120) -> -273.5 | B115: =IF('DF raw data'!B120="","",'DF raw data'!B120) -> -1.45035e-05 | C115: =IF('DF raw data'!C120="","",'DF raw data'!C120) -> 0.000160074 | D115: =IF('DF raw data'!D120="","",'DF raw data'!D120) -> -2.79216e-05 | F115: -1.45644147e-05 | G115: 0.0001607463108 | H115: -2.803887072e-05 | J115: -0.0001899257927 | K115: -0.002411189156 | L115: 0.004472254408 | M115: 0.06102983625 | N115: 0.0001839594469
A116: =IF('DF raw data'!A121="","",'DF raw data'!A121) -> -273 | B116: =IF('DF raw data'!B121="","",'DF raw data'!B121) -> -2.5293e-06 | C116: =IF('DF raw data'!C121="","",'DF raw data'!C121) -> 0.000156597 | D116: =IF('DF raw data'!D121="","",'DF raw data'!D121) -> -1.95587e-05 | F116: -2.53992306e-06 | G116: 0.0001572547074 | H116: -1.964084654e-05 | J116: -0.0001911957542 | K116: -0.002506787034 | L116: 0.004550881762 | M116: 0.06330527713 | N116: 0.0001943329872
A117: =IF('DF raw data'!A122="","",'DF raw data'!A122) -> -272.5 | B117: =IF('DF raw data'!B122="","",'DF raw data'!B122) -> -1.54609e-07 | C117: =IF('DF raw data'!C122="","",'DF raw data'!C122) -> 0.000154763 | D117: =IF('DF raw data'!D122="","",'DF raw data'!D122) -> -2.63384e-05 | F117: -1.552583578e-07 | G117: 0.0001554130046 | H117: -2.644902128e-05 | J117: -0.0001912733834 | K117: -0.002602423725 | L117: 0.004628588264 | M117: 0.06561957126 | N117: 0.0002050631946
A118: =IF('DF raw data'!A123="","",'DF raw data'!A123) -> -272 | B118: =IF('DF raw data'!B123="","",'DF raw data'!B123) -> -1.62998e-05 | C118: =IF('DF raw data'!C123="","",'DF raw data'!C123) -> 0.000160522 | D118: =IF('DF raw data'!D123="","",'DF raw data'!D123) -> -2.4261e-05 | F118: -1.636825916e-05 | G118: 0.0001611961924 | H118: -2.43628962e-05 | J118: -0.000199457513 | K118: -0.002702152482 | L118: 0.00470918636 | M118: 0.06797416444 | N118: 0.0002161713043
A119: =IF('DF raw data'!A124="","",'DF raw data'!A124) -> -271.5 | B119: =IF('DF raw data'!B124="","",'DF raw data'!B124) -> -1.20692e-05 | C119: =IF('DF raw data'!C124="","",'DF raw data'!C124) -> 0.000168263 | D119: =IF('DF raw data'!D124="","",'DF raw data'!D124) -> -2.7957e-05 | F119: -1.211989064e-05 | G119: 0.0001689697046 | H119: -2.80744194e-05 | J119: -0.0002055174583 | K119: -0.002804911211 | L119: 0.004793671212 | M119: 0.07037100005 | N119: 0.0002276820649
A120: =IF('DF raw data'!A125="","",'DF raw data'!A125) -> -271 | B120: =IF('DF raw data'!B125="","",'DF raw data'!B125) -> -5.97956e-06 | C120: =IF('DF raw data'!C125="","",'DF raw data'!C125) -> 0.00016466 | D120: =IF('DF raw data'!D125="","",'DF raw data'!D125) -> -3.36998e-05 | F120: -6.004674152e-06 | G120: 0.000165351572 | H120: -3.384133916e-05 | J120: -0.0002085197954 | K120: -0.002909171109 | L120: 0.004876346998 | M120: 0.07280917355 | N120: 0.0002395931852
A121: =IF('DF raw data'!A126="","",'DF raw data'!A126) -> -270.5 | B121: =IF('DF raw data'!B126="","",'DF raw data'!B126) -> -1.14938e-05 | C121: =IF('DF raw data'!C126="","",'DF raw data'!C126) -> 0.000161687 | D121: =IF('DF raw data'!D126="","",'DF raw data'!D126) -> -2.61265e-05 | F121: -1.154207396e-05 | G121: 0.0001623660854 | H121: -2.62362313e-05 | J121: -0.0002142908323 | K121: -0.003016316525 | L121: 0.004957530041 | M121: 0.07528793857 | N121: 0.0002519046975
A122: =IF('DF raw data'!A127="","",'DF raw data'!A127) -> -270 | B122: =IF('DF raw data'!B127="","",'DF raw data'!B127) -> -2.15491e-05 | C122: =IF('DF raw data'!C127="","",'DF raw data'!C127) -> 0.000161172 | D122: =IF('DF raw data'!D127="","",'DF raw data'!D127) -> -2.9974e-05 | F122: -2.163960622e-05 | G122: 0.0001618489224 | H122: -3.00998908e-05 | J122: -0.0002251106354 | K122: -0.003128871842 | L122: 0.005038454502 | M122: 0.07780716582 | N122: 0.0002646230468
A123: =IF('DF raw data'!A128="","",'DF raw data'!A128) -> -269.5 | B123: =IF('DF raw data'!B128="","",'DF raw data'!B128) -> -1.70617e-05 | C123: =IF('DF raw data'!C128="","",'DF raw data'!C128) -> 0.000166337 | D123: =IF('DF raw data'!D128="","",'DF raw data'!D128) -> -3.4698e-05 | F123: -1.713335914e-05 | G123: 0.0001670356154 | H123: -3.48437316e-05 | J123: -0.000233677315 | K123: -0.0032457105 | L123: 0.00512197231 | M123: 0.08036815197 | N123: 0.0002777676495
A124: =IF('DF raw data'!A129="","",'DF raw data'!A129) -> -269 | B124: =IF('DF raw data'!B129="","",'DF raw data'!B129) -> -2.60969e-05 | C124: =IF('DF raw data'!C129="","",'DF raw data'!C129) -> 0.000164597 | D124: =IF('DF raw data'!D129="","",'DF raw data'!D129) -> -3.07509e-05 | F124: -2.620650698e-05 | G124: 0.0001652883074 | H124: -3.088005378e-05 | J124: -0.0002467805685 | K124: -0.003369100784 | L124: 0.005204616464 | M124: 0.08297046021 | N124: 0.0002913421161
A125: =IF('DF raw data'!A130="","",'DF raw data'!A130) -> -268.5 | B125: =IF('DF raw data'!B130="","",'DF raw data'!B130) -> -8.73527e-06 | C125: =IF('DF raw data'!C130="","",'DF raw data'!C130) -> 0.000163886 | D125: =IF('DF raw data'!D130="","",'DF raw data'!D130) -> -3.20653e-05 | F125: -8.771958134e-06 | G125: 0.0001645743212 | H125: -3.219997426e-05 | J125: -0.0002511665476 | K125: -0.003494684058 | L125: 0.005286903624 | M125: 0.08561391202 | N125: 0.0003053493334
A126: =IF('DF raw data'!A131="","",'DF raw data'!A131) -> -268 | B126: =IF('DF raw data'!B131="","",'DF raw data'!B131) -> -2.90116e-06 | C126: =IF('DF raw data'!C131="","",'DF raw data'!C131) -> 0.000161997 | D126: =IF('DF raw data'!D131="","",'DF raw data'!D131) -> -3.92253e-05 | F126: -2.913344872e-06 | G126: 0.0001626773874 | H126: -3.939004626e-05 | J126: -0.00025262322 | K126: -0.003620995668 | L126: 0.005368242318 | M126: 0.08829803318 | N126: 0.0003197902554
A127: =IF('DF raw data'!A132="","",'DF raw data'!A132) -> -267.5 | B127: =IF('DF raw data'!B132="","",'DF raw data'!B132) -> -1.78925e-05 | C127: =IF('DF raw data'!C132="","",'DF raw data'!C132) -> 0.000159608 | D127: =IF('DF raw data'!D132="","",'DF raw data'!D132) -> -3.75262e-05 | F127: -1.79676485e-05 | G127: 0.0001602783536 | H127: -3.768381004e-05 | J127: -0.0002616070443 | K127: -0.00375179919 | L127: 0.005448381495 | M127: 0.09102222392 | N127: 0.000334666905
A128: =IF('DF raw data'!A133="","",'DF raw data'!A133) -> -267 | B128: =IF('DF raw data'!B133="","",'DF raw data'!B133) -> -1.39804e-05 | C128: =IF('DF raw data'!C133="","",'DF raw data'!C133) -> 0.000159221 | D128: =IF('DF raw data'!D133="","",'DF raw data'!D133) -> -4.43563e-05 | F128: =(1-$G$1*($B$49-$G$2))*B128 -> -1.403911768e-05 | G128: 0.0001598897282 | H128: -4.454259646e-05 | J128: =F128*$G$3+J127 -> -0.0002686266031 | K128: =J128*$G$3+K127 -> -0.003886112492 | L128: =G128*$G$3+L127 -> 0.005528326359 | M128: =L128*$G$3+M127 -> 0.0937863871 | N128: =(J128^2+L128^2)*$G$3+N127 -> 0.0003499841813
A129: =IF('DF raw data'!A134="","",'DF raw data'!A134) -> -266.5 | B129: =IF('DF raw data'!B134="","",'DF raw data'!B134) -> -1.24402e-05 | C129: =IF('DF raw data'!C134="","",'DF raw data'!C134) -> 0.000161934 | D129: =IF('DF raw data'!D134="","",'DF raw data'!D134) -> -4.85996e-05 | F129: -1.249244884e-05 | G129: 0.0001626141228 | H129: -4.880371832e-05 | J129: -0.0002748728275 | K129: -0.004023548905 | L129: 0.00560963342 | M129: 0.09659120381 | N129: 0.0003657559524
A130: =IF('DF raw data'!A135="","",'DF raw data'!A135) -> -266 | B130: =IF('DF raw data'!B135="","",'DF raw data'!B135) -> -1.12306e-05 | C130: =IF('DF raw data'!C135="","",'DF raw data'!C135) -> 0.000155681 | D130: =IF('DF raw data'!D135="","",'DF raw data'!D135) -> -3.67427e-05 | F130: -1.127776852e-05 | G130: 0.0001563348602 | H130: -3.689701934e-05 | J130: -0.0002805117118 | K130: -0.004163804761 | L130: 0.00568780085 | M130: 0.09943510424 | N130: 0.000381970835
A131: =IF('DF raw data'!A136="","",'DF raw data'!A136) -> -265.5 | B131: =IF('DF raw data'!B136="","",'DF raw data'!B136) -> -2.26978e-05 | C131: =IF('DF raw data'!C136="","",'DF raw data'!C136) -> 0.000152635 | D131: =IF('DF raw data'!D136="","",'DF raw data'!D136) -> -3.67724e-05 | F131: -2.279313076e-05 | G131: 0.000153276067 | H131: -3.692684408e-05 | J131: -0.0002919082772 | K131: -0.0043097589 | L131: 0.005764438884 | M131: 0.1023173237 | N131: 0.0003986278181
A132: =IF('DF raw data'!A137="","",'DF raw data'!A137) -> -265 | B132: =IF('DF raw data'!B137="","",'DF raw data'!B137) -> -5.72209e-06 | C132: =IF('DF raw data'!C137="","",'DF raw data'!C137) -> 0.000154915 | D132: =IF('DF raw data'!D137="","",'DF raw data'!D137) -> -3.5603e-05 | F132: -5.746122778e-06 | G132: 0.000155565643 | H132: -3.57525326e-05 | J132: -0.0002947813385 | K132: -0.004457149569 | L132: 0.005842221705 | M132: 0.1052384345 | N132: 0.0004157370433
A133: =IF('DF raw data'!A138="","",'DF raw data'!A138) -> -264.5 | B133: =IF('DF raw data'!B138="","",'DF raw data'!B138) -> -4.31002e-06 | C133: =IF('DF raw data'!C138="","",'DF raw data'!C138) -> 0.000159157 | D133: =IF('DF raw data'!D138="","",'DF raw data'!D138) -> -3.98924e-05 | F133: -4.328122084e-06 | G133: 0.0001598254594 | H133: -4.005994808e-05 | J133: -0.0002969453996 | K133: -0.004605622269 | L133: 0.005922134435 | M133: 0.1081995018 | N133: 0.0004333169697
A134: =IF('DF raw data'!A139="","",'DF raw data'!A139) -> -264 | B134: =IF('DF raw data'!B139="","",'DF raw data'!B139) -> -4.82988e-06 | C134: =IF('DF raw data'!C139="","",'DF raw data'!C139) -> 0.00015701 | D134: =IF('DF raw data'!D139="","",'DF raw data'!D139) -> -2.84965e-05 | F134: -4.850165496e-06 | G134: 0.000157669442 | H134: -2.86161853e-05 | J134: -0.0002993704823 | K134: -0.00475530751 | L134: 0.006000969156 | M134: 0.1111999863 | N134: 0.0004513675965
A135: =IF('DF raw data'!A140="","",'DF raw data'!A140) -> -263.5 | B135: =IF('DF raw data'!B140="","",'DF raw data'!B140) -> -9.37188e-06 | C135: =IF('DF raw data'!C140="","",'DF raw data'!C140) -> 0.000159405 | D135: =IF('DF raw data'!D140="","",'DF raw data'!D140) -> -3.81944e-05 | F135: -9.411241896e-06 | G135: 0.000160074501 | H135: -3.835481648e-05 | J135: -0.0003040761033 | K135: -0.004907345562 | L135: 0.006081006407 | M135: 0.1142404895 | N135: 0.0004699031471
A136: =IF('DF raw data'!A141="","",'DF raw data'!A141) -> -263 | B136: =IF('DF raw data'!B141="","",'DF raw data'!B141) -> -1.42408e-05 | C136: =IF('DF raw data'!C141="","",'DF raw data'!C141) -> 0.000161354 | D136: =IF('DF raw data'!D141="","",'DF raw data'!D141) -> -3.79116e-05 | F136: -1.430061136e-05 | G136: 0.0001620316868 | H136: -3.807082872e-05 | J136: -0.000311226409 | K136: -0.005062958766 | L136: 0.00616202225 | M136: 0.1173215007 | N136: 0.0004889368371
A137: =IF('DF raw data'!A142="","",'DF raw data'!A142) -> -262.5 | B137: =IF('DF raw data'!B142="","",'DF raw data'!B142) -> -1.62232e-05 | C137: =IF('DF raw data'!C142="","",'DF raw data'!C142) -> 0.000162175 | D137: =IF('DF raw data'!D142="","",'DF raw data'!D142) -> -4.33945e-05 | F137: -1.629133744e-05 | G137: 0.000162856135 | H137: -4.35767569e-05 | J137: -0.0003193720777 | K137: -0.005222644805 | L137: 0.006243450317 | M137: 0.1204432258 | N137: 0.0005084781723
A138: =IF('DF raw data'!A143="","",'DF raw data'!A143) -> -262 | B138: =IF('DF raw data'!B143="","",'DF raw data'!B143) -> -1.16848e-05 | C138: =IF('DF raw data'!C143="","",'DF raw data'!C143) -> 0.000164383 | D138: =IF('DF raw data'!D143="","",'DF raw data'!D143) -> -2.81184e-05 | F138: -1.173387616e-05 | G138: 0.0001650734086 | H138: -2.823649728e-05 | J138: -0.0003252390158 | K138: -0.005385264313 | L138: 0.006325987022 | M138: 0.1236062193 | N138: 0.0005285401184
A139: =IF('DF raw data'!A144="","",'DF raw data'!A144) -> -261.5 | B139: =IF('DF raw data'!B144="","",'DF raw data'!B144) -> -1.77019e-05 | C139: =IF('DF raw data'!C144="","",'DF raw data'!C144) -> 0.000159564 | D139: =IF('DF raw data'!D144="","",'DF raw data'!D144) -> -3.53385e-05 | F139: -1.777624798e-05 | G139: 0.0001602341688 | H139: -3.54869217e-05 | J139: -0.0003341271398 | K139: -0.005552327883 | L139: 0.006406104106 | M139: 0.1268092714 | N139: 0.0005491150238
A140: =IF('DF raw data'!A145="","",'DF raw data'!A145) -> -261 | B140: =IF('DF raw data'!B145="","",'DF raw data'!B145) -> -1.19309e-05 | C140: =IF('DF raw data'!C145="","",'DF raw data'!C145) -> 0.000158258 | D140: =IF('DF raw data'!D145="","",'DF raw data'!D145) -> -4.37675e-05 | F140: -1.198100978e-05 | G140: 0.0001589226836 | H140: -4.39513235e-05 | J140: -0.0003401176446 | K140: -0.005722386705 | L140: 0.006485565448 | M140: 0.1300520541 | N140: 0.0005702041434
A141: =IF('DF raw data'!A146="","",'DF raw data'!A146) -> -260.5 | B141: =IF('DF raw data'!B146="","",'DF raw data'!B146) -> -1.62256e-05 | C141: =IF('DF raw data'!C146="","",'DF raw data'!C146) -> 0.000164223 | D141: =IF('DF raw data'!D146="","",'DF raw data'!D146) -> -3.96169e-05 | F141: -1.629374752e-05 | G141: 0.0001649127366 | H141: -3.978329098e-05 | J141: -0.0003482645184 | K141: -0.005896518964 | L141: 0.006568021816 | M141: 0.133336065 | N141: 0.0005918342428
A142: =IF('DF raw data'!A147="","",'DF raw data'!A147) -> -260 | B142: =IF('DF raw data'!B147="","",'DF raw data'!B147) -> -1.27058e-05 | C142: =IF('DF raw data'!C147="","",'DF raw data'!C147) -> 0.000164013 | D142: =IF('DF raw data'!D147="","",'DF raw data'!D147) -> -3.41338e-05 | F142: -1.275916436e-05 | G142: 0.0001647018546 | H142: -3.427716196e-05 | J142: -0.0003546441006 | K142: -0.006073841015 | L142: 0.006650372744 | M142: 0.1366612514 | N142: 0.0006140108578
A143: =IF('DF raw data'!A148="","",'DF raw data'!A148) -> -259.5 | B143: =IF('DF raw data'!B148="","",'DF raw data'!B148) -> -3.35463e-06 | C143: =IF('DF raw data'!C148="","",'DF raw data'!C148) -> 0.000162384 | D143: =IF('DF raw data'!D148="","",'DF raw data'!D148) -> -3.12332e-05 | F143: -3.368719446e-06 | G143: 0.0001630660128 | H143: -3.136437944e-05 | J143: -0.0003563284603 | K143: -0.006252005245 | L143: 0.00673190575 | M143: 0.1400272043 | N143: 0.0006367336203
A144: =IF('DF raw data'!A149="","",'DF raw data'!A149) -> -259 | B144: =IF('DF raw data'!B149="","",'DF raw data'!B149) -> -7.19797e-06 | C144: =IF('DF raw data'!C149="","",'DF raw data'!C149) -> 0.000161584 | D144: =IF('DF raw data'!D149="","",'DF raw data'!D149) -> -3.19088e-05 | F144: -7.228201474e-06 | G144: 0.0001622626528 | H144: -3.204281696e-05 | J144: -0.000359942561 | K144: -0.006431976525 | L144: 0.006813037076 | M144: 0.1434337228 | N144: 0.0006600071367
A145: =IF('DF raw data'!A150="","",'DF raw data'!A150) -> -258.5 | B145: =IF('DF raw data'!B150="","",'DF raw data'!B150) -> -1.34143e-05 | C145: =IF('DF raw data'!C150="","",'DF raw data'!C150) -> 0.000163566 | D145: =IF('DF raw data'!D150="","",'DF raw data'!D150) -> -2.84804e-05 | F145: -1.347064006e-05 | G145: 0.0001642529772 | H145: -2.860001768e-05 | J145: -0.0003666778811 | K145: -0.006615315466 | L145: 0.006895163565 | M145: 0.1468813046 | N145: 0.0006838460034
A146: =IF('DF raw data'!A151="","",'DF raw data'!A151) -> -258 | B146: =IF('DF raw data'!B151="","",'DF raw data'!B151) -> -1.24131e-06 | C146: =IF('DF raw data'!C151="","",'DF raw data'!C151) -> 0.000166676 | D146: =IF('DF raw data'!D151="","",'DF raw data'!D151) -> -3.00814e-05 | F146: -1.246523502e-06 | G146: 0.0001673760392 | H146: -3.020774188e-05 | J146: -0.0003673011428 | K146: -0.006798966037 | L146: 0.006978851585 | M146: 0.1503707304 | N146: 0.0007082656432
A147: =IF('DF raw data'!A152="","",'DF raw data'!A152) -> -257.5 | B147: =IF('DF raw data'!B152="","",'DF raw data'!B152) -> -4.44738e-06 | C147: =IF('DF raw data'!C152="","",'DF raw data'!C152) -> 0.000158763 | D147: =IF('DF raw data'!D152="","",'DF raw data'!D152) -> -2.56523e-05 | F147: -4.466058996e-06 | G147: 0.0001594298046 | H147: -2.576003966e-05 | J147: -0.0003695341723 | K147: -0.006983733123 | L147: 0.007058566487 | M147: 0.1539000136 | N147: 0.0007332456013
A148: =IF('DF raw data'!A153="","",'DF raw data'!A153) -> -257 | B148: =IF('DF raw data'!B153="","",'DF raw data'!B153) -> -2.1932e-06 | C148: =IF('DF raw data'!C153="","",'DF raw data'!C153) -> 0.00015916 | D148: =IF('DF raw data'!D153="","",'DF raw data'!D153) -> -4.41491e-05 | F148: -2.20241144e-06 | G148: 0.000159828472 | H148: -4.433452622e-05 | J148: -0.000370635378 | K148: -0.007169050812 | L148: 0.007138480723 | M148: 0.157469254 | N148: 0.0007587932401
A149: =IF('DF raw data'!A154="","",'DF raw data'!A154) -> -256.5 | B149: =IF('DF raw data'!B154="","",'DF raw data'!B154) -> -8.22653e-08 | C149: =IF('DF raw data'!C154="","",'DF raw data'!C154) -> 0.000164875 | D149: =IF('DF raw data'!D154="","",'DF raw data'!D154) -> -3.93177e-05 | F149: -8.261081426e-08 | G149: 0.000165567475 | H149: -3.948283434e-05 | J149: -0.0003706766835 | K149: -0.007354389154 | L149: 0.00722126446 | M149: 0.1610798862 | N149: 0.0007849352709
A150: =IF('DF raw data'!A155="","",'DF raw data'!A155) -> -256 | B150: =IF('DF raw data'!B155="","",'DF raw data'!B155) -> -4.18901e-06 | C150: =IF('DF raw data'!C155="","",'DF raw data'!C155) -> 0.000158877 | D150: =IF('DF raw data'!D155="","",'DF raw data'!D155) -> -2.8946e-05 | F150: -4.206603842e-06 | G150: 0.0001595442834 | H150: -2.90675732e-05 | J150: -0.0003727799854 | K150: -0.007540779147 | L150: 0.007301036602 | M150: 0.1647304045 | N150: 0.0008116573211
A151: =IF('DF raw data'!A156="","",'DF raw data'!A156) -> -255.5 | B151: =IF('DF raw data'!B156="","",'DF raw data'!B156) -> -2.0023e-06 | C151: =IF('DF raw data'!C156="","",'DF raw data'!C156) -> 0.000162356 | D151: =IF('DF raw data'!D156="","",'DF raw data'!D156) -> -4.19705e-05 | F151: -2.01070966e-06 | G151: 0.0001630378952 | H151: -4.21467761e-05 | J151: -0.0003737853402 | K151: -0.007727671817 | L151: 0.00738255555 | M151: 0.1684216823 | N151: 0.0008389782421
A152: =IF('DF raw data'!A157="","",'DF raw data'!A157) -> -255 | B152: =IF('DF raw data'!B157="","",'DF raw data'!B157) -> 2.317e-07 | C152: =IF('DF raw data'!C157="","",'DF raw data'!C157) -> 0.000167165 | D152: =IF('DF raw data'!D157="","",'DF raw data'!D157) -> -2.9357e-05 | F152: 2.3267314e-07 | G152: 0.000167867093 | H152: -2.94802994e-05 | J152: -0.0003736690036 | K152: -0.007914506319 | L152: 0.007466489096 | M152: 0.1721549268 | N152: 0.0008669222861
A153: =IF('DF raw data'!A158="","",'DF raw data'!A158) -> -254.5 | B153: =IF('DF raw data'!B158="","",'DF raw data'!B158) -> -1.48202e-05 | C153: =IF('DF raw data'!C158="","",'DF raw data'!C158) -> 0.000164869 | D153: =IF('DF raw data'!D158="","",'DF raw data'!D158) -> -3.36667e-05 | F153: -1.488244484e-05 | G153: 0.0001655614498 | H153: -3.380810014e-05 | J153: -0.0003811102261 | K153: -0.008105061432 | L153: 0.007549269821 | M153: 0.1759295617 | N153: 0.000895490646
A154: =IF('DF raw data'!A159="","",'DF raw data'!A159) -> -254 | B154: =IF('DF raw data'!B159="","",'DF raw data'!B159) -> -8.67171e-06 | C154: =IF('DF raw data'!C159="","",'DF raw data'!C159) -> 0.000158848 | D154: =IF('DF raw data'!D159="","",'DF raw data'!D159) -> -3.15154e-05 | F154: -8.708131182e-06 | G154: 0.0001595151616 | H154: -3.164776468e-05 | J154: -0.0003854642916 | K154: -0.008297793578 | L154: 0.007629027402 | M154: 0.1797440754 | N154: 0.0009246659669
A155: =IF('DF raw data'!A160="","",'DF raw data'!A160) -> -253.5 | B155: =IF('DF raw data'!B160="","",'DF raw data'!B160) -> -3.23117e-06 | C155: =IF('DF raw data'!C160="","",'DF raw data'!C160) -> 0.000163847 | D155: =IF('DF raw data'!D160="","",'DF raw data'!D160) -> -2.40496e-05 | F155: -3.244740914e-06 | G155: 0.0001645351574 | H155: -2.415060832e-05 | J155: -0.0003870866621 | K155: -0.008491336909 | L155: 0.007711294981 | M155: 0.1835997229 | N155: 0.0009544729201
A156: =IF('DF raw data'!A161="","",'DF raw data'!A161) -> -253 | B156: =IF('DF raw data'!B161="","",'DF raw data'!B161) -> -1.06542e-05 | C156: =IF('DF raw data'!C161="","",'DF raw data'!C161) -> 0.00016102 | D156: =IF('DF raw data'!D161="","",'DF raw data'!D161) -> -3.69013e-05 | F156: -1.069894764e-05 | G156: 0.000161696284 | H156: -3.705628546e-05 | J156: -0.0003924361359 | K156: -0.008687554977 | L156: 0.007792143123 | M156: 0.1874957945 | N156: 0.0009849086704
A157: =IF('DF raw data'!A162="","",'DF raw data'!A162) -> -252.5 | B157: =IF('DF raw data'!B162="","",'DF raw data'!B162) -> 7.47333e-06 | C157: =IF('DF raw data'!C162="","",'DF raw data'!C162) -> 0.000165066 | D157: =IF('DF raw data'!D162="","",'DF raw data'!D162) -> -3.33833e-05 | F157: 7.504717986e-06 | G157: 0.0001657592772 | H157: -3.352350986e-05 | J157: -0.0003886837769 | K157: -0.008881896865 | L157: 0.007875022761 | M157: 0.1914333059 | N157: 0.0010159922
A158: =IF('DF raw data'!A163="","",'DF raw data'!A163) -> -252 | B158: =IF('DF raw data'!B163="","",'DF raw data'!B163) -> -2.32142e-06 | C158: =IF('DF raw data'!C163="","",'DF raw data'!C163) -> 0.000158419 | D158: =IF('DF raw data'!D163="","",'DF raw data'!D163) -> -4.39825e-05 | F158: -2.331169964e-06 | G158: 0.0001590843598 | H158: -4.41672265e-05 | J158: -0.0003898493619 | K158: -0.009076821546 | L158: 0.007954564941 | M158: 0.1954105883 | N158: 0.001047705743
A159: =IF('DF raw data'!A164="","",'DF raw data'!A164) -> -251.5 | B159: =IF('DF raw data'!B164="","",'DF raw data'!B164) -> -8.22074e-06 | C159: =IF('DF raw data'!C164="","",'DF raw data'!C164) -> 0.000148687 | D159: =IF('DF raw data'!D164="","",'DF raw data'!D164) -> -3.52482e-05 | F159: -8.255267108e-06 | G159: 0.0001493114854 | H159: -3.539624244e-05 | J159: -0.0003939769955 | K159: -0.009273810044 | L159: 0.008029220684 | M159: 0.1994251987 | N159: 0.001080017544
A160: =IF('DF raw data'!A165="","",'DF raw data'!A165) -> -251 | B160: =IF('DF raw data'!B165="","",'DF raw data'!B165) -> -1.48868e-05 | C160: =IF('DF raw data'!C165="","",'DF raw data'!C165) -> 0.000155551 | D160: =IF('DF raw data'!D165="","",'DF raw data'!D165) -> -2.95813e-05 | F160: -1.494932456e-05 | G160: 0.0001562043142 | H160: -2.970554146e-05 | J160: -0.0004014516577 | K160: -0.009474535873 | L160: 0.008107322841 | M160: 0.2034788601 | N160: 0.001112962467
A161: =IF('DF raw data'!A166="","",'DF raw data'!A166) -> -250.5 | B161: =IF('DF raw data'!B166="","",'DF raw data'!B166) -> -9.18061e-06 | C161: =IF('DF raw data'!C166="","",'DF raw data'!C166) -> 0.000164809 | D161: =IF('DF raw data'!D166="","",'DF raw data'!D166) -> -3.70097e-05 | F161: -9.219168562e-06 | G161: 0.0001655011978 | H161: -3.716514074e-05 | J161: -0.000406061242 | K161: -0.009677566494 | L161: 0.00819007344 | M161: 0.2075738968 | N161: 0.001146583562
A162: =IF('DF raw data'!A167="","",'DF raw data'!A167) -> -250 | B162: =IF('DF raw data'!B167="","",'DF raw data'!B167) -> -1.3082e-05 | C162: =IF('DF raw data'!C167="","",'DF raw data'!C167) -> 0.000162876 | D162: =IF('DF raw data'!D167="","",'DF raw data'!D167) -> -4.66918e-05 | F162: -1.31369444e-05 | G162: 0.0001635600792 | H162: -4.688790556e-05 | J162: -0.0004126297142 | K162: -0.009883881351 | L162: 0.008271853479 | M162: 0.2117098236 | N162: 0.001180880473
A163: =IF('DF raw data'!A168="","",'DF raw data'!A168) -> -249.5 | B163: =IF('DF raw data'!B168="","",'DF raw data'!B168) -> -1.64782e-05 | C163: =IF('DF raw data'!C168="","",'DF raw data'!C168) -> 0.000166224 | D163: =IF('DF raw data'!D168="","",'DF raw data'!D168) -> -4.53182e-05 | F163: -1.654740844e-05 | G163: 0.0001669221408 | H163: -4.550853644e-05 | J163: -0.0004209034184 | K163: -0.01009433306 | L163: 0.00835531455 | M163: 0.2158874808 | N163: 0.001215874694
A164: =IF('DF raw data'!A169="","",'DF raw data'!A169) -> -249 | B164: =IF('DF raw data'!B169="","",'DF raw data'!B169) -> -9.63039e-06 | C164: =IF('DF raw data'!C169="","",'DF raw data'!C169) -> 0.000161693 | D164: =IF('DF raw data'!D169="","",'DF raw data'!D169) -> -3.46998e-05 | F164: -9.670837638e-06 | G164: 0.0001623721106 | H164: -3.484553916e-05 | J164: -0.0004257388373 | K164: -0.01030720248 | L164: 0.008436500605 | M164: 0.2201057311 | N164: 0.001251552592
A165: =IF('DF raw data'!A170="","",'DF raw data'!A170) -> -248.5 | B165: =IF('DF raw data'!B170="","",'DF raw data'!B170) -> -9.69256e-06 | C165: =IF('DF raw data'!C170="","",'DF raw data'!C170) -> 0.000161898 | D165: =IF('DF raw data'!D170="","",'DF raw data'!D170) -> -3.78224e-05 | F165: -9.733268752e-06 | G165: 0.0001625779716 | H165: -3.798125408e-05 | J165: -0.0004306054716 | K165: -0.01052250521 | L165: 0.008517789591 | M165: 0.2243646259 | N165: 0.001287921672
A166: =IF('DF raw data'!A171="","",'DF raw data'!A171) -> -248 | B166: =IF('DF raw data'!B171="","",'DF raw data'!B171) -> 5.49546e-07 | C166: =IF('DF raw data'!C171="","",'DF raw data'!C171) -> 0.000162057 | D166: =IF('DF raw data'!D171="","",'DF raw data'!D171) -> -2.57868e-05 | F166: 5.518540932e-07 | G166: 0.0001627376394 | H166: -2.589510456e-05 | J166: -0.0004303295446 | K166: -0.01073766999 | L166: 0.008599158411 | M166: 0.2286642051 | N166: 0.001324987027
A167: =IF('DF raw data'!A172="","",'DF raw data'!A172) -> -247.5 | B167: =IF('DF raw data'!B172="","",'DF raw data'!B172) -> -1.22623e-05 | C167: =IF('DF raw data'!C172="","",'DF raw data'!C172) -> 0.000167092 | D167: =IF('DF raw data'!D172="","",'DF raw data'!D172) -> -2.63772e-05 | F167: -1.231380166e-05 | G167: 0.0001677937864 | H167: -2.648798424e-05 | J167: -0.0004364864454 | K167: -0.01095591321 | L167: 0.008683055304 | M167: 0.2330057328 | N167: 0.001362780012
A168: =IF('DF raw data'!A173="","",'DF raw data'!A173) -> -247 | B168: =IF('DF raw data'!B173="","",'DF raw data'!B173) -> -1.38581e-05 | C168: =IF('DF raw data'!C173="","",'DF raw data'!C173) -> 0.000169261 | D168: =IF('DF raw data'!D173="","",'DF raw data'!D173) -> -3.53013e-05 | F168: -1.391630402e-05 | G168: 0.0001699718962 | H168: -3.544956546e-05 | J168: -0.0004434445974 | K168: -0.01117763551 | L168: 0.008768041252 | M168: 0.2373897534 | N168: 0.001401317607
A169: =IF('DF raw data'!A174="","",'DF raw data'!A174) -> -246.5 | B169: =IF('DF raw data'!B174="","",'DF raw data'!B174) -> -7.32971e-06 | C169: =IF('DF raw data'!C174="","",'DF raw data'!C174) -> 0.000171705 | D169: =IF('DF raw data'!D174="","",'DF raw data'!D174) -> -2.63218e-05 | F169: -7.360494782e-06 | G169: 0.000172426161 | H169: -2.643235156e-05 | J169: -0.0004471248448 | K169: -0.01140119793 | L169: 0.008854254332 | M169: 0.2418168806 | N169: 0.001440616477
A170: =IF('DF raw data'!A175="","",'DF raw data'!A175) -> -246 | B170: =IF('DF raw data'!B175="","",'DF raw data'!B175) -> -9.69658e-06 | C170: =IF('DF raw data'!C175="","",'DF raw data'!C175) -> 0.000173487 | D170: =IF('DF raw data'!D175="","",'DF raw data'!D175) -> -3.16235e-05 | F170: -9.737305636e-06 | G170: 0.0001742156454 | H170: -3.17563187e-05 | J170: -0.0004519934976 | K170: -0.01162719468 | L170: 0.008941362155 | M170: 0.2462875617 | N170: 0.001480692605
A171: =IF('DF raw data'!A176="","",'DF raw data'!A176) -> -245.5 | B171: =IF('DF raw data'!B176="","",'DF raw data'!B176) -> -1.56562e-06 | C171: =IF('DF raw data'!C176="","",'DF raw data'!C176) -> 0.000172033 | D171: =IF('DF raw data'!D176="","",'DF raw data'!D176) -> -2.40922e-05 | F171: -1.572195604e-06 | G171: 0.0001727555386 | H171: -2.419338724e-05 | J171: -0.0004527795954 | K171: -0.01185358448 | L171: 0.009027739924 | M171: 0.2508014316 | N171: 0.001521545153
A172: =IF('DF raw data'!A177="","",'DF raw data'!A177) -> -245 | B172: =IF('DF raw data'!B177="","",'DF raw data'!B177) -> -6.61921e-06 | C172: =IF('DF raw data'!C177="","",'DF raw data'!C177) -> 0.000167539 | D172: =IF('DF raw data'!D177="","",'DF raw data'!D177) -> -3.51587e-05 | F172: -6.647010682e-06 | G172: 0.0001682426638 | H172: -3.530636654e-05 | J172: -0.0004561031008 | K172: -0.01208163603 | L172: 0.009111861256 | M172: 0.2553573623 | N172: 0.001563162176
A173: =IF('DF raw data'!A178="","",'DF raw data'!A178) -> -244.5 | B173: =IF('DF raw data'!B178="","",'DF raw data'!B178) -> -1.0393e-05 | C173: =IF('DF raw data'!C178="","",'DF raw data'!C178) -> 0.000156635 | D173: =IF('DF raw data'!D178="","",'DF raw data'!D178) -> -4.41365e-05 | F173: -1.04366506e-05 | G173: 0.000157292867 | H173: -4.43218733e-05 | J173: -0.0004613214261 | K173: -0.01231229674 | L173: 0.00919050769 | M173: 0.2599526161 | N173: 0.001605501301
A174: =IF('DF raw data'!A179="","",'DF raw data'!A179) -> -244 | B174: =IF('DF raw data'!B179="","",'DF raw data'!B179) -> -1.49137e-06 | C174: =IF('DF raw data'!C179="","",'DF raw data'!C179) -> 0.000157986 | D174: =IF('DF raw data'!D179="","",'DF raw data'!D179) -> -3.96083e-05 | F174: -1.497633754e-06 | G174: 0.0001586495412 | H174: -3.977465486e-05 | J174: -0.000462070243 | K174: -0.01254333186 | L174: 0.00926983246 | M174: 0.2645875323 | N174: 0.001648572952
A175: =IF('DF raw data'!A180="","",'DF raw data'!A180) -> -243.5 | B175: =IF('DF raw data'!B180="","",'DF raw data'!B180) -> 4.2089e-06 | C175: =IF('DF raw data'!C180="","",'DF raw data'!C180) -> 0.000164363 | D175: =IF('DF raw data'!D180="","",'DF raw data'!D180) -> -3.79441e-05 | F175: 4.22657738e-06 | G175: 0.0001650533246 | H175: -3.810346522e-05 | J175: -0.0004599569543 | K175: -0.01277331034 | L175: 0.009352359123 | M175: 0.2692637119 | N175: 0.001692412043
A176: =IF('DF raw data'!A181="","",'DF raw data'!A181) -> -243 | B176: =IF('DF raw data'!B181="","",'DF raw data'!B181) -> -8.7989e-06 | C176: =IF('DF raw data'!C181="","",'DF raw data'!C181) -> 0.000159104 | D176: =IF('DF raw data'!D181="","",'DF raw data'!D181) -> -3.29503e-05 | F176: -8.83585538e-06 | G176: 0.0001597722368 | H176: -3.308869126e-05 | J176: -0.000464374882 | K176: -0.01300549778 | L176: 0.009432245241 | M176: 0.2739798345 | N176: 0.00173700349
A177: =IF('DF raw data'!A182="","",'DF raw data'!A182) -> -242.5 | B177: =IF('DF raw data'!B182="","",'DF raw data'!B182) -> -9.2508e-06 | C177: =IF('DF raw data'!C182="","",'DF raw data'!C182) -> 0.000158298 | D177: =IF('DF raw data'!D182="","",'DF raw data'!D182) -> -2.73662e-05 | F177: -9.28965336e-06 | G177: 0.0001589628516 | H177: -2.748113804e-05 | J177: -0.0004690197086 | K177: -0.01324000763 | L177: 0.009511726667 | M177: 0.2787356978 | N177: 0.001782349952
A178: =IF('DF raw data'!A183="","",'DF raw data'!A183) -> -242 | B178: =IF('DF raw data'!B183="","",'DF raw data'!B183) -> 5.61388e-06 | C178: =IF('DF raw data'!C183="","",'DF raw data'!C183) -> 0.000162886 | D178: =IF('DF raw data'!D183="","",'DF raw data'!D183) -> -3.08767e-05 | F178: 5.637458296e-06 | G178: 0.0001635701212 | H178: -3.100638214e-05 | J178: -0.0004662009795 | K178: -0.01347310812 | L178: 0.009593511728 | M178: 0.2835324537 | N178: 0.001828476357
A179: =IF('DF raw data'!A184="","",'DF raw data'!A184) -> -241.5 | B179: =IF('DF raw data'!B184="","",'DF raw data'!B184) -> -7.17509e-07 | C179: =IF('DF raw data'!C184="","",'DF raw data'!C184) -> 0.000167532 | D179: =IF('DF raw data'!D184="","",'DF raw data'!D184) -> -4.75554e-05 | F179: -7.205225378e-07 | G179: 0.0001682356344 | H179: -4.775513268e-05 | J179: -0.0004665612408 | K179: -0.01370638874 | L179: 0.009677629545 | M179: 0.2883712685 | N179: 0.001875413454
A180: =IF('DF raw data'!A185="","",'DF raw data'!A185) -> -241 | B180: =IF('DF raw data'!B185="","",'DF raw data'!B185) -> -2.51783e-06 | C180: =IF('DF raw data'!C185="","",'DF raw data'!C185) -> 0.000164361 | D180: =IF('DF raw data'!D185="","",'DF raw data'!D185) -> -3.72511e-05 | F180: -2.528404886e-06 | G180: 0.0001650513162 | H180: -3.740755462e-05 | J180: -0.0004678254432 | K180: -0.01394030147 | L180: 0.009760155203 | M180: 0.2932513461 | N180: 0.001923153199
A181: =IF('DF raw data'!A186="","",'DF raw data'!A186) -> -240.5 | B181: =IF('DF raw data'!B186="","",'DF raw data'!B186) -> -1.52028e-05 | C181: =IF('DF raw data'!C186="","",'DF raw data'!C186) -> 0.000168083 | D181: =IF('DF raw data'!D186="","",'DF raw data'!D186) -> -3.63848e-05 | F181: -1.526665176e-05 | G181: 0.0001687889486 | H181: -3.653761616e-05 | J181: -0.0004754587691 | K181: -0.01417803085 | L181: 0.009844549677 | M181: 0.2981736209 | N181: 0.001971723809
A182: =IF('DF raw data'!A187="","",'DF raw data'!A187) -> -240 | B182: =IF('DF raw data'!B187="","",'DF raw data'!B187) -> -2.13516e-05 | C182: =IF('DF raw data'!C187="","",'DF raw data'!C187) -> 0.000162618 | D182: =IF('DF raw data'!D187="","",'DF raw data'!D187) -> -3.81012e-05 | F182: -2.144127672e-05 | G182: 0.0001633009956 | H182: -3.826122504e-05 | J182: -0.0004861794074 | K182: -0.01442112055 | L182: 0.009926200175 | M182: 0.303136721 | N182: 0.002021106719
A183: =IF('DF raw data'!A188="","",'DF raw data'!A188) -> -239.5 | B183: =IF('DF raw data'!B188="","",'DF raw data'!B188) -> -9.62551e-06 | C183: =IF('DF raw data'!C188="","",'DF raw data'!C188) -> 0.000165119 | D183: =IF('DF raw data'!D188="","",'DF raw data'!D188) -> -4.22281e-05 | F183: -9.665937142e-06 | G183: 0.0001658124998 | H183: -4.240545802e-05 | J183: -0.000491012376 | K183: -0.01466662674 | L183: 0.01000910642 | M183: 0.3081412742 | N183: 0.002071318371
A184: =IF('DF raw data'!A189="","",'DF raw data'!A189) -> -239 | B184: =IF('DF raw data'!B189="","",'DF raw data'!B189) -> -1.23786e-05 | C184: =IF('DF raw data'!C189="","",'DF raw data'!C189) -> 0.000163428 | D184: =IF('DF raw data'!D189="","",'DF raw data'!D189) -> -4.45978e-05 | F184: -1.243059012e-05 | G184: 0.0001641143976 | H184: -4.478511076e-05 | J184: -0.0004972276711 | K184: -0.01491524058 | L184: 0.01009116362 | M184: 0.313186856 | N184: 0.00212235778
A185: =IF('DF raw data'!A190="","",'DF raw data'!A190) -> -238.5 | B185: =IF('DF raw data'!B190="","",'DF raw data'!B190) -> -1.68714e-05 | C185: =IF('DF raw data'!C190="","",'DF raw data'!C190) -> 0.000163014 | D185: =IF('DF raw data'!D190="","",'DF raw data'!D190) -> -3.15861e-05 | F185: -1.694225988e-05 | G185: 0.0001636986588 | H185: -3.171876162e-05 | J185: -0.000505698801 | K185: -0.01516808998 | L185: 0.01017301295 | M185: 0.3182733625 | N185: 0.002174230742
A186: =IF('DF raw data'!A191="","",'DF raw data'!A191) -> -238 | B186: =IF('DF raw data'!B191="","",'DF raw data'!B191) -> -1.40491e-05 | C186: =IF('DF raw data'!C191="","",'DF raw data'!C191) -> 0.000163412 | D186: =IF('DF raw data'!D191="","",'DF raw data'!D191) -> -3.73507e-05 | F186: -1.410810622e-05 | G186: 0.0001640983304 | H186: -3.750757294e-05 | J186: -0.0005127528541 | K186: -0.01542446641 | L186: 0.01025506212 | M186: 0.3234008936 | N186: 0.002226945349
A187: =IF('DF raw data'!A192="","",'DF raw data'!A192) -> -237.5 | B187: =IF('DF raw data'!B192="","",'DF raw data'!B192) -> -2.0734e-06 | C187: =IF('DF raw data'!C192="","",'DF raw data'!C192) -> 0.000168173 | D187: =IF('DF raw data'!D192="","",'DF raw data'!D192) -> -3.13261e-05 | F187: -2.08210828e-06 | G187: 0.0001688793266 | H187: -3.145766962e-05 | J187: -0.0005137939083 | K187: -0.01568136336 | L187: 0.01033950178 | M187: 0.3285706445 | N187: 0.00228052999
A188: =IF('DF raw data'!A193="","",'DF raw data'!A193) -> -237 | B188: =IF('DF raw data'!B193="","",'DF raw data'!B193) -> -9.37914e-06 | C188: =IF('DF raw data'!C193="","",'DF raw data'!C193) -> 0.000166586 | D188: =IF('DF raw data'!D193="","",'DF raw data'!D193) -> -2.70259e-05 | F188: -9.418532388e-06 | G188: 0.0001672856612 | H188: -2.713940878e-05 | J188: -0.0005185031745 | K188: -0.01594061495 | L188: 0.01042314461 | M188: 0.3337822168 | N188: 0.002334985385
A189: =IF('DF raw data'!A194="","",'DF raw data'!A194) -> -236.5 | B189: =IF('DF raw data'!B194="","",'DF raw data'!B194) -> -7.25717e-06 | C189: =IF('DF raw data'!C194="","",'DF raw data'!C194) -> 0.000164166 | D189: =IF('DF raw data'!D194="","",'DF raw data'!D194) -> -3.92018e-05 | F189: -7.287650114e-06 | G189: 0.0001648554972 | H189: -3.936644756e-05 | J189: -0.0005221469995 | K189: -0.01620168845 | L189: 0.01050557236 | M189: 0.3390350029 | N189: 0.002390305229
A190: =IF('DF raw data'!A195="","",'DF raw data'!A195) -> -236 | B190: =IF('DF raw data'!B195="","",'DF raw data'!B195) -> 3.88585e-06 | C190: =IF('DF raw data'!C195="","",'DF raw data'!C195) -> 0.000169042 | D190: =IF('DF raw data'!D195="","",'DF raw data'!D195) -> -3.34878e-05 | F190: 3.90217057e-06 | G190: 0.0001697519764 | H190: -3.362844876e-05 | J190: -0.0005201959142 | K190: -0.0164617864 | L190: 0.01059044835 | M190: 0.3443302271 | N190: 0.002446519329
A191: =IF('DF raw data'!A196="","",'DF raw data'!A196) -> -235.5 | B191: =IF('DF raw data'!B196="","",'DF raw data'!B196) -> -5.14547e-06 | C191: =IF('DF raw data'!C196="","",'DF raw data'!C196) -> 0.000170567 | D191: =IF('DF raw data'!D196="","",'DF raw data'!D196) -> -3.55617e-05 | F191: -5.167080974e-06 | G191: 0.0001712833814 | H191: -3.571105914e-05 | J191: -0.0005227794547 | K191: -0.01672317613 | L191: 0.01067609004 | M191: 0.3496682721 | N191: 0.002503645427
A192: =IF('DF raw data'!A197="","",'DF raw data'!A197) -> -235 | B192: =IF('DF raw data'!B197="","",'DF raw data'!B197) -> -5.46528e-06 | C192: =IF('DF raw data'!C197="","",'DF raw data'!C197) -> 0.000173042 | D192: =IF('DF raw data'!D197="","",'DF raw data'!D197) -> -3.65131e-05 | F192: =(1-$G$1*($B$49-$G$2))*B192 -> -5.488234176e-06 | G192: 0.0001737687764 | H192: -3.666645502e-05 | J192: =F192*$G$3+J191 -> -0.0005255235718 | K192: =J192*$G$3+K191 -> -0.01698593792 | L192: =G192*$G$3+L191 -> 0.01076297443 | M192: =L192*$G$3+M191 -> 0.3550497594 | N192: =(J192^2+L192^2)*$G$3+N191 -> 0.002561704324
A193: =IF('DF raw data'!A198="","",'DF raw data'!A198) -> -234.5 | B193: =IF('DF raw data'!B198="","",'DF raw data'!B198) -> -1.68355e-08 | C193: =IF('DF raw data'!C198="","",'DF raw data'!C198) -> 0.00017219 | D193: =IF('DF raw data'!D198="","",'DF raw data'!D198) -> -4.12283e-05 | F193: -1.69062091e-08 | G193: 0.000172913198 | H193: -4.140145886e-05 | J193: -0.0005255320249 | K193: -0.01724870393 | L193: 0.01084943103 | M193: 0.3604744749 | N193: 0.002620697493
A194: =IF('DF raw data'!A199="","",'DF raw data'!A199) -> -234 | B194: =IF('DF raw data'!B199="","",'DF raw data'!B199) -> 1.06148e-06 | C194: =IF('DF raw data'!C199="","",'DF raw data'!C199) -> 0.000170448 | D194: =IF('DF raw data'!D199="","",'DF raw data'!D199) -> -2.49569e-05 | F194: 1.065938216e-06 | G194: 0.0001711638816 | H194: -2.506171898e-05 | J194: -0.0005249990558 | K194: -0.01751120346 | L194: 0.01093501297 | M194: 0.3659419814 | N194: 0.002680622559
A195: =IF('DF raw data'!A200="","",'DF raw data'!A200) -> -233.5 | B195: =IF('DF raw data'!B200="","",'DF raw data'!B200) -> -4.05817e-06 | C195: =IF('DF raw data'!C200="","",'DF raw data'!C200) -> 0.00016629 | D195: =IF('DF raw data'!D200="","",'DF raw data'!D200) -> -3.31474e-05 | F195: -4.075214314e-06 | G195: 0.000166988418 | H195: -3.328661908e-05 | J195: -0.000527036663 | K195: -0.01777472179 | L195: 0.01101850718 | M195: 0.3714512349 | N195: 0.002741465193
A196: =IF('DF raw data'!A201="","",'DF raw data'!A201) -> -233 | B196: =IF('DF raw data'!B201="","",'DF raw data'!B201) -> 4.9455e-07 | C196: =IF('DF raw data'!C201="","",'DF raw data'!C201) -> 0.000162717 | D196: =IF('DF raw data'!D201="","",'DF raw data'!D201) -> -3.95579e-05 | F196: 4.9662711e-07 | G196: 0.0001634004114 | H196: -3.972404318e-05 | J196: -0.0005267883494 | K196: -0.01803811596 | L196: 0.01110020738 | M196: 0.3770013386 | N196: 0.002803211248
A197: =IF('DF raw data'!A202="","",'DF raw data'!A202) -> -232.5 | B197: =IF('DF raw data'!B202="","",'DF raw data'!B202) -> -8.15185e-06 | C197: =IF('DF raw data'!C202="","",'DF raw data'!C202) -> 0.000159453 | D197: =IF('DF raw data'!D202="","",'DF raw data'!D202) -> -4.29272e-05 | F197: -8.18608777e-06 | G197: 0.0001601227026 | H197: -4.310749424e-05 | J197: -0.0005308813933 | K197: -0.01830355666 | L197: 0.01118026873 | M197: 0.382591473 | N197: 0.00286585137
A198: =IF('DF raw data'!A203="","",'DF raw data'!A203) -> -232 | B198: =IF('DF raw data'!B203="","",'DF raw data'!B203) -> -6.35957e-06 | C198: =IF('DF raw data'!C203="","",'DF raw data'!C203) -> 0.000163734 | D198: =IF('DF raw data'!D203="","",'DF raw data'!D203) -> -4.04161e-05 | F198: -6.386280194e-06 | G198: 0.0001644216828 | H198: -4.058584762e-05 | J198: -0.0005340745334 | K198: -0.01857059393 | L198: 0.01126247957 | M198: 0.3882227128 | N198: 0.002929415711
A199: =IF('DF raw data'!A204="","",'DF raw data'!A204) -> -231.5 | B199: =IF('DF raw data'!B204="","",'DF raw data'!B204) -> -9.37357e-06 | C199: =IF('DF raw data'!C204="","",'DF raw data'!C204) -> 0.00016543 | D199: =IF('DF raw data'!D204="","",'DF raw data'!D204) -> -3.56232e-05 | F199: -9.412938994e-06 | G199: 0.000166124806 | H199: -3.577281744e-05 | J199: -0.0005387810029 | K199: -0.01883998443 | L199: 0.01134554198 | M199: 0.3938954838 | N199: 0.002993921515
A200: =IF('DF raw data'!A205="","",'DF raw data'!A205) -> -231 | B200: =IF('DF raw data'!B205="","",'DF raw data'!B205) -> -1.04479e-06 | C200: =IF('DF raw data'!C205="","",'DF raw data'!C205) -> 0.000160753 | D200: =IF('DF raw data'!D205="","",'DF raw data'!D205) -> -3.69785e-05 | F200: -1.049178118e-06 | G200: 0.0001614281626 | H200: -3.71338097e-05 | J200: -0.0005393055919 | K200: -0.01910963722 | L200: 0.01142625606 | M200: 0.3996086118 | N200: 0.003059346604
A201: =IF('DF raw data'!A206="","",'DF raw data'!A206) -> -230.5 | B201: =IF('DF raw data'!B206="","",'DF raw data'!B206) -> -1.08445e-05 | C201: =IF('DF raw data'!C206="","",'DF raw data'!C206) -> 0.000159434 | D201: =IF('DF raw data'!D206="","",'DF raw data'!D206) -> -3.96128e-05 | F201: -1.08900469e-05 | G201: 0.0001601036228 | H201: -3.977917376e-05 | J201: -0.0005447506154 | K201: -0.01938201253 | L201: 0.01150630787 | M201: 0.4053617657 | N201: 0.003125692541
... 1061 more rows

Sheet 10 y=-0.1
A1: =IF('DF raw data'!E1="","",'DF raw data'!E1) -> Number of header lines | B1: =IF('DF raw data'!F1="","",'DF raw data'!F1) -> 54 | C1: =IF('DF raw data'!G1="","",'DF raw data'!G1) ->  | D1: =IF('DF raw data'!H1="","",'DF raw data'!H1) ->  | F1: T_coeff | G1: -0.001 | H1: /degC | J1: IBy total | K1: =J1262*1000 -> -16.60938618 | L1: muTm | M1: =L1262*1000 -> -0.2017755865 | R1: DF ref | S1: ='10 y=-0.2'!S1 -> 1
A2: =IF('DF raw data'!E2="","",'DF raw data'!E2) -> Measured by | B2: =IF('DF raw data'!F2="","",'DF raw data'!F2) -> Danfysik | C2: =IF('DF raw data'!G2="","",'DF raw data'!G2) ->  | D2: =IF('DF raw data'!H2="","",'DF raw data'!H2) ->  | F2: Tcorr | G2: 20 | H2: degC | J2: JBy total | K2: =K1262 -> -13.70216856 | L2: muTm^2 | M2: =M1262 -> 1.91091701
A3: =IF('DF raw data'!E3="","",'DF raw data'!E3) -> Operator | B3: =IF('DF raw data'!F3="","",'DF raw data'!F3) -> PMHA | C3: =IF('DF raw data'!G3="","",'DF raw data'!G3) ->  | D3: =IF('DF raw data'!H3="","",'DF raw data'!H3) ->  | F3: Step | G3: =A63-A62 -> 0.5 | H3: mm | J3: PI total | K3: =N1262 -> 10528.32972 | L3: T^2mm^3
A4: =IF('DF raw data'!E4="","",'DF raw data'!E4) -> Data-time | B4: =IF('DF raw data'!F4="","",'DF raw data'!F4) -> 01-10-2024, 21:37:35 | C4: =IF('DF raw data'!G4="","",'DF raw data'!G4) ->  | D4: =IF('DF raw data'!H4="","",'DF raw data'!H4) -> 
A5: =IF('DF raw data'!E5="","",'DF raw data'!E5) -> Project | B5: =IF('DF raw data'!F5="","",'DF raw data'!F5) -> 504314 | C5: =IF('DF raw data'!G5="","",'DF raw data'!G5) ->  | D5: =IF('DF raw data'!H5="","",'DF raw data'!H5) -> 
A6: =IF('DF raw data'!E6="","",'DF raw data'!E6) -> Magnet type | B6: =IF('DF raw data'!F6="","",'DF raw data'!F6) -> Dipole | C6: =IF('DF raw data'!G6="","",'DF raw data'!G6) ->  | D6: =IF('DF raw data'!H6="","",'DF raw data'!H6) -> 
A7: =IF('DF raw data'!E7="","",'DF raw data'!E7) -> Magnet nr. | B7: =IF('DF raw data'!F7="","",'DF raw data'!F7) -> 2410108 | C7: =IF('DF raw data'!G7="","",'DF raw data'!G7) ->  | D7: =IF('DF raw data'!H7="","",'DF raw data'!H7) -> 
A8: =IF('DF raw data'!E8="","",'DF raw data'!E8) -> Meas. number | B8: =IF('DF raw data'!F8="","",'DF raw data'!F8) -> 912 | C8: =IF('DF raw data'!G8="","",'DF raw data'!G8) ->  | D8: =IF('DF raw data'!H8="","",'DF raw data'!H8) -> 
A9: =IF('DF raw data'!E9="","",'DF raw data'!E9) -> Add. info | B9: =IF('DF raw data'!F9="","",'DF raw data'!F9) -> Y-alignment scan 2) | C9: =IF('DF raw data'!G9="","",'DF raw data'!G9) ->  | D9: =IF('DF raw data'!H9="","",'DF raw data'!H9) -> 
A10: =IF('DF raw data'!E10="","",'DF raw data'!E10) -> Device | B10: =IF('DF raw data'!F10="","",'DF raw data'!F10) -> (HAL) HALL-PROBE | C10: =IF('DF raw data'!G10="","",'DF raw data'!G10) ->  | D10: =IF('DF raw data'!H10="","",'DF raw data'!H10) -> 
A11: =IF('DF raw data'!E11="","",'DF raw data'!E11) -> Goal | B11: =IF('DF raw data'!F11="","",'DF raw data'!F11) -> (AXI) AXis Integral (Line, EFB) | C11: =IF('DF raw data'!G11="","",'DF raw data'!G11) ->  | D11: =IF('DF raw data'!H11="","",'DF raw data'!H11) -> 
A12: =IF('DF raw data'!E12="","",'DF raw data'!E12) -> Power supply mode | B12: =IF('DF raw data'!F12="","",'DF raw data'!F12) -> (PM) Permanent Magnet (no MPS in use) | C12: =IF('DF raw data'!G12="","",'DF raw data'!G12) ->  | D12: =IF('DF raw data'!H12="","",'DF raw data'!H12) -> 
A13: =IF('DF raw data'!E13="","",'DF raw data'!E13) -> Data format | B13: =IF('DF raw data'!F13="","",'DF raw data'!F13) -> Raw data text file | C13: =IF('DF raw data'!G13="","",'DF raw data'!G13) ->  | D13: =IF('DF raw data'!H13="","",'DF raw data'!H13) -> 
A14: =IF('DF raw data'!E14="","",'DF raw data'!E14) -> Direction of the pos. x-axis | B14: =IF('DF raw data'!F14="","",'DF raw data'!F14) -> See test program | C14: =IF('DF raw data'!G14="","",'DF raw data'!G14) ->  | D14: =IF('DF raw data'!H14="","",'DF raw data'!H14) -> 
A15: =IF('DF raw data'!E15="","",'DF raw data'!E15) -> Direction of the pos. y-axis | B15: =IF('DF raw data'!F15="","",'DF raw data'!F15) -> Vertical up | C15: =IF('DF raw data'!G15="","",'DF raw data'!G15) ->  | D15: =IF('DF raw data'!H15="","",'DF raw data'!H15) -> 
A16: =IF('DF raw data'!E16="","",'DF raw data'!E16) -> Direction of the pos. z-axis | B16: =IF('DF raw data'!F16="","",'DF raw data'!F16) -> See test program | C16: =IF('DF raw data'!G16="","",'DF raw data'!G16) ->  | D16: =IF('DF raw data'!H16="","",'DF raw data'!H16) -> 
A17: =IF('DF raw data'!E17="","",'DF raw data'!E17) -> Mapper type | B17: =IF('DF raw data'!F17="","",'DF raw data'!F17) -> Precision Hall Mapper | C17: =IF('DF raw data'!G17="","",'DF raw data'!G17) ->  | D17: =IF('DF raw data'!H17="","",'DF raw data'!H17) -> 
A18: =IF('DF raw data'!E18="","",'DF raw data'!E18) -> Mapper Danfysik Reg. Number | B18: =IF('DF raw data'!F18="","",'DF raw data'!F18) -> 2033-D (mapper 1) | C18: =IF('DF raw data'!G18="","",'DF raw data'!G18) ->  | D18: =IF('DF raw data'!H18="","",'DF raw data'!H18) -> 
A19: =IF('DF raw data'!E19="","",'DF raw data'!E19) -> Measurement consept | B19: =IF('DF raw data'!F19="","",'DF raw data'!F19) -> Square line grid | C19: =IF('DF raw data'!G19="","",'DF raw data'!G19) ->  | D19: =IF('DF raw data'!H19="","",'DF raw data'!H19) -> 
A20: =IF('DF raw data'!E20="","",'DF raw data'!E20) -> Mode | B20: =IF('DF raw data'!F20="","",'DF raw data'!F20) -> On-the-fly measurement | C20: =IF('DF raw data'!G20="","",'DF raw data'!G20) ->  | D20: =IF('DF raw data'!H20="","",'DF raw data'!H20) -> 
A21: =IF('DF raw data'!E21="","",'DF raw data'!E21) ->  | B21: =IF('DF raw data'!F21="","",'DF raw data'!F21) ->  | C21: =IF('DF raw data'!G21="","",'DF raw data'!G21) ->  | D21: =IF('DF raw data'!H21="","",'DF raw data'!H21) -> 
A22: =IF('DF raw data'!E22="","",'DF raw data'!E22) -> Probe Name | B22: =IF('DF raw data'!F22="","",'DF raw data'!F22) -> ID12_By | C22: =IF('DF raw data'!G22="","",'DF raw data'!G22) ->  | D22: =IF('DF raw data'!H22="","",'DF raw data'!H22) -> 
A23: =IF('DF raw data'!E23="","",'DF raw data'!E23) -> Probe Type | B23: =IF('DF raw data'!F23="","",'DF raw data'!F23) -> DF_ID_3D_Bxyz | C23: =IF('DF raw data'!G23="","",'DF raw data'!G23) ->  | D23: =IF('DF raw data'!H23="","",'DF raw data'!H23) -> 
A24: =IF('DF raw data'!E24="","",'DF raw data'!E24) -> Probe Danfysik Reg. Number | B24: =IF('DF raw data'!F24="","",'DF raw data'!F24) -> 2277 | C24: =IF('DF raw data'!G24="","",'DF raw data'!G24) ->  | D24: =IF('DF raw data'!H24="","",'DF raw data'!H24) -> 
A25: =IF('DF raw data'!E25="","",'DF raw data'!E25) -> Probe Axis | B25: =IF('DF raw data'!F25="","",'DF raw data'!F25) -> By | C25: =IF('DF raw data'!G25="","",'DF raw data'!G25) ->  | D25: =IF('DF raw data'!H25="","",'DF raw data'!H25) -> 
A26: =IF('DF raw data'!E26="","",'DF raw data'!E26) -> Probe Current Supply | B26: =IF('DF raw data'!F26="","",'DF raw data'!F26) -> 1825-D | C26: =IF('DF raw data'!G26="","",'DF raw data'!G26) ->  | D26: =IF('DF raw data'!H26="","",'DF raw data'!H26) -> 
A27: =IF('DF raw data'!E27="","",'DF raw data'!E27) -> Probe Gain Correction | B27: =IF('DF raw data'!F27="","",'DF raw data'!F27) -> 0.99614 | C27: =IF('DF raw data'!G27="","",'DF raw data'!G27) ->  | D27: =IF('DF raw data'!H27="","",'DF raw data'!H27) -> 
A28: =IF('DF raw data'!E28="","",'DF raw data'!E28) -> Probe Offset Correction | B28: =IF('DF raw data'!F28="","",'DF raw data'!F28) -> 0.0027502 | C28: =IF('DF raw data'!G28="","",'DF raw data'!G28) ->  | D28: =IF('DF raw data'!H28="","",'DF raw data'!H28) -> 
A29: =IF('DF raw data'!E29="","",'DF raw data'!E29) -> DVM Number | B29: =IF('DF raw data'!F29="","",'DF raw data'!F29) -> 2 | C29: =IF('DF raw data'!G29="","",'DF raw data'!G29) ->  | D29: =IF('DF raw data'!H29="","",'DF raw data'!H29) -> 
A30: =IF('DF raw data'!E30="","",'DF raw data'!E30) -> DVM Type | B30: =IF('DF raw data'!F30="","",'DF raw data'!F30) -> K2701 | C30: =IF('DF raw data'!G30="","",'DF raw data'!G30) ->  | D30: =IF('DF raw data'!H30="","",'DF raw data'!H30) -> 
A31: =IF('DF raw data'!E31="","",'DF raw data'!E31) -> DVM Danfysik Reg. Number | B31: =IF('DF raw data'!F31="","",'DF raw data'!F31) -> 1743-D | C31: =IF('DF raw data'!G31="","",'DF raw data'!G31) ->  | D31: =IF('DF raw data'!H31="","",'DF raw data'!H31) -> 
A32: =IF('DF raw data'!E32="","",'DF raw data'!E32) -> Probe Name | B32: =IF('DF raw data'!F32="","",'DF raw data'!F32) -> ID12_Bx | C32: =IF('DF raw data'!G32="","",'DF raw data'!G32) ->  | D32: =IF('DF raw data'!H32="","",'DF raw data'!H32) -> 
A33: =IF('DF raw data'!E33="","",'DF raw data'!E33) -> Probe Type | B33: =IF('DF raw data'!F33="","",'DF raw data'!F33) -> DF_ID_3D_Bxyz | C33: =IF('DF raw data'!G33="","",'DF raw data'!G33) ->  | D33: =IF('DF raw data'!H33="","",'DF raw data'!H33) -> 
A34: =IF('DF raw data'!E34="","",'DF raw data'!E34) -> Probe Danfysik Reg. Number | B34: =IF('DF raw data'!F34="","",'DF raw data'!F34) -> 2277 | C34: =IF('DF raw data'!G34="","",'DF raw data'!G34) ->  | D34: =IF('DF raw data'!H34="","",'DF raw data'!H34) -> 
A35: =IF('DF raw data'!E35="","",'DF raw data'!E35) -> Probe Axis | B35: =IF('DF raw data'!F35="","",'DF raw data'!F35) -> Bx | C35: =IF('DF raw data'!G35="","",'DF raw data'!G35) ->  | D35: =IF('DF raw data'!H35="","",'DF raw data'!H35) -> 
A36: =IF('DF raw data'!E36="","",'DF raw data'!E36) -> Probe Current Supply | B36: =IF('DF raw data'!F36="","",'DF raw data'!F36) -> 1825-D | C36: =IF('DF raw data'!G36="","",'DF raw data'!G36) ->  | D36: =IF('DF raw data'!H36="","",'DF raw data'!H36) -> 
A37: =IF('DF raw data'!E37="","",'DF raw data'!E37) -> Probe Gain Correction | B37: =IF('DF raw data'!F37="","",'DF raw data'!F37) -> 1 | C37: =IF('DF raw data'!G37="","",'DF raw data'!G37) ->  | D37: =IF('DF raw data'!H37="","",'DF raw data'!H37) -> 
A38: =IF('DF raw data'!E38="","",'DF raw data'!E38) -> Probe Offset Correction | B38: =IF('DF raw data'!F38="","",'DF raw data'!F38) -> -0.1755 | C38: =IF('DF raw data'!G38="","",'DF raw data'!G38) ->  | D38: =IF('DF raw data'!H38="","",'DF raw data'!H38) -> 
A39: =IF('DF raw data'!E39="","",'DF raw data'!E39) -> DVM Number | B39: =IF('DF raw data'!F39="","",'DF raw data'!F39) -> 3 | C39: =IF('DF raw data'!G39="","",'DF raw data'!G39) ->  | D39: =IF('DF raw data'!H39="","",'DF raw data'!H39) -> 
A40: =IF('DF raw data'!E40="","",'DF raw data'!E40) -> DVM Type | B40: =IF('DF raw data'!F40="","",'DF raw data'!F40) -> K2701 | C40: =IF('DF raw data'!G40="","",'DF raw data'!G40) ->  | D40: =IF('DF raw data'!H40="","",'DF raw data'!H40) -> 
A41: =IF('DF raw data'!E41="","",'DF raw data'!E41) -> DVM Danfysik Reg. Number | B41: =IF('DF raw data'!F41="","",'DF raw data'!F41) -> 1744-D | C41: =IF('DF raw data'!G41="","",'DF raw data'!G41) ->  | D41: =IF('DF raw data'!H41="","",'DF raw data'!H41) -> 
A42: =IF('DF raw data'!E42="","",'DF raw data'!E42) -> Probe Name | B42: =IF('DF raw data'!F42="","",'DF raw data'!F42) -> ID12_Bz | C42: =IF('DF raw data'!G42="","",'DF raw data'!G42) ->  | D42: =IF('DF raw data'!H42="","",'DF raw data'!H42) -> 
A43: =IF('DF raw data'!E43="","",'DF raw data'!E43) -> Probe Type | B43: =IF('DF raw data'!F43="","",'DF raw data'!F43) -> DF_ID_3D_Bxyz | C43: =IF('DF raw data'!G43="","",'DF raw data'!G43) ->  | D43: =IF('DF raw data'!H43="","",'DF raw data'!H43) -> 
A44: =IF('DF raw data'!E44="","",'DF raw data'!E44) -> Probe Danfysik Reg. Number | B44: =IF('DF raw data'!F44="","",'DF raw data'!F44) -> 2277 | C44: =IF('DF raw data'!G44="","",'DF raw data'!G44) ->  | D44: =IF('DF raw data'!H44="","",'DF raw data'!H44) -> 
A45: =IF('DF raw data'!E45="","",'DF raw data'!E45) -> Probe Axis | B45: =IF('DF raw data'!F45="","",'DF raw data'!F45) -> Bz | C45: =IF('DF raw data'!G45="","",'DF raw data'!G45) ->  | D45: =IF('DF raw data'!H45="","",'DF raw data'!H45) -> 
A46: =IF('DF raw data'!E46="","",'DF raw data'!E46) -> Probe Current Supply | B46: =IF('DF raw data'!F46="","",'DF raw data'!F46) -> 1825-D | C46: =IF('DF raw data'!G46="","",'DF raw data'!G46) ->  | D46: =IF('DF raw data'!H46="","",'DF raw data'!H46) -> 
A47: =IF('DF raw data'!E47="","",'DF raw data'!E47) -> Probe Gain Correction | B47: =IF('DF raw data'!F47="","",'DF raw data'!F47) -> 1 | C47: =IF('DF raw data'!G47="","",'DF raw data'!G47) ->  | D47: =IF('DF raw data'!H47="","",'DF raw data'!H47) -> 
A48: =IF('DF raw data'!E53="","",'DF raw data'!E53) -> PS-Gap: | B48: =IF('DF raw data'!F53="","",'DF raw data'!F53) -> 10 | C48: =IF('DF raw data'!G53="","",'DF raw data'!G53) ->  | D48: =IF('DF raw data'!H53="","",'DF raw data'!H53) -> 
A49: =IF('DF raw data'!E54="","",'DF raw data'!E54) -> PS-Temperature: | B49: =IF('DF raw data'!F54="","",'DF raw data'!F54) -> 24.2 | C49: =IF('DF raw data'!G54="","",'DF raw data'!G54) ->  | D49: =IF('DF raw data'!H54="","",'DF raw data'!H54) -> 
A50: =IF('DF raw data'!E55="","",'DF raw data'!E55) -> PS-Encoder: | B50: =IF('DF raw data'!F55="","",'DF raw data'!F55) -> 19.7529 | C50: =IF('DF raw data'!G55="","",'DF raw data'!G55) ->  | D50: =IF('DF raw data'!H55="","",'DF raw data'!H55) -> 
A51: =IF('DF raw data'!E56="","",'DF raw data'!E56) ->  | B51: =IF('DF raw data'!F56="","",'DF raw data'!F56) ->  | C51: =IF('DF raw data'!G56="","",'DF raw data'!G56) ->  | D51: =IF('DF raw data'!H56="","",'DF raw data'!H56) -> 
A52: =IF('DF raw data'!E57="","",'DF raw data'!E57) -> Monitor-Index | B52: =IF('DF raw data'!F57="","",'DF raw data'!F57) -> [1,1,4] | C52: =IF('DF raw data'!G57="","",'DF raw data'!G57) ->  | D52: =IF('DF raw data'!H57="","",'DF raw data'!H57) -> 
A53: =IF('DF raw data'!E58="","",'DF raw data'!E58) ->  | B53: =IF('DF raw data'!F58="","",'DF raw data'!F58) ->  | C53: =IF('DF raw data'!G58="","",'DF raw data'!G58) ->  | D53: =IF('DF raw data'!H58="","",'DF raw data'!H58) -> 
A54: =IF('DF raw data'!E59="","",'DF raw data'!E59) -> Time [s] | B54: =IF('DF raw data'!F59="","",'DF raw data'!F59) -> Y [mm] | C54: =IF('DF raw data'!G59="","",'DF raw data'!G59) -> X [mm] | D54: =IF('DF raw data'!H59="","",'DF raw data'!H59) -> Nominal current [A]
A55: =IF('DF raw data'!E60="","",'DF raw data'!E60) ->  | B55: =IF('DF raw data'!F60="","",'DF raw data'!F60) ->  | C55: =IF('DF raw data'!G60="","",'DF raw data'!G60) ->  | D55: =IF('DF raw data'!H60="","",'DF raw data'!H60) -> 
A56: =IF('DF raw data'!E61="","",'DF raw data'!E61) -> 209.9 | B56: =IF('DF raw data'!F61="","",'DF raw data'!F61) -> 31.28 | C56: =IF('DF raw data'!G61="","",'DF raw data'!G61) -> 302.3 | D56: =IF('DF raw data'!H61="","",'DF raw data'!H61) -> 0
A57: =IF('DF raw data'!E62="","",'DF raw data'!E62) ->  | B57: =IF('DF raw data'!F62="","",'DF raw data'!F62) ->  | C57: =IF('DF raw data'!G62="","",'DF raw data'!G62) ->  | D57: =IF('DF raw data'!H62="","",'DF raw data'!H62) -> 
A58: =IF('DF raw data'!E63="","",'DF raw data'!E63) -> Measurement-Index | B58: =IF('DF raw data'!F63="","",'DF raw data'!F63) -> [1,1,1201,2] | C58: =IF('DF raw data'!G63="","",'DF raw data'!G63) ->  | D58: =IF('DF raw data'!H63="","",'DF raw data'!H63) -> 
A59: =IF('DF raw data'!E64="","",'DF raw data'!E64) ->  | B59: =IF('DF raw data'!F64="","",'DF raw data'!F64) ->  | C59: =IF('DF raw data'!G64="","",'DF raw data'!G64) ->  | D59: =IF('DF raw data'!H64="","",'DF raw data'!H64) -> 
A60: =IF('DF raw data'!E65="","",'DF raw data'!E65) -> Z [mm] | B60: By [T] | C60: Bx [T] | D60: Bz [T] | F60: By_corr | G60: Bx_corr | H60: Bz_corr | J60: Iy | K60: Jy | L60: Ix | M60: Jx | N60: PI
A62: =IF('DF raw data'!E67="","",'DF raw data'!E67) -> -300 | B62: =IF('DF raw data'!F67="","",'DF raw data'!F67) -> -2.29044e-07 | C62: =IF('DF raw data'!G67="","",'DF raw data'!G67) -> 0.000111053 | D62: =IF('DF raw data'!H67="","",'DF raw data'!H67) -> -4.88416e-05 | F62: =(1-$G$1*($B$49))*B62 -> -2.345868648e-07 | G62: =(1-$G$1*($B$49-$G$2))*C62 -> 0.0001115194226 | H62: =(1-$G$1*($B$49-$G$2))*D62 -> -4.904673472e-05 | J62: =F62*$G$3 -> -1.172934324e-07 | K62: =J62*$G$3 -> -5.86467162e-08 | L62: =G62*$G$3 -> 5.57597113e-05 | M62: =L62*$G$3 -> 2.787985565e-05 | N62: =(J62^2+L62^2)*$G$3 -> 1.554579581e-09
A63: =IF('DF raw data'!E68="","",'DF raw data'!E68) -> -299.5 | B63: =IF('DF raw data'!F68="","",'DF raw data'!F68) -> -1.31703e-05 | C63: =IF('DF raw data'!G68="","",'DF raw data'!G68) -> 0.000110417 | D63: =IF('DF raw data'!H68="","",'DF raw data'!H68) -> -4.79788e-05 | F63: =(1-$G$1*($B$49-$G$2))*B63 -> -1.322561526e-05 | G63: =(1-$G$1*($B$49-$G$2))*C63 -> 0.0001108807514 | H63: -4.818031096e-05 | J63: =F63*$G$3+J62 -> -6.730101062e-06 | K63: =J63*$G$3+K62 -> -3.423697247e-06 | L63: =G63*$G$3+L62 -> 0.000111200087 | M63: =L63*$G$3+M62 -> 8.347989915e-05 | N63: =(J63^2+L63^2)*$G$3+N62 -> 7.759956386e-09
A64: =IF('DF raw data'!E69="","",'DF raw data'!E69) -> -299 | B64: =IF('DF raw data'!F69="","",'DF raw data'!F69) -> -2.16918e-05 | C64: =IF('DF raw data'!G69="","",'DF raw data'!G69) -> 0.000106315 | D64: =IF('DF raw data'!H69="","",'DF raw data'!H69) -> -4.63339e-05 | F64: =(1-$G$1*($B$49-$G$2))*B64 -> -2.178290556e-05 | G64: 0.000106761523 | H64: -4.652850238e-05 | J64: =F64*$G$3+J63 -> -1.762155384e-05 | K64: =J64*$G$3+K63 -> -1.223447417e-05 | L64: =G64*$G$3+L63 -> 0.0001645808485 | M64: =L64*$G$3+M63 -> 0.0001657703234 | N64: =(J64^2+L64^2)*$G$3+N63 -> 2.145864381e-08
A65: =IF('DF raw data'!E70="","",'DF raw data'!E70) -> -298.5 | B65: =IF('DF raw data'!F70="","",'DF raw data'!F70) -> -1.02892e-05 | C65: =IF('DF raw data'!G70="","",'DF raw data'!G70) -> 0.000108914 | D65: =IF('DF raw data'!H70="","",'DF raw data'!H70) -> -4.52893e-05 | F65: -1.033241464e-05 | G65: 0.0001093714388 | H65: -4.547951506e-05 | J65: -2.278776116e-05 | K65: -2.362835475e-05 | L65: 0.0002192665679 | M65: 0.0002754036074 | N65: 4.575719874e-08
A66: =IF('DF raw data'!E71="","",'DF raw data'!E71) -> -298 | B66: =IF('DF raw data'!F71="","",'DF raw data'!F71) -> -1.89379e-05 | C66: =IF('DF raw data'!G71="","",'DF raw data'!G71) -> 0.000109765 | D66: =IF('DF raw data'!H71="","",'DF raw data'!H71) -> -4.50709e-05 | F66: -1.901743918e-05 | G66: 0.000110226013 | H66: -4.526019778e-05 | J66: -3.229648075e-05 | K66: -3.977659513e-05 | L66: 0.0002743795744 | M66: 0.0004125933946 | N66: 8.39208055e-08
A67: =IF('DF raw data'!E72="","",'DF raw data'!E72) -> -297.5 | B67: =IF('DF raw data'!F72="","",'DF raw data'!F72) -> -5.48445e-06 | C67: =IF('DF raw data'!G72="","",'DF raw data'!G72) -> 0.000114893 | D67: =IF('DF raw data'!H72="","",'DF raw data'!H72) -> -4.54751e-05 | F67: -5.50748469e-06 | G67: 0.0001153755506 | H67: -4.566609542e-05 | J67: -3.50502231e-05 | K67: -5.730170667e-05 | L67: 0.0003320673497 | M67: 0.0005786270694 | N67: 1.396694269e-07
A68: =IF('DF raw data'!E73="","",'DF raw data'!E73) -> -297 | B68: =IF('DF raw data'!F73="","",'DF raw data'!F73) -> -1.59904e-05 | C68: =IF('DF raw data'!G73="","",'DF raw data'!G73) -> 0.000115733 | D68: =IF('DF raw data'!H73="","",'DF raw data'!H73) -> -4.58554e-05 | F68: -1.605755968e-05 | G68: 0.0001162190786 | H68: -4.604799268e-05 | J68: -4.307900294e-05 | K68: -7.884120814e-05 | L68: 0.000390176889 | M68: 0.0007737155139 | N68: 2.167163295e-07
A69: =IF('DF raw data'!E74="","",'DF raw data'!E74) -> -296.5 | B69: =IF('DF raw data'!F74="","",'DF raw data'!F74) -> -1.22106e-05 | C69: =IF('DF raw data'!G74="","",'DF raw data'!G74) -> 0.000109236 | D69: =IF('DF raw data'!H74="","",'DF raw data'!H74) -> -4.59162e-05 | F69: -1.226188452e-05 | G69: 0.0001096947912 | H69: -4.610904804e-05 | J69: -4.92099452e-05 | K69: -0.0001034461807 | L69: 0.0004450242846 | M69: 0.0009962276562 | N69: 3.169504458e-07
A70: =IF('DF raw data'!E75="","",'DF raw data'!E75) -> -296 | B70: =IF('DF raw data'!F75="","",'DF raw data'!F75) -> -1.69515e-05 | C70: =IF('DF raw data'!G75="","",'DF raw data'!G75) -> 0.000101026 | D70: =IF('DF raw data'!H75="","",'DF raw data'!H75) -> -4.56514e-05 | F70: -1.70226963e-05 | G70: 0.0001014503092 | H70: -4.584313588e-05 | J70: -5.772129335e-05 | K70: -0.0001323068274 | L70: 0.0004957494392 | M70: 0.001244102376 | N70: 4.415000729e-07
A71: =IF('DF raw data'!E76="","",'DF raw data'!E76) -> -295.5 | B71: =IF('DF raw data'!F76="","",'DF raw data'!F76) -> -1.38768e-05 | C71: =IF('DF raw data'!G76="","",'DF raw data'!G76) -> 0.000103901 | D71: =IF('DF raw data'!H76="","",'DF raw data'!H76) -> -4.53799e-05 | F71: -1.393508256e-05 | G71: 0.0001043373842 | H71: -4.557049558e-05 | J71: -6.468883463e-05 | K71: -0.0001646512447 | L71: 0.0005479181313 | M71: 0.001518061441 | N71: 5.936995349e-07
A72: =IF('DF raw data'!E77="","",'DF raw data'!E77) -> -295 | B72: =IF('DF raw data'!F77="","",'DF raw data'!F77) -> -1.47096e-05 | C72: =IF('DF raw data'!G77="","",'DF raw data'!G77) -> 0.000102103 | D72: =IF('DF raw data'!H77="","",'DF raw data'!H77) -> -4.52246e-05 | F72: -1.477138032e-05 | G72: 0.0001025318326 | H72: -4.541454332e-05 | J72: -7.207452479e-05 | K72: -0.0002006885071 | L72: 0.0005991840476 | M72: 0.001817653465 | N72: 7.758076649e-07
A73: =IF('DF raw data'!E78="","",'DF raw data'!E78) -> -294.5 | B73: =IF('DF raw data'!F78="","",'DF raw data'!F78) -> -1.15704e-05 | C73: =IF('DF raw data'!G78="","",'DF raw data'!G78) -> 0.000105535 | D73: =IF('DF raw data'!H78="","",'DF raw data'!H78) -> -4.53691e-05 | F73: -1.161899568e-05 | G73: 0.000105978247 | H73: -4.555965022e-05 | J73: -7.788402263e-05 | K73: -0.0002396305184 | L73: 0.0006521731711 | M73: 0.002143740051 | N73: 9.915055479e-07
A74: =IF('DF raw data'!E79="","",'DF raw data'!E79) -> -294 | B74: =IF('DF raw data'!F79="","",'DF raw data'!F79) -> -1.11218e-05 | C74: =IF('DF raw data'!G79="","",'DF raw data'!G79) -> 9.94687e-05 | D74: =IF('DF raw data'!H79="","",'DF raw data'!H79) -> -4.57997e-05 | F74: -1.116851156e-05 | G74: 9.988646854e-05 | H74: -4.599205874e-05 | J74: -8.346827841e-05 | K74: -0.0002813646576 | L74: 0.0007021164054 | M74: 0.002494798253 | N74: 1.241472748e-06
A75: =IF('DF raw data'!E80="","",'DF raw data'!E80) -> -293.5 | B75: =IF('DF raw data'!F80="","",'DF raw data'!F80) -> -1.32357e-05 | C75: =IF('DF raw data'!G80="","",'DF raw data'!G80) -> 9.6296e-05 | D75: =IF('DF raw data'!H80="","",'DF raw data'!H80) -> -4.62572e-05 | F75: -1.329128994e-05 | G75: 9.67004432e-05 | H75: -4.645148024e-05 | J75: -9.011392338e-05 | K75: -0.0003264216193 | L75: 0.000750466627 | M75: 0.002870031567 | N75: 1.527133087e-06
A76: =IF('DF raw data'!E81="","",'DF raw data'!E81) -> -293 | B76: =IF('DF raw data'!F81="","",'DF raw data'!F81) -> -1.70152e-05 | C76: =IF('DF raw data'!G81="","",'DF raw data'!G81) -> 9.94685e-05 | D76: =IF('DF raw data'!H81="","",'DF raw data'!H81) -> -4.64323e-05 | F76: -1.708666384e-05 | G76: 9.98862677e-05 | H76: -4.662731566e-05 | J76: -9.86572553e-05 | K76: -0.000375750247 | L76: 0.0008004097608 | M76: 0.003270236447 | N76: 1.852327606e-06
A77: =IF('DF raw data'!E82="","",'DF raw data'!E82) -> -292.5 | B77: =IF('DF raw data'!F82="","",'DF raw data'!F82) -> -1.85529e-05 | C77: =IF('DF raw data'!G82="","",'DF raw data'!G82) -> 0.000105958 | D77: =IF('DF raw data'!H82="","",'DF raw data'!H82) -> -4.60814e-05 | F77: -1.863082218e-05 | G77: 0.0001064030236 | H77: -4.627494188e-05 | J77: -0.0001079726664 | K77: -0.0004297365802 | L77: 0.0008536112726 | M77: 0.003697042084 | N77: 2.222482757e-06
A78: =IF('DF raw data'!E83="","",'DF raw data'!E83) -> -292 | B78: =IF('DF raw data'!F83="","",'DF raw data'!F83) -> -2.56645e-05 | C78: =IF('DF raw data'!G83="","",'DF raw data'!G83) -> 0.000101478 | D78: =IF('DF raw data'!H83="","",'DF raw data'!H83) -> -4.53026e-05 | F78: -2.57722909e-05 | G78: 0.0001019042076 | H78: -4.549287092e-05 | J78: -0.0001208588118 | K78: -0.0004901659861 | L78: 0.0009045633764 | M78: 0.004149323772 | N78: 2.638903634e-06
A79: =IF('DF raw data'!E84="","",'DF raw data'!E84) -> -291.5 | B79: =IF('DF raw data'!F84="","",'DF raw data'!F84) -> -1.37545e-05 | C79: =IF('DF raw data'!G84="","",'DF raw data'!G84) -> 9.78538e-05 | D79: =IF('DF raw data'!H84="","",'DF raw data'!H84) -> -3.64399e-05 | F79: -1.38122689e-05 | G79: 9.826478596e-05 | H79: -3.659294758e-05 | J79: -0.0001277649463 | K79: -0.0005540484592 | L79: 0.0009536957694 | M79: 0.004626171657 | N79: 3.101833385e-06
A80: =IF('DF raw data'!E85="","",'DF raw data'!E85) -> -291 | B80: =IF('DF raw data'!F85="","",'DF raw data'!F85) -> -1.83725e-05 | C80: =IF('DF raw data'!G85="","",'DF raw data'!G85) -> 9.76418e-05 | D80: =IF('DF raw data'!H85="","",'DF raw data'!H85) -> -2.77395e-05 | F80: -1.84496645e-05 | G80: 9.805189556e-05 | H80: -2.78560059e-05 | J80: -0.0001369897785 | K80: -0.0006225433485 | L80: 0.001002721717 | M80: 0.005127532515 | N80: 3.613941906e-06
A81: =IF('DF raw data'!E86="","",'DF raw data'!E86) -> -290.5 | B81: =IF('DF raw data'!F86="","",'DF raw data'!F86) -> -9.20617e-06 | C81: =IF('DF raw data'!G86="","",'DF raw data'!G86) -> 9.90795e-05 | D81: =IF('DF raw data'!H86="","",'DF raw data'!H86) -> -3.59072e-05 | F81: -9.244835914e-06 | G81: 9.94956339e-05 | H81: -3.605801024e-05 | J81: -0.0001416121965 | K81: -0.0006933494468 | L81: 0.001052469534 | M81: 0.005653767282 | N81: 4.177814973e-06
A82: =IF('DF raw data'!E87="","",'DF raw data'!E87) -> -290 | B82: =IF('DF raw data'!F87="","",'DF raw data'!F87) -> -7.86092e-06 | C82: =IF('DF raw data'!G87="","",'DF raw data'!G87) -> 0.000102168 | D82: =IF('DF raw data'!H87="","",'DF raw data'!H87) -> -3.60712e-05 | F82: -7.893935864e-06 | G82: 0.0001025971056 | H82: -3.622269904e-05 | J82: -0.0001455591644 | K82: -0.000766129029 | L82: 0.001103768087 | M82: 0.006205651326 | N82: 4.797560703e-06
A83: =IF('DF raw data'!E88="","",'DF raw data'!E88) -> -289.5 | B83: =IF('DF raw data'!F88="","",'DF raw data'!F88) -> -1.18338e-05 | C83: =IF('DF raw data'!G88="","",'DF raw data'!G88) -> 0.000106712 | D83: =IF('DF raw data'!H88="","",'DF raw data'!H88) -> -3.44082e-05 | F83: -1.188350196e-05 | G83: 0.0001071601904 | H83: -3.455271444e-05 | J83: -0.0001515009154 | K83: -0.0008418794867 | L83: 0.001157348182 | M83: 0.006784325417 | N83: 5.478764374e-06
A84: =IF('DF raw data'!E89="","",'DF raw data'!E89) -> -289 | B84: =IF('DF raw data'!F89="","",'DF raw data'!F89) -> -1.23399e-05 | C84: =IF('DF raw data'!G89="","",'DF raw data'!G89) -> 0.000115735 | D84: =IF('DF raw data'!H89="","",'DF raw data'!H89) -> -4.42501e-05 | F84: -1.239172758e-05 | G84: 0.000116221087 | H84: -4.443595042e-05 | J84: -0.0001576967792 | K84: -0.0009207278763 | L84: 0.001215458726 | M84: 0.00739205478 | N84: 6.229868468e-06
A85: =IF('DF raw data'!E90="","",'DF raw data'!E90) -> -288.5 | B85: =IF('DF raw data'!F90="","",'DF raw data'!F90) -> -2.01613e-05 | C85: =IF('DF raw data'!G90="","",'DF raw data'!G90) -> 0.000105881 | D85: =IF('DF raw data'!H90="","",'DF raw data'!H90) -> -3.56926e-05 | F85: -2.024597746e-05 | G85: 0.0001063257002 | H85: -3.584250892e-05 | J85: -0.0001678197679 | K85: -0.00100463776 | L85: 0.001268621576 | M85: 0.008026365567 | N85: 7.048650557e-06
A86: =IF('DF raw data'!E91="","",'DF raw data'!E91) -> -288 | B86: =IF('DF raw data'!F91="","",'DF raw data'!F91) -> -5.81675e-06 | C86: =IF('DF raw data'!G91="","",'DF raw data'!G91) -> 0.000100847 | D86: =IF('DF raw data'!H91="","",'DF raw data'!H91) -> -2.67744e-05 | F86: -5.84118035e-06 | G86: 0.0001012705574 | H86: -2.688685248e-05 | J86: -0.0001707403581 | K86: -0.001090007939 | L86: 0.001319256854 | M86: 0.008685993995 | N86: 7.933446016e-06
A87: =IF('DF raw data'!E92="","",'DF raw data'!E92) -> -287.5 | B87: =IF('DF raw data'!F92="","",'DF raw data'!F92) -> -6.83457e-06 | C87: =IF('DF raw data'!G92="","",'DF raw data'!G92) -> 0.000107722 | D87: =IF('DF raw data'!H92="","",'DF raw data'!H92) -> -3.78008e-05 | F87: -6.863275194e-06 | G87: 0.0001081744324 | H87: -3.795956336e-05 | J87: -0.0001741719957 | K87: -0.001177093937 | L87: 0.001373344071 | M87: 0.00937266603 | N87: 8.891650926e-06
A88: =IF('DF raw data'!E93="","",'DF raw data'!E93) -> -287 | B88: =IF('DF raw data'!F93="","",'DF raw data'!F93) -> -1.55418e-05 | C88: =IF('DF raw data'!G93="","",'DF raw data'!G93) -> 0.000112735 | D88: =IF('DF raw data'!H93="","",'DF raw data'!H93) -> -4.63783e-05 | F88: -1.560707556e-05 | G88: 0.000113208487 | H88: -4.657308886e-05 | J88: -0.0001819755335 | K88: -0.001268081704 | L88: 0.001429948314 | M88: 0.01008764019 | N88: 9.930584564e-06
A89: =IF('DF raw data'!E94="","",'DF raw data'!E94) -> -286.5 | B89: =IF('DF raw data'!F94="","",'DF raw data'!F94) -> -1.73292e-05 | C89: =IF('DF raw data'!G94="","",'DF raw data'!G94) -> 0.000110337 | D89: =IF('DF raw data'!H94="","",'DF raw data'!H94) -> -5.60584e-05 | F89: -1.740198264e-05 | G89: 0.0001108004154 | H89: -5.629384528e-05 | J89: -0.0001906765248 | K89: -0.001363419966 | L89: 0.001485348522 | M89: 0.01083031445 | N89: 1.105189345e-05
A90: =IF('DF raw data'!E95="","",'DF raw data'!E95) -> -286 | B90: =IF('DF raw data'!F95="","",'DF raw data'!F95) -> -1.17056e-05 | C90: =IF('DF raw data'!G95="","",'DF raw data'!G95) -> 0.000105865 | D90: =IF('DF raw data'!H95="","",'DF raw data'!H95) -> -3.45317e-05 | F90: -1.175476352e-05 | G90: 0.000106309633 | H90: -3.467673314e-05 | J90: -0.0001965539066 | K90: -0.00146169692 | L90: 0.001538503338 | M90: 0.01159956612 | N90: 1.225470643e-05
A91: =IF('DF raw data'!E96="","",'DF raw data'!E96) -> -285.5 | B91: =IF('DF raw data'!F96="","",'DF raw data'!F96) -> -2.01584e-05 | C91: =IF('DF raw data'!G96="","",'DF raw data'!G96) -> 0.000100857 | D91: =IF('DF raw data'!H96="","",'DF raw data'!H96) -> -4.02831e-05 | F91: -2.024306528e-05 | G91: 0.0001012805994 | H91: -4.045228902e-05 | J91: -0.0002066754392 | K91: -0.001565034639 | L91: 0.001589143638 | M91: 0.01239413794 | N91: 1.353875255e-05
A92: =IF('DF raw data'!E97="","",'DF raw data'!E97) -> -285 | B92: =IF('DF raw data'!F97="","",'DF raw data'!F97) -> -1.36844e-05 | C92: =IF('DF raw data'!G97="","",'DF raw data'!G97) -> 0.000101846 | D92: =IF('DF raw data'!H97="","",'DF raw data'!H97) -> -4.56529e-05 | F92: -1.374187448e-05 | G92: 0.0001022737532 | H92: -4.584464218e-05 | J92: -0.0002135463764 | K92: -0.001671807827 | L92: 0.001640280515 | M92: 0.01321427819 | N92: 1.490681366e-05
A93: =IF('DF raw data'!E98="","",'DF raw data'!E98) -> -284.5 | B93: =IF('DF raw data'!F98="","",'DF raw data'!F98) -> -2.41963e-05 | C93: =IF('DF raw data'!G98="","",'DF raw data'!G98) -> 0.000101468 | D93: =IF('DF raw data'!H98="","",'DF raw data'!H98) -> -3.72266e-05 | F93: -2.429792446e-05 | G93: 0.0001018941656 | H93: -3.738295172e-05 | J93: -0.0002256953387 | K93: -0.001784655497 | L93: 0.001691227597 | M93: 0.01405989199 | N93: 1.636240824e-05
A94: =IF('DF raw data'!E99="","",'DF raw data'!E99) -> -284 | B94: =IF('DF raw data'!F99="","",'DF raw data'!F99) -> -1.79811e-05 | C94: =IF('DF raw data'!G99="","",'DF raw data'!G99) -> 0.000101373 | D94: =IF('DF raw data'!H99="","",'DF raw data'!H99) -> -3.86141e-05 | F94: -1.805662062e-05 | G94: 0.0001017987666 | H94: -3.877627922e-05 | J94: -0.000234723649 | K94: -0.001902017321 | L94: 0.001742126981 | M94: 0.01493095548 | N94: 1.790745905e-05
A95: =IF('DF raw data'!E100="","",'DF raw data'!E100) -> -283.5 | B95: =IF('DF raw data'!F100="","",'DF raw data'!F100) -> -7.60102e-06 | C95: =IF('DF raw data'!G100="","",'DF raw data'!G100) -> 0.000103554 | D95: =IF('DF raw data'!H100="","",'DF raw data'!H100) -> -4.17358e-05 | F95: -7.632944284e-06 | G95: 0.0001039889268 | H95: -4.191109036e-05 | J95: -0.0002385401211 | K95: -0.002021287382 | L95: 0.001794121444 | M95: 0.0158280162 | N95: 1.954534562e-05
A96: =IF('DF raw data'!E101="","",'DF raw data'!E101) -> -283 | B96: =IF('DF raw data'!F101="","",'DF raw data'!F101) -> -9.40265e-06 | C96: =IF('DF raw data'!G101="","",'DF raw data'!G101) -> 0.0001094 | D96: =IF('DF raw data'!H101="","",'DF raw data'!H101) -> -2.94939e-05 | F96: -9.44214113e-06 | G96: 0.00010985948 | H96: -2.961777438e-05 | J96: -0.0002432611917 | K96: -0.002142917978 | L96: 0.001849051184 | M96: 0.0167525418 | N96: 2.128442877e-05
A97: =IF('DF raw data'!E102="","",'DF raw data'!E102) -> -282.5 | B97: =IF('DF raw data'!F102="","",'DF raw data'!F102) -> -1.29823e-05 | C97: =IF('DF raw data'!G102="","",'DF raw data'!G102) -> 0.000105785 | D97: =IF('DF raw data'!H102="","",'DF raw data'!H102) -> -4.14505e-05 | F97: -1.303682566e-05 | G97: 0.000106229297 | H97: -4.16245921e-05 | J97: -0.0002497796045 | K97: -0.00226780778 | L97: 0.001902165833 | M97: 0.01770362471 | N97: 2.312474112e-05
A98: =IF('DF raw data'!E103="","",'DF raw data'!E103) -> -282 | B98: =IF('DF raw data'!F103="","",'DF raw data'!F103) -> -4.33536e-06 | C98: =IF('DF raw data'!G103="","",'DF raw data'!G103) -> 0.000102087 | D98: =IF('DF raw data'!H103="","",'DF raw data'!H103) -> -3.93226e-05 | F98: -4.353568512e-06 | G98: 0.0001025157654 | H98: -3.948775492e-05 | J98: -0.0002519563888 | K98: -0.002393785974 | L98: 0.001953423715 | M98: 0.01868033657 | N98: 2.506441424e-05
A99: =IF('DF raw data'!E104="","",'DF raw data'!E104) -> -281.5 | B99: =IF('DF raw data'!F104="","",'DF raw data'!F104) -> -7.98401e-06 | C99: =IF('DF raw data'!G104="","",'DF raw data'!G104) -> 0.00010478 | D99: =IF('DF raw data'!H104="","",'DF raw data'!H104) -> -4.38551e-05 | F99: -8.017542842e-06 | G99: 0.000105220076 | H99: -4.403929142e-05 | J99: -0.0002559651602 | K99: -0.002521768554 | L99: 0.002006033753 | M99: 0.01968335345 | N99: 2.710925903e-05
A100: =IF('DF raw data'!E105="","",'DF raw data'!E105) -> -281 | B100: =IF('DF raw data'!F105="","",'DF raw data'!F105) -> -4.39517e-06 | C100: =IF('DF raw data'!G105="","",'DF raw data'!G105) -> 0.000109008 | D100: =IF('DF raw data'!H105="","",'DF raw data'!H105) -> -4.56811e-05 | F100: -4.413629714e-06 | G100: 0.0001094658336 | H100: -4.587296062e-05 | J100: -0.000258171975 | K100: -0.002650854542 | L100: 0.00206076667 | M100: 0.02071373678 | N100: 2.926596505e-05
A101: =IF('DF raw data'!E106="","",'DF raw data'!E106) -> -280.5 | B101: =IF('DF raw data'!F106="","",'DF raw data'!F106) -> -1.0167e-05 | C101: =IF('DF raw data'!G106="","",'DF raw data'!G106) -> 0.000109925 | D101: =IF('DF raw data'!H106="","",'DF raw data'!H106) -> -3.6284e-05 | F101: -1.02097014e-05 | G101: 0.000110386685 | H101: -3.64363928e-05 | J101: -0.0002632768257 | K101: -0.002782492955 | L101: 0.002115960013 | M101: 0.02177171679 | N101: 3.153926578e-05
A102: =IF('DF raw data'!E107="","",'DF raw data'!E107) -> -280 | B102: =IF('DF raw data'!F107="","",'DF raw data'!F107) -> -1.45276e-05 | C102: =IF('DF raw data'!G107="","",'DF raw data'!G107) -> 0.000107629 | D102: =IF('DF raw data'!H107="","",'DF raw data'!H107) -> -2.97024e-05 | F102: -1.458861592e-05 | G102: 0.0001080810418 | H102: -2.982715008e-05 | J102: -0.0002705711337 | K102: -0.002917778522 | L102: 0.002170000534 | M102: 0.02285671706 | N102: 3.39303213e-05
A103: =IF('DF raw data'!E108="","",'DF raw data'!E108) -> -279.5 | B103: =IF('DF raw data'!F108="","",'DF raw data'!F108) -> -1.32417e-05 | C103: =IF('DF raw data'!G108="","",'DF raw data'!G108) -> 0.000118095 | D103: =IF('DF raw data'!H108="","",'DF raw data'!H108) -> -3.70074e-05 | F103: -1.329731514e-05 | G103: 0.000118590999 | H103: -3.716283108e-05 | J103: -0.0002772197913 | K103: -0.003056388417 | L103: 0.002229296033 | M103: 0.02397136507 | N103: 3.645362711e-05
A104: =IF('DF raw data'!E109="","",'DF raw data'!E109) -> -279 | B104: =IF('DF raw data'!F109="","",'DF raw data'!F109) -> -9.5273e-06 | C104: =IF('DF raw data'!G109="","",'DF raw data'!G109) -> 0.000120231 | D104: =IF('DF raw data'!H109="","",'DF raw data'!H109) -> -3.48663e-05 | F104: -9.56731466e-06 | G104: 0.0001207359702 | H104: -3.501273846e-05 | J104: -0.0002820034486 | K104: -0.003197390142 | L104: 0.002289664018 | M104: 0.02511619708 | N104: 3.911467074e-05
A105: =IF('DF raw data'!E110="","",'DF raw data'!E110) -> -278.5 | B105: =IF('DF raw data'!F110="","",'DF raw data'!F110) -> -7.54776e-06 | C105: =IF('DF raw data'!G110="","",'DF raw data'!G110) -> 0.000121392 | D105: =IF('DF raw data'!H110="","",'DF raw data'!H110) -> -2.48884e-05 | F105: -7.579460592e-06 | G105: 0.0001219018464 | H105: -2.499293128e-05 | J105: -0.0002857931789 | K105: -0.003340286731 | L105: 0.002350614941 | M105: 0.02629150455 | N105: 4.191820491e-05
A106: =IF('DF raw data'!E111="","",'DF raw data'!E111) -> -278 | B106: =IF('DF raw data'!F111="","",'DF raw data'!F111) -> -8.30673e-06 | C106: =IF('DF raw data'!G111="","",'DF raw data'!G111) -> 0.000112337 | D106: =IF('DF raw data'!H111="","",'DF raw data'!H111) -> -3.99338e-05 | F106: -8.341618266e-06 | G106: 0.0001128088154 | H106: -4.010152196e-05 | J106: -0.000289963988 | K106: -0.003485268725 | L106: 0.002407019349 | M106: 0.02749501423 | N106: 4.485711554e-05
A107: =IF('DF raw data'!E112="","",'DF raw data'!E112) -> -277.5 | B107: =IF('DF raw data'!F112="","",'DF raw data'!F112) -> -5.04458e-06 | C107: =IF('DF raw data'!G112="","",'DF raw data'!G112) -> 0.000106468 | D107: =IF('DF raw data'!H112="","",'DF raw data'!H112) -> -3.21028e-05 | F107: -5.065767236e-06 | G107: 0.0001069151656 | H107: -3.223763176e-05 | J107: -0.0002924968717 | K107: -0.003631517161 | L107: 0.002460476932 | M107: 0.02872525269 | N107: 4.792686612e-05
A108: =IF('DF raw data'!E113="","",'DF raw data'!E113) -> -277 | B108: =IF('DF raw data'!F113="","",'DF raw data'!F113) -> -1.17081e-05 | C108: =IF('DF raw data'!G113="","",'DF raw data'!G113) -> 0.000112293 | D108: =IF('DF raw data'!H113="","",'DF raw data'!H113) -> -3.06323e-05 | F108: -1.175727402e-05 | G108: 0.0001127646306 | H108: -3.076095566e-05 | J108: -0.0002983755087 | K108: -0.003780704915 | L108: 0.002516859247 | M108: 0.02998368232 | N108: 5.113867033e-05
A109: =IF('DF raw data'!E114="","",'DF raw data'!E114) -> -276.5 | B109: =IF('DF raw data'!F114="","",'DF raw data'!F114) -> -1.81807e-05 | C109: =IF('DF raw data'!G114="","",'DF raw data'!G114) -> 0.000113255 | D109: =IF('DF raw data'!H114="","",'DF raw data'!H114) -> -2.75148e-05 | F109: -1.825705894e-05 | G109: 0.000113730671 | H109: -2.763036216e-05 | J109: -0.0003075040381 | K109: -0.003934456934 | L109: 0.002573724583 | M109: 0.03127054461 | N109: 5.449797881e-05
A110: =IF('DF raw data'!E115="","",'DF raw data'!E115) -> -276 | B110: =IF('DF raw data'!F115="","",'DF raw data'!F115) -> 3.54539e-06 | C110: =IF('DF raw data'!G115="","",'DF raw data'!G115) -> 9.84978e-05 | D110: =IF('DF raw data'!H115="","",'DF raw data'!H115) -> -4.07061e-05 | F110: 3.560280638e-06 | G110: 9.891149076e-05 | H110: -4.087706562e-05 | J110: -0.0003057238978 | K110: -0.004087318883 | L110: 0.002623180328 | M110: 0.03258213477 | N110: 5.798524988e-05
A111: =IF('DF raw data'!E116="","",'DF raw data'!E116) -> -275.5 | B111: =IF('DF raw data'!F116="","",'DF raw data'!F116) -> -1.90121e-05 | C111: =IF('DF raw data'!G116="","",'DF raw data'!G116) -> 9.32786e-05 | D111: =IF('DF raw data'!H116="","",'DF raw data'!H116) -> -2.93556e-05 | F111: -1.909195082e-05 | G111: 9.367037012e-05 | H111: -2.947889352e-05 | J111: -0.0003152698732 | K111: -0.00424495382 | L111: 0.002670015513 | M111: 0.03391714253 | N111: 6.159943884e-05
A112: =IF('DF raw data'!E117="","",'DF raw data'!E117) -> -275 | B112: =IF('DF raw data'!F117="","",'DF raw data'!F117) -> -2.18884e-05 | C112: =IF('DF raw data'!G117="","",'DF raw data'!G117) -> 0.00010175 | D112: =IF('DF raw data'!H117="","",'DF raw data'!H117) -> -3.95744e-05 | F112: -2.198033128e-05 | G112: 0.00010217735 | H112: -3.974061248e-05 | J112: -0.0003262600389 | K112: -0.004408083839 | L112: 0.002721104188 | M112: 0.03527769462 | N112: 6.535486565e-05
A113: =IF('DF raw data'!E118="","",'DF raw data'!E118) -> -274.5 | B113: =IF('DF raw data'!F118="","",'DF raw data'!F118) -> -4.90906e-06 | C113: =IF('DF raw data'!G118="","",'DF raw data'!G118) -> 9.92374e-05 | D113: =IF('DF raw data'!H118="","",'DF raw data'!H118) -> -4.3521e-05 | F113: -4.929678052e-06 | G113: 9.965419708e-05 | H113: -4.37037882e-05 | J113: -0.0003287248779 | K113: -0.004572446278 | L113: 0.002770931287 | M113: 0.03666316026 | N113: 6.924792577e-05
A114: =IF('DF raw data'!E119="","",'DF raw data'!E119) -> -274 | B114: =IF('DF raw data'!F119="","",'DF raw data'!F119) -> -1.0555e-05 | C114: =IF('DF raw data'!G119="","",'DF raw data'!G119) -> 0.000106957 | D114: =IF('DF raw data'!H119="","",'DF raw data'!H119) -> -3.06643e-05 | F114: -1.0599331e-05 | G114: 0.0001074062194 | H114: -3.079309006e-05 | J114: -0.0003340245434 | K114: -0.00473945855 | L114: 0.002824634396 | M114: 0.03807547746 | N114: 7.32929917e-05
A115: =IF('DF raw data'!E120="","",'DF raw data'!E120) -> -273.5 | B115: =IF('DF raw data'!F120="","",'DF raw data'!F120) -> -1.06773e-05 | C115: =IF('DF raw data'!G120="","",'DF raw data'!G120) -> 0.000101134 | D115: =IF('DF raw data'!H120="","",'DF raw data'!H120) -> -3.96011e-05 | F115: -1.072214466e-05 | G115: 0.0001015587628 | H115: -3.976742462e-05 | J115: -0.0003393856157 | K115: -0.004909151358 | L115: 0.002875413778 | M115: 0.03951318435 | N115: 7.74845852e-05
A116: =IF('DF raw data'!E121="","",'DF raw data'!E121) -> -273 | B116: =IF('DF raw data'!F121="","",'DF raw data'!F121) -> 1.29604e-06 | C116: =IF('DF raw data'!G121="","",'DF raw data'!G121) -> 9.62862e-05 | D116: =IF('DF raw data'!H121="","",'DF raw data'!H121) -> -2.97668e-05 | F116: 1.301483368e-06 | G116: 9.669060204e-05 | H116: -2.989182056e-05 | J116: -0.000338734874 | K116: -0.005078518795 | L116: 0.002923759079 | M116: 0.04097506389 | N116: 8.181613943e-05
A117: =IF('DF raw data'!E122="","",'DF raw data'!E122) -> -272.5 | B117: =IF('DF raw data'!F122="","",'DF raw data'!F122) -> -5.36056e-06 | C117: =IF('DF raw data'!G122="","",'DF raw data'!G122) -> 9.53405e-05 | D117: =IF('DF raw data'!H122="","",'DF raw data'!H122) -> -3.89748e-05 | F117: -5.383074352e-06 | G117: 9.57409301e-05 | H117: -3.913849416e-05 | J117: -0.0003414264112 | K117: -0.005249232 | L117: 0.002971629544 | M117: 0.04246087866 | N117: 8.62897165e-05
A118: =IF('DF raw data'!E123="","",'DF raw data'!E123) -> -272 | B118: =IF('DF raw data'!F123="","",'DF raw data'!F123) -> -4.65479e-06 | C118: =IF('DF raw data'!G123="","",'DF raw data'!G123) -> 0.00010071 | D118: =IF('DF raw data'!H123="","",'DF raw data'!H123) -> -4.04825e-05 | F118: -4.674340118e-06 | G118: 0.000101132982 | H118: -4.06525265e-05 | J118: -0.0003437635813 | K118: -0.005421113791 | L118: 0.003022196035 | M118: 0.04397197668 | N118: 9.091563764e-05
A119: =IF('DF raw data'!E124="","",'DF raw data'!E124) -> -271.5 | B119: =IF('DF raw data'!F124="","",'DF raw data'!F124) -> -1.20905e-05 | C119: =IF('DF raw data'!G124="","",'DF raw data'!G124) -> 9.78713e-05 | D119: =IF('DF raw data'!H124="","",'DF raw data'!H124) -> -3.37371e-05 | F119: -1.21412801e-05 | G119: 9.828235946e-05 | H119: -3.387879582e-05 | J119: -0.0003498342213 | K119: -0.005596030902 | L119: 0.003071337215 | M119: 0.04550764529 | N119: 9.569338577e-05
A120: =IF('DF raw data'!E125="","",'DF raw data'!E125) -> -271 | B120: =IF('DF raw data'!F125="","",'DF raw data'!F125) -> -2.36249e-05 | C120: =IF('DF raw data'!G125="","",'DF raw data'!G125) -> 9.11363e-05 | D120: =IF('DF raw data'!H125="","",'DF raw data'!H125) -> -2.90908e-05 | F120: -2.372412458e-05 | G120: 9.151907246e-05 | H120: -2.921298136e-05 | J120: -0.0003616962836 | K120: -0.005776879043 | L120: 0.003117096751 | M120: 0.04706619366 | N120: 0.0001006169439
A121: =IF('DF raw data'!E126="","",'DF raw data'!E126) -> -270.5 | B121: =IF('DF raw data'!F126="","",'DF raw data'!F126) -> -8.18137e-06 | C121: =IF('DF raw data'!G126="","",'DF raw data'!G126) -> 9.45708e-05 | D121: =IF('DF raw data'!H126="","",'DF raw data'!H126) -> -3.56889e-05 | F121: -8.215731754e-06 | G121: 9.496799736e-05 | H121: -3.583879338e-05 | J121: -0.0003658041495 | K121: -0.005959781118 | L121: 0.003164580749 | M121: 0.04864848404 | N121: 0.0001056911359
A122: =IF('DF raw data'!E127="","",'DF raw data'!E127) -> -270 | B122: =IF('DF raw data'!F127="","",'DF raw data'!F127) -> -1.07419e-05 | C122: =IF('DF raw data'!G127="","",'DF raw data'!G127) -> 0.000105185 | D122: =IF('DF raw data'!H127="","",'DF raw data'!H127) -> -3.89674e-05 | F122: -1.078701598e-05 | G122: 0.000105626777 | H122: -3.913106308e-05 | J122: -0.0003711976575 | K122: -0.006145379947 | L122: 0.003217394138 | M122: 0.05025718111 | N122: 0.0001109358423
A123: =IF('DF raw data'!E128="","",'DF raw data'!E128) -> -269.5 | B123: =IF('DF raw data'!F128="","",'DF raw data'!F128) -> -1.86847e-05 | C123: =IF('DF raw data'!G128="","",'DF raw data'!G128) -> 0.000109809 | D123: =IF('DF raw data'!H128="","",'DF raw data'!H128) -> -4.06068e-05 | F123: -1.876317574e-05 | G123: 0.0001102701978 | H123: -4.077734856e-05 | J123: -0.0003805792454 | K123: -0.00633566957 | L123: 0.003272529237 | M123: 0.05189344573 | N123: 0.0001163629864
A124: =IF('DF raw data'!E129="","",'DF raw data'!E129) -> -269 | B124: =IF('DF raw data'!F129="","",'DF raw data'!F129) -> -7.73389e-06 | C124: =IF('DF raw data'!G129="","",'DF raw data'!G129) -> 0.000102671 | D124: =IF('DF raw data'!H129="","",'DF raw data'!H129) -> -3.44392e-05 | F124: -7.766372338e-06 | G124: 0.0001031022182 | H124: -3.458384464e-05 | J124: -0.0003844624315 | K124: -0.006527900785 | L124: 0.003324080346 | M124: 0.0535554859 | N124: 0.0001219616472
A125: =IF('DF raw data'!E130="","",'DF raw data'!E130) -> -268.5 | B125: =IF('DF raw data'!F130="","",'DF raw data'!F130) -> -1.56752e-05 | C125: =IF('DF raw data'!G130="","",'DF raw data'!G130) -> 0.000106451 | D125: =IF('DF raw data'!H130="","",'DF raw data'!H130) -> -3.82776e-05 | F125: -1.574103584e-05 | G125: 0.0001068980942 | H125: -3.843836592e-05 | J125: -0.0003923329494 | K125: -0.00672406726 | L125: 0.003377529393 | M125: 0.05524425059 | N125: 0.0001277424621
A126: =IF('DF raw data'!E131="","",'DF raw data'!E131) -> -268 | B126: =IF('DF raw data'!F131="","",'DF raw data'!F131) -> -1.02908e-05 | C126: =IF('DF raw data'!G131="","",'DF raw data'!G131) -> 0.000108829 | D126: =IF('DF raw data'!H131="","",'DF raw data'!H131) -> -4.29982e-05 | F126: -1.033402136e-05 | G126: 0.0001092860818 | H126: -4.317879244e-05 | J126: -0.0003974999601 | K126: -0.00692281724 | L126: 0.003432172434 | M126: 0.05696033681 | N126: 0.000133711369
A127: =IF('DF raw data'!E132="","",'DF raw data'!E132) -> -267.5 | B127: =IF('DF raw data'!F132="","",'DF raw data'!F132) -> 1.3088e-05 | C127: =IF('DF raw data'!G132="","",'DF raw data'!G132) -> 0.00010149 | D127: =IF('DF raw data'!H132="","",'DF raw data'!H132) -> -3.63187e-05 | F127: 1.31429696e-05 | G127: 0.000101916258 | H127: -3.647123854e-05 | J127: -0.0003909284753 | K127: -0.007118281478 | L127: 0.003483130563 | M127: 0.05870190209 | N127: 0.0001398538808
A128: =IF('DF raw data'!E133="","",'DF raw data'!E133) -> -267 | B128: =IF('DF raw data'!F133="","",'DF raw data'!F133) -> -1.18313e-05 | C128: =IF('DF raw data'!G133="","",'DF raw data'!G133) -> 9.87251e-05 | D128: =IF('DF raw data'!H133="","",'DF raw data'!H133) -> -3.82674e-05 | F128: =(1-$G$1*($B$49-$G$2))*B128 -> -1.188099146e-05 | G128: 9.913974542e-05 | H128: -3.842812308e-05 | J128: =F128*$G$3+J127 -> -0.0003968689711 | K128: =J128*$G$3+K127 -> -0.007316715963 | L128: =G128*$G$3+L127 -> 0.003532700436 | M128: =L128*$G$3+M127 -> 0.06046825231 | N128: =(J128^2+L128^2)*$G$3+N127 -> 0.0001461726195
A129: =IF('DF raw data'!E134="","",'DF raw data'!E134) -> -266.5 | B129: =IF('DF raw data'!F134="","",'DF raw data'!F134) -> -7.79889e-06 | C129: =IF('DF raw data'!G134="","",'DF raw data'!G134) -> 0.000105733 | D129: =IF('DF raw data'!H134="","",'DF raw data'!H134) -> -3.27869e-05 | F129: -7.831645338e-06 | G129: 0.0001061770786 | H129: -3.292460498e-05 | J129: -0.0004007847937 | K129: -0.00751710836 | L129: 0.003585788975 | M129: 0.0622611468 | N129: 0.000152681875
A130: =IF('DF raw data'!E135="","",'DF raw data'!E135) -> -266 | B130: =IF('DF raw data'!F135="","",'DF raw data'!F135) -> -2.65074e-05 | C130: =IF('DF raw data'!G135="","",'DF raw data'!G135) -> 9.51789e-05 | D130: =IF('DF raw data'!H135="","",'DF raw data'!H135) -> -2.97216e-05 | F130: -2.661873108e-05 | G130: 9.557865138e-05 | H130: -2.984643072e-05 | J130: -0.0004140941593 | K130: -0.00772415544 | L130: 0.003633578301 | M130: 0.06407793595 | N130: 0.0001593690576
A131: =IF('DF raw data'!E136="","",'DF raw data'!E136) -> -265.5 | B131: =IF('DF raw data'!F136="","",'DF raw data'!F136) -> -1.86853e-05 | C131: =IF('DF raw data'!G136="","",'DF raw data'!G136) -> 9.48568e-05 | D131: =IF('DF raw data'!H136="","",'DF raw data'!H136) -> -3.96181e-05 | F131: -1.876377826e-05 | G131: 9.525519856e-05 | H131: -3.978449602e-05 | J131: -0.0004234760484 | K131: -0.007935893464 | L131: 0.0036812059 | M131: 0.0659185389 | N131: 0.0001662343621
A132: =IF('DF raw data'!E137="","",'DF raw data'!E137) -> -265 | B132: =IF('DF raw data'!F137="","",'DF raw data'!F137) -> -1.09982e-05 | C132: =IF('DF raw data'!G137="","",'DF raw data'!G137) -> 9.41541e-05 | D132: =IF('DF raw data'!H137="","",'DF raw data'!H137) -> -3.8947e-05 | F132: -1.104439244e-05 | G132: 9.454954722e-05 | H132: -3.91105774e-05 | J132: -0.0004289982446 | K132: -0.008150392586 | L132: 0.003728480674 | M132: 0.06778277924 | N132: 0.0001732771659
A133: =IF('DF raw data'!E138="","",'DF raw data'!E138) -> -264.5 | B133: =IF('DF raw data'!F138="","",'DF raw data'!F138) -> -1.70162e-05 | C133: =IF('DF raw data'!G138="","",'DF raw data'!G138) -> 9.4935e-05 | D133: =IF('DF raw data'!H138="","",'DF raw data'!H138) -> -4.50145e-05 | F133: -1.708766804e-05 | G133: 9.5333727e-05 | H133: -4.52035609e-05 | J133: -0.0004375420786 | K133: -0.008369163626 | L133: 0.003776147537 | M133: 0.069670853 | N133: 0.0001805025325
A134: =IF('DF raw data'!E139="","",'DF raw data'!E139) -> -264 | B134: =IF('DF raw data'!F139="","",'DF raw data'!F139) -> -1.00353e-05 | C134: =IF('DF raw data'!G139="","",'DF raw data'!G139) -> 9.01012e-05 | D134: =IF('DF raw data'!H139="","",'DF raw data'!H139) -> -4.17746e-05 | F134: -1.007744826e-05 | G134: 9.047962504e-05 | H134: -4.195005332e-05 | J134: -0.0004425808028 | K134: -0.008590454027 | L134: 0.00382138735 | M134: 0.07158154668 | N134: 0.000187901972
A135: =IF('DF raw data'!E140="","",'DF raw data'!E140) -> -263.5 | B135: =IF('DF raw data'!F140="","",'DF raw data'!F140) -> -4.58741e-06 | C135: =IF('DF raw data'!G140="","",'DF raw data'!G140) -> 9.11477e-05 | D135: =IF('DF raw data'!H140="","",'DF raw data'!H140) -> -4.58049e-05 | F135: -4.606677122e-06 | G135: 9.153052034e-05 | H135: -4.599728058e-05 | J135: -0.0004448841413 | K135: -0.008812896098 | L135: 0.00386715261 | M135: 0.07351512298 | N135: 0.0001954783676
A136: =IF('DF raw data'!E141="","",'DF raw data'!E141) -> -263 | B136: =IF('DF raw data'!F141="","",'DF raw data'!F141) -> -7.53181e-06 | C136: =IF('DF raw data'!G141="","",'DF raw data'!G141) -> 9.80921e-05 | D136: =IF('DF raw data'!H141="","",'DF raw data'!H141) -> -4.95045e-05 | F136: -7.563443602e-06 | G136: 9.850408682e-05 | H136: -4.97124189e-05 | J136: -0.0004486658631 | K136: -0.009037229029 | L136: 0.003916404653 | M136: 0.07547332531 | N136: 0.0002032481309
A137: =IF('DF raw data'!E142="","",'DF raw data'!E142) -> -262.5 | B137: =IF('DF raw data'!F142="","",'DF raw data'!F142) -> 3.48264e-06 | C137: =IF('DF raw data'!G142="","",'DF raw data'!G142) -> 9.56883e-05 | D137: =IF('DF raw data'!H142="","",'DF raw data'!H142) -> -4.25078e-05 | F137: 3.497267088e-06 | G137: 9.609019086e-05 | H137: -4.268633276e-05 | J137: -0.0004469172296 | K137: -0.009260687644 | L137: 0.003964449749 | M137: 0.07745555018 | N137: 0.0002112064293
A138: =IF('DF raw data'!E143="","",'DF raw data'!E143) -> -262 | B138: =IF('DF raw data'!F143="","",'DF raw data'!F143) -> -5.55878e-07 | C138: =IF('DF raw data'!G143="","",'DF raw data'!G143) -> 9.17182e-05 | D138: =IF('DF raw data'!H143="","",'DF raw data'!H143) -> -3.85721e-05 | F138: -5.582126876e-07 | G138: 9.210341644e-05 | H138: -3.873410282e-05 | J138: -0.0004471963359 | K138: -0.009484285812 | L138: 0.004010501457 | M138: 0.07946080091 | N138: 0.0002193484825
A139: =IF('DF raw data'!E144="","",'DF raw data'!E144) -> -261.5 | B139: =IF('DF raw data'!F144="","",'DF raw data'!F144) -> -1.61809e-05 | C139: =IF('DF raw data'!G144="","",'DF raw data'!G144) -> 8.96705e-05 | D139: =IF('DF raw data'!H144="","",'DF raw data'!H144) -> -4.88471e-05 | F139: -1.624885978e-05 | G139: 9.00471161e-05 | H139: -4.905225782e-05 | J139: -0.0004553207658 | K139: -0.009711946195 | L139: 0.004055525015 | M139: 0.08148856342 | N139: 0.0002276757826
A140: =IF('DF raw data'!E145="","",'DF raw data'!E145) -> -261 | B140: =IF('DF raw data'!F145="","",'DF raw data'!F145) -> -1.17615e-05 | C140: =IF('DF raw data'!G145="","",'DF raw data'!G145) -> 0.000100123 | D140: =IF('DF raw data'!H145="","",'DF raw data'!H145) -> -4.72749e-05 | F140: -1.18108983e-05 | G140: 0.0001005435166 | H140: -4.747345458e-05 | J140: -0.000461226215 | K140: -0.009942559302 | L140: 0.004105796773 | M140: 0.08354146181 | N140: 0.000236210931
A141: =IF('DF raw data'!E146="","",'DF raw data'!E146) -> -260.5 | B141: =IF('DF raw data'!F146="","",'DF raw data'!F146) -> 2.3269e-06 | C141: =IF('DF raw data'!G146="","",'DF raw data'!G146) -> 9.79332e-05 | D141: =IF('DF raw data'!H146="","",'DF raw data'!H146) -> -3.8434e-05 | F141: 2.33667298e-06 | G141: 9.834451944e-05 | H141: -3.85954228e-05 | J141: -0.0004600578785 | K141: -0.01017258824 | L141: 0.004154969033 | M141: 0.08561894632 | N141: 0.0002449486414
A142: =IF('DF raw data'!E147="","",'DF raw data'!E147) -> -260 | B142: =IF('DF raw data'!F147="","",'DF raw data'!F147) -> -1.95222e-05 | C142: =IF('DF raw data'!G147="","",'DF raw data'!G147) -> 9.37455e-05 | D142: =IF('DF raw data'!H147="","",'DF raw data'!H147) -> -3.35619e-05 | F142: -1.960419324e-05 | G142: 9.41392311e-05 | H142: -3.370285998e-05 | J142: -0.0004698599751 | K142: -0.01040751823 | L142: 0.004202038648 | M142: 0.08771996565 | N142: 0.00025388759
A143: =IF('DF raw data'!E148="","",'DF raw data'!E148) -> -259.5 | B143: =IF('DF raw data'!F148="","",'DF raw data'!F148) -> -1.03543e-05 | C143: =IF('DF raw data'!G148="","",'DF raw data'!G148) -> 9.86168e-05 | D143: =IF('DF raw data'!H148="","",'DF raw data'!H148) -> -4.40767e-05 | F143: -1.039778806e-05 | G143: 9.903099056e-05 | H143: -4.426182214e-05 | J143: -0.0004750588691 | K143: -0.01064504766 | L143: 0.004251554144 | M143: 0.08984574272 | N143: 0.0002630382868
A144: =IF('DF raw data'!E149="","",'DF raw data'!E149) -> -259 | B144: =IF('DF raw data'!F149="","",'DF raw data'!F149) -> 2.13482e-06 | C144: =IF('DF raw data'!G149="","",'DF raw data'!G149) -> 9.76819e-05 | D144: =IF('DF raw data'!H149="","",'DF raw data'!H149) -> -3.87935e-05 | F144: 2.143786244e-06 | G144: 9.809216398e-05 | H144: -3.89564327e-05 | J144: -0.000473986976 | K144: -0.01088204115 | L144: 0.004300600226 | M144: 0.09199604283 | N144: 0.0002723981998
A145: =IF('DF raw data'!E150="","",'DF raw data'!E150) -> -258.5 | B145: =IF('DF raw data'!F150="","",'DF raw data'!F150) -> -2.22117e-05 | C145: =IF('DF raw data'!G150="","",'DF raw data'!G150) -> 9.65215e-05 | D145: =IF('DF raw data'!H150="","",'DF raw data'!H150) -> -3.52372e-05 | F145: -2.230498914e-05 | G145: 9.69268903e-05 | H145: -3.538519624e-05 | J145: -0.0004851394706 | K145: -0.01112461089 | L145: 0.004349063671 | M145: 0.09417057467 | N145: 0.0002819730574
A146: =IF('DF raw data'!E151="","",'DF raw data'!E151) -> -258 | B146: =IF('DF raw data'!F151="","",'DF raw data'!F151) -> -2.12425e-05 | C146: =IF('DF raw data'!G151="","",'DF raw data'!G151) -> 9.22627e-05 | D146: =IF('DF raw data'!H151="","",'DF raw data'!H151) -> -4.78347e-05 | F146: -2.13317185e-05 | G146: 9.265020334e-05 | H146: -4.803560574e-05 | J146: -0.0004958053298 | K146: -0.01137251355 | L146: 0.004395388772 | M146: 0.09636826905 | N146: 0.0002917556901
A147: =IF('DF raw data'!E152="","",'DF raw data'!E152) -> -257.5 | B147: =IF('DF raw data'!F152="","",'DF raw data'!F152) -> -1.25404e-05 | C147: =IF('DF raw data'!G152="","",'DF raw data'!G152) -> 9.21735e-05 | D147: =IF('DF raw data'!H152="","",'DF raw data'!H152) -> -3.16508e-05 | F147: -1.259306968e-05 | G147: 9.25606287e-05 | H147: -3.178373336e-05 | J147: -0.0005021018647 | K147: -0.01162356448 | L147: 0.004441669087 | M147: 0.0985891036 | N147: 0.0003017459553
A148: =IF('DF raw data'!E153="","",'DF raw data'!E153) -> -257 | B148: =IF('DF raw data'!F153="","",'DF raw data'!F153) -> -6.63858e-06 | C148: =IF('DF raw data'!G153="","",'DF raw data'!G153) -> 9.84303e-05 | D148: =IF('DF raw data'!H153="","",'DF raw data'!H153) -> -4.39417e-05 | F148: -6.666462036e-06 | G148: 9.884370726e-05 | H148: -4.412625514e-05 | J148: -0.0005054350957 | K148: -0.01187628203 | L148: 0.00449109094 | M148: 0.1008346491 | N148: 0.0003119586366
A149: =IF('DF raw data'!E154="","",'DF raw data'!E154) -> -256.5 | B149: =IF('DF raw data'!F154="","",'DF raw data'!F154) -> -4.25875e-07 | C149: =IF('DF raw data'!G154="","",'DF raw data'!G154) -> 9.42819e-05 | D149: =IF('DF raw data'!H154="","",'DF raw data'!H154) -> -4.14731e-05 | F149: -4.27663675e-07 | G149: 9.467788398e-05 | H149: -4.164728702e-05 | J149: -0.0005056489275 | K149: -0.0121291065 | L149: 0.004538429882 | M149: 0.103103864 | N149: 0.0003223851499
A150: =IF('DF raw data'!E155="","",'DF raw data'!E155) -> -256 | B150: =IF('DF raw data'!F155="","",'DF raw data'!F155) -> -5.80457e-06 | C150: =IF('DF raw data'!G155="","",'DF raw data'!G155) -> 9.057e-05 | D150: =IF('DF raw data'!H155="","",'DF raw data'!H155) -> -4.56119e-05 | F150: -5.828949194e-06 | G150: 9.0950394e-05 | H150: -4.580346998e-05 | J150: -0.0005085634021 | K150: -0.0123833882 | L150: 0.004583905079 | M150: 0.1053958165 | N150: 0.0003330205612
A151: =IF('DF raw data'!E156="","",'DF raw data'!E156) -> -255.5 | B151: =IF('DF raw data'!F156="","",'DF raw data'!F156) -> -2.57282e-05 | C151: =IF('DF raw data'!G156="","",'DF raw data'!G156) -> 9.46231e-05 | D151: =IF('DF raw data'!H156="","",'DF raw data'!H156) -> -4.59212e-05 | F151: -2.583625844e-05 | G151: 9.502051702e-05 | H151: -4.611406904e-05 | J151: -0.0005214815313 | K151: -0.01264412896 | L151: 0.004631415338 | M151: 0.1077115242 | N151: 0.0003438815367
A152: =IF('DF raw data'!E157="","",'DF raw data'!E157) -> -255 | B152: =IF('DF raw data'!F157="","",'DF raw data'!F157) -> -1.72114e-05 | C152: =IF('DF raw data'!G157="","",'DF raw data'!G157) -> 9.45861e-05 | D152: =IF('DF raw data'!H157="","",'DF raw data'!H157) -> -4.03263e-05 | F152: -1.728368788e-05 | G152: 9.498336162e-05 | H152: -4.049567046e-05 | J152: -0.0005301233753 | K152: -0.01290919065 | L152: 0.004678907019 | M152: 0.1100509777 | N152: 0.0003549681375
A153: =IF('DF raw data'!E158="","",'DF raw data'!E158) -> -254.5 | B153: =IF('DF raw data'!F158="","",'DF raw data'!F158) -> -1.04696e-05 | C153: =IF('DF raw data'!G158="","",'DF raw data'!G158) -> 9.788e-05 | D153: =IF('DF raw data'!H158="","",'DF raw data'!H158) -> -6.37569e-05 | F153: -1.051357232e-05 | G153: 9.8291096e-05 | H153: -6.402467898e-05 | J153: -0.0005353801614 | K153: -0.01317688073 | L153: 0.004728052567 | M153: 0.112415004 | N153: 0.000366288694
A154: =IF('DF raw data'!E159="","",'DF raw data'!E159) -> -254 | B154: =IF('DF raw data'!F159="","",'DF raw data'!F159) -> -1.53503e-05 | C154: =IF('DF raw data'!G159="","",'DF raw data'!G159) -> 0.000102358 | D154: =IF('DF raw data'!H159="","",'DF raw data'!H159) -> -4.52085e-05 | F154: -1.541477126e-05 | G154: 0.0001027879036 | H154: -4.53983757e-05 | J154: -0.0005430875471 | K154: -0.0134484245 | L154: 0.004779446519 | M154: 0.1148047273 | N154: 0.0003778577206
A155: =IF('DF raw data'!E160="","",'DF raw data'!E160) -> -253.5 | B155: =IF('DF raw data'!F160="","",'DF raw data'!F160) -> -1.0028e-05 | C155: =IF('DF raw data'!G160="","",'DF raw data'!G160) -> 0.000101143 | D155: =IF('DF raw data'!H160="","",'DF raw data'!H160) -> -5.30602e-05 | F155: -1.00701176e-05 | G155: 0.0001015678006 | H155: -5.328305284e-05 | J155: -0.0005481226059 | K155: -0.01372248581 | L155: 0.004830230419 | M155: 0.1172198425 | N155: 0.0003896735027
A156: =IF('DF raw data'!E161="","",'DF raw data'!E161) -> -253 | B156: =IF('DF raw data'!F161="","",'DF raw data'!F161) -> -2.72375e-06 | C156: =IF('DF raw data'!G161="","",'DF raw data'!G161) -> 9.79297e-05 | D156: =IF('DF raw data'!H161="","",'DF raw data'!H161) -> -5.47075e-05 | F156: -2.73518975e-06 | G156: 9.834100474e-05 | H156: -5.49372715e-05 | J156: -0.0005494902007 | K156: -0.01399723091 | L156: 0.004879400921 | M156: 0.1196595429 | N156: 0.0004017287491
A157: =IF('DF raw data'!E162="","",'DF raw data'!E162) -> -252.5 | B157: =IF('DF raw data'!F162="","",'DF raw data'!F162) -> -1.83621e-05 | C157: =IF('DF raw data'!G162="","",'DF raw data'!G162) -> 9.25154e-05 | D157: =IF('DF raw data'!H162="","",'DF raw data'!H162) -> -4.39458e-05 | F157: -1.843922082e-05 | G157: 9.290396468e-05 | H157: -4.413037236e-05 | J157: -0.0005587098111 | K157: -0.01427658581 | L157: 0.004925852904 | M157: 0.1221224694 | N157: 0.0004140168409
A158: =IF('DF raw data'!E163="","",'DF raw data'!E163) -> -252 | B158: =IF('DF raw data'!F163="","",'DF raw data'!F163) -> -9.71151e-06 | C158: =IF('DF raw data'!G163="","",'DF raw data'!G163) -> 9.14306e-05 | D158: =IF('DF raw data'!H163="","",'DF raw data'!H163) -> -4.70184e-05 | F158: -9.752298342e-06 | G158: 9.181460852e-05 | H158: -4.721587728e-05 | J158: -0.0005635859603 | K158: -0.01455837879 | L158: 0.004971760208 | M158: 0.1246083495 | N158: 0.0004265348552
A159: =IF('DF raw data'!E164="","",'DF raw data'!E164) -> -251.5 | B159: =IF('DF raw data'!F164="","",'DF raw data'!F164) -> -1.24131e-05 | C159: =IF('DF raw data'!G164="","",'DF raw data'!G164) -> 9.59001e-05 | D159: =IF('DF raw data'!H164="","",'DF raw data'!H164) -> -3.03548e-05 | F159: -1.246523502e-05 | G159: 9.630288042e-05 | H159: -3.048229016e-05 | J159: -0.0005698185778 | K159: -0.01484328808 | L159: 0.005019911648 | M159: 0.1271183053 | N159: 0.0004392969583
A160: =IF('DF raw data'!E165="","",'DF raw data'!E165) -> -251 | B160: =IF('DF raw data'!F165="","",'DF raw data'!F165) -> -3.9539e-06 | C160: =IF('DF raw data'!G165="","",'DF raw data'!G165) -> 9.43776e-05 | D160: =IF('DF raw data'!H165="","",'DF raw data'!H165) -> -3.44778e-05 | F160: -3.97050638e-06 | G160: 9.477398592e-05 | H160: -3.462260676e-05 | J160: -0.000571803831 | K160: -0.01512919 | L160: 0.005067298641 | M160: 0.1296519546 | N160: 0.0004522991959
A161: =IF('DF raw data'!E166="","",'DF raw data'!E166) -> -250.5 | B161: =IF('DF raw data'!F166="","",'DF raw data'!F166) -> -1.4966e-05 | C161: =IF('DF raw data'!G166="","",'DF raw data'!G166) -> 9.1944e-05 | D161: =IF('DF raw data'!H166="","",'DF raw data'!H166) -> -4.51803e-05 | F161: -1.50288572e-05 | G161: 9.23301648e-05 | H161: -4.537005726e-05 | J161: -0.0005793182596 | K161: -0.01541884913 | L161: 0.005113463723 | M161: 0.1322086865 | N161: 0.0004655407563
A162: =IF('DF raw data'!E167="","",'DF raw data'!E167) -> -250 | B162: =IF('DF raw data'!F167="","",'DF raw data'!F167) -> -1.19528e-05 | C162: =IF('DF raw data'!G167="","",'DF raw data'!G167) -> 9.87167e-05 | D162: =IF('DF raw data'!H167="","",'DF raw data'!H167) -> -4.85221e-05 | F162: -1.200300176e-05 | G162: 9.913131014e-05 | H162: -4.872589282e-05 | J162: -0.0005853197605 | K162: -0.01571150901 | L162: 0.005163029378 | M162: 0.1347902012 | N162: 0.0004790404921
A163: =IF('DF raw data'!E168="","",'DF raw data'!E168) -> -249.5 | B163: =IF('DF raw data'!F168="","",'DF raw data'!F168) -> -8.95058e-06 | C163: =IF('DF raw data'!G168="","",'DF raw data'!G168) -> 0.000106697 | D163: =IF('DF raw data'!H168="","",'DF raw data'!H168) -> -3.4999e-05 | F163: -8.988172436e-06 | G163: 0.0001071451274 | H163: -3.51459958e-05 | J163: -0.0005898138467 | K163: -0.01600641593 | L163: 0.005216601942 | M163: 0.1373985022 | N163: 0.0004928209002
A164: =IF('DF raw data'!E169="","",'DF raw data'!E169) -> -249 | B164: =IF('DF raw data'!F169="","",'DF raw data'!F169) -> -3.17585e-06 | C164: =IF('DF raw data'!G169="","",'DF raw data'!G169) -> 0.000104124 | D164: =IF('DF raw data'!H169="","",'DF raw data'!H169) -> -4.88429e-05 | F164: -3.18918857e-06 | G164: 0.0001045613208 | H164: -4.904804018e-05 | J164: -0.000591408441 | K164: -0.01630212015 | L164: 0.005268882603 | M164: 0.1400329435 | N164: 0.0005068763441
A165: =IF('DF raw data'!E170="","",'DF raw data'!E170) -> -248.5 | B165: =IF('DF raw data'!F170="","",'DF raw data'!F170) -> -7.02222e-06 | C165: =IF('DF raw data'!G170="","",'DF raw data'!G170) -> 0.000103167 | D165: =IF('DF raw data'!H170="","",'DF raw data'!H170) -> -4.50762e-05 | F165: -7.051713324e-06 | G165: 0.0001036003014 | H165: -4.526552004e-05 | J165: -0.0005949342977 | K165: -0.0165995873 | L165: 0.005320682753 | M165: 0.1426932848 | N165: 0.00052120815
A166: =IF('DF raw data'!E171="","",'DF raw data'!E171) -> -248 | B166: =IF('DF raw data'!F171="","",'DF raw data'!F171) -> -1.48969e-05 | C166: =IF('DF raw data'!G171="","",'DF raw data'!G171) -> 9.13771e-05 | D166: =IF('DF raw data'!H171="","",'DF raw data'!H171) -> -5.30821e-05 | F166: -1.495946698e-05 | G166: 9.176088382e-05 | H166: -5.330504482e-05 | J166: -0.0006024140312 | K166: -0.01690079432 | L166: 0.005366563195 | M166: 0.1453765664 | N166: 0.0005357896016
A167: =IF('DF raw data'!E172="","",'DF raw data'!E172) -> -247.5 | B167: =IF('DF raw data'!F172="","",'DF raw data'!F172) -> -1.5156e-05 | C167: =IF('DF raw data'!G172="","",'DF raw data'!G172) -> 9.21816e-05 | D167: =IF('DF raw data'!H172="","",'DF raw data'!H172) -> -4.8637e-05 | F167: -1.52196552e-05 | G167: 9.256876272e-05 | H167: -4.88412754e-05 | J167: -0.0006100238588 | K167: -0.01720580625 | L167: 0.005412847577 | M167: 0.1480829902 | N167: 0.0005506251256
A168: =IF('DF raw data'!E173="","",'DF raw data'!E173) -> -247 | B168: =IF('DF raw data'!F173="","",'DF raw data'!F173) -> -1.3436e-05 | C168: =IF('DF raw data'!G173="","",'DF raw data'!G173) -> 8.81493e-05 | D168: =IF('DF raw data'!H173="","",'DF raw data'!H173) -> -3.36492e-05 | F168: -1.34924312e-05 | G168: 8.851952706e-05 | H168: -3.379052664e-05 | J168: -0.0006167700744 | K168: -0.01751419128 | L168: 0.00545710734 | M168: 0.1508115439 | N168: 0.0005657053385
A169: =IF('DF raw data'!E174="","",'DF raw data'!E174) -> -246.5 | B169: =IF('DF raw data'!F174="","",'DF raw data'!F174) -> -2.97048e-05 | C169: =IF('DF raw data'!G174="","",'DF raw data'!G174) -> 8.26082e-05 | D169: =IF('DF raw data'!H174="","",'DF raw data'!H174) -> -3.90399e-05 | F169: -2.982956016e-05 | G169: 8.295515444e-05 | H169: -3.920386758e-05 | J169: -0.0006316848544 | K169: -0.01783003371 | L169: 0.005498584917 | M169: 0.1535608364 | N169: 0.0005810220694
A170: =IF('DF raw data'!E175="","",'DF raw data'!E175) -> -246 | B170: =IF('DF raw data'!F175="","",'DF raw data'!F175) -> -1.79192e-05 | C170: =IF('DF raw data'!G175="","",'DF raw data'!G175) -> 9.17623e-05 | D170: =IF('DF raw data'!H175="","",'DF raw data'!H175) -> -3.56227e-05 | F170: -1.799446064e-05 | G170: 9.214770166e-05 | H170: -3.577231534e-05 | J170: -0.0006406820848 | K170: -0.01815037475 | L170: 0.005544658768 | M170: 0.1563331657 | N170: 0.0005965989266
A171: =IF('DF raw data'!E176="","",'DF raw data'!E176) -> -245.5 | B171: =IF('DF raw data'!F176="","",'DF raw data'!F176) -> -2.65035e-05 | C171: =IF('DF raw data'!G176="","",'DF raw data'!G176) -> 9.33894e-05 | D171: =IF('DF raw data'!H176="","",'DF raw data'!H176) -> -3.59207e-05 | F171: -2.66148147e-05 | G171: 9.378163548e-05 | H171: -3.607156694e-05 | J171: -0.0006539894921 | K171: -0.0184773695 | L171: 0.005591549586 | M171: 0.1591289405 | N171: 0.0006124454911
A172: =IF('DF raw data'!E177="","",'DF raw data'!E177) -> -245 | B172: =IF('DF raw data'!F177="","",'DF raw data'!F177) -> -1.89377e-05 | C172: =IF('DF raw data'!G177="","",'DF raw data'!G177) -> 9.39059e-05 | D172: =IF('DF raw data'!H177="","",'DF raw data'!H177) -> -4.57202e-05 | F172: -1.901723834e-05 | G172: 9.430030478e-05 | H172: -4.591222484e-05 | J172: -0.0006634981113 | K172: -0.01880911855 | L172: 0.005638699738 | M172: 0.1619482904 | N172: 0.0006285630734
A173: =IF('DF raw data'!E178="","",'DF raw data'!E178) -> -244.5 | B173: =IF('DF raw data'!F178="","",'DF raw data'!F178) -> -2.24649e-05 | C173: =IF('DF raw data'!G178="","",'DF raw data'!G178) -> 9.7025e-05 | D173: =IF('DF raw data'!H178="","",'DF raw data'!H178) -> -3.98862e-05 | F173: -2.255925258e-05 | G173: 9.7432505e-05 | H173: -4.005372204e-05 | J173: -0.0006747777376 | K173: -0.01914650742 | L173: 0.005687415991 | M173: 0.1647919984 | N173: 0.0006449640862
A174: =IF('DF raw data'!E179="","",'DF raw data'!E179) -> -244 | B174: =IF('DF raw data'!F179="","",'DF raw data'!F179) -> -1.25984e-05 | C174: =IF('DF raw data'!G179="","",'DF raw data'!G179) -> 8.36025e-05 | D174: =IF('DF raw data'!H179="","",'DF raw data'!H179) -> -4.08701e-05 | F174: -1.265131328e-05 | G174: 8.39536305e-05 | H174: -4.104175442e-05 | J174: -0.0006811033942 | K174: -0.01948705912 | L174: 0.005729392806 | M174: 0.1676566948 | N174: 0.0006616090081
A175: =IF('DF raw data'!E180="","",'DF raw data'!E180) -> -243.5 | B175: =IF('DF raw data'!F180="","",'DF raw data'!F180) -> -1.93341e-05 | C175: =IF('DF raw data'!G180="","",'DF raw data'!G180) -> 7.74661e-05 | D175: =IF('DF raw data'!H180="","",'DF raw data'!H180) -> -2.70639e-05 | F175: -1.941530322e-05 | G175: 7.779145762e-05 | H175: -2.717756838e-05 | J175: -0.0006908110458 | K175: -0.01983246464 | L175: 0.005768288535 | M175: 0.1705408391 | N175: 0.0006784841943
A176: =IF('DF raw data'!E181="","",'DF raw data'!E181) -> -243 | B176: =IF('DF raw data'!F181="","",'DF raw data'!F181) -> -2.41294e-05 | C176: =IF('DF raw data'!G181="","",'DF raw data'!G181) -> 7.95476e-05 | D176: =IF('DF raw data'!H181="","",'DF raw data'!H181) -> -4.16937e-05 | F176: -2.423074348e-05 | G176: 7.988169992e-05 | H176: -4.186881354e-05 | J176: -0.0007029264176 | K176: -0.02018392785 | L176: 0.005808229385 | M176: 0.1734449538 | N176: 0.0006955990114
A177: =IF('DF raw data'!E182="","",'DF raw data'!E182) -> -242.5 | B177: =IF('DF raw data'!F182="","",'DF raw data'!F182) -> -1.8934e-05 | C177: =IF('DF raw data'!G182="","",'DF raw data'!G182) -> 8.83469e-05 | D177: =IF('DF raw data'!H182="","",'DF raw data'!H182) -> -5.137e-05 | F177: -1.90135228e-05 | G177: 8.871795698e-05 | H177: -5.1585754e-05 | J177: -0.000712433179 | K177: -0.02054014444 | L177: 0.005852588363 | M177: 0.1763712479 | N177: 0.0007129791872
A178: =IF('DF raw data'!E183="","",'DF raw data'!E183) -> -242 | B178: =IF('DF raw data'!F183="","",'DF raw data'!F183) -> -1.29844e-05 | C178: =IF('DF raw data'!G183="","",'DF raw data'!G183) -> 9.46909e-05 | D178: =IF('DF raw data'!H183="","",'DF raw data'!H183) -> -3.8388e-05 | F178: -1.303893448e-05 | G178: 9.508860178e-05 | H178: -3.85492296e-05 | J178: -0.0007189526462 | K178: -0.02089962076 | L178: 0.005900132664 | M178: 0.1793213143 | N178: 0.0007306434164
A179: =IF('DF raw data'!E184="","",'DF raw data'!E184) -> -241.5 | B179: =IF('DF raw data'!F184="","",'DF raw data'!F184) -> -2.25317e-05 | C179: =IF('DF raw data'!G184="","",'DF raw data'!G184) -> 9.48845e-05 | D179: =IF('DF raw data'!H184="","",'DF raw data'!H184) -> -3.593e-05 | F179: -2.262633314e-05 | G179: 9.52830149e-05 | H179: -3.6080906e-05 | J179: -0.0007302658128 | K179: -0.02126475367 | L179: 0.005947774172 | M179: 0.1822952014 | N179: 0.0007485980693
A180: =IF('DF raw data'!E185="","",'DF raw data'!E185) -> -241 | B180: =IF('DF raw data'!F185="","",'DF raw data'!F185) -> -1.27911e-05 | C180: =IF('DF raw data'!G185="","",'DF raw data'!G185) -> 8.58076e-05 | D180: =IF('DF raw data'!H185="","",'DF raw data'!H185) -> -4.0193e-05 | F180: -1.284482262e-05 | G180: 8.616799192e-05 | H180: -4.03618106e-05 | J180: -0.0007366882241 | K180: -0.02163309778 | L180: 0.005990858168 | M180: 0.1852906304 | N180: 0.0007668146148
A181: =IF('DF raw data'!E186="","",'DF raw data'!E186) -> -240.5 | B181: =IF('DF raw data'!F186="","",'DF raw data'!F186) -> -1.47206e-05 | C181: =IF('DF raw data'!G186="","",'DF raw data'!G186) -> 8.08952e-05 | D181: =IF('DF raw data'!H186="","",'DF raw data'!H186) -> -2.84496e-05 | F181: -1.478242652e-05 | G181: 8.123495984e-05 | H181: -2.856908832e-05 | J181: -0.0007440794373 | K181: -0.0220051375 | L181: 0.006031475647 | M181: 0.1883063683 | N181: 0.0007852807912
A182: =IF('DF raw data'!E187="","",'DF raw data'!E187) -> -240 | B182: =IF('DF raw data'!F187="","",'DF raw data'!F187) -> -6.95797e-06 | C182: =IF('DF raw data'!G187="","",'DF raw data'!G187) -> 8.91073e-05 | D182: =IF('DF raw data'!H187="","",'DF raw data'!H187) -> -4.51571e-05 | F182: -6.987193474e-06 | G182: 8.948155066e-05 | H182: -4.534675982e-05 | J182: -0.0007475730341 | K182: -0.02237892402 | L182: 0.006076216423 | M182: 0.1913444765 | N182: 0.0008040204269
A183: =IF('DF raw data'!E188="","",'DF raw data'!E188) -> -239.5 | B183: =IF('DF raw data'!F188="","",'DF raw data'!F188) -> 4.05759e-06 | C183: =IF('DF raw data'!G188="","",'DF raw data'!G188) -> 9.39831e-05 | D183: =IF('DF raw data'!H188="","",'DF raw data'!H188) -> -4.02339e-05 | F183: 4.074631878e-06 | G183: 9.437782902e-05 | H183: -4.040288238e-05 | J183: -0.0007455357181 | K183: -0.02275169188 | L183: 0.006123405337 | M183: 0.1944061791 | N183: 0.0008230463851
A184: =IF('DF raw data'!E189="","",'DF raw data'!E189) -> -239 | B184: =IF('DF raw data'!F189="","",'DF raw data'!F189) -> 5.47342e-06 | C184: =IF('DF raw data'!G189="","",'DF raw data'!G189) -> 9.03805e-05 | D184: =IF('DF raw data'!H189="","",'DF raw data'!H189) -> -4.98248e-05 | F184: 5.496408364e-06 | G184: 9.07600981e-05 | H184: -5.003406416e-05 | J184: -0.0007427875139 | K184: -0.02312308563 | L184: 0.006168785386 | M184: 0.1974905718 | N184: 0.0008423492083
A185: =IF('DF raw data'!E190="","",'DF raw data'!E190) -> -238.5 | B185: =IF('DF raw data'!F190="","",'DF raw data'!F190) -> -6.64165e-06 | C185: =IF('DF raw data'!G190="","",'DF raw data'!G190) -> 8.90815e-05 | D185: =IF('DF raw data'!H190="","",'DF raw data'!H190) -> -3.92208e-05 | F185: -6.66954493e-06 | G185: 8.94556423e-05 | H185: -3.938552736e-05 | J185: -0.0007461222864 | K185: -0.02349614678 | L185: 0.006213513208 | M185: 0.2005973284 | N185: 0.0008619314308
A186: =IF('DF raw data'!E191="","",'DF raw data'!E191) -> -238 | B186: =IF('DF raw data'!F191="","",'DF raw data'!F191) -> -7.53424e-06 | C186: =IF('DF raw data'!G191="","",'DF raw data'!G191) -> 7.54293e-05 | D186: =IF('DF raw data'!H191="","",'DF raw data'!H191) -> -4.58038e-05 | F186: -7.565883808e-06 | G186: 7.574610306e-05 | H186: -4.599617596e-05 | J186: -0.0007499052283 | K186: -0.02387109939 | L186: 0.006251386259 | M186: 0.2037230216 | N186: 0.0008817525248
A187: =IF('DF raw data'!E192="","",'DF raw data'!E192) -> -237.5 | B187: =IF('DF raw data'!F192="","",'DF raw data'!F192) -> -6.76359e-07 | C187: =IF('DF raw data'!G192="","",'DF raw data'!G192) -> 8.09834e-05 | D187: =IF('DF raw data'!H192="","",'DF raw data'!H192) -> -5.0356e-05 | F187: -6.791997078e-07 | G187: 8.132353028e-05 | H187: -5.05674952e-05 | J187: -0.0007502448282 | K187: -0.02424622181 | L187: 0.006292048024 | M187: 0.2068690456 | N187: 0.0009018288926
A188: =IF('DF raw data'!E193="","",'DF raw data'!E193) -> -237 | B188: =IF('DF raw data'!F193="","",'DF raw data'!F193) -> -5.02958e-06 | C188: =IF('DF raw data'!G193="","",'DF raw data'!G193) -> 8.29607e-05 | D188: =IF('DF raw data'!H193="","",'DF raw data'!H193) -> -5.52706e-05 | F188: -5.050704236e-06 | G188: 8.330913494e-05 | H188: -5.550273652e-05 | J188: -0.0007527701803 | K188: -0.0246226069 | L188: 0.006333702592 | M188: 0.2100358969 | N188: 0.0009221701183
A189: =IF('DF raw data'!E194="","",'DF raw data'!E194) -> -236.5 | B189: =IF('DF raw data'!F194="","",'DF raw data'!F194) -> -3.74811e-06 | C189: =IF('DF raw data'!G194="","",'DF raw data'!G194) -> 7.61789e-05 | D189: =IF('DF raw data'!H194="","",'DF raw data'!H194) -> -5.56657e-05 | F189: -3.763852062e-06 | G189: 7.649885138e-05 | H189: -5.589949594e-05 | J189: -0.0007546521063 | K189: -0.02499993295 | L189: 0.006371952017 | M189: 0.2132218729 | N189: 0.0009427557545
A190: =IF('DF raw data'!E195="","",'DF raw data'!E195) -> -236 | B190: =IF('DF raw data'!F195="","",'DF raw data'!F195) -> -1.08707e-05 | C190: =IF('DF raw data'!G195="","",'DF raw data'!G195) -> 7.69183e-05 | D190: =IF('DF raw data'!H195="","",'DF raw data'!H195) -> -3.80419e-05 | F190: -1.091635694e-05 | G190: 7.724135686e-05 | H190: -3.820167598e-05 | J190: -0.0007601102848 | K190: -0.02537998809 | L190: 0.006410572696 | M190: 0.2164271592 | N190: 0.0009635923594
A191: =IF('DF raw data'!E196="","",'DF raw data'!E196) -> -235.5 | B191: =IF('DF raw data'!F196="","",'DF raw data'!F196) -> -7.40756e-06 | C191: =IF('DF raw data'!G196="","",'DF raw data'!G196) -> 7.86441e-05 | D191: =IF('DF raw data'!H196="","",'DF raw data'!H196) -> -4.35772e-05 | F191: -7.438671752e-06 | G191: 7.897440522e-05 | H191: -4.376022424e-05 | J191: -0.0007638296207 | K191: -0.0257619029 | L191: 0.006450059898 | M191: 0.2196521892 | N191: 0.0009846857136
A192: =IF('DF raw data'!E197="","",'DF raw data'!E197) -> -235 | B192: =IF('DF raw data'!F197="","",'DF raw data'!F197) -> -1.40716e-05 | C192: =IF('DF raw data'!G197="","",'DF raw data'!G197) -> 7.2997e-05 | D192: =IF('DF raw data'!H197="","",'DF raw data'!H197) -> -4.14101e-05 | F192: =(1-$G$1*($B$49-$G$2))*B192 -> -1.413070072e-05 | G192: 7.33035874e-05 | H192: -4.158402242e-05 | J192: =F192*$G$3+J191 -> -0.000770894971 | K192: =J192*$G$3+K191 -> -0.02614735039 | L192: =G192*$G$3+L191 -> 0.006486711692 | M192: =L192*$G$3+M191 -> 0.222895545 | N192: =(J192^2+L192^2)*$G$3+N191 -> 0.001006021567
A193: =IF('DF raw data'!E198="","",'DF raw data'!E198) -> -234.5 | B193: =IF('DF raw data'!F198="","",'DF raw data'!F198) -> -1.38119e-05 | C193: =IF('DF raw data'!G198="","",'DF raw data'!G198) -> 7.03097e-05 | D193: =IF('DF raw data'!H198="","",'DF raw data'!H198) -> -4.66878e-05 | F193: -1.386990998e-05 | G193: 7.060500074e-05 | H193: -4.688388876e-05 | J193: -0.000777829926 | K193: -0.02653626535 | L193: 0.006522014192 | M193: 0.2261565521 | N193: 0.001027592412
A194: =IF('DF raw data'!E199="","",'DF raw data'!E199) -> -234 | B194: =IF('DF raw data'!F199="","",'DF raw data'!F199) -> -6.18985e-06 | C194: =IF('DF raw data'!G199="","",'DF raw data'!G199) -> 7.18377e-05 | D194: =IF('DF raw data'!H199="","",'DF raw data'!H199) -> -4.42301e-05 | F194: -6.21584737e-06 | G194: 7.213941834e-05 | H194: -4.441586642e-05 | J194: -0.0007809378497 | K194: -0.02692673428 | L194: 0.006558083902 | M194: 0.2294355941 | N194: 0.001049401576
A195: =IF('DF raw data'!E200="","",'DF raw data'!E200) -> -233.5 | B195: =IF('DF raw data'!F200="","",'DF raw data'!F200) -> -8.64121e-06 | C195: =IF('DF raw data'!G200="","",'DF raw data'!G200) -> 8.07332e-05 | D195: =IF('DF raw data'!H200="","",'DF raw data'!H200) -> -1.83476e-05 | F195: -8.677503082e-06 | G195: 8.107227944e-05 | H195: -1.842465992e-05 | J195: -0.0007852766012 | K195: -0.02731937258 | L195: 0.006598620041 | M195: 0.2327349041 | N195: 0.001071480799
A196: =IF('DF raw data'!E201="","",'DF raw data'!E201) -> -233 | B196: =IF('DF raw data'!F201="","",'DF raw data'!F201) -> -1.11254e-05 | C196: =IF('DF raw data'!G201="","",'DF raw data'!G201) -> 7.60444e-05 | D196: =IF('DF raw data'!H201="","",'DF raw data'!H201) -> -4.04913e-05 | F196: -1.117212668e-05 | G196: 7.636378648e-05 | H196: -4.066136346e-05 | J196: -0.0007908626646 | K196: -0.02771480391 | L196: 0.006636801935 | M196: 0.2360533051 | N196: 0.001093817101
A197: =IF('DF raw data'!E202="","",'DF raw data'!E202) -> -232.5 | B197: =IF('DF raw data'!F202="","",'DF raw data'!F202) -> -8.16999e-06 | C197: =IF('DF raw data'!G202="","",'DF raw data'!G202) -> 7.5923e-05 | D197: =IF('DF raw data'!H202="","",'DF raw data'!H202) -> -5.32888e-05 | F197: -8.204303958e-06 | G197: 7.62418766e-05 | H197: -5.351261296e-05 | J197: -0.0007949648166 | K197: -0.02811228632 | L197: 0.006674922873 | M197: 0.2393907665 | N197: 0.001116410383
A198: =IF('DF raw data'!E203="","",'DF raw data'!E203) -> -232 | B198: =IF('DF raw data'!F203="","",'DF raw data'!F203) -> -5.41337e-06 | C198: =IF('DF raw data'!G203="","",'DF raw data'!G203) -> 7.68773e-05 | D198: =IF('DF raw data'!H203="","",'DF raw data'!H203) -> -5.61588e-05 | F198: -5.436106154e-06 | G198: 7.720018466e-05 | H198: -5.639466696e-05 | J198: -0.0007976828696 | K198: -0.02851112775 | L198: 0.006713522965 | M198: 0.242747528 | N198: 0.001139264227
A199: =IF('DF raw data'!E204="","",'DF raw data'!E204) -> -231.5 | B199: =IF('DF raw data'!F204="","",'DF raw data'!F204) -> -1.70843e-05 | C199: =IF('DF raw data'!G204="","",'DF raw data'!G204) -> 7.77061e-05 | D199: =IF('DF raw data'!H204="","",'DF raw data'!H204) -> -3.87084e-05 | F199: -1.715605406e-05 | G199: 7.803246562e-05 | H199: -3.887097528e-05 | J199: -0.0008062608967 | K199: -0.0289142582 | L199: 0.006752539198 | M199: 0.2461237976 | N199: 0.001162387648
A200: =IF('DF raw data'!E205="","",'DF raw data'!E205) -> -231 | B200: =IF('DF raw data'!F205="","",'DF raw data'!F205) -> 9.86794e-07 | C200: =IF('DF raw data'!G205="","",'DF raw data'!G205) -> 7.58776e-05 | D200: =IF('DF raw data'!H205="","",'DF raw data'!H205) -> -4.66036e-05 | F200: 9.909385348e-07 | G200: 7.619628592e-05 | H200: -4.679933512e-05 | J200: -0.0008057654274 | K200: -0.02931714091 | L200: 0.006790637341 | M200: 0.2495191163 | N200: 0.001185768655
A201: =IF('DF raw data'!E206="","",'DF raw data'!E206) -> -230.5 | B201: =IF('DF raw data'!F206="","",'DF raw data'!F206) -> -4.52538e-06 | C201: =IF('DF raw data'!G206="","",'DF raw data'!G206) -> 6.95217e-05 | D201: =IF('DF raw data'!H206="","",'DF raw data'!H206) -> -4.25011e-05 | F201: -4.544386596e-06 | G201: 6.981369114e-05 | H201: -4.267960462e-05 | J201: -0.0008080376207 | K201: -0.02972115972 | L201: 0.006825544187 | M201: 0.2529318883 | N201: 0.001209389144
... 1061 more rows

Sheet 10 y=0
A1: =IF('DF raw data'!I1="","",'DF raw data'!I1) -> Number of header lines | B1: =IF('DF raw data'!J1="","",'DF raw data'!J1) -> 54 | C1: =IF('DF raw data'!K1="","",'DF raw data'!K1) ->  | D1: =IF('DF raw data'!L1="","",'DF raw data'!L1) ->  | F1: T_coeff | G1: -0.001 | H1: /degC | J1: IBy total | K1: =J1262*1000 -> -16.81601675 | L1: muTm | M1: =L1262*1000 -> -51.04785046 | R1: DF ref | S1: ='10 y=-0.2'!S1 -> 1
A2: =IF('DF raw data'!I2="","",'DF raw data'!I2) -> Measured by | B2: =IF('DF raw data'!J2="","",'DF raw data'!J2) -> Danfysik | C2: =IF('DF raw data'!K2="","",'DF raw data'!K2) ->  | D2: =IF('DF raw data'!L2="","",'DF raw data'!L2) ->  | F2: Tcorr | G2: 20 | H2: degC | J2: JBy total | K2: =K1262 -> -13.89909356 | L2: muTm^2 | M2: =M1262 -> -14.49736547
A3: =IF('DF raw data'!I3="","",'DF raw data'!I3) -> Operator | B3: =IF('DF raw data'!J3="","",'DF raw data'!J3) -> PMHA | C3: =IF('DF raw data'!K3="","",'DF raw data'!K3) ->  | D3: =IF('DF raw data'!L3="","",'DF raw data'!L3) ->  | F3: Step | G3: =A63-A62 -> 0.5 | H3: mm | J3: PI total | K3: =N1262 -> 10526.60708 | L3: T^2mm^3
A4: =IF('DF raw data'!I4="","",'DF raw data'!I4) -> Data-time | B4: =IF('DF raw data'!J4="","",'DF raw data'!J4) -> 01-10-2024, 21:41:04 | C4: =IF('DF raw data'!K4="","",'DF raw data'!K4) ->  | D4: =IF('DF raw data'!L4="","",'DF raw data'!L4) -> 
A5: =IF('DF raw data'!I5="","",'DF raw data'!I5) -> Project | B5: =IF('DF raw data'!J5="","",'DF raw data'!J5) -> 504314 | C5: =IF('DF raw data'!K5="","",'DF raw data'!K5) ->  | D5: =IF('DF raw data'!L5="","",'DF raw data'!L5) -> 
A6: =IF('DF raw data'!I6="","",'DF raw data'!I6) -> Magnet type | B6: =IF('DF raw data'!J6="","",'DF raw data'!J6) -> Dipole | C6: =IF('DF raw data'!K6="","",'DF raw data'!K6) ->  | D6: =IF('DF raw data'!L6="","",'DF raw data'!L6) -> 
A7: =IF('DF raw data'!I7="","",'DF raw data'!I7) -> Magnet nr. | B7: =IF('DF raw data'!J7="","",'DF raw data'!J7) -> 2410108 | C7: =IF('DF raw data'!K7="","",'DF raw data'!K7) ->  | D7: =IF('DF raw data'!L7="","",'DF raw data'!L7) -> 
A8: =IF('DF raw data'!I8="","",'DF raw data'!I8) -> Meas. number | B8: =IF('DF raw data'!J8="","",'DF raw data'!J8) -> 913 | C8: =IF('DF raw data'!K8="","",'DF raw data'!K8) ->  | D8: =IF('DF raw data'!L8="","",'DF raw data'!L8) -> 
A9: =IF('DF raw data'!I9="","",'DF raw data'!I9) -> Add. info | B9: =IF('DF raw data'!J9="","",'DF raw data'!J9) -> Y-alignment scan 3) | C9: =IF('DF raw data'!K9="","",'DF raw data'!K9) ->  | D9: =IF('DF raw data'!L9="","",'DF raw data'!L9) -> 
A10: =IF('DF raw data'!I10="","",'DF raw data'!I10) -> Device | B10: =IF('DF raw data'!J10="","",'DF raw data'!J10) -> (HAL) HALL-PROBE | C10: =IF('DF raw data'!K10="","",'DF raw data'!K10) ->  | D10: =IF('DF raw data'!L10="","",'DF raw data'!L10) -> 
A11: =IF('DF raw data'!I11="","",'DF raw data'!I11) -> Goal | B11: =IF('DF raw data'!J11="","",'DF raw data'!J11) -> (AXI) AXis Integral (Line, EFB) | C11: =IF('DF raw data'!K11="","",'DF raw data'!K11) ->  | D11: =IF('DF raw data'!L11="","",'DF raw data'!L11) -> 
A12: =IF('DF raw data'!I12="","",'DF raw data'!I12) -> Power supply mode | B12: =IF('DF raw data'!J12="","",'DF raw data'!J12) -> (PM) Permanent Magnet (no MPS in use) | C12: =IF('DF raw data'!K12="","",'DF raw data'!K12) ->  | D12: =IF('DF raw data'!L12="","",'DF raw data'!L12) -> 
A13: =IF('DF raw data'!I13="","",'DF raw data'!I13) -> Data format | B13: =IF('DF raw data'!J13="","",'DF raw data'!J13) -> Raw data text file | C13: =IF('DF raw data'!K13="","",'DF raw data'!K13) ->  | D13: =IF('DF raw data'!L13="","",'DF raw data'!L13) -> 
A14: =IF('DF raw data'!I14="","",'DF raw data'!I14) -> Direction of the pos. x-axis | B14: =IF('DF raw data'!J14="","",'DF raw data'!J14) -> See test program | C14: =IF('DF raw data'!K14="","",'DF raw data'!K14) ->  | D14: =IF('DF raw data'!L14="","",'DF raw data'!L14) -> 
A15: =IF('DF raw data'!I15="","",'DF raw data'!I15) -> Direction of the pos. y-axis | B15: =IF('DF raw data'!J15="","",'DF raw data'!J15) -> Vertical up | C15: =IF('DF raw data'!K15="","",'DF raw data'!K15) ->  | D15: =IF('DF raw data'!L15="","",'DF raw data'!L15) -> 
A16: =IF('DF raw data'!I16="","",'DF raw data'!I16) -> Direction of the pos. z-axis | B16: =IF('DF raw data'!J16="","",'DF raw data'!J16) -> See test program | C16: =IF('DF raw data'!K16="","",'DF raw data'!K16) ->  | D16: =IF('DF raw data'!L16="","",'DF raw data'!L16) -> 
A17: =IF('DF raw data'!I17="","",'DF raw data'!I17) -> Mapper type | B17: =IF('DF raw data'!J17="","",'DF raw data'!J17) -> Precision Hall Mapper | C17: =IF('DF raw data'!K17="","",'DF raw data'!K17) ->  | D17: =IF('DF raw data'!L17="","",'DF raw data'!L17) -> 
A18: =IF('DF raw data'!I18="","",'DF raw data'!I18) -> Mapper Danfysik Reg. Number | B18: =IF('DF raw data'!J18="","",'DF raw data'!J18) -> 2033-D (mapper 1) | C18: =IF('DF raw data'!K18="","",'DF raw data'!K18) ->  | D18: =IF('DF raw data'!L18="","",'DF raw data'!L18) -> 
A19: =IF('DF raw data'!I19="","",'DF raw data'!I19) -> Measurement consept | B19: =IF('DF raw data'!J19="","",'DF raw data'!J19) -> Square line grid | C19: =IF('DF raw data'!K19="","",'DF raw data'!K19) ->  | D19: =IF('DF raw data'!L19="","",'DF raw data'!L19) -> 
A20: =IF('DF raw data'!I20="","",'DF raw data'!I20) -> Mode | B20: =IF('DF raw data'!J20="","",'DF raw data'!J20) -> On-the-fly measurement | C20: =IF('DF raw data'!K20="","",'DF raw data'!K20) ->  | D20: =IF('DF raw data'!L20="","",'DF raw data'!L20) -> 
A21: =IF('DF raw data'!I21="","",'DF raw data'!I21) ->  | B21: =IF('DF raw data'!J21="","",'DF raw data'!J21) ->  | C21: =IF('DF raw data'!K21="","",'DF raw data'!K21) ->  | D21: =IF('DF raw data'!L21="","",'DF raw data'!L21) -> 
A22: =IF('DF raw data'!I22="","",'DF raw data'!I22) -> Probe Name | B22: =IF('DF raw data'!J22="","",'DF raw data'!J22) -> ID12_By | C22: =IF('DF raw data'!K22="","",'DF raw data'!K22) ->  | D22: =IF('DF raw data'!L22="","",'DF raw data'!L22) -> 
A23: =IF('DF raw data'!I23="","",'DF raw data'!I23) -> Probe Type | B23: =IF('DF raw data'!J23="","",'DF raw data'!J23) -> DF_ID_3D_Bxyz | C23: =IF('DF raw data'!K23="","",'DF raw data'!K23) ->  | D23: =IF('DF raw data'!L23="","",'DF raw data'!L23) -> 
A24: =IF('DF raw data'!I24="","",'DF raw data'!I24) -> Probe Danfysik Reg. Number | B24: =IF('DF raw data'!J24="","",'DF raw data'!J24) -> 2277 | C24: =IF('DF raw data'!K24="","",'DF raw data'!K24) ->  | D24: =IF('DF raw data'!L24="","",'DF raw data'!L24) -> 
A25: =IF('DF raw data'!I25="","",'DF raw data'!I25) -> Probe Axis | B25: =IF('DF raw data'!J25="","",'DF raw data'!J25) -> By | C25: =IF('DF raw data'!K25="","",'DF raw data'!K25) ->  | D25: =IF('DF raw data'!L25="","",'DF raw data'!L25) -> 
A26: =IF('DF raw data'!I26="","",'DF raw data'!I26) -> Probe Current Supply | B26: =IF('DF raw data'!J26="","",'DF raw data'!J26) -> 1825-D | C26: =IF('DF raw data'!K26="","",'DF raw data'!K26) ->  | D26: =IF('DF raw data'!L26="","",'DF raw data'!L26) -> 
A27: =IF('DF raw data'!I27="","",'DF raw data'!I27) -> Probe Gain Correction | B27: =IF('DF raw data'!J27="","",'DF raw data'!J27) -> 0.99614 | C27: =IF('DF raw data'!K27="","",'DF raw data'!K27) ->  | D27: =IF('DF raw data'!L27="","",'DF raw data'!L27) -> 
A28: =IF('DF raw data'!I28="","",'DF raw data'!I28) -> Probe Offset Correction | B28: =IF('DF raw data'!J28="","",'DF raw data'!J28) -> 0.0027502 | C28: =IF('DF raw data'!K28="","",'DF raw data'!K28) ->  | D28: =IF('DF raw data'!L28="","",'DF raw data'!L28) -> 
A29: =IF('DF raw data'!I29="","",'DF raw data'!I29) -> DVM Number | B29: =IF('DF raw data'!J29="","",'DF raw data'!J29) -> 2 | C29: =IF('DF raw data'!K29="","",'DF raw data'!K29) ->  | D29: =IF('DF raw data'!L29="","",'DF raw data'!L29) -> 
A30: =IF('DF raw data'!I30="","",'DF raw data'!I30) -> DVM Type | B30: =IF('DF raw data'!J30="","",'DF raw data'!J30) -> K2701 | C30: =IF('DF raw data'!K30="","",'DF raw data'!K30) ->  | D30: =IF('DF raw data'!L30="","",'DF raw data'!L30) -> 
A31: =IF('DF raw data'!I31="","",'DF raw data'!I31) -> DVM Danfysik Reg. Number | B31: =IF('DF raw data'!J31="","",'DF raw data'!J31) -> 1743-D | C31: =IF('DF raw data'!K31="","",'DF raw data'!K31) ->  | D31: =IF('DF raw data'!L31="","",'DF raw data'!L31) -> 
A32: =IF('DF raw data'!I32="","",'DF raw data'!I32) -> Probe Name | B32: =IF('DF raw data'!J32="","",'DF raw data'!J32) -> ID12_Bx | C32: =IF('DF raw data'!K32="","",'DF raw data'!K32) ->  | D32: =IF('DF raw data'!L32="","",'DF raw data'!L32) -> 
A33: =IF('DF raw data'!I33="","",'DF raw data'!I33) -> Probe Type | B33: =IF('DF raw data'!J33="","",'DF raw data'!J33) -> DF_ID_3D_Bxyz | C33: =IF('DF raw data'!K33="","",'DF raw data'!K33) ->  | D33: =IF('DF raw data'!L33="","",'DF raw data'!L33) -> 
A34: =IF('DF raw data'!I34="","",'DF raw data'!I34) -> Probe Danfysik Reg. Number | B34: =IF('DF raw data'!J34="","",'DF raw data'!J34) -> 2277 | C34: =IF('DF raw data'!K34="","",'DF raw data'!K34) ->  | D34: =IF('DF raw data'!L34="","",'DF raw data'!L34) -> 
A35: =IF('DF raw data'!I35="","",'DF raw data'!I35) -> Probe Axis | B35: =IF('DF raw data'!J35="","",'DF raw data'!J35) -> Bx | C35: =IF('DF raw data'!K35="","",'DF raw data'!K35) ->  | D35: =IF('DF raw data'!L35="","",'DF raw data'!L35) -> 
A36: =IF('DF raw data'!I36="","",'DF raw data'!I36) -> Probe Current Supply | B36: =IF('DF raw data'!J36="","",'DF raw data'!J36) -> 1825-D | C36: =IF('DF raw data'!K36="","",'DF raw data'!K36) ->  | D36: =IF('DF raw data'!L36="","",'DF raw data'!L36) -> 
A37: =IF('DF raw data'!I37="","",'DF raw data'!I37) -> Probe Gain Correction | B37: =IF('DF raw data'!J37="","",'DF raw data'!J37) -> 1 | C37: =IF('DF raw data'!K37="","",'DF raw data'!K37) ->  | D37: =IF('DF raw data'!L37="","",'DF raw data'!L37) -> 
A38: =IF('DF raw data'!I38="","",'DF raw data'!I38) -> Probe Offset Correction | B38: =IF('DF raw data'!J38="","",'DF raw data'!J38) -> -0.1755 | C38: =IF('DF raw data'!K38="","",'DF raw data'!K38) ->  | D38: =IF('DF raw data'!L38="","",'DF raw data'!L38) -> 
A39: =IF('DF raw data'!I39="","",'DF raw data'!I39) -> DVM Number | B39: =IF('DF raw data'!J39="","",'DF raw data'!J39) -> 3 | C39: =IF('DF raw data'!K39="","",'DF raw data'!K39) ->  | D39: =IF('DF raw data'!L39="","",'DF raw data'!L39) -> 
A40: =IF('DF raw data'!I40="","",'DF raw data'!I40) -> DVM Type | B40: =IF('DF raw data'!J40="","",'DF raw data'!J40) -> K2701 | C40: =IF('DF raw data'!K40="","",'DF raw data'!K40) ->  | D40: =IF('DF raw data'!L40="","",'DF raw data'!L40) -> 
A41: =IF('DF raw data'!I41="","",'DF raw data'!I41) -> DVM Danfysik Reg. Number | B41: =IF('DF raw data'!J41="","",'DF raw data'!J41) -> 1744-D | C41: =IF('DF raw data'!K41="","",'DF raw data'!K41) ->  | D41: =IF('DF raw data'!L41="","",'DF raw data'!L41) -> 
A42: =IF('DF raw data'!I42="","",'DF raw data'!I42) -> Probe Name | B42: =IF('DF raw data'!J42="","",'DF raw data'!J42) -> ID12_Bz | C42: =IF('DF raw data'!K42="","",'DF raw data'!K42) ->  | D42: =IF('DF raw data'!L42="","",'DF raw data'!L42) -> 
A43: =IF('DF raw data'!I43="","",'DF raw data'!I43) -> Probe Type | B43: =IF('DF raw data'!J43="","",'DF raw data'!J43) -> DF_ID_3D_Bxyz | C43: =IF('DF raw data'!K43="","",'DF raw data'!K43) ->  | D43: =IF('DF raw data'!L43="","",'DF raw data'!L43) -> 
A44: =IF('DF raw data'!I44="","",'DF raw data'!I44) -> Probe Danfysik Reg. Number | B44: =IF('DF raw data'!J44="","",'DF raw data'!J44) -> 2277 | C44: =IF('DF raw data'!K44="","",'DF raw data'!K44) ->  | D44: =IF('DF raw data'!L44="","",'DF raw data'!L44) -> 
A45: =IF('DF raw data'!I45="","",'DF raw data'!I45) -> Probe Axis | B45: =IF('DF raw data'!J45="","",'DF raw data'!J45) -> Bz | C45: =IF('DF raw data'!K45="","",'DF raw data'!K45) ->  | D45: =IF('DF raw data'!L45="","",'DF raw data'!L45) -> 
A46: =IF('DF raw data'!I46="","",'DF raw data'!I46) -> Probe Current Supply | B46: =IF('DF raw data'!J46="","",'DF raw data'!J46) -> 1825-D | C46: =IF('DF raw data'!K46="","",'DF raw data'!K46) ->  | D46: =IF('DF raw data'!L46="","",'DF raw data'!L46) -> 
A47: =IF('DF raw data'!I47="","",'DF raw data'!I47) -> Probe Gain Correction | B47: =IF('DF raw data'!J47="","",'DF raw data'!J47) -> 1 | C47: =IF('DF raw data'!K47="","",'DF raw data'!K47) ->  | D47: =IF('DF raw data'!L47="","",'DF raw data'!L47) -> 
A48: =IF('DF raw data'!I53="","",'DF raw data'!I53) -> PS-Gap: | B48: =IF('DF raw data'!J53="","",'DF raw data'!J53) -> 10 | C48: =IF('DF raw data'!K53="","",'DF raw data'!K53) ->  | D48: =IF('DF raw data'!L53="","",'DF raw data'!L53) -> 
A49: =IF('DF raw data'!I54="","",'DF raw data'!I54) -> PS-Temperature: | B49: =IF('DF raw data'!J54="","",'DF raw data'!J54) -> 24.2 | C49: =IF('DF raw data'!K54="","",'DF raw data'!K54) ->  | D49: =IF('DF raw data'!L54="","",'DF raw data'!L54) -> 
A50: =IF('DF raw data'!I55="","",'DF raw data'!I55) -> PS-Encoder: | B50: =IF('DF raw data'!J55="","",'DF raw data'!J55) -> 19.7529 | C50: =IF('DF raw data'!K55="","",'DF raw data'!K55) ->  | D50: =IF('DF raw data'!L55="","",'DF raw data'!L55) -> 
A51: =IF('DF raw data'!I56="","",'DF raw data'!I56) ->  | B51: =IF('DF raw data'!J56="","",'DF raw data'!J56) ->  | C51: =IF('DF raw data'!K56="","",'DF raw data'!K56) ->  | D51: =IF('DF raw data'!L56="","",'DF raw data'!L56) -> 
A52: =IF('DF raw data'!I57="","",'DF raw data'!I57) -> Monitor-Index | B52: =IF('DF raw data'!J57="","",'DF raw data'!J57) -> [1,1,4] | C52: =IF('DF raw data'!K57="","",'DF raw data'!K57) ->  | D52: =IF('DF raw data'!L57="","",'DF raw data'!L57) -> 
A53: =IF('DF raw data'!I58="","",'DF raw data'!I58) ->  | B53: =IF('DF raw data'!J58="","",'DF raw data'!J58) ->  | C53: =IF('DF raw data'!K58="","",'DF raw data'!K58) ->  | D53: =IF('DF raw data'!L58="","",'DF raw data'!L58) -> 
A54: =IF('DF raw data'!I59="","",'DF raw data'!I59) -> Time [s] | B54: =IF('DF raw data'!J59="","",'DF raw data'!J59) -> Y [mm] | C54: =IF('DF raw data'!K59="","",'DF raw data'!K59) -> X [mm] | D54: =IF('DF raw data'!L59="","",'DF raw data'!L59) -> Nominal current [A]
A55: =IF('DF raw data'!I60="","",'DF raw data'!I60) ->  | B55: =IF('DF raw data'!J60="","",'DF raw data'!J60) ->  | C55: =IF('DF raw data'!K60="","",'DF raw data'!K60) ->  | D55: =IF('DF raw data'!L60="","",'DF raw data'!L60) -> 
A56: =IF('DF raw data'!I61="","",'DF raw data'!I61) -> 208.6 | B56: =IF('DF raw data'!J61="","",'DF raw data'!J61) -> 31.38 | C56: =IF('DF raw data'!K61="","",'DF raw data'!K61) -> 302.3 | D56: =IF('DF raw data'!L61="","",'DF raw data'!L61) -> 0
A57: =IF('DF raw data'!I62="","",'DF raw data'!I62) ->  | B57: =IF('DF raw data'!J62="","",'DF raw data'!J62) ->  | C57: =IF('DF raw data'!K62="","",'DF raw data'!K62) ->  | D57: =IF('DF raw data'!L62="","",'DF raw data'!L62) -> 
A58: =IF('DF raw data'!I63="","",'DF raw data'!I63) -> Measurement-Index | B58: =IF('DF raw data'!J63="","",'DF raw data'!J63) -> [1,1,1201,2] | C58: =IF('DF raw data'!K63="","",'DF raw data'!K63) ->  | D58: =IF('DF raw data'!L63="","",'DF raw data'!L63) -> 
A59: =IF('DF raw data'!I64="","",'DF raw data'!I64) ->  | B59: =IF('DF raw data'!J64="","",'DF raw data'!J64) ->  | C59: =IF('DF raw data'!K64="","",'DF raw data'!K64) ->  | D59: =IF('DF raw data'!L64="","",'DF raw data'!L64) -> 
A60: =IF('DF raw data'!I65="","",'DF raw data'!I65) -> Z [mm] | B60: By [T] | C60: Bx [T] | D60: Bz [T] | F60: By_corr | G60: Bx_corr | H60: Bz_corr | J60: Iy | K60: Jy | L60: Ix | M60: Jx | N60: PI
A62: =IF('DF raw data'!I67="","",'DF raw data'!I67) -> -300 | B62: =IF('DF raw data'!J67="","",'DF raw data'!J67) -> -6.55169e-06 | C62: =IF('DF raw data'!K67="","",'DF raw data'!K67) -> -5.37839e-06 | D62: =IF('DF raw data'!L67="","",'DF raw data'!L67) -> -6.12524e-05 | F62: =(1-$G$1*($B$49))*B62 -> -6.710240898e-06 | G62: =(1-$G$1*($B$49-$G$2))*C62 -> -5.400979238e-06 | H62: =(1-$G$1*($B$49-$G$2))*D62 -> -6.150966008e-05 | J62: =F62*$G$3 -> -3.355120449e-06 | K62: =J62*$G$3 -> -1.677560224e-06 | L62: =G62*$G$3 -> -2.700489619e-06 | M62: =L62*$G$3 -> -1.350244809e-06 | N62: =(J62^2+L62^2)*$G$3 -> 9.274738705e-12
A63: =IF('DF raw data'!I68="","",'DF raw data'!I68) -> -299.5 | B63: =IF('DF raw data'!J68="","",'DF raw data'!J68) -> -2.14812e-05 | C63: =IF('DF raw data'!K68="","",'DF raw data'!K68) -> -7.74059e-06 | D63: =IF('DF raw data'!L68="","",'DF raw data'!L68) -> -6.042e-05 | F63: =(1-$G$1*($B$49-$G$2))*B63 -> -2.157142104e-05 | G63: =(1-$G$1*($B$49-$G$2))*C63 -> -7.773100478e-06 | H63: -6.0673764e-05 | J63: =F63*$G$3+J62 -> -1.414083097e-05 | K63: =J63*$G$3+K62 -> -8.747975709e-06 | L63: =G63*$G$3+L62 -> -6.587039858e-06 | M63: =L63*$G$3+M62 -> -4.643764738e-06 | N63: =(J63^2+L63^2)*$G$3+N62 -> 1.30950836e-10
A64: =IF('DF raw data'!I69="","",'DF raw data'!I69) -> -299 | B64: =IF('DF raw data'!J69="","",'DF raw data'!J69) -> -1.77017e-05 | C64: =IF('DF raw data'!K69="","",'DF raw data'!K69) -> -1.26525e-05 | D64: =IF('DF raw data'!L69="","",'DF raw data'!L69) -> -5.9269e-05 | F64: =(1-$G$1*($B$49-$G$2))*B64 -> -1.777604714e-05 | G64: -1.27056405e-05 | H64: -5.95179298e-05 | J64: =F64*$G$3+J63 -> -2.302885454e-05 | K64: =J64*$G$3+K63 -> -2.026240298e-05 | L64: =G64*$G$3+L63 -> -1.293986011e-05 | M64: =L64*$G$3+M63 -> -1.111369479e-05 | N64: =(J64^2+L64^2)*$G$3+N63 -> 4.798348965e-10
A65: =IF('DF raw data'!I70="","",'DF raw data'!I70) -> -298.5 | B65: =IF('DF raw data'!J70="","",'DF raw data'!J70) -> -1.47547e-05 | C65: =IF('DF raw data'!K70="","",'DF raw data'!K70) -> -1.30486e-05 | D65: =IF('DF raw data'!L70="","",'DF raw data'!L70) -> -5.8894e-05 | F65: -1.481666974e-05 | G65: -1.310340412e-05 | H65: -5.91413548e-05 | J65: -3.043718941e-05 | K65: -3.548099768e-05 | L65: -1.949156217e-05 | M65: -2.085947588e-05 | N65: 1.133006644e-09
A66: =IF('DF raw data'!I71="","",'DF raw data'!I71) -> -298 | B66: =IF('DF raw data'!J71="","",'DF raw data'!J71) -> -2.39173e-05 | C66: =IF('DF raw data'!K71="","",'DF raw data'!K71) -> -6.08044e-06 | D66: =IF('DF raw data'!L71="","",'DF raw data'!L71) -> -5.86649e-05 | F66: -2.401775266e-05 | G66: -6.105977848e-06 | H66: -5.891129258e-05 | J66: -4.244606574e-05 | K66: -5.670403055e-05 | L66: -2.254455109e-05 | M66: -3.213175142e-05 | N66: 2.287969284e-09
A67: =IF('DF raw data'!I72="","",'DF raw data'!I72) -> -297.5 | B67: =IF('DF raw data'!J72="","",'DF raw data'!J72) -> -1.69976e-05 | C67: =IF('DF raw data'!K72="","",'DF raw data'!K72) -> -5.75134e-07 | D67: =IF('DF raw data'!L72="","",'DF raw data'!L72) -> -5.84415e-05 | F67: -1.706898992e-05 | G67: -5.775495628e-07 | H67: -5.86869543e-05 | J67: -5.09805607e-05 | K67: -8.21943109e-05 | L67: -2.283332587e-05 | M67: -4.354841436e-05 | N67: 3.848158454e-09
A68: =IF('DF raw data'!I73="","",'DF raw data'!I73) -> -297 | B68: =IF('DF raw data'!J73="","",'DF raw data'!J73) -> -1.64208e-05 | C68: =IF('DF raw data'!K73="","",'DF raw data'!K73) -> -1.221e-06 | D68: =IF('DF raw data'!L73="","",'DF raw data'!L73) -> -5.85342e-05 | F68: -1.648976736e-05 | G68: -1.2261282e-06 | H68: -5.878004364e-05 | J68: -5.922544438e-05 | K68: -0.0001118070331 | L68: -2.344638997e-05 | M68: -5.527160935e-05 | N68: 5.876851686e-09
A69: =IF('DF raw data'!I74="","",'DF raw data'!I74) -> -296.5 | B69: =IF('DF raw data'!J74="","",'DF raw data'!J74) -> -1.8471e-05 | C69: =IF('DF raw data'!K74="","",'DF raw data'!K74) -> -1.6416e-06 | D69: =IF('DF raw data'!L74="","",'DF raw data'!L74) -> -5.86271e-05 | F69: -1.85485782e-05 | G69: -1.64849472e-06 | H69: -5.887333382e-05 | J69: -6.849973348e-05 | K69: -0.0001460568998 | L69: -2.427063733e-05 | M69: -6.740692801e-05 | N69: 8.517490348e-09
A70: =IF('DF raw data'!I75="","",'DF raw data'!I75) -> -296 | B70: =IF('DF raw data'!J75="","",'DF raw data'!J75) -> -1.90478e-05 | C70: =IF('DF raw data'!K75="","",'DF raw data'!K75) -> 1.03957e-07 | D70: =IF('DF raw data'!L75="","",'DF raw data'!L75) -> -5.85473e-05 | F70: -1.912780076e-05 | G70: 1.043936194e-07 | H70: -5.879319866e-05 | J70: -7.806363386e-05 | K70: -0.0001850887168 | L70: -2.421844052e-05 | M70: -7.951614827e-05 | N70: 1.185772224e-08
A71: =IF('DF raw data'!I76="","",'DF raw data'!I76) -> -295.5 | B71: =IF('DF raw data'!J76="","",'DF raw data'!J76) -> -1.46266e-05 | C71: =IF('DF raw data'!K76="","",'DF raw data'!K76) -> 2.43129e-06 | D71: =IF('DF raw data'!L76="","",'DF raw data'!L76) -> -5.87932e-05 | F71: -1.468803172e-05 | G71: 2.441501418e-06 | H71: -5.904013144e-05 | J71: -8.540764972e-05 | K71: -0.0002277925416 | L71: -2.299768981e-05 | M71: -9.101499318e-05 | N71: 1.576940243e-08
A72: =IF('DF raw data'!I77="","",'DF raw data'!I77) -> -295 | B72: =IF('DF raw data'!J77="","",'DF raw data'!J77) -> -1.7894e-05 | C72: =IF('DF raw data'!K77="","",'DF raw data'!K77) -> 6.96734e-06 | D72: =IF('DF raw data'!L77="","",'DF raw data'!L77) -> -5.92606e-05 | F72: -1.79691548e-05 | G72: 6.996602828e-06 | H72: -5.950949452e-05 | J72: -9.439222712e-05 | K72: -0.0002749886552 | L72: -1.94993884e-05 | M72: -0.0001007646874 | N72: 2.041446177e-08
A73: =IF('DF raw data'!I78="","",'DF raw data'!I78) -> -294.5 | B73: =IF('DF raw data'!J78="","",'DF raw data'!J78) -> -2.02005e-05 | C73: =IF('DF raw data'!K78="","",'DF raw data'!K78) -> 3.10214e-07 | D73: =IF('DF raw data'!L78="","",'DF raw data'!L78) -> -5.92947e-05 | F73: -2.02853421e-05 | G73: 3.115168988e-07 | H73: -5.954373774e-05 | J73: -0.0001045348982 | K73: -0.0003272561043 | L73: -1.934362995e-05 | M73: -0.0001104365024 | N73: 2.606532225e-08
A74: =IF('DF raw data'!I79="","",'DF raw data'!I79) -> -294 | B74: =IF('DF raw data'!J79="","",'DF raw data'!J79) -> -2.82098e-05 | C74: =IF('DF raw data'!K79="","",'DF raw data'!K79) -> -2.11922e-06 | D74: =IF('DF raw data'!L79="","",'DF raw data'!L79) -> -5.91027e-05 | F74: -2.832828116e-05 | G74: -2.128120724e-06 | H74: -5.935093134e-05 | J74: -0.0001186990387 | K74: -0.0003866056236 | L74: -2.040769031e-05 | M74: -0.0001206403475 | N74: 3.331829006e-08
A75: =IF('DF raw data'!I80="","",'DF raw data'!I80) -> -293.5 | B75: =IF('DF raw data'!J80="","",'DF raw data'!J80) -> -1.437e-05 | C75: =IF('DF raw data'!K80="","",'DF raw data'!K80) -> 2.49402e-06 | D75: =IF('DF raw data'!L80="","",'DF raw data'!L80) -> -5.93567e-05 | F75: -1.4430354e-05 | G75: 2.504494884e-06 | H75: -5.960599814e-05 | J75: -0.0001259142157 | K75: -0.0004495627315 | L75: -1.915544287e-05 | M75: -0.000130218069 | N75: 4.142895042e-08
A76: =IF('DF raw data'!I81="","",'DF raw data'!I81) -> -293 | B76: =IF('DF raw data'!J81="","",'DF raw data'!J81) -> -3.30153e-05 | C76: =IF('DF raw data'!K81="","",'DF raw data'!K81) -> -1.91484e-06 | D76: =IF('DF raw data'!L81="","",'DF raw data'!L81) -> -5.90317e-05 | F76: -3.315396426e-05 | G76: -1.922882328e-06 | H76: -5.927963314e-05 | J76: -0.0001424911979 | K76: -0.0005208083305 | L76: -2.011688404e-05 | M76: -0.000140276511 | N76: 5.178316567e-08
A77: =IF('DF raw data'!I82="","",'DF raw data'!I82) -> -292.5 | B77: =IF('DF raw data'!J82="","",'DF raw data'!J82) -> -3.1222e-05 | C77: =IF('DF raw data'!K82="","",'DF raw data'!K82) -> 4.96858e-06 | D77: =IF('DF raw data'!L82="","",'DF raw data'!L82) -> -5.78931e-05 | F77: -3.13531324e-05 | G77: 4.989448036e-06 | H77: -5.813625102e-05 | J77: -0.0001581677641 | K77: -0.0005998922125 | L77: -1.762216002e-05 | M77: -0.000149087591 | N77: 6.444695673e-08
A78: =IF('DF raw data'!I83="","",'DF raw data'!I83) -> -292 | B78: =IF('DF raw data'!J83="","",'DF raw data'!J83) -> -1.86641e-05 | C78: =IF('DF raw data'!K83="","",'DF raw data'!K83) -> 9.70963e-06 | D78: =IF('DF raw data'!L83="","",'DF raw data'!L83) -> -5.7365e-05 | F78: -1.874248922e-05 | G78: 9.750410446e-06 | H78: -5.7605933e-05 | J78: -0.0001675390087 | K78: -0.0006836617168 | L78: -1.274695479e-05 | M78: -0.0001554610684 | N78: 7.856285887e-08
A79: =IF('DF raw data'!I84="","",'DF raw data'!I84) -> -291.5 | B79: =IF('DF raw data'!J84="","",'DF raw data'!J84) -> -1.64935e-05 | C79: =IF('DF raw data'!K84="","",'DF raw data'!K84) -> 2.4973e-06 | D79: =IF('DF raw data'!L84="","",'DF raw data'!L84) -> -4.49365e-05 | F79: -1.65627727e-05 | G79: 2.50778866e-06 | H79: -4.51252333e-05 | J79: -0.000175820395 | K79: -0.0007715719144 | L79: -1.149306046e-05 | M79: -0.0001612075986 | N79: 9.408530975e-08
A80: =IF('DF raw data'!I85="","",'DF raw data'!I85) -> -291 | B80: =IF('DF raw data'!J85="","",'DF raw data'!J85) -> -2.01354e-05 | C80: =IF('DF raw data'!K85="","",'DF raw data'!K85) -> 6.8826e-07 | D80: =IF('DF raw data'!L85="","",'DF raw data'!L85) -> -6.11785e-05 | F80: -2.021996868e-05 | G80: 6.91150692e-07 | H80: -6.14354497e-05 | J80: -0.0001859303794 | K80: -0.000864537104 | L80: -1.114748512e-05 | M80: -0.0001667813412 | N80: 1.114324959e-07
A81: =IF('DF raw data'!I86="","",'DF raw data'!I86) -> -290.5 | B81: =IF('DF raw data'!J86="","",'DF raw data'!J86) -> -1.18095e-05 | C81: =IF('DF raw data'!K86="","",'DF raw data'!K86) -> -1.60386e-06 | D81: =IF('DF raw data'!L86="","",'DF raw data'!L86) -> -5.54414e-05 | F81: -1.18590999e-05 | G81: -1.610596212e-06 | H81: -5.567425388e-05 | J81: -0.0001918599293 | K81: -0.0009604670687 | L81: -1.195278322e-05 | M81: -0.0001727577328 | N81: 1.299090467e-07
A82: =IF('DF raw data'!I87="","",'DF raw data'!I87) -> -290 | B82: =IF('DF raw data'!J87="","",'DF raw data'!J87) -> -2.24443e-05 | C82: =IF('DF raw data'!K87="","",'DF raw data'!K87) -> -1.01044e-05 | D82: =IF('DF raw data'!L87="","",'DF raw data'!L87) -> -5.74226e-05 | F82: -2.253856606e-05 | G82: -1.014683848e-05 | H82: -5.766377492e-05 | J82: -0.0002031292124 | K82: -0.001062031675 | L82: -1.702620246e-05 | M82: -0.000181270834 | N82: 1.506847309e-07
A83: =IF('DF raw data'!I88="","",'DF raw data'!I88) -> -289.5 | B83: =IF('DF raw data'!J88="","",'DF raw data'!J88) -> -2.48833e-05 | C83: =IF('DF raw data'!K88="","",'DF raw data'!K88) -> -5.99905e-06 | D83: =IF('DF raw data'!L88="","",'DF raw data'!L88) -> -5.07989e-05 | F83: -2.498780986e-05 | G83: -6.02424601e-06 | H83: -5.101225538e-05 | J83: -0.0002156231173 | K83: -0.001169843234 | L83: -2.003832547e-05 | M83: -0.0001912899967 | N83: 1.741321625e-07
A84: =IF('DF raw data'!I89="","",'DF raw data'!I89) -> -289 | B84: =IF('DF raw data'!J89="","",'DF raw data'!J89) -> -2.30265e-05 | C84: =IF('DF raw data'!K89="","",'DF raw data'!K89) -> -8.68324e-07 | D84: =IF('DF raw data'!L89="","",'DF raw data'!L89) -> -4.90532e-05 | F84: -2.31232113e-05 | G84: -8.719709608e-07 | H84: -4.925922344e-05 | J84: -0.0002271847229 | K84: -0.001283435595 | L84: -2.047431095e-05 | M84: -0.0002015271522 | N84: 2.001482104e-07
A85: =IF('DF raw data'!I90="","",'DF raw data'!I90) -> -288.5 | B85: =IF('DF raw data'!J90="","",'DF raw data'!J90) -> -8.28722e-06 | C85: =IF('DF raw data'!K90="","",'DF raw data'!K90) -> -1.33942e-10 | D85: =IF('DF raw data'!L90="","",'DF raw data'!L90) -> -5.2755e-05 | F85: -8.322026324e-06 | G85: -1.345045564e-10 | H85: -5.2976571e-05 | J85: -0.0002313457361 | K85: -0.001399108463 | L85: -2.04743782e-05 | M85: -0.0002117643413 | N85: 2.271182353e-07
A86: =IF('DF raw data'!I91="","",'DF raw data'!I91) -> -288 | B86: =IF('DF raw data'!J91="","",'DF raw data'!J91) -> -1.86688e-05 | C86: =IF('DF raw data'!K91="","",'DF raw data'!K91) -> -3.16298e-06 | D86: =IF('DF raw data'!L91="","",'DF raw data'!L91) -> -5.01032e-05 | F86: -1.874720896e-05 | G86: -3.176264516e-06 | H86: -5.031363344e-05 | J86: -0.0002407193406 | K86: -0.001519468133 | L86: -2.206251046e-05 | M86: -0.0002227955965 | N86: 2.56334513e-07
A87: =IF('DF raw data'!I92="","",'DF raw data'!I92) -> -287.5 | B87: =IF('DF raw data'!J92="","",'DF raw data'!J92) -> -1.58464e-05 | C87: =IF('DF raw data'!K92="","",'DF raw data'!K92) -> 3.87233e-06 | D87: =IF('DF raw data'!L92="","",'DF raw data'!L92) -> -5.47696e-05 | F87: -1.591295488e-05 | G87: 3.888593786e-06 | H87: -5.499963232e-05 | J87: -0.000248675818 | K87: -0.001643806042 | L87: -2.011821357e-05 | M87: -0.0002328547033 | N87: 2.874567154e-07
A88: =IF('DF raw data'!I93="","",'DF raw data'!I93) -> -287 | B88: =IF('DF raw data'!J93="","",'DF raw data'!J93) -> -1.65543e-05 | C88: =IF('DF raw data'!K93="","",'DF raw data'!K93) -> -6.52164e-07 | D88: =IF('DF raw data'!L93="","",'DF raw data'!L93) -> -5.01736e-05 | F88: -1.662382806e-05 | G88: -6.549030888e-07 | H88: -5.038432912e-05 | J88: -0.0002569877321 | K88: -0.001772299908 | L88: -2.044566511e-05 | M88: -0.0002430775359 | N88: 3.206870753e-07
A89: =IF('DF raw data'!I94="","",'DF raw data'!I94) -> -286.5 | B89: =IF('DF raw data'!J94="","",'DF raw data'!J94) -> -1.98863e-05 | C89: =IF('DF raw data'!K94="","",'DF raw data'!K94) -> -8.81003e-07 | D89: =IF('DF raw data'!L94="","",'DF raw data'!L94) -> -5.01369e-05 | F89: -1.996982246e-05 | G89: -8.847032126e-07 | H89: -5.034747498e-05 | J89: -0.0002669726433 | K89: -0.00190578623 | L89: -2.088801672e-05 | M89: -0.0002535215442 | N89: 3.56542426e-07
A90: =IF('DF raw data'!I95="","",'DF raw data'!I95) -> -286 | B90: =IF('DF raw data'!J95="","",'DF raw data'!J95) -> -2.27054e-05 | C90: =IF('DF raw data'!K95="","",'DF raw data'!K95) -> 4.50425e-06 | D90: =IF('DF raw data'!L95="","",'DF raw data'!L95) -> -5.01012e-05 | F90: -2.280076268e-05 | G90: 4.52316785e-06 | H90: -5.031162504e-05 | J90: -0.0002783730246 | K90: -0.002044972742 | L90: -1.862643279e-05 | M90: -0.0002628347606 | N90: 3.954616684e-07
A91: =IF('DF raw data'!I96="","",'DF raw data'!I96) -> -285.5 | B91: =IF('DF raw data'!J96="","",'DF raw data'!J96) -> -1.28945e-05 | C91: =IF('DF raw data'!K96="","",'DF raw data'!K96) -> 1.7542e-06 | D91: =IF('DF raw data'!L96="","",'DF raw data'!L96) -> -6.20864e-05 | F91: -1.29486569e-05 | G91: 1.76156764e-06 | H91: -6.234716288e-05 | J91: -0.0002848473531 | K91: -0.002187396419 | L91: -1.774564897e-05 | M91: -0.0002717075851 | N91: 4.361881297e-07
A92: =IF('DF raw data'!I97="","",'DF raw data'!I97) -> -285 | B92: =IF('DF raw data'!J97="","",'DF raw data'!J97) -> -1.37266e-05 | C92: =IF('DF raw data'!K97="","",'DF raw data'!K97) -> -2.9178e-07 | D92: =IF('DF raw data'!L97="","",'DF raw data'!L97) -> -6.30449e-05 | F92: -1.378425172e-05 | G92: -2.93005476e-07 | H92: -6.330968858e-05 | J92: -0.0002917394789 | K92: -0.002333266158 | L92: -1.789215171e-05 | M92: -0.000280653661 | N92: 4.789041561e-07
A93: =IF('DF raw data'!I98="","",'DF raw data'!I98) -> -284.5 | B93: =IF('DF raw data'!J98="","",'DF raw data'!J98) -> -1.71861e-05 | C93: =IF('DF raw data'!K98="","",'DF raw data'!K98) -> -1.81601e-06 | D93: =IF('DF raw data'!L98="","",'DF raw data'!L98) -> -6.38718e-05 | F93: -1.725828162e-05 | G93: -1.823637242e-06 | H93: -6.414006156e-05 | J93: -0.0003003686197 | K93: -0.002483450468 | L93: -1.880397033e-05 | M93: -0.0002900556462 | N93: 5.241916046e-07
A94: =IF('DF raw data'!I99="","",'DF raw data'!I99) -> -284 | B94: =IF('DF raw data'!J99="","",'DF raw data'!J99) -> -2.19296e-05 | C94: =IF('DF raw data'!K99="","",'DF raw data'!K99) -> -6.39023e-06 | D94: =IF('DF raw data'!L99="","",'DF raw data'!L99) -> -6.07969e-05 | F94: -2.202170432e-05 | G94: -6.417068966e-06 | H94: -6.105224698e-05 | J94: -0.0003113794719 | K94: -0.002639140204 | L94: -2.201250481e-05 | M94: -0.0003010618986 | N94: 5.729124675e-07
A95: =IF('DF raw data'!I100="","",'DF raw data'!I100) -> -283.5 | B95: =IF('DF raw data'!J100="","",'DF raw data'!J100) -> -1.7709e-05 | C95: =IF('DF raw data'!K100="","",'DF raw data'!K100) -> -1.2579e-05 | D95: =IF('DF raw data'!L100="","",'DF raw data'!L100) -> -4.80552e-05 | F95: -1.77833778e-05 | G95: -1.26318318e-05 | H95: -4.825703184e-05 | J95: -0.0003202711608 | K95: -0.002799275785 | L95: -2.832842071e-05 | M95: -0.0003152261089 | N95: 6.246005255e-07
A96: =IF('DF raw data'!I101="","",'DF raw data'!I101) -> -283 | B96: =IF('DF raw data'!J101="","",'DF raw data'!J101) -> -1.90545e-05 | C96: =IF('DF raw data'!K101="","",'DF raw data'!K101) -> -1.1327e-05 | D96: =IF('DF raw data'!L101="","",'DF raw data'!L101) -> -4.81907e-05 | F96: -1.91345289e-05 | G96: -1.13745734e-05 | H96: -4.839310094e-05 | J96: -0.0003298384253 | K96: -0.002964194997 | L96: -3.401570741e-05 | M96: -0.0003322339626 | N96: 6.79575753e-07
A97: =IF('DF raw data'!I102="","",'DF raw data'!I102) -> -282.5 | B97: =IF('DF raw data'!J102="","",'DF raw data'!J102) -> -1.11743e-05 | C97: =IF('DF raw data'!K102="","",'DF raw data'!K102) -> -2.40619e-06 | D97: =IF('DF raw data'!L102="","",'DF raw data'!L102) -> -4.68471e-05 | F97: -1.122123206e-05 | G97: -2.416295998e-06 | H97: -4.704385782e-05 | J97: -0.0003354490413 | K97: -0.003131919518 | L97: -3.522385541e-05 | M97: -0.0003498458903 | N97: 7.364591427e-07
A98: =IF('DF raw data'!I103="","",'DF raw data'!I103) -> -282 | B98: =IF('DF raw data'!J103="","",'DF raw data'!J103) -> -3.61382e-06 | C98: =IF('DF raw data'!K103="","",'DF raw data'!K103) -> -4.01786e-06 | D98: =IF('DF raw data'!L103="","",'DF raw data'!L103) -> -4.68193e-05 | F98: -3.628998044e-06 | G98: -4.034735012e-06 | H98: -4.701594106e-05 | J98: -0.0003372635403 | K98: -0.003300551288 | L98: -3.724122292e-05 | M98: -0.0003684665018 | N98: 7.940259448e-07
A99: =IF('DF raw data'!I104="","",'DF raw data'!I104) -> -281.5 | B99: =IF('DF raw data'!J104="","",'DF raw data'!J104) -> -2.38582e-05 | C99: =IF('DF raw data'!K104="","",'DF raw data'!K104) -> -1.21102e-05 | D99: =IF('DF raw data'!L104="","",'DF raw data'!L104) -> -5.07196e-05 | F99: -2.395840444e-05 | G99: -1.216106284e-05 | H99: -5.093262232e-05 | J99: -0.0003492427425 | K99: -0.003475172659 | L99: -4.332175434e-05 | M99: -0.000390127379 | N99: 8.559495786e-07
A100: =IF('DF raw data'!I105="","",'DF raw data'!I105) -> -281 | B100: =IF('DF raw data'!J105="","",'DF raw data'!J105) -> -1.50807e-05 | C100: =IF('DF raw data'!K105="","",'DF raw data'!K105) -> -9.68451e-06 | D100: =IF('DF raw data'!L105="","",'DF raw data'!L105) -> -5.00286e-05 | F100: -1.514403894e-05 | G100: -9.725184942e-06 | H100: -5.023872012e-05 | J100: -0.000356814762 | K100: -0.00365358004 | L100: -4.818434681e-05 | M100: -0.0004142195524 | N100: 9.207688314e-07
A101: =IF('DF raw data'!I106="","",'DF raw data'!I106) -> -280.5 | B101: =IF('DF raw data'!J106="","",'DF raw data'!J106) -> -1.11742e-05 | C101: =IF('DF raw data'!K106="","",'DF raw data'!K106) -> -5.8392e-06 | D101: =IF('DF raw data'!L106="","",'DF raw data'!L106) -> -4.69967e-05 | F101: -1.122113164e-05 | G101: -5.86372464e-06 | H101: -4.719408614e-05 | J101: -0.0003624253278 | K101: -0.003834792704 | L101: -5.111620913e-05 | M101: -0.0004397776569 | N101: 9.87751324e-07
A102: =IF('DF raw data'!I107="","",'DF raw data'!I107) -> -280 | B102: =IF('DF raw data'!J107="","",'DF raw data'!J107) -> -2.57114e-05 | C102: =IF('DF raw data'!K107="","",'DF raw data'!K107) -> 1.86086e-06 | D102: =IF('DF raw data'!L107="","",'DF raw data'!L107) -> -5.84665e-05 | F102: -2.581938788e-05 | G102: 1.868675612e-06 | H102: -5.87120593e-05 | J102: -0.0003753350218 | K102: -0.004022460215 | L102: -5.018187132e-05 | M102: -0.0004648685926 | N102: 1.059448623e-06
A103: =IF('DF raw data'!I108="","",'DF raw data'!I108) -> -279.5 | B103: =IF('DF raw data'!J108="","",'DF raw data'!J108) -> -2.26396e-05 | C103: =IF('DF raw data'!K108="","",'DF raw data'!K108) -> 1.47344e-06 | D103: =IF('DF raw data'!L108="","",'DF raw data'!L108) -> -5.29398e-05 | F103: -2.273468632e-05 | G103: 1.479628448e-06 | H103: -5.316214716e-05 | J103: -0.0003867023649 | K103: -0.004215811397 | L103: -4.94420571e-05 | M103: -0.0004895896211 | N103: 1.135440241e-06
A104: =IF('DF raw data'!I109="","",'DF raw data'!I109) -> -279 | B104: =IF('DF raw data'!J109="","",'DF raw data'!J109) -> -1.90497e-05 | C104: =IF('DF raw data'!K109="","",'DF raw data'!K109) -> -3.11227e-06 | D104: =IF('DF raw data'!L109="","",'DF raw data'!L109) -> -5.55667e-05 | F104: -1.912970874e-05 | G104: -3.125341534e-06 | H104: -5.580008014e-05 | J104: -0.0003962672193 | K104: -0.004413945007 | L104: -5.100472787e-05 | M104: -0.0005150919851 | N104: 1.215254837e-06
A105: =IF('DF raw data'!I110="","",'DF raw data'!I110) -> -278.5 | B105: =IF('DF raw data'!J110="","",'DF raw data'!J110) -> -3.17384e-05 | C105: =IF('DF raw data'!K110="","",'DF raw data'!K110) -> 4.35947e-06 | D105: =IF('DF raw data'!L110="","",'DF raw data'!L110) -> -5.20191e-05 | F105: -3.187170128e-05 | G105: 4.377779774e-06 | H105: -5.223758022e-05 | J105: -0.0004122030699 | K105: -0.004620046542 | L105: -4.881583798e-05 | M105: -0.0005394999041 | N105: 1.301402016e-06
A106: =IF('DF raw data'!I111="","",'DF raw data'!I111) -> -278 | B106: =IF('DF raw data'!J111="","",'DF raw data'!J111) -> -1.62936e-05 | C106: =IF('DF raw data'!K111="","",'DF raw data'!K111) -> 7.48198e-07 | D106: =IF('DF raw data'!L111="","",'DF raw data'!L111) -> -5.70187e-05 | F106: -1.636203312e-05 | G106: 7.513404316e-07 | H106: -5.725817854e-05 | J106: -0.0004203840865 | K106: -0.004830238585 | L106: -4.844016776e-05 | M106: -0.000563719988 | N106: 1.390936631e-06
A107: =IF('DF raw data'!I112="","",'DF raw data'!I112) -> -277.5 | B107: =IF('DF raw data'!J112="","",'DF raw data'!J112) -> -2.35466e-05 | C107: =IF('DF raw data'!K112="","",'DF raw data'!K112) -> -1.98989e-07 | D107: =IF('DF raw data'!L112="","",'DF raw data'!L112) -> -3.74335e-05 | F107: -2.364549572e-05 | G107: -1.998247538e-07 | H107: -3.75907207e-05 | J107: -0.0004322068343 | K107: -0.005046342002 | L107: -4.854008014e-05 | M107: -0.000587990028 | N107: 1.485516074e-06
A108: =IF('DF raw data'!I113="","",'DF raw data'!I113) -> -277 | B108: =IF('DF raw data'!J113="","",'DF raw data'!J113) -> -9.83326e-06 | C108: =IF('DF raw data'!K113="","",'DF raw data'!K113) -> 4.67151e-06 | D108: =IF('DF raw data'!L113="","",'DF raw data'!L113) -> -3.98612e-05 | F108: -9.874559692e-06 | G108: 4.691130342e-06 | H108: -4.002861704e-05 | J108: -0.0004371441142 | K108: -0.00526491406 | L108: -4.619451497e-05 | M108: -0.0006110872855 | N108: 1.582130529e-06
A109: =IF('DF raw data'!I114="","",'DF raw data'!I114) -> -276.5 | B109: =IF('DF raw data'!J114="","",'DF raw data'!J114) -> -1.99529e-05 | C109: =IF('DF raw data'!K114="","",'DF raw data'!K114) -> 4.29432e-06 | D109: =IF('DF raw data'!L114="","",'DF raw data'!L114) -> -4.59298e-05 | F109: -2.003670218e-05 | G109: 4.312356144e-06 | H109: -4.612270516e-05 | J109: -0.0004471624653 | K109: -0.005488495292 | L109: -4.40383369e-05 | M109: -0.000633106454 | N109: 1.683077352e-06
A110: =IF('DF raw data'!I115="","",'DF raw data'!I115) -> -276 | B110: =IF('DF raw data'!J115="","",'DF raw data'!J115) -> -1.41253e-05 | C110: =IF('DF raw data'!K115="","",'DF raw data'!K115) -> 1.77178e-06 | D110: =IF('DF raw data'!L115="","",'DF raw data'!L115) -> -4.1105e-05 | F110: -1.418462626e-05 | G110: 1.779221476e-06 | H110: -4.1277641e-05 | J110: -0.0004542547784 | K110: -0.005715622681 | L110: -4.314872616e-05 | M110: -0.000654680817 | N110: 1.78718196e-06
A111: =IF('DF raw data'!I116="","",'DF raw data'!I116) -> -275.5 | B111: =IF('DF raw data'!J116="","",'DF raw data'!J116) -> -2.12976e-05 | C111: =IF('DF raw data'!K116="","",'DF raw data'!K116) -> -5.82165e-06 | D111: =IF('DF raw data'!L116="","",'DF raw data'!L116) -> -4.73471e-05 | F111: -2.138704992e-05 | G111: -5.84610093e-06 | H111: -4.754595782e-05 | J111: -0.0004649483034 | K111: -0.005948096833 | L111: -4.607177663e-05 | M111: -0.0006777167053 | N111: 1.896331726e-06
A112: =IF('DF raw data'!I117="","",'DF raw data'!I117) -> -275 | B112: =IF('DF raw data'!J117="","",'DF raw data'!J117) -> -2.25709e-05 | C112: =IF('DF raw data'!K117="","",'DF raw data'!K117) -> -3.70693e-06 | D112: =IF('DF raw data'!L117="","",'DF raw data'!L117) -> -5.97562e-05 | F112: -2.266569778e-05 | G112: -3.722499106e-06 | H112: -6.000717604e-05 | J112: -0.0004762811523 | K112: -0.006186237409 | L112: -4.793302618e-05 | M112: -0.0007016832184 | N112: 2.010902382e-06
A113: =IF('DF raw data'!I118="","",'DF raw data'!I118) -> -274.5 | B113: =IF('DF raw data'!J118="","",'DF raw data'!J118) -> -1.85433e-05 | C113: =IF('DF raw data'!K118="","",'DF raw data'!K118) -> 4.07509e-07 | D113: =IF('DF raw data'!L118="","",'DF raw data'!L118) -> -4.60575e-05 | F113: -1.862118186e-05 | G113: 4.092205378e-07 | H113: -4.62509415e-05 | J113: -0.0004855917432 | K113: -0.006429033281 | L113: -4.772841591e-05 | M113: -0.0007255474264 | N113: 2.129941053e-06
A114: =IF('DF raw data'!I119="","",'DF raw data'!I119) -> -274 | B114: =IF('DF raw data'!J119="","",'DF raw data'!J119) -> -1.28979e-05 | C114: =IF('DF raw data'!K119="","",'DF raw data'!K119) -> -5.50933e-06 | D114: =IF('DF raw data'!L119="","",'DF raw data'!L119) -> -5.67284e-05 | F114: -1.295207118e-05 | G114: -5.532469186e-06 | H114: -5.696665928e-05 | J114: -0.0004920677788 | K114: -0.00667506717 | L114: -5.04946505e-05 | M114: -0.0007507947516 | N114: 2.252281258e-06
A115: =IF('DF raw data'!I120="","",'DF raw data'!I120) -> -273.5 | B115: =IF('DF raw data'!J120="","",'DF raw data'!J120) -> -1.21895e-05 | C115: =IF('DF raw data'!K120="","",'DF raw data'!K120) -> -9.4471e-06 | D115: =IF('DF raw data'!L120="","",'DF raw data'!L120) -> -6.22053e-05 | F115: -1.22406959e-05 | G115: -9.48677782e-06 | H115: -6.246656226e-05 | J115: -0.0004981881267 | K115: -0.006924161234 | L115: -5.523803941e-05 | M115: -0.0007784137714 | N115: 2.377902583e-06
A116: =IF('DF raw data'!I121="","",'DF raw data'!I121) -> -273 | B116: =IF('DF raw data'!J121="","",'DF raw data'!J121) -> -1.71247e-05 | C116: =IF('DF raw data'!K121="","",'DF raw data'!K121) -> -9.92119e-06 | D116: =IF('DF raw data'!L121="","",'DF raw data'!L121) -> -5.99844e-05 | F116: -1.719662374e-05 | G116: -9.962858998e-06 | H116: -6.023633448e-05 | J116: -0.0005067864386 | K116: -0.007177554453 | L116: -6.021946891e-05 | M116: -0.0008085235058 | N116: 2.508132022e-06
A117: =IF('DF raw data'!I122="","",'DF raw data'!I122) -> -272.5 | B117: =IF('DF raw data'!J122="","",'DF raw data'!J122) -> -2.10324e-05 | C117: =IF('DF raw data'!K122="","",'DF raw data'!K122) -> -1.45353e-05 | D117: =IF('DF raw data'!L122="","",'DF raw data'!L122) -> -6.10147e-05 | F117: -2.112073608e-05 | G117: -1.459634826e-05 | H117: -6.127096174e-05 | J117: -0.0005173468066 | K117: -0.007436227856 | L117: -6.751764304e-05 | M117: -0.0008422823273 | N117: 2.644235198e-06
A118: =IF('DF raw data'!I123="","",'DF raw data'!I123) -> -272 | B118: =IF('DF raw data'!J123="","",'DF raw data'!J123) -> -2.75036e-05 | C118: =IF('DF raw data'!K123="","",'DF raw data'!K123) -> -7.59934e-06 | D118: =IF('DF raw data'!L123="","",'DF raw data'!L123) -> -6.11559e-05 | F118: -2.761911512e-05 | G118: -7.631257228e-06 | H118: -6.141275478e-05 | J118: -0.0005311563642 | K118: -0.007701806038 | L118: -7.133327166e-05 | M118: -0.0008779489632 | N118: 2.787842957e-06
A119: =IF('DF raw data'!I124="","",'DF raw data'!I124) -> -271.5 | B119: =IF('DF raw data'!J124="","",'DF raw data'!J124) -> -2.03936e-05 | C119: =IF('DF raw data'!K124="","",'DF raw data'!K124) -> -1.08585e-05 | D119: =IF('DF raw data'!L124="","",'DF raw data'!L124) -> -5.81008e-05 | F119: -2.047925312e-05 | G119: -1.09041057e-05 | H119: -5.834482336e-05 | J119: -0.0005413959908 | K119: -0.007972504034 | L119: -7.678532451e-05 | M119: -0.0009163416254 | N119: 2.937345759e-06
A120: =IF('DF raw data'!I125="","",'DF raw data'!I125) -> -271 | B120: =IF('DF raw data'!J125="","",'DF raw data'!J125) -> -3.00734e-05 | C120: =IF('DF raw data'!K125="","",'DF raw data'!K125) -> -7.33536e-06 | D120: =IF('DF raw data'!L125="","",'DF raw data'!L125) -> -5.06777e-05 | F120: -3.019970828e-05 | G120: -7.366168512e-06 | H120: -5.089054634e-05 | J120: -0.0005564958449 | K120: -0.008250751956 | L120: -8.046840876e-05 | M120: -0.0009565758298 | N120: 3.095427155e-06
A121: =IF('DF raw data'!I126="","",'DF raw data'!I126) -> -270.5 | B121: =IF('DF raw data'!J126="","",'DF raw data'!J126) -> -2.05177e-05 | C121: =IF('DF raw data'!K126="","",'DF raw data'!K126) -> -5.90812e-06 | D121: =IF('DF raw data'!L126="","",'DF raw data'!L126) -> -6.44283e-05 | F121: -2.060387434e-05 | G121: -5.932934104e-06 | H121: -6.469889886e-05 | J121: -0.0005667977821 | K121: -0.008534150847 | L121: -8.343487581e-05 | M121: -0.0009982932677 | N121: 3.259537707e-06
A122: =IF('DF raw data'!I127="","",'DF raw data'!I127) -> -270 | B122: =IF('DF raw data'!J127="","",'DF raw data'!J127) -> -1.50729e-05 | C122: =IF('DF raw data'!K127="","",'DF raw data'!K127) -> -2.68675e-06 | D122: =IF('DF raw data'!L127="","",'DF raw data'!L127) -> -6.19761e-05 | F122: -1.513620618e-05 | G122: -2.69803435e-06 | H122: -6.223639962e-05 | J122: -0.0005743658852 | K122: -0.00882133379 | L122: -8.478389299e-05 | M122: -0.001040685214 | N122: 3.428079946e-06
A123: =IF('DF raw data'!I128="","",'DF raw data'!I128) -> -269.5 | B123: =IF('DF raw data'!J128="","",'DF raw data'!J128) -> -1.78333e-05 | C123: =IF('DF raw data'!K128="","",'DF raw data'!K128) -> -5.72868e-06 | D123: =IF('DF raw data'!L128="","",'DF raw data'!L128) -> -5.39564e-05 | F123: -1.790819986e-05 | G123: -5.752740456e-06 | H123: -5.418301688e-05 | J123: -0.0005833199851 | K123: -0.009112993782 | L123: -8.766026322e-05 | M123: -0.001084515346 | N123: 3.602053209e-06
A124: =IF('DF raw data'!I129="","",'DF raw data'!I129) -> -269 | B124: =IF('DF raw data'!J129="","",'DF raw data'!J129) -> -4.07754e-07 | C124: =IF('DF raw data'!K129="","",'DF raw data'!K129) -> -1.28549e-05 | D124: =IF('DF raw data'!L129="","",'DF raw data'!L129) -> -5.03662e-05 | F124: -4.094665668e-07 | G124: -1.290889058e-05 | H124: -5.057773804e-05 | J124: -0.0005835247184 | K124: -0.009404756141 | L124: -9.411470851e-05 | M124: -0.0011315727 | N124: 3.776732547e-06
A125: =IF('DF raw data'!I130="","",'DF raw data'!I130) -> -268.5 | B125: =IF('DF raw data'!J130="","",'DF raw data'!J130) -> -1.36011e-05 | C125: =IF('DF raw data'!K130="","",'DF raw data'!K130) -> -1.09171e-05 | D125: =IF('DF raw data'!L130="","",'DF raw data'!L130) -> -5.90108e-05 | F125: -1.365822462e-05 | G125: -1.096295182e-05 | H125: -5.925864536e-05 | J125: -0.0005903538307 | K125: -0.009699933057 | L125: -9.959618442e-05 | M125: -0.001181370792 | N125: 3.95595107e-06
A126: =IF('DF raw data'!I131="","",'DF raw data'!I131) -> -268 | B126: =IF('DF raw data'!J131="","",'DF raw data'!J131) -> -7.26481e-06 | C126: =IF('DF raw data'!K131="","",'DF raw data'!K131) -> -1.82444e-06 | D126: =IF('DF raw data'!L131="","",'DF raw data'!L131) -> -4.85557e-05 | F126: -7.295322202e-06 | G126: -1.832102648e-06 | H126: -4.875963394e-05 | J126: -0.0005940014918 | K126: -0.009996933803 | L126: -0.0001005122357 | M126: -0.00123162691 | N126: 4.137421311e-06
A127: =IF('DF raw data'!I132="","",'DF raw data'!I132) -> -267.5 | B127: =IF('DF raw data'!J132="","",'DF raw data'!J132) -> -1.81533e-05 | C127: =IF('DF raw data'!K132="","",'DF raw data'!K132) -> -1.53295e-07 | D127: =IF('DF raw data'!L132="","",'DF raw data'!L132) -> -5.46045e-05 | F127: -1.822954386e-05 | G127: -1.53938839e-07 | H127: -5.48338389e-05 | J127: -0.0006031162637 | K127: -0.01029849193 | L127: -0.0001005892052 | M127: -0.001281921513 | N127: 4.324355018e-06
A128: =IF('DF raw data'!I133="","",'DF raw data'!I133) -> -267 | B128: =IF('DF raw data'!J133="","",'DF raw data'!J133) -> -2.43774e-05 | C128: =IF('DF raw data'!K133="","",'DF raw data'!K133) -> -7.22216e-06 | D128: =IF('DF raw data'!L133="","",'DF raw data'!L133) -> -4.0456e-05 | F128: =(1-$G$1*($B$49-$G$2))*B128 -> -2.447978508e-05 | G128: -7.252493072e-06 | H128: -4.06259152e-05 | J128: =F128*$G$3+J127 -> -0.0006153561563 | K128: =J128*$G$3+K127 -> -0.01060617001 | L128: =G128*$G$3+L127 -> -0.0001042154517 | M128: =L128*$G$3+M127 -> -0.001334029239 | N128: =(J128^2+L128^2)*$G$3+N127 -> 4.519117048e-06
A129: =IF('DF raw data'!I134="","",'DF raw data'!I134) -> -266.5 | B129: =IF('DF raw data'!J134="","",'DF raw data'!J134) -> -3.31454e-05 | C129: =IF('DF raw data'!K134="","",'DF raw data'!K134) -> -6.55374e-06 | D129: =IF('DF raw data'!L134="","",'DF raw data'!L134) -> -5.57853e-05 | F129: -3.328461068e-05 | G129: -6.581265708e-06 | H129: -5.601959826e-05 | J129: -0.0006319984616 | K129: -0.01092216924 | L129: -0.0001075060846 | M129: -0.001387782281 | N129: 4.724606855e-06
A130: =IF('DF raw data'!I135="","",'DF raw data'!I135) -> -266 | B130: =IF('DF raw data'!J135="","",'DF raw data'!J135) -> -1.18743e-05 | C130: =IF('DF raw data'!K135="","",'DF raw data'!K135) -> -2.14582e-06 | D130: =IF('DF raw data'!L135="","",'DF raw data'!L135) -> -5.45035e-05 | F130: -1.192417206e-05 | G130: -2.154832444e-06 | H130: -5.47324147e-05 | J130: -0.0006379605476 | K130: -0.01124114952 | L130: -0.0001085835008 | M130: -0.001442074031 | N130: 4.933998873e-06
A131: =IF('DF raw data'!I136="","",'DF raw data'!I136) -> -265.5 | B131: =IF('DF raw data'!J136="","",'DF raw data'!J136) -> -2.27058e-05 | C131: =IF('DF raw data'!K136="","",'DF raw data'!K136) -> -5.85504e-06 | D131: =IF('DF raw data'!L136="","",'DF raw data'!L136) -> -4.93635e-05 | F131: -2.280116436e-05 | G131: -5.879631168e-06 | H131: -4.95708267e-05 | J131: -0.0006493611298 | K131: -0.01156583008 | L131: -0.0001115233164 | M131: -0.001497835689 | N131: 5.151052537e-06
A132: =IF('DF raw data'!I137="","",'DF raw data'!I137) -> -265 | B132: =IF('DF raw data'!J137="","",'DF raw data'!J137) -> -1.55928e-05 | C132: =IF('DF raw data'!K137="","",'DF raw data'!K137) -> -5.50465e-06 | D132: =IF('DF raw data'!L137="","",'DF raw data'!L137) -> -5.07216e-05 | F132: -1.565828976e-05 | G132: -5.52776953e-06 | H132: -5.093463072e-05 | J132: -0.0006571902747 | K132: -0.01189442522 | L132: -0.0001142872011 | M132: -0.00155497929 | N132: 5.373532848e-06
A133: =IF('DF raw data'!I138="","",'DF raw data'!I138) -> -264.5 | B133: =IF('DF raw data'!J138="","",'DF raw data'!J138) -> -1.26412e-05 | C133: =IF('DF raw data'!K138="","",'DF raw data'!K138) -> -1.30636e-05 | D133: =IF('DF raw data'!L138="","",'DF raw data'!L138) -> -5.74849e-05 | F133: -1.269429304e-05 | G133: -1.311846712e-05 | H133: -5.772633658e-05 | J133: -0.0006635374212 | K133: -0.01222619393 | L133: -0.0001208464347 | M133: -0.001615402507 | N133: 5.600975733e-06
A134: =IF('DF raw data'!I139="","",'DF raw data'!I139) -> -264 | B134: =IF('DF raw data'!J139="","",'DF raw data'!J139) -> -1.17403e-05 | C134: =IF('DF raw data'!K139="","",'DF raw data'!K139) -> -8.06998e-06 | D134: =IF('DF raw data'!L139="","",'DF raw data'!L139) -> -6.3535e-05 | F134: -1.178960926e-05 | G134: -8.103873916e-06 | H134: -6.3801847e-05 | J134: -0.0006694322258 | K134: -0.01256091004 | L134: -0.0001248983716 | M134: -0.001677851693 | N134: 5.832845287e-06
A135: =IF('DF raw data'!I140="","",'DF raw data'!I140) -> -263.5 | B135: =IF('DF raw data'!J140="","",'DF raw data'!J140) -> -1.88584e-05 | C135: =IF('DF raw data'!K140="","",'DF raw data'!K140) -> -4.33714e-06 | D135: =IF('DF raw data'!L140="","",'DF raw data'!L140) -> -5.38432e-05 | F135: -1.893760528e-05 | G135: -4.355355988e-06 | H135: -5.406934144e-05 | J135: -0.0006789010285 | K135: -0.01290036056 | L135: -0.0001270760496 | M135: -0.001741389718 | N135: 6.071372751e-06
A136: =IF('DF raw data'!I141="","",'DF raw data'!I141) -> -263 | B136: =IF('DF raw data'!J141="","",'DF raw data'!J141) -> -9.24671e-06 | C136: =IF('DF raw data'!K141="","",'DF raw data'!K141) -> -2.21436e-07 | D136: =IF('DF raw data'!L141="","",'DF raw data'!L141) -> -5.53381e-05 | F136: -9.285546182e-06 | G136: -2.223660312e-07 | H136: -5.557052002e-05 | J136: -0.0006835438016 | K136: -0.01324213246 | L136: -0.0001271872326 | M136: -0.001804983334 | N136: 6.313077112e-06
A137: =IF('DF raw data'!I142="","",'DF raw data'!I142) -> -262.5 | B137: =IF('DF raw data'!J142="","",'DF raw data'!J142) -> -3.54243e-06 | C137: =IF('DF raw data'!K142="","",'DF raw data'!K142) -> 1.24893e-06 | D137: =IF('DF raw data'!L142="","",'DF raw data'!L142) -> -5.78971e-05 | F137: -3.557308206e-06 | G137: 1.254175506e-06 | H137: -5.814026782e-05 | J137: -0.0006853224557 | K137: -0.01358479369 | L137: -0.0001265601449 | M137: -0.001868263407 | N137: 6.555919281e-06
A138: =IF('DF raw data'!I143="","",'DF raw data'!I143) -> -262 | B138: =IF('DF raw data'!J143="","",'DF raw data'!J143) -> -1.70059e-05 | C138: =IF('DF raw data'!K143="","",'DF raw data'!K143) -> -8.78883e-06 | D138: =IF('DF raw data'!L143="","",'DF raw data'!L143) -> -4.5503e-05 | F138: -1.707732478e-05 | G138: -8.825743086e-06 | H138: -4.56941126e-05 | J138: -0.0006938611181 | K138: -0.01393172424 | L138: -0.0001309730164 | M138: -0.001933749915 | N138: 6.805217872e-06
A139: =IF('DF raw data'!I144="","",'DF raw data'!I144) -> -261.5 | B139: =IF('DF raw data'!J144="","",'DF raw data'!J144) -> -1.1621e-05 | C139: =IF('DF raw data'!K144="","",'DF raw data'!K144) -> -5.97055e-06 | D139: =IF('DF raw data'!L144="","",'DF raw data'!L144) -> -4.97877e-05 | F139: -1.16698082e-05 | G139: -5.99562631e-06 | H139: -4.999680834e-05 | J139: -0.0006996960222 | K139: -0.01428157226 | L139: -0.0001339708296 | M139: -0.00200073533 | N139: 7.058979225e-06
A140: =IF('DF raw data'!I145="","",'DF raw data'!I145) -> -261 | B140: =IF('DF raw data'!J145="","",'DF raw data'!J145) -> -1.45639e-05 | C140: =IF('DF raw data'!K145="","",'DF raw data'!K145) -> -3.31691e-06 | D140: =IF('DF raw data'!L145="","",'DF raw data'!L145) -> -5.64761e-05 | F140: -1.462506838e-05 | G140: -3.330841022e-06 | H140: -5.671329962e-05 | J140: -0.0007070085563 | K140: -0.01463507653 | L140: -0.0001356362501 | M140: -0.002068553455 | N140: 7.318108371e-06
A141: =IF('DF raw data'!I146="","",'DF raw data'!I146) -> -260.5 | B141: =IF('DF raw data'!J146="","",'DF raw data'!J146) -> -7.64583e-06 | C141: =IF('DF raw data'!K146="","",'DF raw data'!K146) -> -2.76154e-06 | D141: =IF('DF raw data'!L146="","",'DF raw data'!L146) -> -5.3788e-05 | F141: -7.677942486e-06 | G141: -2.773138468e-06 | H141: -5.40139096e-05 | J141: -0.0007108475276 | K141: -0.0149905003 | L141: -0.0001370228193 | M141: -0.002137064864 | N141: 7.580148101e-06
A142: =IF('DF raw data'!I147="","",'DF raw data'!I147) -> -260 | B142: =IF('DF raw data'!J147="","",'DF raw data'!J147) -> -1.5528e-05 | C142: =IF('DF raw data'!K147="","",'DF raw data'!K147) -> -2.61915e-06 | D142: =IF('DF raw data'!L147="","",'DF raw data'!L147) -> -5.19719e-05 | F142: -1.55932176e-05 | G142: -2.63015043e-06 | H142: -5.219018198e-05 | J142: -0.0007186441364 | K142: -0.01534982237 | L142: -0.0001383378946 | M142: -0.002206233812 | N142: 7.847941485e-06
A143: =IF('DF raw data'!I148="","",'DF raw data'!I148) -> -259.5 | B143: =IF('DF raw data'!J148="","",'DF raw data'!J148) -> -6.04978e-06 | C143: =IF('DF raw data'!K148="","",'DF raw data'!K148) -> -4.90965e-06 | D143: =IF('DF raw data'!L148="","",'DF raw data'!L148) -> -4.48076e-05 | F143: -6.075189076e-06 | G143: -4.93027053e-06 | H143: -4.499579192e-05 | J143: -0.0007216817309 | K143: -0.01571066323 | L143: -0.0001408030298 | M143: -0.002276635327 | N143: 8.118266492e-06
A144: =IF('DF raw data'!I149="","",'DF raw data'!I149) -> -259 | B144: =IF('DF raw data'!J149="","",'DF raw data'!J149) -> -1.59085e-05 | C144: =IF('DF raw data'!K149="","",'DF raw data'!K149) -> -5.90034e-06 | D144: =IF('DF raw data'!L149="","",'DF raw data'!L149) -> -5.80863e-05 | F144: -1.59753157e-05 | G144: -5.925121428e-06 | H144: -5.833026246e-05 | J144: -0.0007296693888 | K144: -0.01607549793 | L144: -0.0001437655905 | M144: -0.002348518122 | N144: 8.394809473e-06
A145: =IF('DF raw data'!I150="","",'DF raw data'!I150) -> -258.5 | B145: =IF('DF raw data'!J150="","",'DF raw data'!J150) -> -7.77153e-06 | C145: =IF('DF raw data'!K150="","",'DF raw data'!K150) -> -2.50906e-06 | D145: =IF('DF raw data'!L150="","",'DF raw data'!L150) -> -5.75409e-05 | F145: -7.804170426e-06 | G145: -2.519598052e-06 | H145: -5.778257178e-05 | J145: -0.000733571474 | K145: -0.01644228366 | L145: -0.0001450253896 | M145: -0.002421030817 | N145: 8.674389209e-06
A146: =IF('DF raw data'!I151="","",'DF raw data'!I151) -> -258 | B146: =IF('DF raw data'!J151="","",'DF raw data'!J151) -> -1.03388e-05 | C146: =IF('DF raw data'!K151="","",'DF raw data'!K151) -> -6.47158e-06 | D146: =IF('DF raw data'!L151="","",'DF raw data'!L151) -> -5.06836e-05 | F146: -1.038222296e-05 | G146: -6.498760636e-06 | H146: -5.089647112e-05 | J146: -0.0007387625855 | K146: -0.01681166496 | L146: -0.0001482747699 | M146: -0.002495168202 | N146: 8.958266991e-06
A147: =IF('DF raw data'!I152="","",'DF raw data'!I152) -> -257.5 | B147: =IF('DF raw data'!J152="","",'DF raw data'!J152) -> -7.71303e-06 | C147: =IF('DF raw data'!K152="","",'DF raw data'!K152) -> -1.04809e-05 | D147: =IF('DF raw data'!L152="","",'DF raw data'!L152) -> -4.87515e-05 | F147: -7.745424726e-06 | G147: -1.052491978e-05 | H147: -4.89562563e-05 | J147: -0.0007426352978 | K147: -0.0171829826 | L147: -0.0001535372298 | M147: -0.002571936817 | N147: 9.245807424e-06
A148: =IF('DF raw data'!I153="","",'DF raw data'!I153) -> -257 | B148: =IF('DF raw data'!J153="","",'DF raw data'!J153) -> -1.28373e-05 | C148: =IF('DF raw data'!K153="","",'DF raw data'!K153) -> -7.77202e-06 | D148: =IF('DF raw data'!L153="","",'DF raw data'!L153) -> -5.12542e-05 | F148: -1.289121666e-05 | G148: -7.804662484e-06 | H148: -5.146946764e-05 | J148: -0.0007490809062 | K148: -0.01755752306 | L148: -0.000157439561 | M148: -0.002650656597 | N148: 9.538762134e-06
A149: =IF('DF raw data'!I154="","",'DF raw data'!I154) -> -256.5 | B149: =IF('DF raw data'!J154="","",'DF raw data'!J154) -> -8.47114e-06 | C149: =IF('DF raw data'!K154="","",'DF raw data'!K154) -> -3.84626e-06 | D149: =IF('DF raw data'!L154="","",'DF raw data'!L154) -> -6.52922e-05 | F149: -8.506718788e-06 | G149: -3.862414292e-06 | H149: -6.556642724e-05 | J149: -0.0007533342656 | K149: -0.01793419019 | L149: -0.0001593707682 | M149: -0.002730341981 | N149: 9.835217913e-06
A150: =IF('DF raw data'!I155="","",'DF raw data'!I155) -> -256 | B150: =IF('DF raw data'!J155="","",'DF raw data'!J155) -> -6.93546e-06 | C150: =IF('DF raw data'!K155="","",'DF raw data'!K155) -> -8.48232e-06 | D150: =IF('DF raw data'!L155="","",'DF raw data'!L155) -> -6.22129e-05 | F150: -6.964588932e-06 | G150: -8.517945744e-06 | H150: -6.247419418e-05 | J150: -0.00075681656 | K150: -0.01831259847 | L150: -0.000163629741 | M150: -0.002812156852 | N150: 1.013499091e-05
A151: =IF('DF raw data'!I156="","",'DF raw data'!I156) -> -255.5 | B151: =IF('DF raw data'!J156="","",'DF raw data'!J156) -> -1.24533e-05 | C151: =IF('DF raw data'!K156="","",'DF raw data'!K156) -> -8.3189e-06 | D151: =IF('DF raw data'!L156="","",'DF raw data'!L156) -> -5.04887e-05 | F151: -1.250560386e-05 | G151: -8.35383938e-06 | H151: -5.070075254e-05 | J151: -0.000763069362 | K151: -0.01869413315 | L151: -0.0001678066607 | M151: -0.002896060182 | N151: 1.044020787e-05
A152: =IF('DF raw data'!I157="","",'DF raw data'!I157) -> -255 | B152: =IF('DF raw data'!J157="","",'DF raw data'!J157) -> -2.69305e-05 | C152: =IF('DF raw data'!K157="","",'DF raw data'!K157) -> -4.0422e-06 | D152: =IF('DF raw data'!L157="","",'DF raw data'!L157) -> -5.58367e-05 | F152: -2.70436081e-05 | G152: -4.05917724e-06 | H152: -5.607121414e-05 | J152: -0.000776591166 | K152: -0.01908242873 | L152: -0.0001698362493 | M152: -0.002980978307 | N152: 1.075617697e-05
A153: =IF('DF raw data'!I158="","",'DF raw data'!I158) -> -254.5 | B153: =IF('DF raw data'!J158="","",'DF raw data'!J158) -> -1.37295e-05 | C153: =IF('DF raw data'!K158="","",'DF raw data'!K158) -> -1.8049e-06 | D153: =IF('DF raw data'!L158="","",'DF raw data'!L158) -> -5.85946e-05 | F153: -1.37871639e-05 | G153: -1.81248058e-06 | H153: -5.884069732e-05 | J153: -0.000783484748 | K153: -0.01947417111 | L153: -0.0001707424896 | M153: -0.003066349551 | N153: 1.107767764e-05
A154: =IF('DF raw data'!I159="","",'DF raw data'!I159) -> -254 | B154: =IF('DF raw data'!J159="","",'DF raw data'!J159) -> -9.88867e-06 | C154: =IF('DF raw data'!K159="","",'DF raw data'!K159) -> -2.04444e-06 | D154: =IF('DF raw data'!L159="","",'DF raw data'!L159) -> -5.33772e-05 | F154: -9.930202414e-06 | G154: -2.053026648e-06 | H154: -5.360138424e-05 | J154: -0.0007884498492 | K154: -0.01986839603 | L154: -0.000171769003 | M154: -0.003152234053 | N154: 1.140325652e-05
A155: =IF('DF raw data'!I160="","",'DF raw data'!I160) -> -253.5 | B155: =IF('DF raw data'!J160="","",'DF raw data'!J160) -> -2.75099e-05 | C155: =IF('DF raw data'!K160="","",'DF raw data'!K160) -> -1.04458e-05 | D155: =IF('DF raw data'!L160="","",'DF raw data'!L160) -> -5.12936e-05 | F155: -2.762544158e-05 | G155: -1.048967236e-05 | H155: -5.150903312e-05 | J155: -0.00080226257 | K155: -0.02026952732 | L155: -0.0001770138391 | M155: -0.003240740972 | N155: 1.174073609e-05
A156: =IF('DF raw data'!I161="","",'DF raw data'!I161) -> -253 | B156: =IF('DF raw data'!J161="","",'DF raw data'!J161) -> -1.87318e-05 | C156: =IF('DF raw data'!K161="","",'DF raw data'!K161) -> -8.79926e-06 | D156: =IF('DF raw data'!L161="","",'DF raw data'!L161) -> -5.14837e-05 | F156: -1.881047356e-05 | G156: -8.836216892e-06 | H156: -5.169993154e-05 | J156: -0.0008116678067 | K156: -0.02067536122 | L156: -0.0001814319476 | M156: -0.003331456946 | N156: 1.208659718e-05
A157: =IF('DF raw data'!I162="","",'DF raw data'!I162) -> -252.5 | B157: =IF('DF raw data'!J162="","",'DF raw data'!J162) -> -1.68769e-05 | C157: =IF('DF raw data'!K162="","",'DF raw data'!K162) -> -4.19065e-06 | D157: =IF('DF raw data'!L162="","",'DF raw data'!L162) -> -4.65249e-05 | F157: -1.694778298e-05 | G157: -4.20825073e-06 | H157: -4.672030458e-05 | J157: -0.0008201416982 | K157: -0.02108543207 | L157: -0.0001835360729 | M157: -0.003423224983 | N157: 1.243975612e-05
A158: =IF('DF raw data'!I163="","",'DF raw data'!I163) -> -252 | B158: =IF('DF raw data'!J163="","",'DF raw data'!J163) -> -2.36592e-05 | C158: =IF('DF raw data'!K163="","",'DF raw data'!K163) -> -6.94006e-06 | D158: =IF('DF raw data'!L163="","",'DF raw data'!L163) -> -6.13014e-05 | F158: -2.375856864e-05 | G158: -6.969208252e-06 | H158: -6.155886588e-05 | J158: -0.0008320209825 | K158: -0.02150144256 | L158: -0.0001870206771 | M158: -0.003516735321 | N158: 1.280337395e-05
A159: =IF('DF raw data'!I164="","",'DF raw data'!I164) -> -251.5 | B159: =IF('DF raw data'!J164="","",'DF raw data'!J164) -> -1.78906e-05 | C159: =IF('DF raw data'!K164="","",'DF raw data'!K164) -> -1.08211e-05 | D159: =IF('DF raw data'!L164="","",'DF raw data'!L164) -> -6.44432e-05 | F159: -1.796574052e-05 | G159: -1.086654862e-05 | H159: -6.471386144e-05 | J159: -0.0008410038528 | K159: -0.02192194449 | L159: -0.0001924539514 | M159: -0.003612962297 | N159: 1.317553695e-05
A160: =IF('DF raw data'!I165="","",'DF raw data'!I165) -> -251 | B160: =IF('DF raw data'!J165="","",'DF raw data'!J165) -> -1.87324e-05 | C160: =IF('DF raw data'!K165="","",'DF raw data'!K165) -> -7.64901e-06 | D160: =IF('DF raw data'!L165="","",'DF raw data'!L165) -> -5.06212e-05 | F160: -1.881107608e-05 | G160: -7.681135842e-06 | H160: -5.083380904e-05 | J160: -0.0008504093908 | K160: -0.02234714918 | L160: -0.0001962945193 | M160: -0.003711109557 | N160: 1.355640079e-05
A161: =IF('DF raw data'!I166="","",'DF raw data'!I166) -> -250.5 | B161: =IF('DF raw data'!J166="","",'DF raw data'!J166) -> -6.54309e-06 | C161: =IF('DF raw data'!K166="","",'DF raw data'!K166) -> -5.97671e-06 | D161: =IF('DF raw data'!L166="","",'DF raw data'!L166) -> -7.447e-05 | F161: -6.570570978e-06 | G161: -6.001812182e-06 | H161: -7.4782774e-05 | J161: -0.0008536946763 | K161: -0.02277399652 | L161: -0.0001992954254 | M161: -0.003810757269 | N161: 1.394065742e-05
A162: =IF('DF raw data'!I167="","",'DF raw data'!I167) -> -250 | B162: =IF('DF raw data'!J167="","",'DF raw data'!J167) -> -2.03268e-05 | C162: =IF('DF raw data'!K167="","",'DF raw data'!K167) -> -1.33947e-06 | D162: =IF('DF raw data'!L167="","",'DF raw data'!L167) -> -6.21431e-05 | F162: -2.041217256e-05 | G162: -1.345095774e-06 | H162: -6.240410102e-05 | J162: -0.0008639007626 | K162: -0.0232059469 | L162: -0.0001999679733 | M162: -0.003910741256 | N162: 1.433381328e-05
A163: =IF('DF raw data'!I168="","",'DF raw data'!I168) -> -249.5 | B163: =IF('DF raw data'!J168="","",'DF raw data'!J168) -> -1.30897e-05 | C163: =IF('DF raw data'!K168="","",'DF raw data'!K168) -> -6.93908e-06 | D163: =IF('DF raw data'!L168="","",'DF raw data'!L168) -> -5.71854e-05 | F163: -1.314467674e-05 | G163: -6.968224136e-06 | H163: -5.742557868e-05 | J163: -0.000870473101 | K163: -0.02364118345 | L163: -0.0002034520853 | M163: -0.004012467299 | N163: 1.473337136e-05
A164: =IF('DF raw data'!I169="","",'DF raw data'!I169) -> -249 | B164: =IF('DF raw data'!J169="","",'DF raw data'!J169) -> -1.31546e-05 | C164: =IF('DF raw data'!K169="","",'DF raw data'!K169) -> -4.04753e-06 | D164: =IF('DF raw data'!L169="","",'DF raw data'!L169) -> -5.60332e-05 | F164: -1.320984932e-05 | G164: -4.064529626e-06 | H164: -5.626853944e-05 | J164: -0.0008770780256 | K164: -0.02407972247 | L164: -0.0002054843502 | M164: -0.004115209474 | N164: 1.51391162e-05
A165: =IF('DF raw data'!I170="","",'DF raw data'!I170) -> -248.5 | B165: =IF('DF raw data'!J170="","",'DF raw data'!J170) -> -4.88771e-06 | C165: =IF('DF raw data'!K170="","",'DF raw data'!K170) -> -7.59614e-06 | D165: =IF('DF raw data'!L170="","",'DF raw data'!L170) -> -5.83816e-05 | F165: -4.908238382e-06 | G165: -7.628043788e-06 | H165: -5.862680272e-05 | J165: -0.0008795321448 | K165: -0.02451948854 | L165: -0.0002092983721 | M165: -0.00421985866 | N165: 1.554780751e-05
A166: =IF('DF raw data'!I171="","",'DF raw data'!I171) -> -248 | B166: =IF('DF raw data'!J171="","",'DF raw data'!J171) -> -2.19529e-06 | C166: =IF('DF raw data'!K171="","",'DF raw data'!K171) -> 4.46717e-07 | D166: =IF('DF raw data'!L171="","",'DF raw data'!L171) -> -6.02651e-05 | F166: -2.204510218e-06 | G166: 4.485932114e-07 | H166: -6.051821342e-05 | J166: -0.0008806343999 | K166: -0.02495980574 | L166: -0.0002090740754 | M166: -0.004324395697 | N166: 1.595742196e-05
A167: =IF('DF raw data'!I172="","",'DF raw data'!I172) -> -247.5 | B167: =IF('DF raw data'!J172="","",'DF raw data'!J172) -> -1.63484e-05 | C167: =IF('DF raw data'!K172="","",'DF raw data'!K172) -> 3.77974e-06 | D167: =IF('DF raw data'!L172="","",'DF raw data'!L172) -> -7.10484e-05 | F167: -1.641706328e-05 | G167: 3.795614908e-06 | H167: -7.134680328e-05 | J167: -0.0008888429316 | K167: -0.0254042272 | L167: -0.000207176268 | M167: -0.004427983831 | N167: 1.637390384e-05
A168: =IF('DF raw data'!I173="","",'DF raw data'!I173) -> -247 | B168: =IF('DF raw data'!J173="","",'DF raw data'!J173) -> -1.23869e-05 | C168: =IF('DF raw data'!K173="","",'DF raw data'!K173) -> -4.29959e-06 | D168: =IF('DF raw data'!L173="","",'DF raw data'!L173) -> -5.4251e-05 | F168: -1.243892498e-05 | G168: -4.317648278e-06 | H168: -5.44788542e-05 | J168: -0.0008950623941 | K168: -0.0258517584 | L168: -0.0002093350921 | M168: -0.004532651378 | N168: 1.679638278e-05
A169: =IF('DF raw data'!I174="","",'DF raw data'!I174) -> -246.5 | B169: =IF('DF raw data'!J174="","",'DF raw data'!J174) -> -2.52044e-05 | C169: =IF('DF raw data'!K174="","",'DF raw data'!K174) -> -1.07825e-05 | D169: =IF('DF raw data'!L174="","",'DF raw data'!L174) -> -4.97042e-05 | F169: -2.531025848e-05 | G169: -1.08277865e-05 | H169: -4.991295764e-05 | J169: -0.0009077175233 | K169: -0.02630561716 | L169: -0.0002147489854 | M169: -0.00464002587 | N169: 1.723141689e-05
A170: =IF('DF raw data'!I175="","",'DF raw data'!I175) -> -246 | B170: =IF('DF raw data'!J175="","",'DF raw data'!J175) -> -9.50727e-06 | C170: =IF('DF raw data'!K175="","",'DF raw data'!K175) -> -6.55971e-06 | D170: =IF('DF raw data'!L175="","",'DF raw data'!L175) -> -4.86884e-05 | F170: -9.547200534e-06 | G170: -6.587260782e-06 | H170: -4.889289128e-05 | J170: -0.0009124911236 | K170: -0.02676186273 | L170: -0.0002180426158 | M170: -0.004749047178 | N170: 1.767150821e-05
A171: =IF('DF raw data'!I176="","",'DF raw data'!I176) -> -245.5 | B171: =IF('DF raw data'!J176="","",'DF raw data'!J176) -> -2.09788e-05 | C171: =IF('DF raw data'!K176="","",'DF raw data'!K176) -> -1.35012e-05 | D171: =IF('DF raw data'!L176="","",'DF raw data'!L176) -> -4.46439e-05 | F171: -2.106691096e-05 | G171: -1.355790504e-05 | H171: -4.483140438e-05 | J171: -0.0009230245791 | K171: -0.02722337501 | L171: -0.0002248215683 | M171: -0.004861457962 | N171: 1.812276777e-05
A172: =IF('DF raw data'!I177="","",'DF raw data'!I177) -> -245 | B172: =IF('DF raw data'!J177="","",'DF raw data'!J177) -> -1.14268e-05 | C172: =IF('DF raw data'!K177="","",'DF raw data'!K177) -> -1.65453e-05 | D172: =IF('DF raw data'!L177="","",'DF raw data'!L177) -> -5.25823e-05 | F172: -1.147479256e-05 | G172: -1.661479026e-05 | H172: -5.280314566e-05 | J172: -0.0009287619753 | K172: -0.027687756 | L172: -0.0002331289634 | M172: -0.004978022444 | N172: 1.858124173e-05
A173: =IF('DF raw data'!I178="","",'DF raw data'!I178) -> -244.5 | B173: =IF('DF raw data'!J178="","",'DF raw data'!J178) -> -1.84741e-05 | C173: =IF('DF raw data'!K178="","",'DF raw data'!K178) -> -1.48618e-05 | D173: =IF('DF raw data'!L178="","",'DF raw data'!L178) -> -5.35692e-05 | F173: -1.855169122e-05 | G173: -1.492421956e-05 | H173: -5.379419064e-05 | J173: -0.0009380378209 | K173: -0.02815677491 | L173: -0.0002405910732 | M173: -0.005098317981 | N173: 1.905014124e-05
A174: =IF('DF raw data'!I179="","",'DF raw data'!I179) -> -244 | B174: =IF('DF raw data'!J179="","",'DF raw data'!J179) -> -6.68168e-06 | C174: =IF('DF raw data'!K179="","",'DF raw data'!K179) -> -1.46533e-05 | D174: =IF('DF raw data'!L179="","",'DF raw data'!L179) -> -5.83367e-05 | F174: -6.709743056e-06 | G174: -1.471484386e-05 | H174: -5.858171414e-05 | J174: -0.0009413926925 | K174: -0.02862747126 | L174: -0.0002479484951 | M174: -0.005222292228 | N174: 1.952399056e-05
A175: =IF('DF raw data'!I180="","",'DF raw data'!I180) -> -243.5 | B175: =IF('DF raw data'!J180="","",'DF raw data'!J180) -> -2.0527e-05 | C175: =IF('DF raw data'!K180="","",'DF raw data'!K180) -> -1.93569e-05 | D175: =IF('DF raw data'!L180="","",'DF raw data'!L180) -> -4.98992e-05 | F175: -2.06132134e-05 | G175: -1.943819898e-05 | H175: -5.010877664e-05 | J175: -0.0009516992992 | K175: -0.02910332091 | L175: -0.0002576675946 | M175: -0.005351126025 | N175: 2.001005264e-05
A176: =IF('DF raw data'!I181="","",'DF raw data'!I181) -> -243 | B176: =IF('DF raw data'!J181="","",'DF raw data'!J181) -> -4.4395e-06 | C176: =IF('DF raw data'!K181="","",'DF raw data'!K181) -> -1.16521e-05 | D176: =IF('DF raw data'!L181="","",'DF raw data'!L181) -> -5.77364e-05 | F176: -4.4581459e-06 | G176: -1.170103882e-05 | H176: -5.797889288e-05 | J176: -0.0009539283721 | K176: -0.02958028509 | L176: -0.000263518114 | M176: -0.005482885082 | N176: 2.04997632e-05
A177: =IF('DF raw data'!I182="","",'DF raw data'!I182) -> -242.5 | B177: =IF('DF raw data'!J182="","",'DF raw data'!J182) -> -1.65447e-05 | C177: =IF('DF raw data'!K182="","",'DF raw data'!K182) -> -1.53249e-05 | D177: =IF('DF raw data'!L182="","",'DF raw data'!L182) -> -6.48731e-05 | F177: -1.661418774e-05 | G177: -1.538926458e-05 | H177: -6.514556702e-05 | J177: -0.000962235466 | K177: -0.03006140283 | L177: -0.0002712127463 | M177: -0.005618491456 | N177: 2.099948993e-05
A178: =IF('DF raw data'!I183="","",'DF raw data'!I183) -> -242 | B178: =IF('DF raw data'!J183="","",'DF raw data'!J183) -> -1.90471e-05 | C178: =IF('DF raw data'!K183="","",'DF raw data'!K183) -> -8.75761e-06 | D178: =IF('DF raw data'!L183="","",'DF raw data'!L183) -> -5.948e-05 | F178: -1.912709782e-05 | G178: -8.794391962e-06 | H178: -5.9729816e-05 | J178: -0.0009717990149 | K178: -0.03054730234 | L178: -0.0002756099423 | M178: -0.005756296427 | N178: 2.150966701e-05
A179: =IF('DF raw data'!I184="","",'DF raw data'!I184) -> -241.5 | B179: =IF('DF raw data'!J184="","",'DF raw data'!J184) -> -2.7888e-05 | C179: =IF('DF raw data'!K184="","",'DF raw data'!K184) -> -1.23836e-05 | D179: =IF('DF raw data'!L184="","",'DF raw data'!L184) -> -6.13793e-05 | F179: -2.80051296e-05 | G179: -1.243561112e-05 | H179: -6.163709306e-05 | J179: -0.0009858015797 | K179: -0.03104020312 | L179: -0.0002818277479 | M179: -0.005897210301 | N179: 2.203528283e-05
A180: =IF('DF raw data'!I185="","",'DF raw data'!I185) -> -241 | B180: =IF('DF raw data'!J185="","",'DF raw data'!J185) -> -1.05892e-05 | C180: =IF('DF raw data'!K185="","",'DF raw data'!K185) -> -1.43267e-05 | D180: =IF('DF raw data'!L185="","",'DF raw data'!L185) -> -5.96665e-05 | F180: -1.063367464e-05 | G180: -1.438687214e-05 | H180: -5.99170993e-05 | J180: -0.000991118417 | K180: -0.03153576233 | L180: -0.0002890211839 | M180: -0.006041720893 | N180: 2.256820731e-05
A181: =IF('DF raw data'!I186="","",'DF raw data'!I186) -> -240.5 | B181: =IF('DF raw data'!J186="","",'DF raw data'!J186) -> -1.5531e-05 | C181: =IF('DF raw data'!K186="","",'DF raw data'!K186) -> -8.74981e-06 | D181: =IF('DF raw data'!L186="","",'DF raw data'!L186) -> -4.73367e-05 | F181: -1.55962302e-05 | G181: -8.786559202e-06 | H181: -4.753551414e-05 | J181: -0.0009989165321 | K181: -0.0320352206 | L181: -0.0002934144635 | M181: -0.006188428124 | N181: 2.311017045e-05
A182: =IF('DF raw data'!I187="","",'DF raw data'!I187) -> -240 | B182: =IF('DF raw data'!J187="","",'DF raw data'!J187) -> -1.93016e-05 | C182: =IF('DF raw data'!K187="","",'DF raw data'!K187) -> -1.12892e-05 | D182: =IF('DF raw data'!L187="","",'DF raw data'!L187) -> -6.20901e-05 | F182: -1.938266672e-05 | G182: -1.133661464e-05 | H182: -6.235087842e-05 | J182: -0.001008607865 | K182: -0.03253952453 | L182: -0.0002990827709 | M182: -0.00633796951 | N182: 2.366354062e-05
A183: =IF('DF raw data'!I188="","",'DF raw data'!I188) -> -239.5 | B183: =IF('DF raw data'!J188="","",'DF raw data'!J188) -> -2.136e-05 | C183: =IF('DF raw data'!K188="","",'DF raw data'!K188) -> -1.34085e-05 | D183: =IF('DF raw data'!L188="","",'DF raw data'!L188) -> -4.95896e-05 | F183: -2.1449712e-05 | G183: -1.34648157e-05 | H183: -4.979787632e-05 | J183: -0.001019332721 | K183: -0.03304919089 | L183: -0.0003058151787 | M183: -0.006490877099 | N183: 2.422982168e-05
A184: =IF('DF raw data'!I189="","",'DF raw data'!I189) -> -239 | B184: =IF('DF raw data'!J189="","",'DF raw data'!J189) -> -1.05897e-05 | C184: =IF('DF raw data'!K189="","",'DF raw data'!K189) -> -3.71077e-06 | D184: =IF('DF raw data'!L189="","",'DF raw data'!L189) -> -5.88109e-05 | F184: -1.063417674e-05 | G184: -3.726355234e-06 | H184: -5.905790578e-05 | J184: -0.00102464981 | K184: -0.0335615158 | L184: -0.0003076783563 | M184: -0.006644716277 | N184: 2.480210828e-05
A185: =IF('DF raw data'!I190="","",'DF raw data'!I190) -> -238.5 | B185: =IF('DF raw data'!J190="","",'DF raw data'!J190) -> -1.27098e-05 | C185: =IF('DF raw data'!K190="","",'DF raw data'!K190) -> -5.48038e-06 | D185: =IF('DF raw data'!L190="","",'DF raw data'!L190) -> -5.01883e-05 | F185: -1.276318116e-05 | G185: -5.503397596e-06 | H185: -5.039909086e-05 | J185: -0.0010310314 | K185: -0.0340770315 | L185: -0.0003104300551 | M185: -0.006799931305 | N185: 2.538180456e-05
A186: =IF('DF raw data'!I191="","",'DF raw data'!I191) -> -238 | B186: =IF('DF raw data'!J191="","",'DF raw data'!J191) -> -2.02664e-05 | C186: =IF('DF raw data'!K191="","",'DF raw data'!K191) -> -1.20249e-05 | D186: =IF('DF raw data'!L191="","",'DF raw data'!L191) -> -5.64816e-05 | F186: -2.035151888e-05 | G186: -1.207540458e-05 | H186: -5.671882272e-05 | J186: -0.00104120716 | K186: -0.03459763508 | L186: -0.0003164677574 | M186: -0.006958165184 | N186: 2.597393666e-05
A187: =IF('DF raw data'!I192="","",'DF raw data'!I192) -> -237.5 | B187: =IF('DF raw data'!J192="","",'DF raw data'!J192) -> -1.84807e-05 | C187: =IF('DF raw data'!K192="","",'DF raw data'!K192) -> -1.8164e-05 | D187: =IF('DF raw data'!L192="","",'DF raw data'!L192) -> -4.34724e-05 | F187: -1.855831894e-05 | G187: -1.82402888e-05 | H187: -4.365498408e-05 | J187: -0.001050486319 | K187: -0.03512287824 | L187: -0.0003255879018 | M187: -0.007120959135 | N187: 2.657870115e-05
A188: =IF('DF raw data'!I193="","",'DF raw data'!I193) -> -237 | B188: =IF('DF raw data'!J193="","",'DF raw data'!J193) -> -1.43702e-05 | C188: =IF('DF raw data'!K193="","",'DF raw data'!K193) -> -1.75498e-05 | D188: =IF('DF raw data'!L193="","",'DF raw data'!L193) -> -5.88655e-05 | F188: -1.443055484e-05 | G188: -1.762350916e-05 | H188: -5.91127351e-05 | J188: -0.001057701597 | K188: -0.03565172904 | L188: -0.0003343996564 | M188: -0.007288158963 | N188: 2.719397905e-05
A189: =IF('DF raw data'!I194="","",'DF raw data'!I194) -> -236.5 | B189: =IF('DF raw data'!J194="","",'DF raw data'!J194) -> -2.00722e-05 | C189: =IF('DF raw data'!K194="","",'DF raw data'!K194) -> -2.14495e-05 | D189: =IF('DF raw data'!L194="","",'DF raw data'!L194) -> -5.94334e-05 | F189: -2.015650324e-05 | G189: -2.15395879e-05 | H189: -5.968302028e-05 | J189: -0.001067779848 | K189: -0.03618561896 | L189: -0.0003451694503 | M189: -0.007460743688 | N189: 2.782362693e-05
A190: =IF('DF raw data'!I195="","",'DF raw data'!I195) -> -236 | B190: =IF('DF raw data'!J195="","",'DF raw data'!J195) -> -7.32053e-06 | C190: =IF('DF raw data'!K195="","",'DF raw data'!K195) -> -1.76175e-05 | D190: =IF('DF raw data'!L195="","",'DF raw data'!L195) -> -6.11725e-05 | F190: -7.351276226e-06 | G190: -1.76914935e-05 | H190: -6.14294245e-05 | J190: -0.001071455486 | K190: -0.0367213467 | L190: -0.0003540151971 | M190: -0.007637751286 | N190: 2.846029874e-05
A191: =IF('DF raw data'!I196="","",'DF raw data'!I196) -> -235.5 | B191: =IF('DF raw data'!J196="","",'DF raw data'!J196) -> -2.18803e-05 | C191: =IF('DF raw data'!K196="","",'DF raw data'!K196) -> -1.34043e-05 | D191: =IF('DF raw data'!L196="","",'DF raw data'!L196) -> -3.76631e-05 | F191: -2.197219726e-05 | G191: -1.346059806e-05 | H191: -3.782128502e-05 | J191: -0.001082441585 | K191: -0.0372625675 | L191: -0.0003607454961 | M191: -0.007818124034 | N191: 2.911120729e-05
A192: =IF('DF raw data'!I197="","",'DF raw data'!I197) -> -235 | B192: =IF('DF raw data'!J197="","",'DF raw data'!J197) -> -1.08454e-05 | C192: =IF('DF raw data'!K197="","",'DF raw data'!K197) -> -1.63268e-05 | D192: =IF('DF raw data'!L197="","",'DF raw data'!L197) -> -5.97731e-05 | F192: =(1-$G$1*($B$49-$G$2))*B192 -> -1.089095068e-05 | G192: -1.639537256e-05 | H192: -6.002414702e-05 | J192: =F192*$G$3+J191 -> -0.00108788706 | K192: =J192*$G$3+K191 -> -0.03780651103 | L192: =G192*$G$3+L191 -> -0.0003689431824 | M192: =L192*$G$3+M191 -> -0.008002595626 | N192: =(J192^2+L192^2)*$G$3+N191 -> 2.977101595e-05
A193: =IF('DF raw data'!I198="","",'DF raw data'!I198) -> -234.5 | B193: =IF('DF raw data'!J198="","",'DF raw data'!J198) -> -2.02617e-05 | C193: =IF('DF raw data'!K198="","",'DF raw data'!K198) -> -1.97425e-05 | D193: =IF('DF raw data'!L198="","",'DF raw data'!L198) -> -6.3846e-05 | F193: -2.034679914e-05 | G193: -1.98254185e-05 | H193: -6.41141532e-05 | J193: -0.00109806046 | K193: -0.03835554126 | L193: -0.0003788558916 | M193: -0.008192023572 | N193: 3.044565023e-05
A194: =IF('DF raw data'!I199="","",'DF raw data'!I199) -> -234 | B194: =IF('DF raw data'!J199="","",'DF raw data'!J199) -> -7.32403e-06 | C194: =IF('DF raw data'!K199="","",'DF raw data'!K199) -> -1.55872e-05 | D194: =IF('DF raw data'!L199="","",'DF raw data'!L199) -> -5.5769e-05 | F194: -7.354790926e-06 | G194: -1.565266624e-05 | H194: -5.60032298e-05 | J194: -0.001101737856 | K194: -0.03890641018 | L194: -0.0003866822248 | M194: -0.008385364684 | N194: 3.112732495e-05
A195: =IF('DF raw data'!I200="","",'DF raw data'!I200) -> -233.5 | B195: =IF('DF raw data'!J200="","",'DF raw data'!J200) -> -1.47562e-05 | C195: =IF('DF raw data'!K200="","",'DF raw data'!K200) -> -1.92494e-05 | D195: =IF('DF raw data'!L200="","",'DF raw data'!L200) -> -5.64772e-05 | F195: -1.481817604e-05 | G195: -1.933024748e-05 | H195: -5.671440424e-05 | J195: -0.001109146944 | K195: -0.03946098366 | L195: -0.0003963473485 | M195: -0.008583538358 | N195: 3.182097404e-05
A196: =IF('DF raw data'!I201="","",'DF raw data'!I201) -> -233 | B196: =IF('DF raw data'!J201="","",'DF raw data'!J201) -> -2.38471e-05 | C196: =IF('DF raw data'!K201="","",'DF raw data'!K201) -> -1.15135e-05 | D196: =IF('DF raw data'!L201="","",'DF raw data'!L201) -> -6.76078e-05 | F196: -2.394725782e-05 | G196: -1.15618567e-05 | H196: -6.789175276e-05 | J196: -0.001121120572 | K196: -0.04002154394 | L196: -0.0004021282769 | M196: -0.008784602497 | N196: 3.253028328e-05
A197: =IF('DF raw data'!I202="","",'DF raw data'!I202) -> -232.5 | B197: =IF('DF raw data'!J202="","",'DF raw data'!J202) -> -2.55157e-05 | C197: =IF('DF raw data'!K202="","",'DF raw data'!K202) -> -2.04854e-06 | D197: =IF('DF raw data'!L202="","",'DF raw data'!L202) -> -6.3706e-05 | F197: -2.562286594e-05 | G197: -2.057143868e-06 | H197: -6.39735652e-05 | J197: -0.001133932005 | K197: -0.04058850994 | L197: -0.0004031568488 | M197: -0.008986180921 | N197: 3.32544519e-05
A198: =IF('DF raw data'!I203="","",'DF raw data'!I203) -> -232 | B198: =IF('DF raw data'!J203="","",'DF raw data'!J203) -> -1.60989e-05 | C198: =IF('DF raw data'!K203="","",'DF raw data'!K203) -> -1.49886e-05 | D198: =IF('DF raw data'!L203="","",'DF raw data'!L203) -> -6.05198e-05 | F198: -1.616651538e-05 | G198: -1.505155212e-05 | H198: -6.077398316e-05 | J198: -0.001142015263 | K198: -0.04115951758 | L198: -0.0004106826249 | M198: -0.009191522233 | N198: 3.399088144e-05
A199: =IF('DF raw data'!I204="","",'DF raw data'!I204) -> -231.5 | B199: =IF('DF raw data'!J204="","",'DF raw data'!J204) -> -1.9687e-05 | C199: =IF('DF raw data'!K204="","",'DF raw data'!K204) -> -2.47683e-05 | D199: =IF('DF raw data'!L204="","",'DF raw data'!L204) -> -6.0612e-05 | F199: -1.97696854e-05 | G199: -2.487232686e-05 | H199: -6.08665704e-05 | J199: -0.001151900106 | K199: -0.04173546763 | L199: -0.0004231187883 | M199: -0.009403081628 | N199: 3.474383312e-05
A200: =IF('DF raw data'!I205="","",'DF raw data'!I205) -> -231 | B200: =IF('DF raw data'!J205="","",'DF raw data'!J205) -> -1.02635e-05 | C200: =IF('DF raw data'!K205="","",'DF raw data'!K205) -> -1.89137e-05 | D200: =IF('DF raw data'!L205="","",'DF raw data'!L205) -> -6.81783e-05 | F200: -1.03066067e-05 | G200: -1.899313754e-05 | H200: -6.846464886e-05 | J200: -0.001157053409 | K200: -0.04231399433 | L200: -0.0004326153571 | M200: -0.009619389306 | N200: 3.550679744e-05
A201: =IF('DF raw data'!I206="","",'DF raw data'!I206) -> -230.5 | B201: =IF('DF raw data'!J206="","",'DF raw data'!J206) -> -1.93294e-06 | C201: =IF('DF raw data'!K206="","",'DF raw data'!K206) -> -1.43522e-05 | D201: =IF('DF raw data'!L206="","",'DF raw data'!L206) -> -6.96138e-05 | F201: -1.941058348e-06 | G201: -1.441247924e-05 | H201: -6.990617796e-05 | J201: -0.001158023938 | K201: -0.0428930063 | L201: -0.0004398215967 | M201: -0.009839300104 | N201: 3.627402868e-05
... 1061 more rows

Sheet 10 y=0.1
A1: =IF('DF raw data'!M1="","",'DF raw data'!M1) -> Number of header lines | B1: =IF('DF raw data'!N1="","",'DF raw data'!N1) -> 54 | C1: =IF('DF raw data'!O1="","",'DF raw data'!O1) ->  | D1: =IF('DF raw data'!P1="","",'DF raw data'!P1) ->  | F1: T_coeff | G1: -0.001 | H1: /degC | J1: ='10 y=-0.2'!J1 -> IBy total | K1: ='10 y=-0.2'!K1 -> -10.99455199 | L1: ='10 y=-0.2'!L1 -> muTm | R1: ='10 y=-0.2'!R1 -> DF ref | S1: ='10 y=-0.2'!S1 -> 1
A2: =IF('DF raw data'!M2="","",'DF raw data'!M2) -> Measured by | B2: =IF('DF raw data'!N2="","",'DF raw data'!N2) -> Danfysik | C2: =IF('DF raw data'!O2="","",'DF raw data'!O2) ->  | D2: =IF('DF raw data'!P2="","",'DF raw data'!P2) ->  | F2: Tcorr | G2: 20 | H2: degC | J2: JBy total | K2: =K1262 -> -12.29037867 | L2: muTm^2 | M2: =M1262 -> 1.762694292
A3: =IF('DF raw data'!M3="","",'DF raw data'!M3) -> Operator | B3: =IF('DF raw data'!N3="","",'DF raw data'!N3) -> PMHA | C3: =IF('DF raw data'!O3="","",'DF raw data'!O3) ->  | D3: =IF('DF raw data'!P3="","",'DF raw data'!P3) ->  | F3: Step | G3: =A63-A62 -> 0.5 | H3: mm | J3: PI total | K3: =N1262 -> 10529.16159 | L3: T^2mm^3
A4: =IF('DF raw data'!M4="","",'DF raw data'!M4) -> Data-time | B4: =IF('DF raw data'!N4="","",'DF raw data'!N4) -> 01-10-2024, 21:44:32 | C4: =IF('DF raw data'!O4="","",'DF raw data'!O4) ->  | D4: =IF('DF raw data'!P4="","",'DF raw data'!P4) -> 
A5: =IF('DF raw data'!M5="","",'DF raw data'!M5) -> Project | B5: =IF('DF raw data'!N5="","",'DF raw data'!N5) -> 504314 | C5: =IF('DF raw data'!O5="","",'DF raw data'!O5) ->  | D5: =IF('DF raw data'!P5="","",'DF raw data'!P5) -> 
A6: =IF('DF raw data'!M6="","",'DF raw data'!M6) -> Magnet type | B6: =IF('DF raw data'!N6="","",'DF raw data'!N6) -> Dipole | C6: =IF('DF raw data'!O6="","",'DF raw data'!O6) ->  | D6: =IF('DF raw data'!P6="","",'DF raw data'!P6) -> 
A7: =IF('DF raw data'!M7="","",'DF raw data'!M7) -> Magnet nr. | B7: =IF('DF raw data'!N7="","",'DF raw data'!N7) -> 2410108 | C7: =IF('DF raw data'!O7="","",'DF raw data'!O7) ->  | D7: =IF('DF raw data'!P7="","",'DF raw data'!P7) -> 
A8: =IF('DF raw data'!M8="","",'DF raw data'!M8) -> Meas. number | B8: =IF('DF raw data'!N8="","",'DF raw data'!N8) -> 914 | C8: =IF('DF raw data'!O8="","",'DF raw data'!O8) ->  | D8: =IF('DF raw data'!P8="","",'DF raw data'!P8) -> 
A9: =IF('DF raw data'!M9="","",'DF raw data'!M9) -> Add. info | B9: =IF('DF raw data'!N9="","",'DF raw data'!N9) -> Y-alignment scan 4) | C9: =IF('DF raw data'!O9="","",'DF raw data'!O9) ->  | D9: =IF('DF raw data'!P9="","",'DF raw data'!P9) -> 
A10: =IF('DF raw data'!M10="","",'DF raw data'!M10) -> Device | B10: =IF('DF raw data'!N10="","",'DF raw data'!N10) -> (HAL) HALL-PROBE | C10: =IF('DF raw data'!O10="","",'DF raw data'!O10) ->  | D10: =IF('DF raw data'!P10="","",'DF raw data'!P10) -> 
A11: =IF('DF raw data'!M11="","",'DF raw data'!M11) -> Goal | B11: =IF('DF raw data'!N11="","",'DF raw data'!N11) -> (AXI) AXis Integral (Line, EFB) | C11: =IF('DF raw data'!O11="","",'DF raw data'!O11) ->  | D11: =IF('DF raw data'!P11="","",'DF raw data'!P11) -> 
A12: =IF('DF raw data'!M12="","",'DF raw data'!M12) -> Power supply mode | B12: =IF('DF raw data'!N12="","",'DF raw data'!N12) -> (PM) Permanent Magnet (no MPS in use) | C12: =IF('DF raw data'!O12="","",'DF raw data'!O12) ->  | D12: =IF('DF raw data'!P12="","",'DF raw data'!P12) -> 
A13: =IF('DF raw data'!M13="","",'DF raw data'!M13) -> Data format | B13: =IF('DF raw data'!N13="","",'DF raw data'!N13) -> Raw data text file | C13: =IF('DF raw data'!O13="","",'DF raw data'!O13) ->  | D13: =IF('DF raw data'!P13="","",'DF raw data'!P13) -> 
A14: =IF('DF raw data'!M14="","",'DF raw data'!M14) -> Direction of the pos. x-axis | B14: =IF('DF raw data'!N14="","",'DF raw data'!N14) -> See test program | C14: =IF('DF raw data'!O14="","",'DF raw data'!O14) ->  | D14: =IF('DF raw data'!P14="","",'DF raw data'!P14) -> 
A15: =IF('DF raw data'!M15="","",'DF raw data'!M15) -> Direction of the pos. y-axis | B15: =IF('DF raw data'!N15="","",'DF raw data'!N15) -> Vertical up | C15: =IF('DF raw data'!O15="","",'DF raw data'!O15) ->  | D15: =IF('DF raw data'!P15="","",'DF raw data'!P15) -> 
A16: =IF('DF raw data'!M16="","",'DF raw data'!M16) -> Direction of the pos. z-axis | B16: =IF('DF raw data'!N16="","",'DF raw data'!N16) -> See test program | C16: =IF('DF raw data'!O16="","",'DF raw data'!O16) ->  | D16: =IF('DF raw data'!P16="","",'DF raw data'!P16) -> 
A17: =IF('DF raw data'!M17="","",'DF raw data'!M17) -> Mapper type | B17: =IF('DF raw data'!N17="","",'DF raw data'!N17) -> Precision Hall Mapper | C17: =IF('DF raw data'!O17="","",'DF raw data'!O17) ->  | D17: =IF('DF raw data'!P17="","",'DF raw data'!P17) -> 
A18: =IF('DF raw data'!M18="","",'DF raw data'!M18) -> Mapper Danfysik Reg. Number | B18: =IF('DF raw data'!N18="","",'DF raw data'!N18) -> 2033-D (mapper 1) | C18: =IF('DF raw data'!O18="","",'DF raw data'!O18) ->  | D18: =IF('DF raw data'!P18="","",'DF raw data'!P18) -> 
A19: =IF('DF raw data'!M19="","",'DF raw data'!M19) -> Measurement consept | B19: =IF('DF raw data'!N19="","",'DF raw data'!N19) -> Square line grid | C19: =IF('DF raw data'!O19="","",'DF raw data'!O19) ->  | D19: =IF('DF raw data'!P19="","",'DF raw data'!P19) -> 
A20: =IF('DF raw data'!M20="","",'DF raw data'!M20) -> Mode | B20: =IF('DF raw data'!N20="","",'DF raw data'!N20) -> On-the-fly measurement | C20: =IF('DF raw data'!O20="","",'DF raw data'!O20) ->  | D20: =IF('DF raw data'!P20="","",'DF raw data'!P20) -> 
A21: =IF('DF raw data'!M21="","",'DF raw data'!M21) ->  | B21: =IF('DF raw data'!N21="","",'DF raw data'!N21) ->  | C21: =IF('DF raw data'!O21="","",'DF raw data'!O21) ->  | D21: =IF('DF raw data'!P21="","",'DF raw data'!P21) -> 
A22: =IF('DF raw data'!M22="","",'DF raw data'!M22) -> Probe Name | B22: =IF('DF raw data'!N22="","",'DF raw data'!N22) -> ID12_By | C22: =IF('DF raw data'!O22="","",'DF raw data'!O22) ->  | D22: =IF('DF raw data'!P22="","",'DF raw data'!P22) -> 
A23: =IF('DF raw data'!M23="","",'DF raw data'!M23) -> Probe Type | B23: =IF('DF raw data'!N23="","",'DF raw data'!N23) -> DF_ID_3D_Bxyz | C23: =IF('DF raw data'!O23="","",'DF raw data'!O23) ->  | D23: =IF('DF raw data'!P23="","",'DF raw data'!P23) -> 
A24: =IF('DF raw data'!M24="","",'DF raw data'!M24) -> Probe Danfysik Reg. Number | B24: =IF('DF raw data'!N24="","",'DF raw data'!N24) -> 2277 | C24: =IF('DF raw data'!O24="","",'DF raw data'!O24) ->  | D24: =IF('DF raw data'!P24="","",'DF raw data'!P24) -> 
A25: =IF('DF raw data'!M25="","",'DF raw data'!M25) -> Probe Axis | B25: =IF('DF raw data'!N25="","",'DF raw data'!N25) -> By | C25: =IF('DF raw data'!O25="","",'DF raw data'!O25) ->  | D25: =IF('DF raw data'!P25="","",'DF raw data'!P25) -> 
A26: =IF('DF raw data'!M26="","",'DF raw data'!M26) -> Probe Current Supply | B26: =IF('DF raw data'!N26="","",'DF raw data'!N26) -> 1825-D | C26: =IF('DF raw data'!O26="","",'DF raw data'!O26) ->  | D26: =IF('DF raw data'!P26="","",'DF raw data'!P26) -> 
A27: =IF('DF raw data'!M27="","",'DF raw data'!M27) -> Probe Gain Correction | B27: =IF('DF raw data'!N27="","",'DF raw data'!N27) -> 0.99614 | C27: =IF('DF raw data'!O27="","",'DF raw data'!O27) ->  | D27: =IF('DF raw data'!P27="","",'DF raw data'!P27) -> 
A28: =IF('DF raw data'!M28="","",'DF raw data'!M28) -> Probe Offset Correction | B28: =IF('DF raw data'!N28="","",'DF raw data'!N28) -> 0.0027502 | C28: =IF('DF raw data'!O28="","",'DF raw data'!O28) ->  | D28: =IF('DF raw data'!P28="","",'DF raw data'!P28) -> 
A29: =IF('DF raw data'!M29="","",'DF raw data'!M29) -> DVM Number | B29: =IF('DF raw data'!N29="","",'DF raw data'!N29) -> 2 | C29: =IF('DF raw data'!O29="","",'DF raw data'!O29) ->  | D29: =IF('DF raw data'!P29="","",'DF raw data'!P29) -> 
A30: =IF('DF raw data'!M30="","",'DF raw data'!M30) -> DVM Type | B30: =IF('DF raw data'!N30="","",'DF raw data'!N30) -> K2701 | C30: =IF('DF raw data'!O30="","",'DF raw data'!O30) ->  | D30: =IF('DF raw data'!P30="","",'DF raw data'!P30) -> 
A31: =IF('DF raw data'!M31="","",'DF raw data'!M31) -> DVM Danfysik Reg. Number | B31: =IF('DF raw data'!N31="","",'DF raw data'!N31) -> 1743-D | C31: =IF('DF raw data'!O31="","",'DF raw data'!O31) ->  | D31: =IF('DF raw data'!P31="","",'DF raw data'!P31) -> 
A32: =IF('DF raw data'!M32="","",'DF raw data'!M32) -> Probe Name | B32: =IF('DF raw data'!N32="","",'DF raw data'!N32) -> ID12_Bx | C32: =IF('DF raw data'!O32="","",'DF raw data'!O32) ->  | D32: =IF('DF raw data'!P32="","",'DF raw data'!P32) -> 
A33: =IF('DF raw data'!M33="","",'DF raw data'!M33) -> Probe Type | B33: =IF('DF raw data'!N33="","",'DF raw data'!N33) -> DF_ID_3D_Bxyz | C33: =IF('DF raw data'!O33="","",'DF raw data'!O33) ->  | D33: =IF('DF raw data'!P33="","",'DF raw data'!P33) -> 
A34: =IF('DF raw data'!M34="","",'DF raw data'!M34) -> Probe Danfysik Reg. Number | B34: =IF('DF raw data'!N34="","",'DF raw data'!N34) -> 2277 | C34: =IF('DF raw data'!O34="","",'DF raw data'!O34) ->  | D34: =IF('DF raw data'!P34="","",'DF raw data'!P34) -> 
A35: =IF('DF raw data'!M35="","",'DF raw data'!M35) -> Probe Axis | B35: =IF('DF raw data'!N35="","",'DF raw data'!N35) -> Bx | C35: =IF('DF raw data'!O35="","",'DF raw data'!O35) ->  | D35: =IF('DF raw data'!P35="","",'DF raw data'!P35) -> 
A36: =IF('DF raw data'!M36="","",'DF raw data'!M36) -> Probe Current Supply | B36: =IF('DF raw data'!N36="","",'DF raw data'!N36) -> 1825-D | C36: =IF('DF raw data'!O36="","",'DF raw data'!O36) ->  | D36: =IF('DF raw data'!P36="","",'DF raw data'!P36) -> 
A37: =IF('DF raw data'!M37="","",'DF raw data'!M37) -> Probe Gain Correction | B37: =IF('DF raw data'!N37="","",'DF raw data'!N37) -> 1 | C37: =IF('DF raw data'!O37="","",'DF raw data'!O37) ->  | D37: =IF('DF raw data'!P37="","",'DF raw data'!P37) -> 
A38: =IF('DF raw data'!M38="","",'DF raw data'!M38) -> Probe Offset Correction | B38: =IF('DF raw data'!N38="","",'DF raw data'!N38) -> -0.1755 | C38: =IF('DF raw data'!O38="","",'DF raw data'!O38) ->  | D38: =IF('DF raw data'!P38="","",'DF raw data'!P38) -> 
A39: =IF('DF raw data'!M39="","",'DF raw data'!M39) -> DVM Number | B39: =IF('DF raw data'!N39="","",'DF raw data'!N39) -> 3 | C39: =IF('DF raw data'!O39="","",'DF raw data'!O39) ->  | D39: =IF('DF raw data'!P39="","",'DF raw data'!P39) -> 
A40: =IF('DF raw data'!M40="","",'DF raw data'!M40) -> DVM Type | B40: =IF('DF raw data'!N40="","",'DF raw data'!N40) -> K2701 | C40: =IF('DF raw data'!O40="","",'DF raw data'!O40) ->  | D40: =IF('DF raw data'!P40="","",'DF raw data'!P40) -> 
A41: =IF('DF raw data'!M41="","",'DF raw data'!M41) -> DVM Danfysik Reg. Number | B41: =IF('DF raw data'!N41="","",'DF raw data'!N41) -> 1744-D | C41: =IF('DF raw data'!O41="","",'DF raw data'!O41) ->  | D41: =IF('DF raw data'!P41="","",'DF raw data'!P41) -> 
A42: =IF('DF raw data'!M42="","",'DF raw data'!M42) -> Probe Name | B42: =IF('DF raw data'!N42="","",'DF raw data'!N42) -> ID12_Bz | C42: =IF('DF raw data'!O42="","",'DF raw data'!O42) ->  | D42: =IF('DF raw data'!P42="","",'DF raw data'!P42) -> 
A43: =IF('DF raw data'!M43="","",'DF raw data'!M43) -> Probe Type | B43: =IF('DF raw data'!N43="","",'DF raw data'!N43) -> DF_ID_3D_Bxyz | C43: =IF('DF raw data'!O43="","",'DF raw data'!O43) ->  | D43: =IF('DF raw data'!P43="","",'DF raw data'!P43) -> 
A44: =IF('DF raw data'!M44="","",'DF raw data'!M44) -> Probe Danfysik Reg. Number | B44: =IF('DF raw data'!N44="","",'DF raw data'!N44) -> 2277 | C44: =IF('DF raw data'!O44="","",'DF raw data'!O44) ->  | D44: =IF('DF raw data'!P44="","",'DF raw data'!P44) -> 
A45: =IF('DF raw data'!M45="","",'DF raw data'!M45) -> Probe Axis | B45: =IF('DF raw data'!N45="","",'DF raw data'!N45) -> Bz | C45: =IF('DF raw data'!O45="","",'DF raw data'!O45) ->  | D45: =IF('DF raw data'!P45="","",'DF raw data'!P45) -> 
A46: =IF('DF raw data'!M46="","",'DF raw data'!M46) -> Probe Current Supply | B46: =IF('DF raw data'!N46="","",'DF raw data'!N46) -> 1825-D | C46: =IF('DF raw data'!O46="","",'DF raw data'!O46) ->  | D46: =IF('DF raw data'!P46="","",'DF raw data'!P46) -> 
A47: =IF('DF raw data'!M47="","",'DF raw data'!M47) -> Probe Gain Correction | B47: =IF('DF raw data'!N47="","",'DF raw data'!N47) -> 1 | C47: =IF('DF raw data'!O47="","",'DF raw data'!O47) ->  | D47: =IF('DF raw data'!P47="","",'DF raw data'!P47) -> 
A48: =IF('DF raw data'!M53="","",'DF raw data'!M53) -> PS-Gap: | B48: =IF('DF raw data'!N53="","",'DF raw data'!N53) -> 10 | C48: =IF('DF raw data'!O53="","",'DF raw data'!O53) ->  | D48: =IF('DF raw data'!P53="","",'DF raw data'!P53) -> 
A49: =IF('DF raw data'!M54="","",'DF raw data'!M54) -> PS-Temperature: | B49: =IF('DF raw data'!N54="","",'DF raw data'!N54) -> 24.2 | C49: =IF('DF raw data'!O54="","",'DF raw data'!O54) ->  | D49: =IF('DF raw data'!P54="","",'DF raw data'!P54) -> 
A50: =IF('DF raw data'!M55="","",'DF raw data'!M55) -> PS-Encoder: | B50: =IF('DF raw data'!N55="","",'DF raw data'!N55) -> 19.7529 | C50: =IF('DF raw data'!O55="","",'DF raw data'!O55) ->  | D50: =IF('DF raw data'!P55="","",'DF raw data'!P55) -> 
A51: =IF('DF raw data'!M56="","",'DF raw data'!M56) ->  | B51: =IF('DF raw data'!N56="","",'DF raw data'!N56) ->  | C51: =IF('DF raw data'!O56="","",'DF raw data'!O56) ->  | D51: =IF('DF raw data'!P56="","",'DF raw data'!P56) -> 
A52: =IF('DF raw data'!M57="","",'DF raw data'!M57) -> Monitor-Index | B52: =IF('DF raw data'!N57="","",'DF raw data'!N57) -> [1,1,4] | C52: =IF('DF raw data'!O57="","",'DF raw data'!O57) ->  | D52: =IF('DF raw data'!P57="","",'DF raw data'!P57) -> 
A53: =IF('DF raw data'!M58="","",'DF raw data'!M58) ->  | B53: =IF('DF raw data'!N58="","",'DF raw data'!N58) ->  | C53: =IF('DF raw data'!O58="","",'DF raw data'!O58) ->  | D53: =IF('DF raw data'!P58="","",'DF raw data'!P58) -> 
A54: =IF('DF raw data'!M59="","",'DF raw data'!M59) -> Time [s] | B54: =IF('DF raw data'!N59="","",'DF raw data'!N59) -> Y [mm] | C54: =IF('DF raw data'!O59="","",'DF raw data'!O59) -> X [mm] | D54: =IF('DF raw data'!P59="","",'DF raw data'!P59) -> Nominal current [A]
A55: =IF('DF raw data'!M60="","",'DF raw data'!M60) ->  | B55: =IF('DF raw data'!N60="","",'DF raw data'!N60) ->  | C55: =IF('DF raw data'!O60="","",'DF raw data'!O60) ->  | D55: =IF('DF raw data'!P60="","",'DF raw data'!P60) -> 
A56: =IF('DF raw data'!M61="","",'DF raw data'!M61) -> 208.2 | B56: =IF('DF raw data'!N61="","",'DF raw data'!N61) -> 31.48 | C56: =IF('DF raw data'!O61="","",'DF raw data'!O61) -> 302.3 | D56: =IF('DF raw data'!P61="","",'DF raw data'!P61) -> 0
A57: =IF('DF raw data'!M62="","",'DF raw data'!M62) ->  | B57: =IF('DF raw data'!N62="","",'DF raw data'!N62) ->  | C57: =IF('DF raw data'!O62="","",'DF raw data'!O62) ->  | D57: =IF('DF raw data'!P62="","",'DF raw data'!P62) -> 
A58: =IF('DF raw data'!M63="","",'DF raw data'!M63) -> Measurement-Index | B58: =IF('DF raw data'!N63="","",'DF raw data'!N63) -> [1,1,1201,2] | C58: =IF('DF raw data'!O63="","",'DF raw data'!O63) ->  | D58: =IF('DF raw data'!P63="","",'DF raw data'!P63) -> 
A59: =IF('DF raw data'!M64="","",'DF raw data'!M64) ->  | B59: =IF('DF raw data'!N64="","",'DF raw data'!N64) ->  | C59: =IF('DF raw data'!O64="","",'DF raw data'!O64) ->  | D59: =IF('DF raw data'!P64="","",'DF raw data'!P64) -> 
A60: =IF('DF raw data'!M65="","",'DF raw data'!M65) -> Z [mm] | B60: By [T] | C60: Bx [T] | D60: Bz [T] | F60: By_corr | G60: Bx_corr | H60: Bz_corr | J60: Iy | K60: Jy | L60: Ix | M60: Jx | N60: PI
A62: =IF('DF raw data'!M67="","",'DF raw data'!M67) -> -300 | B62: =IF('DF raw data'!N67="","",'DF raw data'!N67) -> -2.32917e-05 | C62: =IF('DF raw data'!O67="","",'DF raw data'!O67) -> 4.77737e-05 | D62: =IF('DF raw data'!P67="","",'DF raw data'!P67) -> -5.02148e-05 | F62: =(1-$G$1*($B$49))*B62 -> -2.385535914e-05 | G62: =(1-$G$1*($B$49-$G$2))*C62 -> 4.797434954e-05 | H62: =(1-$G$1*($B$49-$G$2))*D62 -> -5.042570216e-05 | J62: =F62*$G$3 -> -1.192767957e-05 | K62: =J62*$G$3 -> -5.963839785e-06 | L62: =G62*$G$3 -> 2.398717477e-05 | M62: =L62*$G$3 -> 1.199358738e-05 | N62: =(J62^2+L62^2)*$G$3 -> 3.588270467e-10
A63: =IF('DF raw data'!M68="","",'DF raw data'!M68) -> -299.5 | B63: =IF('DF raw data'!N68="","",'DF raw data'!N68) -> -2.67518e-05 | C63: =IF('DF raw data'!O68="","",'DF raw data'!O68) -> 4.38379e-05 | D63: =IF('DF raw data'!P68="","",'DF raw data'!P68) -> -5.00732e-05 | F63: =(1-$G$1*($B$49-$G$2))*B63 -> -2.686415756e-05 | G63: =(1-$G$1*($B$49-$G$2))*C63 -> 4.402201918e-05 | H63: -5.028350744e-05 | J63: =F63*$G$3+J62 -> -2.535975835e-05 | K63: =J63*$G$3+K62 -> -1.864371896e-05 | L63: =G63*$G$3+L62 -> 4.599818436e-05 | M63: =L63*$G$3+M62 -> 3.499267956e-05 | N63: =(J63^2+L63^2)*$G$3+N62 -> 1.738302201e-09
A64: =IF('DF raw data'!M69="","",'DF raw data'!M69) -> -299 | B64: =IF('DF raw data'!N69="","",'DF raw data'!N69) -> -9.64421e-06 | C64: =IF('DF raw data'!O69="","",'DF raw data'!O69) -> 4.57976e-05 | D64: =IF('DF raw data'!P69="","",'DF raw data'!P69) -> -5.0454e-05 | F64: =(1-$G$1*($B$49-$G$2))*B64 -> -9.684715682e-06 | G64: 4.598994992e-05 | H64: -5.06659068e-05 | J64: =F64*$G$3+J63 -> -3.020211619e-05 | K64: =J64*$G$3+K63 -> -3.374477706e-05 | L64: =G64*$G$3+L63 -> 6.899315932e-05 | M64: =L64*$G$3+M63 -> 6.948925922e-05 | N64: =(J64^2+L64^2)*$G$3+N63 -> 4.574414128e-09
A65: =IF('DF raw data'!M70="","",'DF raw data'!M70) -> -298.5 | B65: =IF('DF raw data'!N70="","",'DF raw data'!N70) -> -1.41927e-05 | C65: =IF('DF raw data'!O70="","",'DF raw data'!O70) -> 5.74471e-05 | D65: =IF('DF raw data'!P70="","",'DF raw data'!P70) -> -5.13126e-05 | F65: -1.425230934e-05 | G65: 5.768837782e-05 | H65: -5.152811292e-05 | J65: -3.732827086e-05 | K65: -5.240891249e-05 | L65: 9.783734823e-05 | M65: 0.0001184079333 | N65: 1.005718739e-08
A66: =IF('DF raw data'!M71="","",'DF raw data'!M71) -> -298 | B66: =IF('DF raw data'!N71="","",'DF raw data'!N71) -> -2.19452e-05 | C66: =IF('DF raw data'!O71="","",'DF raw data'!O71) -> 5.49276e-05 | D66: =IF('DF raw data'!P71="","",'DF raw data'!P71) -> -5.16951e-05 | F66: -2.203736984e-05 | G66: 5.515829592e-05 | H66: -5.191221942e-05 | J66: -4.834695578e-05 | K66: -7.658239038e-05 | L66: 0.0001254164962 | M66: 0.0001811161814 | N66: 1.909055021e-08
A67: =IF('DF raw data'!M72="","",'DF raw data'!M72) -> -297.5 | B67: =IF('DF raw data'!N72="","",'DF raw data'!N72) -> -1.47692e-05 | C67: =IF('DF raw data'!O72="","",'DF raw data'!O72) -> 5.11934e-05 | D67: =IF('DF raw data'!P72="","",'DF raw data'!P72) -> -5.16582e-05 | F67: -1.483123064e-05 | G67: 5.140841228e-05 | H67: -5.187516444e-05 | J67: -5.57625711e-05 | K67: -0.0001044636759 | L67: 0.0001511207023 | M67: 0.0002566765326 | N67: 3.206401571e-08
A68: =IF('DF raw data'!M73="","",'DF raw data'!M73) -> -297 | B68: =IF('DF raw data'!N73="","",'DF raw data'!N73) -> -2.3227e-05 | C68: =IF('DF raw data'!O73="","",'DF raw data'!O73) -> 4.24528e-05 | D68: =IF('DF raw data'!P73="","",'DF raw data'!P73) -> -5.13682e-05 | F68: -2.33245534e-05 | G68: 4.263110176e-05 | H68: -5.158394644e-05 | J68: -6.74248478e-05 | K68: -0.0001381760998 | L68: 0.0001724362532 | M68: 0.0003428946592 | N68: 4.920420148e-08
A69: =IF('DF raw data'!M74="","",'DF raw data'!M74) -> -296.5 | B69: =IF('DF raw data'!N74="","",'DF raw data'!N74) -> -2.34836e-05 | C69: =IF('DF raw data'!O74="","",'DF raw data'!O74) -> 4.01666e-05 | D69: =IF('DF raw data'!P74="","",'DF raw data'!P74) -> -5.08956e-05 | F69: -2.358223112e-05 | G69: 4.033529972e-05 | H69: -5.110936152e-05 | J69: -7.921596336e-05 | K69: -0.0001777840815 | L69: 0.0001926039031 | M69: 0.0004391966107 | N69: 7.088991764e-08
A70: =IF('DF raw data'!M75="","",'DF raw data'!M75) -> -296 | B70: =IF('DF raw data'!N75="","",'DF raw data'!N75) -> -1.41293e-05 | C70: =IF('DF raw data'!O75="","",'DF raw data'!O75) -> 4.82794e-05 | D70: =IF('DF raw data'!P75="","",'DF raw data'!P75) -> -5.04922e-05 | F70: -1.418864306e-05 | G70: 4.848217348e-05 | H70: -5.070426724e-05 | J70: -8.631028489e-05 | K70: -0.000220939224 | L70: 0.0002168449898 | M70: 0.0005476191056 | N70: 9.812552508e-08
A71: =IF('DF raw data'!M76="","",'DF raw data'!M76) -> -295.5 | B71: =IF('DF raw data'!N76="","",'DF raw data'!N76) -> -2.37403e-05 | C71: =IF('DF raw data'!O76="","",'DF raw data'!O76) -> 5.27206e-05 | D71: =IF('DF raw data'!P76="","",'DF raw data'!P76) -> -5.02121e-05 | F71: -2.384000926e-05 | G71: 5.294202652e-05 | H71: -5.042299082e-05 | J71: -9.823028952e-05 | K71: -0.0002700543687 | L71: 0.0002433160031 | M71: 0.0006692771072 | N71: 1.325514586e-07
A72: =IF('DF raw data'!M77="","",'DF raw data'!M77) -> -295 | B72: =IF('DF raw data'!N77="","",'DF raw data'!N77) -> -6.50465e-06 | C72: =IF('DF raw data'!O77="","",'DF raw data'!O77) -> 5.34562e-05 | D72: =IF('DF raw data'!P77="","",'DF raw data'!P77) -> -5.05076e-05 | F72: -6.53196953e-06 | G72: 5.368071604e-05 | H72: -5.071973192e-05 | J72: -0.0001014962743 | K72: -0.0003208025059 | L72: 0.0002701563611 | M72: 0.0008043552877 | N72: 1.741944352e-07
A73: =IF('DF raw data'!M78="","",'DF raw data'!M78) -> -294.5 | B73: =IF('DF raw data'!N78="","",'DF raw data'!N78) -> -1.23349e-05 | C73: =IF('DF raw data'!O78="","",'DF raw data'!O78) -> 4.75787e-05 | D73: =IF('DF raw data'!P78="","",'DF raw data'!P78) -> -5.11862e-05 | F73: -1.238670658e-05 | G73: 4.777853054e-05 | H73: -5.140118204e-05 | J73: -0.0001076896276 | K73: -0.0003746473196 | L73: 0.0002940456264 | M73: 0.0009513781009 | N73: 2.232243783e-07
A74: =IF('DF raw data'!M79="","",'DF raw data'!M79) -> -294 | B74: =IF('DF raw data'!N79="","",'DF raw data'!N79) -> -1.30392e-05 | C74: =IF('DF raw data'!O79="","",'DF raw data'!O79) -> 4.87678e-05 | D74: =IF('DF raw data'!P79="","",'DF raw data'!P79) -> -5.16346e-05 | F74: -1.309396464e-05 | G74: 4.897262476e-05 | H74: -5.185146532e-05 | J74: -0.0001142366099 | K74: -0.0004317656246 | L74: 0.0003185319387 | M74: 0.00111064407 | N74: 2.804806779e-07
A75: =IF('DF raw data'!M80="","",'DF raw data'!M80) -> -293.5 | B75: =IF('DF raw data'!N80="","",'DF raw data'!N80) -> -1.59866e-05 | C75: =IF('DF raw data'!O80="","",'DF raw data'!O80) -> 5.26196e-05 | D75: =IF('DF raw data'!P80="","",'DF raw data'!P80) -> -5.17021e-05 | F75: -1.605374372e-05 | G75: 5.284060232e-05 | H75: -5.191924882e-05 | J75: -0.0001222634818 | K75: -0.0004928973655 | L75: 0.0003449522399 | M75: 0.00128312019 | N75: 3.474508813e-07
A76: =IF('DF raw data'!M81="","",'DF raw data'!M81) -> -293 | B76: =IF('DF raw data'!N81="","",'DF raw data'!N81) -> -1.28473e-05 | C76: =IF('DF raw data'!O81="","",'DF raw data'!O81) -> 5.72728e-05 | D76: =IF('DF raw data'!P81="","",'DF raw data'!P81) -> -5.13838e-05 | F76: -1.290125866e-05 | G76: 5.751334576e-05 | H76: -5.159961196e-05 | J76: -0.0001287141111 | K76: -0.000557254421 | L76: 0.0003737089128 | M76: 0.001469974647 | N76: 4.255637182e-07
A77: =IF('DF raw data'!M82="","",'DF raw data'!M82) -> -292.5 | B77: =IF('DF raw data'!N82="","",'DF raw data'!N82) -> -2.52779e-05 | C77: =IF('DF raw data'!O82="","",'DF raw data'!O82) -> 5.90752e-05 | D77: =IF('DF raw data'!P82="","",'DF raw data'!P82) -> -5.03904e-05 | F77: -2.538406718e-05 | G77: 5.932331584e-05 | H77: -5.060203968e-05 | J77: -0.0001414061447 | K77: -0.0006279574934 | L77: 0.0004033705707 | M77: 0.001671659932 | N77: 5.169154757e-07
A78: =IF('DF raw data'!M83="","",'DF raw data'!M83) -> -292 | B78: =IF('DF raw data'!N83="","",'DF raw data'!N83) -> -8.49133e-06 | C78: =IF('DF raw data'!O83="","",'DF raw data'!O83) -> 5.37379e-05 | D78: =IF('DF raw data'!P83="","",'DF raw data'!P83) -> -4.98684e-05 | F78: -8.526993586e-06 | G78: 5.396359918e-05 | H78: -5.007784728e-05 | J78: -0.0001456696415 | K78: -0.0007007923141 | L78: 0.0004303523703 | M78: 0.001886836117 | N78: 6.201268793e-07
A79: =IF('DF raw data'!M84="","",'DF raw data'!M84) -> -291.5 | B79: =IF('DF raw data'!N84="","",'DF raw data'!N84) -> -4.26509e-06 | C79: =IF('DF raw data'!O84="","",'DF raw data'!O84) -> 5.09355e-05 | D79: =IF('DF raw data'!P84="","",'DF raw data'!P84) -> -4.59037e-05 | F79: -4.283003378e-06 | G79: 5.11494291e-05 | H79: -4.609649554e-05 | J79: -0.0001478111432 | K79: -0.0007746978857 | L79: 0.0004559270848 | M79: 0.00211479966 | N79: 7.349856996e-07
A80: =IF('DF raw data'!M85="","",'DF raw data'!M85) -> -291 | B80: =IF('DF raw data'!N85="","",'DF raw data'!N85) -> -7.0227e-06 | C80: =IF('DF raw data'!O85="","",'DF raw data'!O85) -> 4.90805e-05 | D80: =IF('DF raw data'!P85="","",'DF raw data'!P85) -> -4.20279e-05 | F80: -7.05219534e-06 | G80: 4.92866381e-05 | H80: -4.220441718e-05 | J80: -0.0001513372408 | K80: -0.0008503665061 | L80: 0.0004805704039 | M80: 0.002355084861 | N80: 8.619111364e-07
A81: =IF('DF raw data'!M86="","",'DF raw data'!M86) -> -290.5 | B81: =IF('DF raw data'!N86="","",'DF raw data'!N86) -> -1.25931e-05 | C81: =IF('DF raw data'!O86="","",'DF raw data'!O86) -> 5.40465e-05 | D81: =IF('DF raw data'!P86="","",'DF raw data'!P86) -> -4.82477e-05 | F81: -1.264599102e-05 | G81: 5.42734953e-05 | H81: -4.845034034e-05 | J81: -0.0001576602363 | K81: -0.0009291966242 | L81: 0.0005077071515 | M81: 0.002608938437 | N81: 1.003222787e-06
A82: =IF('DF raw data'!M87="","",'DF raw data'!M87) -> -290 | B82: =IF('DF raw data'!N87="","",'DF raw data'!N87) -> -8.17313e-06 | C82: =IF('DF raw data'!O87="","",'DF raw data'!O87) -> 5.09305e-05 | D82: =IF('DF raw data'!P87="","",'DF raw data'!P87) -> -4.63657e-05 | F82: -8.207457146e-06 | G82: 5.11444081e-05 | H82: -4.656043594e-05 | J82: -0.0001617639649 | K82: -0.001010078607 | L82: 0.0005332793556 | M82: 0.002875578115 | N82: 1.158500013e-06
A83: =IF('DF raw data'!M88="","",'DF raw data'!M88) -> -289.5 | B83: =IF('DF raw data'!N88="","",'DF raw data'!N88) -> -1.06739e-05 | C83: =IF('DF raw data'!O88="","",'DF raw data'!O88) -> 5.85498e-05 | D83: =IF('DF raw data'!P88="","",'DF raw data'!P88) -> -4.3358e-05 | F83: -1.071873038e-05 | G83: 5.879570916e-05 | H83: -4.35401036e-05 | J83: -0.0001671233301 | K83: -0.001093640272 | L83: 0.0005626772102 | M83: 0.00315691672 | N83: 1.330767938e-06
A84: =IF('DF raw data'!M89="","",'DF raw data'!M89) -> -289 | B84: =IF('DF raw data'!N89="","",'DF raw data'!N89) -> -8.61735e-06 | C84: =IF('DF raw data'!O89="","",'DF raw data'!O89) -> 6.25278e-05 | D84: =IF('DF raw data'!P89="","",'DF raw data'!P89) -> -5.31408e-05 | F84: -8.65354287e-06 | G84: 6.279041676e-05 | H84: -5.336399136e-05 | J84: -0.0001714501015 | K84: -0.001179365323 | L84: 0.0005940724185 | M84: 0.003453952929 | N84: 1.521926526e-06
A85: =IF('DF raw data'!M90="","",'DF raw data'!M90) -> -288.5 | B85: =IF('DF raw data'!N90="","",'DF raw data'!N90) -> -1.5477e-05 | C85: =IF('DF raw data'!O90="","",'DF raw data'!O90) -> 5.48203e-05 | D85: =IF('DF raw data'!P90="","",'DF raw data'!P90) -> -4.713e-05 | F85: -1.55420034e-05 | G85: 5.505054526e-05 | H85: -4.7327946e-05 | J85: -0.0001792211032 | K85: -0.001268975874 | L85: 0.0006215976912 | M85: 0.003764751775 | N85: 1.731178473e-06
A86: =IF('DF raw data'!M91="","",'DF raw data'!M91) -> -288 | B86: =IF('DF raw data'!N91="","",'DF raw data'!N91) -> -7.59372e-06 | C86: =IF('DF raw data'!O91="","",'DF raw data'!O91) -> 5.24076e-05 | D86: =IF('DF raw data'!P91="","",'DF raw data'!P91) -> -5.08551e-05 | F86: -7.625613624e-06 | G86: 5.262771192e-05 | H86: -5.106869142e-05 | J86: -0.00018303391 | K86: -0.001360492829 | L86: 0.0006479115471 | M86: 0.004088707549 | N86: 1.957823865e-06
A87: =IF('DF raw data'!M92="","",'DF raw data'!M92) -> -287.5 | B87: =IF('DF raw data'!N92="","",'DF raw data'!N92) -> -1.57972e-05 | C87: =IF('DF raw data'!O92="","",'DF raw data'!O92) -> 6.10851e-05 | D87: =IF('DF raw data'!P92="","",'DF raw data'!P92) -> -4.72198e-05 | F87: -1.586354824e-05 | G87: 6.134165742e-05 | H87: -4.741812316e-05 | J87: -0.0001909656842 | K87: -0.001455975671 | L87: 0.0006785823758 | M87: 0.004427998736 | N87: 2.206294832e-06
A88: =IF('DF raw data'!M93="","",'DF raw data'!M93) -> -287 | B88: =IF('DF raw data'!N93="","",'DF raw data'!N93) -> -1.70755e-05 | C88: =IF('DF raw data'!O93="","",'DF raw data'!O93) -> 6.09943e-05 | D88: =IF('DF raw data'!P93="","",'DF raw data'!P93) -> -5.18608e-05 | F88: -1.71472171e-05 | G88: 6.125047606e-05 | H88: -5.207861536e-05 | J88: -0.0001995392927 | K88: -0.001555745318 | L88: 0.0007092076139 | M88: 0.004782602543 | N88: 2.477690517e-06
A89: =IF('DF raw data'!M94="","",'DF raw data'!M94) -> -286.5 | B89: =IF('DF raw data'!N94="","",'DF raw data'!N94) -> -1.78448e-05 | C89: =IF('DF raw data'!O94="","",'DF raw data'!O94) -> 6.17357e-05 | D89: =IF('DF raw data'!P94="","",'DF raw data'!P94) -> -5.16201e-05 | F89: -1.791974816e-05 | G89: 6.199498994e-05 | H89: -5.183690442e-05 | J89: -0.0002084991668 | K89: -0.001659994901 | L89: 0.0007402051088 | M89: 0.005152705098 | N89: 2.773378269e-06
A90: =IF('DF raw data'!M95="","",'DF raw data'!M95) -> -286 | B90: =IF('DF raw data'!N95="","",'DF raw data'!N95) -> -1.49042e-05 | C90: =IF('DF raw data'!O95="","",'DF raw data'!O95) -> 5.73549e-05 | D90: =IF('DF raw data'!P95="","",'DF raw data'!P95) -> -4.11363e-05 | F90: -1.496679764e-05 | G90: 5.759579058e-05 | H90: -4.130907246e-05 | J90: -0.0002159825656 | K90: -0.001767986184 | L90: 0.0007690030041 | M90: 0.0055372066 | N90: 3.092385314e-06
A91: =IF('DF raw data'!M96="","",'DF raw data'!M96) -> -285.5 | B91: =IF('DF raw data'!N96="","",'DF raw data'!N96) -> -6.18503e-06 | C91: =IF('DF raw data'!O96="","",'DF raw data'!O96) -> 6.09575e-05 | D91: =IF('DF raw data'!P96="","",'DF raw data'!P96) -> -4.95761e-05 | F91: -6.211007126e-06 | G91: 6.12135215e-05 | H91: -4.978431962e-05 | J91: -0.0002190880692 | K91: -0.001877530218 | L91: 0.0007996097649 | M91: 0.005937011482 | N91: 3.436072993e-06
A92: =IF('DF raw data'!M97="","",'DF raw data'!M97) -> -285 | B92: =IF('DF raw data'!N97="","",'DF raw data'!N97) -> -1.02909e-05 | C92: =IF('DF raw data'!O97="","",'DF raw data'!O97) -> 6.20735e-05 | D92: =IF('DF raw data'!P97="","",'DF raw data'!P97) -> -4.1109e-05 | F92: -1.033412178e-05 | G92: 6.23342087e-05 | H92: -4.12816578e-05 | J92: -0.0002242551301 | K92: -0.001989657783 | L92: 0.0008307768692 | M92: 0.006352399917 | N92: 3.806313278e-06
A93: =IF('DF raw data'!M98="","",'DF raw data'!M98) -> -284.5 | B93: =IF('DF raw data'!N98="","",'DF raw data'!N98) -> -8.94715e-06 | C93: =IF('DF raw data'!O98="","",'DF raw data'!O98) -> 5.64845e-05 | D93: =IF('DF raw data'!P98="","",'DF raw data'!P98) -> -3.87574e-05 | F93: -8.98472803e-06 | G93: 5.67217349e-05 | H93: -3.892018108e-05 | J93: -0.0002287474941 | K93: -0.00210403153 | L93: 0.0008591377367 | M93: 0.006781968785 | N93: 4.201534811e-06
A94: =IF('DF raw data'!M99="","",'DF raw data'!M99) -> -284 | B94: =IF('DF raw data'!N99="","",'DF raw data'!N99) -> -5.54524e-06 | C94: =IF('DF raw data'!O99="","",'DF raw data'!O99) -> 5.08079e-05 | D94: =IF('DF raw data'!P99="","",'DF raw data'!P99) -> -4.81948e-05 | F94: -5.568530008e-06 | G94: 5.102129318e-05 | H94: -4.839721816e-05 | J94: -0.0002315317591 | K94: -0.00221979741 | L94: 0.0008846483833 | M94: 0.007224292977 | N94: 4.61963967e-06
A95: =IF('DF raw data'!M100="","",'DF raw data'!M100) -> -283.5 | B95: =IF('DF raw data'!N100="","",'DF raw data'!N100) -> -1.09946e-05 | C95: =IF('DF raw data'!O100="","",'DF raw data'!O100) -> 5.13559e-05 | D95: =IF('DF raw data'!P100="","",'DF raw data'!P100) -> -4.29338e-05 | F95: -1.104077732e-05 | G95: 5.157159478e-05 | H95: -4.311412196e-05 | J95: -0.0002370521478 | K95: -0.002338323484 | L95: 0.0009104341807 | M95: 0.007679510067 | N95: 5.062181729e-06
A96: =IF('DF raw data'!M101="","",'DF raw data'!M101) -> -283 | B96: =IF('DF raw data'!N101="","",'DF raw data'!N101) -> -2.22065e-05 | C96: =IF('DF raw data'!O101="","",'DF raw data'!O101) -> 5.70275e-05 | D96: =IF('DF raw data'!P101="","",'DF raw data'!P101) -> -4.3796e-05 | F96: -2.22997673e-05 | G96: 5.72670155e-05 | H96: -4.39799432e-05 | J96: -0.0002482020314 | K96: -0.0024624245 | L96: 0.0009390676884 | M96: 0.008149043912 | N96: 5.533907915e-06
A97: =IF('DF raw data'!M102="","",'DF raw data'!M102) -> -282.5 | B97: =IF('DF raw data'!N102="","",'DF raw data'!N102) -> -2.22658e-06 | C97: =IF('DF raw data'!O102="","",'DF raw data'!O102) -> 6.10676e-05 | D97: =IF('DF raw data'!P102="","",'DF raw data'!P102) -> -2.78619e-05 | F97: -2.235931636e-06 | G97: 6.132408392e-05 | H97: -2.797891998e-05 | J97: -0.0002493199972 | K97: -0.002587084498 | L97: 0.0009697297304 | M97: 0.008633908777 | N97: 6.03517602e-06
A98: =IF('DF raw data'!M103="","",'DF raw data'!M103) -> -282 | B98: =IF('DF raw data'!N103="","",'DF raw data'!N103) -> -5.61852e-06 | C98: =IF('DF raw data'!O103="","",'DF raw data'!O103) -> 5.69797e-05 | D98: =IF('DF raw data'!P103="","",'DF raw data'!P103) -> -3.37794e-05 | F98: -5.642117784e-06 | G98: 5.721901474e-05 | H98: -3.392127348e-05 | J98: -0.0002521410561 | K98: -0.002713155026 | L98: 0.0009983392378 | M98: 0.009133078396 | N98: 6.565304193e-06
A99: =IF('DF raw data'!M104="","",'DF raw data'!M104) -> -281.5 | B99: =IF('DF raw data'!N104="","",'DF raw data'!N104) -> -1.83667e-05 | C99: =IF('DF raw data'!O104="","",'DF raw data'!O104) -> 5.12703e-05 | D99: =IF('DF raw data'!P104="","",'DF raw data'!P104) -> -3.7109e-05 | F99: -1.844384014e-05 | G99: 5.148563526e-05 | H99: -3.72648578e-05 | J99: -0.0002613629762 | K99: -0.002843836514 | L99: 0.001024082055 | M99: 0.009645119423 | N99: 7.123831524e-06
A100: =IF('DF raw data'!M105="","",'DF raw data'!M105) -> -281 | B100: =IF('DF raw data'!N105="","",'DF raw data'!N105) -> -1.65054e-05 | C100: =IF('DF raw data'!O105="","",'DF raw data'!O105) -> 5.63649e-05 | D100: =IF('DF raw data'!P105="","",'DF raw data'!P105) -> -4.20712e-05 | F100: -1.657472268e-05 | G100: 5.660163258e-05 | H100: -4.224789904e-05 | J100: -0.0002696503375 | K100: -0.002978661683 | L100: 0.001052382872 | M100: 0.01017131086 | N100: 7.713942031e-06
A101: =IF('DF raw data'!M106="","",'DF raw data'!M106) -> -280.5 | B101: =IF('DF raw data'!N106="","",'DF raw data'!N106) -> -1.09994e-05 | C101: =IF('DF raw data'!O106="","",'DF raw data'!O106) -> 5.98641e-05 | D101: =IF('DF raw data'!P106="","",'DF raw data'!P106) -> -3.56115e-05 | F101: -1.104559748e-05 | G101: 6.011552922e-05 | H101: -3.57610683e-05 | J101: -0.0002751731363 | K101: -0.003116248251 | L101: 0.001082440636 | M101: 0.01071253118 | N101: 8.337641024e-06
A102: =IF('DF raw data'!M107="","",'DF raw data'!M107) -> -280 | B102: =IF('DF raw data'!N107="","",'DF raw data'!N107) -> 5.6701e-06 | C102: =IF('DF raw data'!O107="","",'DF raw data'!O107) -> 5.15807e-05 | D102: =IF('DF raw data'!P107="","",'DF raw data'!P107) -> -5.22201e-05 | F102: 5.69391442e-06 | G102: 5.179733894e-05 | H102: -5.243942442e-05 | J102: -0.0002723261791 | K102: -0.003252411341 | L102: 0.001108339306 | M102: 0.01126670083 | N102: 8.988929806e-06
A103: =IF('DF raw data'!M108="","",'DF raw data'!M108) -> -279.5 | B103: =IF('DF raw data'!N108="","",'DF raw data'!N108) -> -9.12965e-06 | C103: =IF('DF raw data'!O108="","",'DF raw data'!O108) -> 5.55676e-05 | D103: =IF('DF raw data'!P108="","",'DF raw data'!P108) -> -5.35031e-05 | F103: -9.16799453e-06 | G103: 5.580098392e-05 | H103: -5.372781302e-05 | J103: -0.0002769101763 | K103: -0.003390866429 | L103: 0.001136239798 | M103: 0.01183482073 | N103: 9.672789868e-06
A104: =IF('DF raw data'!M109="","",'DF raw data'!M109) -> -279 | B104: =IF('DF raw data'!N109="","",'DF raw data'!N109) -> -2.41523e-06 | C104: =IF('DF raw data'!O109="","",'DF raw data'!O109) -> 6.1793e-05 | D104: =IF('DF raw data'!P109="","",'DF raw data'!P109) -> -3.31408e-05 | F104: -2.425373966e-06 | G104: 6.20525306e-05 | H104: -3.327999136e-05 | J104: -0.0002781228633 | K104: -0.003529927861 | L104: 0.001167266063 | M104: 0.01241845376 | N104: 1.039272106e-05
A105: =IF('DF raw data'!M110="","",'DF raw data'!M110) -> -278.5 | B105: =IF('DF raw data'!N110="","",'DF raw data'!N110) -> -8.69127e-07 | C105: =IF('DF raw data'!O110="","",'DF raw data'!O110) -> 6.30241e-05 | D105: =IF('DF raw data'!P110="","",'DF raw data'!P110) -> -4.61624e-05 | F105: -8.727773334e-07 | G105: 6.328880122e-05 | H105: -4.635628208e-05 | J105: -0.000278559252 | K105: -0.003669207487 | L105: 0.001198910464 | M105: 0.01301790899 | N105: 1.115021184e-05
A106: =IF('DF raw data'!M111="","",'DF raw data'!M111) -> -278 | B106: =IF('DF raw data'!N111="","",'DF raw data'!N111) -> -7.07871e-06 | C106: =IF('DF raw data'!O111="","",'DF raw data'!O111) -> 5.17479e-05 | D106: =IF('DF raw data'!P111="","",'DF raw data'!P111) -> -5.46406e-05 | F106: -7.108440582e-06 | G106: 5.196524118e-05 | H106: -5.487009052e-05 | J106: -0.0002821134723 | K106: -0.003810264223 | L106: 0.001224893084 | M106: 0.01363035553 | N106: 1.194018738e-05
A107: =IF('DF raw data'!M112="","",'DF raw data'!M112) -> -277.5 | B107: =IF('DF raw data'!N112="","",'DF raw data'!N112) -> -6.82759e-06 | C107: =IF('DF raw data'!O112="","",'DF raw data'!O112) -> 5.01019e-05 | D107: =IF('DF raw data'!P112="","",'DF raw data'!P112) -> -4.66956e-05 | F107: -6.856265878e-06 | G107: 5.031232798e-05 | H107: -4.689172152e-05 | J107: -0.0002855416052 | K107: -0.003953035025 | L107: 0.001250049248 | M107: 0.01425538016 | N107: 1.276226595e-05
A108: =IF('DF raw data'!M113="","",'DF raw data'!M113) -> -277 | B108: =IF('DF raw data'!N113="","",'DF raw data'!N113) -> 3.35972e-06 | C108: =IF('DF raw data'!O113="","",'DF raw data'!O113) -> 5.37181e-05 | D108: =IF('DF raw data'!P113="","",'DF raw data'!P113) -> -4.66275e-05 | F108: 3.373830824e-06 | G108: 5.394371602e-05 | H108: -4.68233355e-05 | J108: -0.0002838546898 | K108: -0.00409496237 | L108: 0.001277021106 | M108: 0.01489389071 | N108: 1.361794414e-05
A109: =IF('DF raw data'!M114="","",'DF raw data'!M114) -> -276.5 | B109: =IF('DF raw data'!N114="","",'DF raw data'!N114) -> -1.74043e-05 | C109: =IF('DF raw data'!O114="","",'DF raw data'!O114) -> 5.26823e-05 | D109: =IF('DF raw data'!P114="","",'DF raw data'!P114) -> -3.90653e-05 | F109: -1.747739806e-05 | G109: 5.290356566e-05 | H109: -3.922937426e-05 | J109: -0.0002925933888 | K109: -0.004241259065 | L109: 0.001303472889 | M109: 0.01554562716 | N109: 1.451027037e-05
A110: =IF('DF raw data'!M115="","",'DF raw data'!M115) -> -276 | B110: =IF('DF raw data'!N115="","",'DF raw data'!N115) -> -1.00326e-05 | C110: =IF('DF raw data'!O115="","",'DF raw data'!O115) -> 5.17876e-05 | D110: =IF('DF raw data'!P115="","",'DF raw data'!P115) -> -4.42357e-05 | F110: -1.007473692e-05 | G110: 5.200510792e-05 | H110: -4.442148994e-05 | J110: -0.0002976307573 | K110: -0.004390074443 | L110: 0.001329475443 | M110: 0.01621036488 | N110: 1.543831488e-05
A111: =IF('DF raw data'!M116="","",'DF raw data'!M116) -> -275.5 | B111: =IF('DF raw data'!N116="","",'DF raw data'!N116) -> -2.89956e-05 | C111: =IF('DF raw data'!O116="","",'DF raw data'!O116) -> 6.1624e-05 | D111: =IF('DF raw data'!P116="","",'DF raw data'!P116) -> -4.76626e-05 | F111: -2.911738152e-05 | G111: 6.18828208e-05 | H111: -4.786278292e-05 | J111: -0.000312189448 | K111: -0.004546169167 | L111: 0.001360416853 | M111: 0.0168905733 | N111: 1.641241302e-05
A112: =IF('DF raw data'!M117="","",'DF raw data'!M117) -> -275 | B112: =IF('DF raw data'!N117="","",'DF raw data'!N117) -> -1.32965e-05 | C112: =IF('DF raw data'!O117="","",'DF raw data'!O117) -> 6.65642e-05 | D112: =IF('DF raw data'!P117="","",'DF raw data'!P117) -> -5.00334e-05 | F112: -1.33523453e-05 | G112: 6.684376964e-05 | H112: -5.024354028e-05 | J112: -0.0003188656207 | K112: -0.004705601978 | L112: 0.001393838738 | M112: 0.01758749267 | N112: 1.743464387e-05
A113: =IF('DF raw data'!M118="","",'DF raw data'!M118) -> -274.5 | B113: =IF('DF raw data'!N118="","",'DF raw data'!N118) -> -7.53016e-06 | C113: =IF('DF raw data'!O118="","",'DF raw data'!O118) -> 6.18721e-05 | D113: =IF('DF raw data'!P118="","",'DF raw data'!P118) -> -4.9857e-05 | F113: -7.561786672e-06 | G113: 6.213196282e-05 | H113: -5.00663994e-05 | J113: -0.000322646514 | K113: -0.004866925235 | L113: 0.00142490472 | M113: 0.01829994503 | N113: 1.850187099e-05
A114: =IF('DF raw data'!M119="","",'DF raw data'!M119) -> -274 | B114: =IF('DF raw data'!N119="","",'DF raw data'!N119) -> -9.13423e-06 | C114: =IF('DF raw data'!O119="","",'DF raw data'!O119) -> 6.5674e-05 | D114: =IF('DF raw data'!P119="","",'DF raw data'!P119) -> -4.64316e-05 | F114: -9.172593766e-06 | G114: 6.59498308e-05 | H114: -4.662661272e-05 | J114: -0.0003272328109 | K114: -0.00503054164 | L114: 0.001457879635 | M114: 0.01902888485 | N114: 1.961811816e-05
A115: =IF('DF raw data'!M120="","",'DF raw data'!M120) -> -273.5 | B115: =IF('DF raw data'!N120="","",'DF raw data'!N120) -> -4.83567e-06 | C115: =IF('DF raw data'!O120="","",'DF raw data'!O120) -> 6.53019e-05 | D115: =IF('DF raw data'!P120="","",'DF raw data'!P120) -> -5.54018e-05 | F115: -4.855979814e-06 | G115: 6.557616798e-05 | H115: -5.563448756e-05 | J115: -0.0003296608008 | K115: -0.00519537204 | L115: 0.001490667719 | M115: 0.01977421871 | N115: 2.078350141e-05
A116: =IF('DF raw data'!M121="","",'DF raw data'!M121) -> -273 | B116: =IF('DF raw data'!N121="","",'DF raw data'!N121) -> -3.86831e-06 | C116: =IF('DF raw data'!O121="","",'DF raw data'!O121) -> 6.29838e-05 | D116: =IF('DF raw data'!P121="","",'DF raw data'!P121) -> -6.49439e-05 | F116: -3.884556902e-06 | G116: 6.324833196e-05 | H116: -6.521666438e-05 | J116: -0.0003316030793 | K116: -0.00536117358 | L116: 0.001522291885 | M116: 0.02053536465 | N116: 2.1997168e-05
A117: =IF('DF raw data'!M122="","",'DF raw data'!M122) -> -272.5 | B117: =IF('DF raw data'!N122="","",'DF raw data'!N122) -> -2.4699e-06 | C117: =IF('DF raw data'!O122="","",'DF raw data'!O122) -> 6.34255e-05 | D117: =IF('DF raw data'!P122="","",'DF raw data'!P122) -> -4.7823e-05 | F117: -2.48027358e-06 | G117: 6.36918871e-05 | H117: -4.80238566e-05 | J117: -0.000332843216 | K117: -0.005527595188 | L117: 0.001554137829 | M117: 0.02131243357 | N117: 2.32602325e-05
A118: =IF('DF raw data'!M123="","",'DF raw data'!M123) -> -272 | B118: =IF('DF raw data'!N123="","",'DF raw data'!N123) -> -1.04789e-05 | C118: =IF('DF raw data'!O123="","",'DF raw data'!O123) -> 5.74395e-05 | D118: =IF('DF raw data'!P123="","",'DF raw data'!P123) -> -4.78732e-05 | F118: -1.052291138e-05 | G118: 5.76807459e-05 | H118: -4.807426744e-05 | J118: -0.0003381046717 | K118: -0.005696647524 | L118: 0.001582978202 | M118: 0.02210392267 | N118: 2.457029988e-05
A119: =IF('DF raw data'!M124="","",'DF raw data'!M124) -> -271.5 | B119: =IF('DF raw data'!N124="","",'DF raw data'!N124) -> -1.61703e-05 | C119: =IF('DF raw data'!O124="","",'DF raw data'!O124) -> 5.76371e-05 | D119: =IF('DF raw data'!P124="","",'DF raw data'!P124) -> -6.45273e-05 | F119: -1.623821526e-05 | G119: 5.787917582e-05 | H119: -6.479831466e-05 | J119: -0.0003462237794 | K119: -0.005869759414 | L119: 0.001611917789 | M119: 0.02290988156 | N119: 2.592937481e-05
A120: =IF('DF raw data'!M125="","",'DF raw data'!M125) -> -271 | B120: =IF('DF raw data'!N125="","",'DF raw data'!N125) -> -1.37477e-05 | C120: =IF('DF raw data'!O125="","",'DF raw data'!O125) -> 5.83971e-05 | D120: =IF('DF raw data'!P125="","",'DF raw data'!P125) -> -4.60655e-05 | F120: -1.380544034e-05 | G120: 5.864236782e-05 | H120: -4.62589751e-05 | J120: -0.0003531264995 | K120: -0.006046322663 | L120: 0.001641238973 | M120: 0.02373050105 | N120: 2.733855665e-05
A121: =IF('DF raw data'!M126="","",'DF raw data'!M126) -> -270.5 | B121: =IF('DF raw data'!N126="","",'DF raw data'!N126) -> -8.62342e-06 | C121: =IF('DF raw data'!O126="","",'DF raw data'!O126) -> 5.92784e-05 | D121: =IF('DF raw data'!P126="","",'DF raw data'!P126) -> -4.37477e-05 | F121: -8.659638364e-06 | G121: 5.952736928e-05 | H121: -4.393144034e-05 | J121: -0.0003574563187 | K121: -0.006225050823 | L121: 0.001671002658 | M121: 0.02456600238 | N121: 2.879856911e-05
A122: =IF('DF raw data'!M127="","",'DF raw data'!M127) -> -270 | B122: =IF('DF raw data'!N127="","",'DF raw data'!N127) -> -2.38745e-05 | C122: =IF('DF raw data'!O127="","",'DF raw data'!O127) -> 6.45079e-05 | D122: =IF('DF raw data'!P127="","",'DF raw data'!P127) -> -4.08795e-05 | F122: -2.39747729e-05 | G122: 6.477883318e-05 | H122: -4.10511939e-05 | J122: -0.0003694437052 | K122: -0.006409772675 | L122: 0.001703392075 | M122: 0.02541769842 | N122: 3.031758571e-05
A123: =IF('DF raw data'!M128="","",'DF raw data'!M128) -> -269.5 | B123: =IF('DF raw data'!N128="","",'DF raw data'!N128) -> -1.11799e-05 | C123: =IF('DF raw data'!O128="","",'DF raw data'!O128) -> 6.05386e-05 | D123: =IF('DF raw data'!P128="","",'DF raw data'!P128) -> -5.33858e-05 | F123: -1.122685558e-05 | G123: 6.079286212e-05 | H123: -5.361002036e-05 | J123: -0.000375057133 | K123: -0.006597301242 | L123: 0.001733788506 | M123: 0.02628459267 | N123: 3.189093093e-05
A124: =IF('DF raw data'!M129="","",'DF raw data'!M129) -> -269 | B124: =IF('DF raw data'!N129="","",'DF raw data'!N129) -> -1.36207e-05 | C124: =IF('DF raw data'!O129="","",'DF raw data'!O129) -> 6.30151e-05 | D124: =IF('DF raw data'!P129="","",'DF raw data'!P129) -> -4.42882e-05 | F124: -1.367790694e-05 | G124: 6.327976342e-05 | H124: -4.447421044e-05 | J124: -0.0003818960864 | K124: -0.006788249285 | L124: 0.001765428387 | M124: 0.02716730686 | N124: 3.352222193e-05
A125: =IF('DF raw data'!M130="","",'DF raw data'!M130) -> -268.5 | B125: =IF('DF raw data'!N130="","",'DF raw data'!N130) -> -8.6187e-06 | C125: =IF('DF raw data'!O130="","",'DF raw data'!O130) -> 6.3388e-05 | D125: =IF('DF raw data'!P130="","",'DF raw data'!P130) -> -5.10271e-05 | F125: -8.65489854e-06 | G125: 6.36542296e-05 | H125: -5.124141382e-05 | J125: -0.0003862235357 | K125: -0.006981361053 | L125: 0.001797255502 | M125: 0.02806593461 | N125: 3.521186991e-05
A126: =IF('DF raw data'!M131="","",'DF raw data'!M131) -> -268 | B126: =IF('DF raw data'!N131="","",'DF raw data'!N131) -> -1.94542e-05 | C126: =IF('DF raw data'!O131="","",'DF raw data'!O131) -> 5.80133e-05 | D126: =IF('DF raw data'!P131="","",'DF raw data'!P131) -> -3.94247e-05 | F126: -1.953590764e-05 | G126: 5.825695586e-05 | H126: -3.959028374e-05 | J126: -0.0003959914895 | K126: -0.007179356798 | L126: 0.00182638398 | M126: 0.0289791266 | N126: 3.695811377e-05
A127: =IF('DF raw data'!M132="","",'DF raw data'!M132) -> -267.5 | B127: =IF('DF raw data'!N132="","",'DF raw data'!N132) -> -1.66305e-05 | C127: =IF('DF raw data'!O132="","",'DF raw data'!O132) -> 5.71423e-05 | D127: =IF('DF raw data'!P132="","",'DF raw data'!P132) -> -4.67189e-05 | F127: -1.67003481e-05 | G127: 5.738229766e-05 | H127: -4.691511938e-05 | J127: -0.0004043416636 | K127: -0.007381527629 | L127: 0.001855075129 | M127: 0.02990666417 | N127: 3.876051172e-05
A128: =IF('DF raw data'!M133="","",'DF raw data'!M133) -> -267 | B128: =IF('DF raw data'!N133="","",'DF raw data'!N133) -> -9.00359e-06 | C128: =IF('DF raw data'!O133="","",'DF raw data'!O133) -> 5.77431e-05 | D128: =IF('DF raw data'!P133="","",'DF raw data'!P133) -> -5.02799e-05 | F128: =(1-$G$1*($B$49-$G$2))*B128 -> -9.041405078e-06 | G128: 5.798562102e-05 | H128: -5.049107558e-05 | J128: =F128*$G$3+J127 -> -0.0004088623661 | K128: =J128*$G$3+K127 -> -0.007585958813 | L128: =G128*$G$3+L127 -> 0.001884067939 | M128: =L128*$G$3+M127 -> 0.03084869814 | N128: =(J128^2+L128^2)*$G$3+N127 -> 4.061895194e-05
A129: =IF('DF raw data'!M134="","",'DF raw data'!M134) -> -266.5 | B129: =IF('DF raw data'!N134="","",'DF raw data'!N134) -> -7.72418e-06 | C129: =IF('DF raw data'!O134="","",'DF raw data'!O134) -> 6.00994e-05 | D129: =IF('DF raw data'!P134="","",'DF raw data'!P134) -> -4.72521e-05 | F129: -7.756621556e-06 | G129: 6.035181748e-05 | H129: -4.745055882e-05 | J129: -0.0004127406769 | K129: -0.007792329151 | L129: 0.001914243848 | M129: 0.03180582006 | N129: 4.253629413e-05
A130: =IF('DF raw data'!M135="","",'DF raw data'!M135) -> -266 | B130: =IF('DF raw data'!N135="","",'DF raw data'!N135) -> -1.57318e-05 | C130: =IF('DF raw data'!O135="","",'DF raw data'!O135) -> 6.22362e-05 | D130: =IF('DF raw data'!P135="","",'DF raw data'!P135) -> -4.93801e-05 | F130: -1.579787356e-05 | G130: 6.249759204e-05 | H130: -4.958749642e-05 | J130: -0.0004206396137 | K130: -0.008002648958 | L130: 0.001945492644 | M130: 0.03277856638 | N130: 4.451723378e-05
A131: =IF('DF raw data'!M136="","",'DF raw data'!M136) -> -265.5 | B131: =IF('DF raw data'!N136="","",'DF raw data'!N136) -> -4.13821e-06 | C131: =IF('DF raw data'!O136="","",'DF raw data'!O136) -> 5.42804e-05 | D131: =IF('DF raw data'!P136="","",'DF raw data'!P136) -> -4.39362e-05 | F131: -4.155590482e-06 | G131: 5.450837768e-05 | H131: -4.412073204e-05 | J131: -0.0004227174089 | K131: -0.008214007662 | L131: 0.001972746833 | M131: 0.0337649398 | N131: 4.655244382e-05
A132: =IF('DF raw data'!M137="","",'DF raw data'!M137) -> -265 | B132: =IF('DF raw data'!N137="","",'DF raw data'!N137) -> -1.56078e-05 | C132: =IF('DF raw data'!O137="","",'DF raw data'!O137) -> 6.21811e-05 | D132: =IF('DF raw data'!P137="","",'DF raw data'!P137) -> -4.29257e-05 | F132: -1.567335276e-05 | G132: 6.244226062e-05 | H132: -4.310598794e-05 | J132: -0.0004305540853 | K132: -0.008429284705 | L132: 0.002003967963 | M132: 0.03476692378 | N132: 4.865307603e-05
A133: =IF('DF raw data'!M138="","",'DF raw data'!M138) -> -264.5 | B133: =IF('DF raw data'!N138="","",'DF raw data'!N138) -> -1.22071e-05 | C133: =IF('DF raw data'!O138="","",'DF raw data'!O138) -> 5.87361e-05 | D133: =IF('DF raw data'!P138="","",'DF raw data'!P138) -> -5.06e-05 | F133: -1.225836982e-05 | G133: 5.898279162e-05 | H133: -5.081252e-05 | J133: -0.0004366832702 | K133: -0.00864762634 | L133: 0.002033459359 | M133: 0.03578365346 | N133: 5.081590065e-05
A134: =IF('DF raw data'!M139="","",'DF raw data'!M139) -> -264 | B134: =IF('DF raw data'!N139="","",'DF raw data'!N139) -> -1.1061e-05 | C134: =IF('DF raw data'!O139="","",'DF raw data'!O139) -> 5.98287e-05 | D134: =IF('DF raw data'!P139="","",'DF raw data'!P139) -> -3.91317e-05 | F134: -1.11074562e-05 | G134: 6.007998054e-05 | H134: -3.929605314e-05 | J134: -0.0004422369983 | K134: -0.008868744839 | L134: 0.002063499349 | M134: 0.03681540314 | N134: 5.304270222e-05
A135: =IF('DF raw data'!M140="","",'DF raw data'!M140) -> -263.5 | B135: =IF('DF raw data'!N140="","",'DF raw data'!N140) -> -5.86224e-06 | C135: =IF('DF raw data'!O140="","",'DF raw data'!O140) -> 6.68595e-05 | D135: =IF('DF raw data'!P140="","",'DF raw data'!P140) -> -5.31321e-05 | F135: -5.886861408e-06 | G135: 6.71403099e-05 | H135: -5.335525482e-05 | J135: -0.000445180429 | K135: -0.009091335054 | L135: 0.002097069504 | M135: 0.03786393789 | N135: 5.534064528e-05
A136: =IF('DF raw data'!M141="","",'DF raw data'!M141) -> -263 | B136: =IF('DF raw data'!N141="","",'DF raw data'!N141) -> -1.02217e-05 | C136: =IF('DF raw data'!O141="","",'DF raw data'!O141) -> 6.17641e-05 | D136: =IF('DF raw data'!P141="","",'DF raw data'!P141) -> -4.92403e-05 | F136: -1.026463114e-05 | G136: 6.202350922e-05 | H136: -4.944710926e-05 | J136: -0.0004503127446 | K136: -0.009316491426 | L136: 0.002128081259 | M136: 0.03892797852 | N136: 5.770640098e-05
A137: =IF('DF raw data'!M142="","",'DF raw data'!M142) -> -262.5 | B137: =IF('DF raw data'!N142="","",'DF raw data'!N142) -> -1.57419e-06 | C137: =IF('DF raw data'!O142="","",'DF raw data'!O142) -> 6.37567e-05 | D137: =IF('DF raw data'!P142="","",'DF raw data'!P142) -> -4.58961e-05 | F137: -1.580801598e-06 | G137: 6.402447814e-05 | H137: -4.608886362e-05 | J137: -0.0004511031454 | K137: -0.009542042999 | L137: 0.002160093498 | M137: 0.04000802527 | N137: 6.014114997e-05
A138: =IF('DF raw data'!M143="","",'DF raw data'!M143) -> -262 | B138: =IF('DF raw data'!N143="","",'DF raw data'!N143) -> -7.20716e-06 | C138: =IF('DF raw data'!O143="","",'DF raw data'!O143) -> 5.7704e-05 | D138: =IF('DF raw data'!P143="","",'DF raw data'!P143) -> -5.41351e-05 | F138: -7.237430072e-06 | G138: 5.79463568e-05 | H138: -5.436246742e-05 | J138: -0.0004547218604 | K138: -0.009769403929 | L138: 0.002189066676 | M138: 0.0411025586 | N138: 6.264054241e-05
A139: =IF('DF raw data'!M144="","",'DF raw data'!M144) -> -261.5 | B139: =IF('DF raw data'!N144="","",'DF raw data'!N144) -> -1.31049e-05 | C139: =IF('DF raw data'!O144="","",'DF raw data'!O144) -> 6.04777e-05 | D139: =IF('DF raw data'!P144="","",'DF raw data'!P144) -> -4.92488e-05 | F139: -1.315994058e-05 | G139: 6.073170634e-05 | H139: -4.945564496e-05 | J139: -0.0004613018307 | K139: -0.01000005484 | L139: 0.00221943253 | M139: 0.04221227487 | N139: 6.520988248e-05
A140: =IF('DF raw data'!M145="","",'DF raw data'!M145) -> -261 | B140: =IF('DF raw data'!N145="","",'DF raw data'!N145) -> -2.05385e-05 | C140: =IF('DF raw data'!O145="","",'DF raw data'!O145) -> 5.87281e-05 | D140: =IF('DF raw data'!P145="","",'DF raw data'!P145) -> -4.71661e-05 | F140: -2.06247617e-05 | G140: 5.897475802e-05 | H140: -4.736419762e-05 | J140: -0.0004716142115 | K140: -0.01023586195 | L140: 0.002248919909 | M140: 0.04333673482 | N140: 6.784991284e-05
A141: =IF('DF raw data'!M146="","",'DF raw data'!M146) -> -260.5 | B141: =IF('DF raw data'!N146="","",'DF raw data'!N146) -> -9.3875e-06 | C141: =IF('DF raw data'!O146="","",'DF raw data'!O146) -> 6.38368e-05 | D141: =IF('DF raw data'!P146="","",'DF raw data'!P146) -> -5.1043e-05 | F141: -9.4269275e-06 | G141: 6.410491456e-05 | H141: -5.12573806e-05 | J141: -0.0004763276753 | K141: -0.01047402579 | L141: 0.002280972366 | M141: 0.04447722101 | N141: 7.056477433e-05
A142: =IF('DF raw data'!M147="","",'DF raw data'!M147) -> -260 | B142: =IF('DF raw data'!N147="","",'DF raw data'!N147) -> -1.83568e-05 | C142: =IF('DF raw data'!O147="","",'DF raw data'!O147) -> 6.52814e-05 | D142: =IF('DF raw data'!P147="","",'DF raw data'!P147) -> -5.23944e-05 | F142: -1.843389856e-05 | G142: 6.555558188e-05 | H142: -5.261445648e-05 | J142: -0.0004855446246 | K142: -0.0107167981 | L142: 0.002313750157 | M142: 0.04563409608 | N142: 7.335937101e-05
